Workbook

Sheet Money Leaders
A1: "2018 Money Leaderboard"
A2: Position | B2: No. | C2: Player | D2: 2018-01-20 | E2: 2018-03-18 | F2: 2018-05-20 | G2: 2018-07-22 | H2: 2018-09-15 | I2: 2018-09-16 | J2: 2018-11-01 | K2: MP | L2: GOY | M2: Total
A3: =IF($M3=$M4,"T"&$B3,$B3) -> 1 | B3: 1 | C3: Christen, Lou | D3: 102 | E3: 17 | G3: =IF($G$2<>Players!$B$4,"",IF(SUMIF(Winners!$B$4:$J$34,$C3,Winners!$D$4:$L$34)=0,"",SUMIF(Winners!$B$4:$J$34,$C3,Winners!$D$4:$L$34))) -> 39.5 | H3: =IF($H$2<>Players!$B$4,"",IF(SUMIF(Winners!$B$4:$J$34,$C3,Winners!$D$4:$L$34)=0,"",SUMIF(Winners!$B$4:$J$34,$C3,Winners!$D$4:$L$34))) ->  | I3: =IF($I$2<>Players!$B$4,"",IF(SUMIF(Winners!$B$4:$J$34,$C3,Winners!$D$4:$L$34)=0,"",SUMIF(Winners!$B$4:$J$34,$C3,Winners!$D$4:$L$34))) ->  | J3: =IF($J$2<>Players!$B$4,"",IF(SUMIF(Winners!$B$4:$J$34,$C3,Winners!$D$4:$L$34)=0,"",SUMIF(Winners!$B$4:$J$34,$C3,Winners!$D$4:$L$34))) ->  | M3: =SUM($D3:$J3,$K3:$L3) -> 158.5
A4: =IF($M4=$M3,$A3,IF($M4=$M5,"T"&$B4,$B4)) -> 2 | B4: 2 | C4: Lunghard, Rich | D4: 40 | E4: 91.5 | F4: 12.5 | G4: =IF($G$2<>Players!$B$4,"",IF(SUMIF(Winners!$B$4:$J$34,$C4,Winners!$D$4:$L$34)=0,"",SUMIF(Winners!$B$4:$J$34,$C4,Winners!$D$4:$L$34))) ->  | H4: =IF($H$2<>Players!$B$4,"",IF(SUMIF(Winners!$B$4:$J$34,$C4,Winners!$D$4:$L$34)=0,"",SUMIF(Winners!$B$4:$J$34,$C4,Winners!$D$4:$L$34))) ->  | I4: =IF($I$2<>Players!$B$4,"",IF(SUMIF(Winners!$B$4:$J$34,$C4,Winners!$D$4:$L$34)=0,"",SUMIF(Winners!$B$4:$J$34,$C4,Winners!$D$4:$L$34))) ->  | J4: =IF($J$2<>Players!$B$4,"",IF(SUMIF(Winners!$B$4:$J$34,$C4,Winners!$D$4:$L$34)=0,"",SUMIF(Winners!$B$4:$J$34,$C4,Winners!$D$4:$L$34))) ->  | M4: =SUM($D4:$J4,$K4:$L4) -> 144
A5: 3 | B5: 3 | C5: Jones, Gary | G5: =IF($G$2<>Players!$B$4,"",IF(SUMIF(Winners!$B$4:$J$34,$C5,Winners!$D$4:$L$34)=0,"",SUMIF(Winners!$B$4:$J$34,$C5,Winners!$D$4:$L$34))) -> 129.5 | H5: =IF($H$2<>Players!$B$4,"",IF(SUMIF(Winners!$B$4:$J$34,$C5,Winners!$D$4:$L$34)=0,"",SUMIF(Winners!$B$4:$J$34,$C5,Winners!$D$4:$L$34))) ->  | I5: =IF($I$2<>Players!$B$4,"",IF(SUMIF(Winners!$B$4:$J$34,$C5,Winners!$D$4:$L$34)=0,"",SUMIF(Winners!$B$4:$J$34,$C5,Winners!$D$4:$L$34))) ->  | J5: =IF($J$2<>Players!$B$4,"",IF(SUMIF(Winners!$B$4:$J$34,$C5,Winners!$D$4:$L$34)=0,"",SUMIF(Winners!$B$4:$J$34,$C5,Winners!$D$4:$L$34))) ->  | M5: =SUM($D5:$J5,$K5:$L5) -> 129.5
A6: 4 | B6: 4 | C6: Escobedo, Hector | D6: 39 | E6: 49 | F6: 13 | G6: =IF($G$2<>Players!$B$4,"",IF(SUMIF(Winners!$B$4:$J$34,$C6,Winners!$D$4:$L$34)=0,"",SUMIF(Winners!$B$4:$J$34,$C6,Winners!$D$4:$L$34))) -> 16 | H6: =IF($H$2<>Players!$B$4,"",IF(SUMIF(Winners!$B$4:$J$34,$C6,Winners!$D$4:$L$34)=0,"",SUMIF(Winners!$B$4:$J$34,$C6,Winners!$D$4:$L$34))) ->  | I6: =IF($I$2<>Players!$B$4,"",IF(SUMIF(Winners!$B$4:$J$34,$C6,Winners!$D$4:$L$34)=0,"",SUMIF(Winners!$B$4:$J$34,$C6,Winners!$D$4:$L$34))) ->  | J6: =IF($J$2<>Players!$B$4,"",IF(SUMIF(Winners!$B$4:$J$34,$C6,Winners!$D$4:$L$34)=0,"",SUMIF(Winners!$B$4:$J$34,$C6,Winners!$D$4:$L$34))) ->  | M6: =SUM($D6:$J6,$K6:$L6) -> 117
A7: 5 | B7: 5 | C7: Graham, Travis | E7: 83 | F7: 15 | G7: =IF($G$2<>Players!$B$4,"",IF(SUMIF(Winners!$B$4:$J$34,$C7,Winners!$D$4:$L$34)=0,"",SUMIF(Winners!$B$4:$J$34,$C7,Winners!$D$4:$L$34))) ->  | H7: =IF($H$2<>Players!$B$4,"",IF(SUMIF(Winners!$B$4:$J$34,$C7,Winners!$D$4:$L$34)=0,"",SUMIF(Winners!$B$4:$J$34,$C7,Winners!$D$4:$L$34))) ->  | I7: =IF($I$2<>Players!$B$4,"",IF(SUMIF(Winners!$B$4:$J$34,$C7,Winners!$D$4:$L$34)=0,"",SUMIF(Winners!$B$4:$J$34,$C7,Winners!$D$4:$L$34))) ->  | J7: =IF($J$2<>Players!$B$4,"",IF(SUMIF(Winners!$B$4:$J$34,$C7,Winners!$D$4:$L$34)=0,"",SUMIF(Winners!$B$4:$J$34,$C7,Winners!$D$4:$L$34))) ->  | M7: =SUM($D7:$J7,$K7:$L7) -> 98
A8: 6 | B8: 6 | C8: Blodgett, Kevin | F8: 86.5 | G8: =IF($G$2<>Players!$B$4,"",IF(SUMIF(Winners!$B$4:$J$34,$C8,Winners!$D$4:$L$34)=0,"",SUMIF(Winners!$B$4:$J$34,$C8,Winners!$D$4:$L$34))) -> 6 | H8: =IF($H$2<>Players!$B$4,"",IF(SUMIF(Winners!$B$4:$J$34,$C8,Winners!$D$4:$L$34)=0,"",SUMIF(Winners!$B$4:$J$34,$C8,Winners!$D$4:$L$34))) ->  | I8: =IF($I$2<>Players!$B$4,"",IF(SUMIF(Winners!$B$4:$J$34,$C8,Winners!$D$4:$L$34)=0,"",SUMIF(Winners!$B$4:$J$34,$C8,Winners!$D$4:$L$34))) ->  | J8: =IF($J$2<>Players!$B$4,"",IF(SUMIF(Winners!$B$4:$J$34,$C8,Winners!$D$4:$L$34)=0,"",SUMIF(Winners!$B$4:$J$34,$C8,Winners!$D$4:$L$34))) ->  | M8: =SUM($D8:$J8,$K8:$L8) -> 92.5
A9: 7 | B9: 7 | C9: Tenorio, Noe | D9: 18 | E9: 8.5 | G9: =IF($G$2<>Players!$B$4,"",IF(SUMIF(Winners!$B$4:$J$34,$C9,Winners!$D$4:$L$34)=0,"",SUMIF(Winners!$B$4:$J$34,$C9,Winners!$D$4:$L$34))) -> 58 | H9: =IF($H$2<>Players!$B$4,"",IF(SUMIF(Winners!$B$4:$J$34,$C9,Winners!$D$4:$L$34)=0,"",SUMIF(Winners!$B$4:$J$34,$C9,Winners!$D$4:$L$34))) ->  | I9: =IF($I$2<>Players!$B$4,"",IF(SUMIF(Winners!$B$4:$J$34,$C9,Winners!$D$4:$L$34)=0,"",SUMIF(Winners!$B$4:$J$34,$C9,Winners!$D$4:$L$34))) ->  | J9: =IF($J$2<>Players!$B$4,"",IF(SUMIF(Winners!$B$4:$J$34,$C9,Winners!$D$4:$L$34)=0,"",SUMIF(Winners!$B$4:$J$34,$C9,Winners!$D$4:$L$34))) ->  | M9: =SUM($D9:$J9,$K9:$L9) -> 84.5
A10: 8 | B10: 8 | C10: Escobedo, Marco | E10: 15 | F10: 68 | G10: =IF($G$2<>Players!$B$4,"",IF(SUMIF(Winners!$B$4:$J$34,$C10,Winners!$D$4:$L$34)=0,"",SUMIF(Winners!$B$4:$J$34,$C10,Winners!$D$4:$L$34))) ->  | H10: =IF($H$2<>Players!$B$4,"",IF(SUMIF(Winners!$B$4:$J$34,$C10,Winners!$D$4:$L$34)=0,"",SUMIF(Winners!$B$4:$J$34,$C10,Winners!$D$4:$L$34))) ->  | I10: =IF($I$2<>Players!$B$4,"",IF(SUMIF(Winners!$B$4:$J$34,$C10,Winners!$D$4:$L$34)=0,"",SUMIF(Winners!$B$4:$J$34,$C10,Winners!$D$4:$L$34))) ->  | J10: =IF($J$2<>Players!$B$4,"",IF(SUMIF(Winners!$B$4:$J$34,$C10,Winners!$D$4:$L$34)=0,"",SUMIF(Winners!$B$4:$J$34,$C10,Winners!$D$4:$L$34))) ->  | M10: =SUM($D10:$J10,$K10:$L10) -> 83
A11: 9 | B11: 9 | C11: Doden, Jeff | D11: 20 | F11: 52.5 | G11: =IF($G$2<>Players!$B$4,"",IF(SUMIF(Winners!$B$4:$J$34,$C11,Winners!$D$4:$L$34)=0,"",SUMIF(Winners!$B$4:$J$34,$C11,Winners!$D$4:$L$34))) ->  | H11: =IF($H$2<>Players!$B$4,"",IF(SUMIF(Winners!$B$4:$J$34,$C11,Winners!$D$4:$L$34)=0,"",SUMIF(Winners!$B$4:$J$34,$C11,Winners!$D$4:$L$34))) ->  | I11: =IF($I$2<>Players!$B$4,"",IF(SUMIF(Winners!$B$4:$J$34,$C11,Winners!$D$4:$L$34)=0,"",SUMIF(Winners!$B$4:$J$34,$C11,Winners!$D$4:$L$34))) ->  | J11: =IF($J$2<>Players!$B$4,"",IF(SUMIF(Winners!$B$4:$J$34,$C11,Winners!$D$4:$L$34)=0,"",SUMIF(Winners!$B$4:$J$34,$C11,Winners!$D$4:$L$34))) ->  | M11: =SUM($D11:$J11,$K11:$L11) -> 72.5
A12: 10 | B12: 10 | C12: Medina, Randy | E12: 34 | F12: 12.5 | G12: =IF($G$2<>Players!$B$4,"",IF(SUMIF(Winners!$B$4:$J$34,$C12,Winners!$D$4:$L$34)=0,"",SUMIF(Winners!$B$4:$J$34,$C12,Winners!$D$4:$L$34))) ->  | H12: =IF($H$2<>Players!$B$4,"",IF(SUMIF(Winners!$B$4:$J$34,$C12,Winners!$D$4:$L$34)=0,"",SUMIF(Winners!$B$4:$J$34,$C12,Winners!$D$4:$L$34))) ->  | I12: =IF($I$2<>Players!$B$4,"",IF(SUMIF(Winners!$B$4:$J$34,$C12,Winners!$D$4:$L$34)=0,"",SUMIF(Winners!$B$4:$J$34,$C12,Winners!$D$4:$L$34))) ->  | J12: =IF($J$2<>Players!$B$4,"",IF(SUMIF(Winners!$B$4:$J$34,$C12,Winners!$D$4:$L$34)=0,"",SUMIF(Winners!$B$4:$J$34,$C12,Winners!$D$4:$L$34))) ->  | M12: =SUM($D12:$J12,$K12:$L12) -> 46.5
A13: 11 | B13: 11 | C13: Feeney, Steve | D13: 44 | G13: =IF($G$2<>Players!$B$4,"",IF(SUMIF(Winners!$B$4:$J$34,$C13,Winners!$D$4:$L$34)=0,"",SUMIF(Winners!$B$4:$J$34,$C13,Winners!$D$4:$L$34))) ->  | H13: =IF($H$2<>Players!$B$4,"",IF(SUMIF(Winners!$B$4:$J$34,$C13,Winners!$D$4:$L$34)=0,"",SUMIF(Winners!$B$4:$J$34,$C13,Winners!$D$4:$L$34))) ->  | I13: =IF($I$2<>Players!$B$4,"",IF(SUMIF(Winners!$B$4:$J$34,$C13,Winners!$D$4:$L$34)=0,"",SUMIF(Winners!$B$4:$J$34,$C13,Winners!$D$4:$L$34))) ->  | J13: =IF($J$2<>Players!$B$4,"",IF(SUMIF(Winners!$B$4:$J$34,$C13,Winners!$D$4:$L$34)=0,"",SUMIF(Winners!$B$4:$J$34,$C13,Winners!$D$4:$L$34))) ->  | M13: =SUM($D13:$J13,$K13:$L13) -> 44
A14: 12 | B14: 12 | C14: Ornelas, Eddie | D14: 39 | G14: =IF($G$2<>Players!$B$4,"",IF(SUMIF(Winners!$B$4:$J$34,$C14,Winners!$D$4:$L$34)=0,"",SUMIF(Winners!$B$4:$J$34,$C14,Winners!$D$4:$L$34))) ->  | H14: =IF($H$2<>Players!$B$4,"",IF(SUMIF(Winners!$B$4:$J$34,$C14,Winners!$D$4:$L$34)=0,"",SUMIF(Winners!$B$4:$J$34,$C14,Winners!$D$4:$L$34))) ->  | I14: =IF($I$2<>Players!$B$4,"",IF(SUMIF(Winners!$B$4:$J$34,$C14,Winners!$D$4:$L$34)=0,"",SUMIF(Winners!$B$4:$J$34,$C14,Winners!$D$4:$L$34))) ->  | J14: =IF($J$2<>Players!$B$4,"",IF(SUMIF(Winners!$B$4:$J$34,$C14,Winners!$D$4:$L$34)=0,"",SUMIF(Winners!$B$4:$J$34,$C14,Winners!$D$4:$L$34))) ->  | M14: =SUM($D14:$J14,$K14:$L14) -> 39
A15: 13 | B15: 13 | C15: Kozachenko, Jon | G15: =IF($G$2<>Players!$B$4,"",IF(SUMIF(Winners!$B$4:$J$34,$C15,Winners!$D$4:$L$34)=0,"",SUMIF(Winners!$B$4:$J$34,$C15,Winners!$D$4:$L$34))) -> 21 | H15: =IF($H$2<>Players!$B$4,"",IF(SUMIF(Winners!$B$4:$J$34,$C15,Winners!$D$4:$L$34)=0,"",SUMIF(Winners!$B$4:$J$34,$C15,Winners!$D$4:$L$34))) ->  | I15: =IF($I$2<>Players!$B$4,"",IF(SUMIF(Winners!$B$4:$J$34,$C15,Winners!$D$4:$L$34)=0,"",SUMIF(Winners!$B$4:$J$34,$C15,Winners!$D$4:$L$34))) ->  | J15: =IF($J$2<>Players!$B$4,"",IF(SUMIF(Winners!$B$4:$J$34,$C15,Winners!$D$4:$L$34)=0,"",SUMIF(Winners!$B$4:$J$34,$C15,Winners!$D$4:$L$34))) ->  | M15: =SUM($D15:$J15,$K15:$L15) -> 21
A16: 14 | B16: 14 | C16: Deutsch, Paul | E16: 17 | G16: =IF($G$2<>Players!$B$4,"",IF(SUMIF(Winners!$B$4:$J$34,$C16,Winners!$D$4:$L$34)=0,"",SUMIF(Winners!$B$4:$J$34,$C16,Winners!$D$4:$L$34))) ->  | H16: =IF($H$2<>Players!$B$4,"",IF(SUMIF(Winners!$B$4:$J$34,$C16,Winners!$D$4:$L$34)=0,"",SUMIF(Winners!$B$4:$J$34,$C16,Winners!$D$4:$L$34))) ->  | I16: =IF($I$2<>Players!$B$4,"",IF(SUMIF(Winners!$B$4:$J$34,$C16,Winners!$D$4:$L$34)=0,"",SUMIF(Winners!$B$4:$J$34,$C16,Winners!$D$4:$L$34))) ->  | J16: =IF($J$2<>Players!$B$4,"",IF(SUMIF(Winners!$B$4:$J$34,$C16,Winners!$D$4:$L$34)=0,"",SUMIF(Winners!$B$4:$J$34,$C16,Winners!$D$4:$L$34))) ->  | M16: =SUM($D16:$J16,$K16:$L16) -> 17
A17: T15 | B17: 15 | C17: Basham, Baret | E17: 15 | G17: =IF($G$2<>Players!$B$4,"",IF(SUMIF(Winners!$B$4:$J$34,$C17,Winners!$D$4:$L$34)=0,"",SUMIF(Winners!$B$4:$J$34,$C17,Winners!$D$4:$L$34))) ->  | H17: =IF($H$2<>Players!$B$4,"",IF(SUMIF(Winners!$B$4:$J$34,$C17,Winners!$D$4:$L$34)=0,"",SUMIF(Winners!$B$4:$J$34,$C17,Winners!$D$4:$L$34))) ->  | I17: =IF($I$2<>Players!$B$4,"",IF(SUMIF(Winners!$B$4:$J$34,$C17,Winners!$D$4:$L$34)=0,"",SUMIF(Winners!$B$4:$J$34,$C17,Winners!$D$4:$L$34))) ->  | J17: =IF($J$2<>Players!$B$4,"",IF(SUMIF(Winners!$B$4:$J$34,$C17,Winners!$D$4:$L$34)=0,"",SUMIF(Winners!$B$4:$J$34,$C17,Winners!$D$4:$L$34))) ->  | M17: =SUM($D17:$J17,$K17:$L17) -> 15
A18: T15 | B18: 16 | C18: Mikschl, Tom | F18: 15 | G18: =IF($G$2<>Players!$B$4,"",IF(SUMIF(Winners!$B$4:$J$34,$C18,Winners!$D$4:$L$34)=0,"",SUMIF(Winners!$B$4:$J$34,$C18,Winners!$D$4:$L$34))) ->  | H18: =IF($H$2<>Players!$B$4,"",IF(SUMIF(Winners!$B$4:$J$34,$C18,Winners!$D$4:$L$34)=0,"",SUMIF(Winners!$B$4:$J$34,$C18,Winners!$D$4:$L$34))) ->  | I18: =IF($I$2<>Players!$B$4,"",IF(SUMIF(Winners!$B$4:$J$34,$C18,Winners!$D$4:$L$34)=0,"",SUMIF(Winners!$B$4:$J$34,$C18,Winners!$D$4:$L$34))) ->  | J18: =IF($J$2<>Players!$B$4,"",IF(SUMIF(Winners!$B$4:$J$34,$C18,Winners!$D$4:$L$34)=0,"",SUMIF(Winners!$B$4:$J$34,$C18,Winners!$D$4:$L$34))) ->  | M18: =SUM($D18:$J18,$K18:$L18) -> 15
A19: T15 | B19: 17 | C19: Thompson, Dan | E19: 15 | G19: =IF($G$2<>Players!$B$4,"",IF(SUMIF(Winners!$B$4:$J$34,$C19,Winners!$D$4:$L$34)=0,"",SUMIF(Winners!$B$4:$J$34,$C19,Winners!$D$4:$L$34))) ->  | H19: =IF($H$2<>Players!$B$4,"",IF(SUMIF(Winners!$B$4:$J$34,$C19,Winners!$D$4:$L$34)=0,"",SUMIF(Winners!$B$4:$J$34,$C19,Winners!$D$4:$L$34))) ->  | I19: =IF($I$2<>Players!$B$4,"",IF(SUMIF(Winners!$B$4:$J$34,$C19,Winners!$D$4:$L$34)=0,"",SUMIF(Winners!$B$4:$J$34,$C19,Winners!$D$4:$L$34))) ->  | J19: =IF($J$2<>Players!$B$4,"",IF(SUMIF(Winners!$B$4:$J$34,$C19,Winners!$D$4:$L$34)=0,"",SUMIF(Winners!$B$4:$J$34,$C19,Winners!$D$4:$L$34))) ->  | M19: =SUM($D19:$J19,$K19:$L19) -> 15
A20: 18 | B20: 18 | C20: Havstad, Steve | D20: 8 | G20: =IF($G$2<>Players!$B$4,"",IF(SUMIF(Winners!$B$4:$J$34,$C20,Winners!$D$4:$L$34)=0,"",SUMIF(Winners!$B$4:$J$34,$C20,Winners!$D$4:$L$34))) ->  | H20: =IF($H$2<>Players!$B$4,"",IF(SUMIF(Winners!$B$4:$J$34,$C20,Winners!$D$4:$L$34)=0,"",SUMIF(Winners!$B$4:$J$34,$C20,Winners!$D$4:$L$34))) ->  | I20: =IF($I$2<>Players!$B$4,"",IF(SUMIF(Winners!$B$4:$J$34,$C20,Winners!$D$4:$L$34)=0,"",SUMIF(Winners!$B$4:$J$34,$C20,Winners!$D$4:$L$34))) ->  | J20: =IF($J$2<>Players!$B$4,"",IF(SUMIF(Winners!$B$4:$J$34,$C20,Winners!$D$4:$L$34)=0,"",SUMIF(Winners!$B$4:$J$34,$C20,Winners!$D$4:$L$34))) ->  | M20: =SUM($D20:$J20,$K20:$L20) -> 8
A21: T19 | B21: 19 | C21: Aldrian, Mark | G21: =IF($G$2<>Players!$B$4,"",IF(SUMIF(Winners!$B$4:$J$34,$C21,Winners!$D$4:$L$34)=0,"",SUMIF(Winners!$B$4:$J$34,$C21,Winners!$D$4:$L$34))) ->  | H21: =IF($H$2<>Players!$B$4,"",IF(SUMIF(Winners!$B$4:$J$34,$C21,Winners!$D$4:$L$34)=0,"",SUMIF(Winners!$B$4:$J$34,$C21,Winners!$D$4:$L$34))) ->  | I21: =IF($I$2<>Players!$B$4,"",IF(SUMIF(Winners!$B$4:$J$34,$C21,Winners!$D$4:$L$34)=0,"",SUMIF(Winners!$B$4:$J$34,$C21,Winners!$D$4:$L$34))) ->  | J21: =IF($J$2<>Players!$B$4,"",IF(SUMIF(Winners!$B$4:$J$34,$C21,Winners!$D$4:$L$34)=0,"",SUMIF(Winners!$B$4:$J$34,$C21,Winners!$D$4:$L$34))) ->  | M21: =SUM($D21:$J21,$K21:$L21) -> 0
A22: T19 | B22: 20 | C22: Bateson, Brad | G22: =IF($G$2<>Players!$B$4,"",IF(SUMIF(Winners!$B$4:$J$34,$C22,Winners!$D$4:$L$34)=0,"",SUMIF(Winners!$B$4:$J$34,$C22,Winners!$D$4:$L$34))) ->  | H22: =IF($H$2<>Players!$B$4,"",IF(SUMIF(Winners!$B$4:$J$34,$C22,Winners!$D$4:$L$34)=0,"",SUMIF(Winners!$B$4:$J$34,$C22,Winners!$D$4:$L$34))) ->  | I22: =IF($I$2<>Players!$B$4,"",IF(SUMIF(Winners!$B$4:$J$34,$C22,Winners!$D$4:$L$34)=0,"",SUMIF(Winners!$B$4:$J$34,$C22,Winners!$D$4:$L$34))) ->  | J22: =IF($J$2<>Players!$B$4,"",IF(SUMIF(Winners!$B$4:$J$34,$C22,Winners!$D$4:$L$34)=0,"",SUMIF(Winners!$B$4:$J$34,$C22,Winners!$D$4:$L$34))) ->  | M22: =SUM($D22:$J22,$K22:$L22) -> 0
A23: T19 | B23: 21 | C23: Forstot, Joshua | G23: =IF($G$2<>Players!$B$4,"",IF(SUMIF(Winners!$B$4:$J$34,$C23,Winners!$D$4:$L$34)=0,"",SUMIF(Winners!$B$4:$J$34,$C23,Winners!$D$4:$L$34))) ->  | H23: =IF($H$2<>Players!$B$4,"",IF(SUMIF(Winners!$B$4:$J$34,$C23,Winners!$D$4:$L$34)=0,"",SUMIF(Winners!$B$4:$J$34,$C23,Winners!$D$4:$L$34))) ->  | I23: =IF($I$2<>Players!$B$4,"",IF(SUMIF(Winners!$B$4:$J$34,$C23,Winners!$D$4:$L$34)=0,"",SUMIF(Winners!$B$4:$J$34,$C23,Winners!$D$4:$L$34))) ->  | J23: =IF($J$2<>Players!$B$4,"",IF(SUMIF(Winners!$B$4:$J$34,$C23,Winners!$D$4:$L$34)=0,"",SUMIF(Winners!$B$4:$J$34,$C23,Winners!$D$4:$L$34))) ->  | M23: =SUM($D23:$J23,$K23:$L23) -> 0
A24: T19 | B24: 22 | C24: Hammond, Rob | G24: =IF($G$2<>Players!$B$4,"",IF(SUMIF(Winners!$B$4:$J$34,$C24,Winners!$D$4:$L$34)=0,"",SUMIF(Winners!$B$4:$J$34,$C24,Winners!$D$4:$L$34))) ->  | H24: =IF($H$2<>Players!$B$4,"",IF(SUMIF(Winners!$B$4:$J$34,$C24,Winners!$D$4:$L$34)=0,"",SUMIF(Winners!$B$4:$J$34,$C24,Winners!$D$4:$L$34))) ->  | I24: =IF($I$2<>Players!$B$4,"",IF(SUMIF(Winners!$B$4:$J$34,$C24,Winners!$D$4:$L$34)=0,"",SUMIF(Winners!$B$4:$J$34,$C24,Winners!$D$4:$L$34))) ->  | J24: =IF($J$2<>Players!$B$4,"",IF(SUMIF(Winners!$B$4:$J$34,$C24,Winners!$D$4:$L$34)=0,"",SUMIF(Winners!$B$4:$J$34,$C24,Winners!$D$4:$L$34))) ->  | M24: =SUM($D24:$J24,$K24:$L24) -> 0
A25: T19 | B25: 23 | C25: Hart, Dave | G25: =IF($G$2<>Players!$B$4,"",IF(SUMIF(Winners!$B$4:$J$34,$C25,Winners!$D$4:$L$34)=0,"",SUMIF(Winners!$B$4:$J$34,$C25,Winners!$D$4:$L$34))) ->  | H25: =IF($H$2<>Players!$B$4,"",IF(SUMIF(Winners!$B$4:$J$34,$C25,Winners!$D$4:$L$34)=0,"",SUMIF(Winners!$B$4:$J$34,$C25,Winners!$D$4:$L$34))) ->  | I25: =IF($I$2<>Players!$B$4,"",IF(SUMIF(Winners!$B$4:$J$34,$C25,Winners!$D$4:$L$34)=0,"",SUMIF(Winners!$B$4:$J$34,$C25,Winners!$D$4:$L$34))) ->  | J25: =IF($J$2<>Players!$B$4,"",IF(SUMIF(Winners!$B$4:$J$34,$C25,Winners!$D$4:$L$34)=0,"",SUMIF(Winners!$B$4:$J$34,$C25,Winners!$D$4:$L$34))) ->  | M25: =SUM($D25:$J25,$K25:$L25) -> 0
A26: T19 | B26: 24 | C26: Havstad, Peter | G26: =IF($G$2<>Players!$B$4,"",IF(SUMIF(Winners!$B$4:$J$34,$C26,Winners!$D$4:$L$34)=0,"",SUMIF(Winners!$B$4:$J$34,$C26,Winners!$D$4:$L$34))) ->  | H26: =IF($H$2<>Players!$B$4,"",IF(SUMIF(Winners!$B$4:$J$34,$C26,Winners!$D$4:$L$34)=0,"",SUMIF(Winners!$B$4:$J$34,$C26,Winners!$D$4:$L$34))) ->  | I26: =IF($I$2<>Players!$B$4,"",IF(SUMIF(Winners!$B$4:$J$34,$C26,Winners!$D$4:$L$34)=0,"",SUMIF(Winners!$B$4:$J$34,$C26,Winners!$D$4:$L$34))) ->  | J26: =IF($J$2<>Players!$B$4,"",IF(SUMIF(Winners!$B$4:$J$34,$C26,Winners!$D$4:$L$34)=0,"",SUMIF(Winners!$B$4:$J$34,$C26,Winners!$D$4:$L$34))) ->  | M26: =SUM($D26:$J26,$K26:$L26) -> 0
A27: T19 | B27: 25 | C27: Holzrichter, Geoff | G27: =IF($G$2<>Players!$B$4,"",IF(SUMIF(Winners!$B$4:$J$34,$C27,Winners!$D$4:$L$34)=0,"",SUMIF(Winners!$B$4:$J$34,$C27,Winners!$D$4:$L$34))) ->  | H27: =IF($H$2<>Players!$B$4,"",IF(SUMIF(Winners!$B$4:$J$34,$C27,Winners!$D$4:$L$34)=0,"",SUMIF(Winners!$B$4:$J$34,$C27,Winners!$D$4:$L$34))) ->  | I27: =IF($I$2<>Players!$B$4,"",IF(SUMIF(Winners!$B$4:$J$34,$C27,Winners!$D$4:$L$34)=0,"",SUMIF(Winners!$B$4:$J$34,$C27,Winners!$D$4:$L$34))) ->  | J27: =IF($J$2<>Players!$B$4,"",IF(SUMIF(Winners!$B$4:$J$34,$C27,Winners!$D$4:$L$34)=0,"",SUMIF(Winners!$B$4:$J$34,$C27,Winners!$D$4:$L$34))) ->  | M27: =SUM($D27:$J27,$K27:$L27) -> 0
A28: T19 | B28: 26 | C28: Johnson, Carl | G28: =IF($G$2<>Players!$B$4,"",IF(SUMIF(Winners!$B$4:$J$34,$C28,Winners!$D$4:$L$34)=0,"",SUMIF(Winners!$B$4:$J$34,$C28,Winners!$D$4:$L$34))) ->  | H28: =IF($H$2<>Players!$B$4,"",IF(SUMIF(Winners!$B$4:$J$34,$C28,Winners!$D$4:$L$34)=0,"",SUMIF(Winners!$B$4:$J$34,$C28,Winners!$D$4:$L$34))) ->  | I28: =IF($I$2<>Players!$B$4,"",IF(SUMIF(Winners!$B$4:$J$34,$C28,Winners!$D$4:$L$34)=0,"",SUMIF(Winners!$B$4:$J$34,$C28,Winners!$D$4:$L$34))) ->  | J28: =IF($J$2<>Players!$B$4,"",IF(SUMIF(Winners!$B$4:$J$34,$C28,Winners!$D$4:$L$34)=0,"",SUMIF(Winners!$B$4:$J$34,$C28,Winners!$D$4:$L$34))) ->  | M28: =SUM($D28:$J28,$K28:$L28) -> 0
A29: T19 | B29: 27 | C29: Lujan, Fil | G29: =IF($G$2<>Players!$B$4,"",IF(SUMIF(Winners!$B$4:$J$34,$C29,Winners!$D$4:$L$34)=0,"",SUMIF(Winners!$B$4:$J$34,$C29,Winners!$D$4:$L$34))) ->  | H29: =IF($H$2<>Players!$B$4,"",IF(SUMIF(Winners!$B$4:$J$34,$C29,Winners!$D$4:$L$34)=0,"",SUMIF(Winners!$B$4:$J$34,$C29,Winners!$D$4:$L$34))) ->  | I29: =IF($I$2<>Players!$B$4,"",IF(SUMIF(Winners!$B$4:$J$34,$C29,Winners!$D$4:$L$34)=0,"",SUMIF(Winners!$B$4:$J$34,$C29,Winners!$D$4:$L$34))) ->  | J29: =IF($J$2<>Players!$B$4,"",IF(SUMIF(Winners!$B$4:$J$34,$C29,Winners!$D$4:$L$34)=0,"",SUMIF(Winners!$B$4:$J$34,$C29,Winners!$D$4:$L$34))) ->  | M29: =SUM($D29:$J29,$K29:$L29) -> 0
A30: T19 | B30: 28 | C30: Mariano, Joe | G30: =IF($G$2<>Players!$B$4,"",IF(SUMIF(Winners!$B$4:$J$34,$C30,Winners!$D$4:$L$34)=0,"",SUMIF(Winners!$B$4:$J$34,$C30,Winners!$D$4:$L$34))) ->  | H30: =IF($H$2<>Players!$B$4,"",IF(SUMIF(Winners!$B$4:$J$34,$C30,Winners!$D$4:$L$34)=0,"",SUMIF(Winners!$B$4:$J$34,$C30,Winners!$D$4:$L$34))) ->  | I30: =IF($I$2<>Players!$B$4,"",IF(SUMIF(Winners!$B$4:$J$34,$C30,Winners!$D$4:$L$34)=0,"",SUMIF(Winners!$B$4:$J$34,$C30,Winners!$D$4:$L$34))) ->  | J30: =IF($J$2<>Players!$B$4,"",IF(SUMIF(Winners!$B$4:$J$34,$C30,Winners!$D$4:$L$34)=0,"",SUMIF(Winners!$B$4:$J$34,$C30,Winners!$D$4:$L$34))) ->  | M30: =SUM($D30:$J30,$K30:$L30) -> 0
A31: T19 | B31: 29 | C31: Matthews, Keith | G31: =IF($G$2<>Players!$B$4,"",IF(SUMIF(Winners!$B$4:$J$34,$C31,Winners!$D$4:$L$34)=0,"",SUMIF(Winners!$B$4:$J$34,$C31,Winners!$D$4:$L$34))) ->  | H31: =IF($H$2<>Players!$B$4,"",IF(SUMIF(Winners!$B$4:$J$34,$C31,Winners!$D$4:$L$34)=0,"",SUMIF(Winners!$B$4:$J$34,$C31,Winners!$D$4:$L$34))) ->  | I31: =IF($I$2<>Players!$B$4,"",IF(SUMIF(Winners!$B$4:$J$34,$C31,Winners!$D$4:$L$34)=0,"",SUMIF(Winners!$B$4:$J$34,$C31,Winners!$D$4:$L$34))) ->  | J31: =IF($J$2<>Players!$B$4,"",IF(SUMIF(Winners!$B$4:$J$34,$C31,Winners!$D$4:$L$34)=0,"",SUMIF(Winners!$B$4:$J$34,$C31,Winners!$D$4:$L$34))) ->  | M31: =SUM($D31:$J31,$K31:$L31) -> 0
A32: T19 | B32: 30 | C32: Montgomery, Andy | G32: =IF($G$2<>Players!$B$4,"",IF(SUMIF(Winners!$B$4:$J$34,$C32,Winners!$D$4:$L$34)=0,"",SUMIF(Winners!$B$4:$J$34,$C32,Winners!$D$4:$L$34))) ->  | H32: =IF($H$2<>Players!$B$4,"",IF(SUMIF(Winners!$B$4:$J$34,$C32,Winners!$D$4:$L$34)=0,"",SUMIF(Winners!$B$4:$J$34,$C32,Winners!$D$4:$L$34))) ->  | I32: =IF($I$2<>Players!$B$4,"",IF(SUMIF(Winners!$B$4:$J$34,$C32,Winners!$D$4:$L$34)=0,"",SUMIF(Winners!$B$4:$J$34,$C32,Winners!$D$4:$L$34))) ->  | J32: =IF($J$2<>Players!$B$4,"",IF(SUMIF(Winners!$B$4:$J$34,$C32,Winners!$D$4:$L$34)=0,"",SUMIF(Winners!$B$4:$J$34,$C32,Winners!$D$4:$L$34))) ->  | M32: =SUM($D32:$J32,$K32:$L32) -> 0
A33: T19 | B33: 31 | C33: Nagel, Rich | G33: =IF($G$2<>Players!$B$4,"",IF(SUMIF(Winners!$B$4:$J$34,$C33,Winners!$D$4:$L$34)=0,"",SUMIF(Winners!$B$4:$J$34,$C33,Winners!$D$4:$L$34))) ->  | H33: =IF($H$2<>Players!$B$4,"",IF(SUMIF(Winners!$B$4:$J$34,$C33,Winners!$D$4:$L$34)=0,"",SUMIF(Winners!$B$4:$J$34,$C33,Winners!$D$4:$L$34))) ->  | I33: =IF($I$2<>Players!$B$4,"",IF(SUMIF(Winners!$B$4:$J$34,$C33,Winners!$D$4:$L$34)=0,"",SUMIF(Winners!$B$4:$J$34,$C33,Winners!$D$4:$L$34))) ->  | J33: =IF($J$2<>Players!$B$4,"",IF(SUMIF(Winners!$B$4:$J$34,$C33,Winners!$D$4:$L$34)=0,"",SUMIF(Winners!$B$4:$J$34,$C33,Winners!$D$4:$L$34))) ->  | M33: =SUM($D33:$J33,$K33:$L33) -> 0
A34: T19 | B34: 32 | C34: Poyar, Bob | G34: =IF($G$2<>Players!$B$4,"",IF(SUMIF(Winners!$B$4:$J$34,$C34,Winners!$D$4:$L$34)=0,"",SUMIF(Winners!$B$4:$J$34,$C34,Winners!$D$4:$L$34))) ->  | H34: =IF($H$2<>Players!$B$4,"",IF(SUMIF(Winners!$B$4:$J$34,$C34,Winners!$D$4:$L$34)=0,"",SUMIF(Winners!$B$4:$J$34,$C34,Winners!$D$4:$L$34))) ->  | I34: =IF($I$2<>Players!$B$4,"",IF(SUMIF(Winners!$B$4:$J$34,$C34,Winners!$D$4:$L$34)=0,"",SUMIF(Winners!$B$4:$J$34,$C34,Winners!$D$4:$L$34))) ->  | J34: =IF($J$2<>Players!$B$4,"",IF(SUMIF(Winners!$B$4:$J$34,$C34,Winners!$D$4:$L$34)=0,"",SUMIF(Winners!$B$4:$J$34,$C34,Winners!$D$4:$L$34))) ->  | M34: =SUM($D34:$J34,$K34:$L34) -> 0
A35: T19 | B35: 33 | C35: Rojes, Ray | G35: =IF($G$2<>Players!$B$4,"",IF(SUMIF(Winners!$B$4:$J$34,$C35,Winners!$D$4:$L$34)=0,"",SUMIF(Winners!$B$4:$J$34,$C35,Winners!$D$4:$L$34))) ->  | H35: =IF($H$2<>Players!$B$4,"",IF(SUMIF(Winners!$B$4:$J$34,$C35,Winners!$D$4:$L$34)=0,"",SUMIF(Winners!$B$4:$J$34,$C35,Winners!$D$4:$L$34))) ->  | I35: =IF($I$2<>Players!$B$4,"",IF(SUMIF(Winners!$B$4:$J$34,$C35,Winners!$D$4:$L$34)=0,"",SUMIF(Winners!$B$4:$J$34,$C35,Winners!$D$4:$L$34))) ->  | J35: =IF($J$2<>Players!$B$4,"",IF(SUMIF(Winners!$B$4:$J$34,$C35,Winners!$D$4:$L$34)=0,"",SUMIF(Winners!$B$4:$J$34,$C35,Winners!$D$4:$L$34))) ->  | M35: =SUM($D35:$J35,$K35:$L35) -> 0
A36: T19 | B36: 34 | C36: Salinas, Frank | G36: =IF($G$2<>Players!$B$4,"",IF(SUMIF(Winners!$B$4:$J$34,$C36,Winners!$D$4:$L$34)=0,"",SUMIF(Winners!$B$4:$J$34,$C36,Winners!$D$4:$L$34))) ->  | H36: =IF($H$2<>Players!$B$4,"",IF(SUMIF(Winners!$B$4:$J$34,$C36,Winners!$D$4:$L$34)=0,"",SUMIF(Winners!$B$4:$J$34,$C36,Winners!$D$4:$L$34))) ->  | I36: =IF($I$2<>Players!$B$4,"",IF(SUMIF(Winners!$B$4:$J$34,$C36,Winners!$D$4:$L$34)=0,"",SUMIF(Winners!$B$4:$J$34,$C36,Winners!$D$4:$L$34))) ->  | J36: =IF($J$2<>Players!$B$4,"",IF(SUMIF(Winners!$B$4:$J$34,$C36,Winners!$D$4:$L$34)=0,"",SUMIF(Winners!$B$4:$J$34,$C36,Winners!$D$4:$L$34))) ->  | M36: =SUM($D36:$J36,$K36:$L36) -> 0
A37: T19 | B37: 35 | D37: =IF($D$2<>Players!$B$4,"",IF(SUMIF(Winners!$B$4:$J$34,$C37,Winners!$D$4:$L$34)=0,"",SUMIF(Winners!$B$4:$J$34,$C37,Winners!$D$4:$L$34))) ->  | E37: =IF($E$2<>Players!$B$4,"",IF(SUMIF(Winners!$B$4:$J$34,$C37,Winners!$D$4:$L$34)=0,"",SUMIF(Winners!$B$4:$J$34,$C37,Winners!$D$4:$L$34))) ->  | F37: =IF($F$2<>Players!$B$4,"",IF(SUMIF(Winners!$B$4:$J$34,$C37,Winners!$D$4:$L$34)=0,"",SUMIF(Winners!$B$4:$J$34,$C37,Winners!$D$4:$L$34))) ->  | G37: =IF($G$2<>Players!$B$4,"",IF(SUMIF(Winners!$B$4:$J$34,$C37,Winners!$D$4:$L$34)=0,"",SUMIF(Winners!$B$4:$J$34,$C37,Winners!$D$4:$L$34))) ->  | H37: =IF($H$2<>Players!$B$4,"",IF(SUMIF(Winners!$B$4:$J$34,$C37,Winners!$D$4:$L$34)=0,"",SUMIF(Winners!$B$4:$J$34,$C37,Winners!$D$4:$L$34))) ->  | I37: =IF($I$2<>Players!$B$4,"",IF(SUMIF(Winners!$B$4:$J$34,$C37,Winners!$D$4:$L$34)=0,"",SUMIF(Winners!$B$4:$J$34,$C37,Winners!$D$4:$L$34))) ->  | J37: =IF($J$2<>Players!$B$4,"",IF(SUMIF(Winners!$B$4:$J$34,$C37,Winners!$D$4:$L$34)=0,"",SUMIF(Winners!$B$4:$J$34,$C37,Winners!$D$4:$L$34))) ->  | M37: =SUM($D37:$J37,$K37:$L37) -> 0
A38: T19 | B38: 36 | D38: =IF($D$2<>Players!$B$4,"",IF(SUMIF(Winners!$B$4:$J$34,$C38,Winners!$D$4:$L$34)=0,"",SUMIF(Winners!$B$4:$J$34,$C38,Winners!$D$4:$L$34))) ->  | E38: =IF($E$2<>Players!$B$4,"",IF(SUMIF(Winners!$B$4:$J$34,$C38,Winners!$D$4:$L$34)=0,"",SUMIF(Winners!$B$4:$J$34,$C38,Winners!$D$4:$L$34))) ->  | F38: =IF($F$2<>Players!$B$4,"",IF(SUMIF(Winners!$B$4:$J$34,$C38,Winners!$D$4:$L$34)=0,"",SUMIF(Winners!$B$4:$J$34,$C38,Winners!$D$4:$L$34))) ->  | G38: =IF($G$2<>Players!$B$4,"",IF(SUMIF(Winners!$B$4:$J$34,$C38,Winners!$D$4:$L$34)=0,"",SUMIF(Winners!$B$4:$J$34,$C38,Winners!$D$4:$L$34))) ->  | H38: =IF($H$2<>Players!$B$4,"",IF(SUMIF(Winners!$B$4:$J$34,$C38,Winners!$D$4:$L$34)=0,"",SUMIF(Winners!$B$4:$J$34,$C38,Winners!$D$4:$L$34))) ->  | I38: =IF($I$2<>Players!$B$4,"",IF(SUMIF(Winners!$B$4:$J$34,$C38,Winners!$D$4:$L$34)=0,"",SUMIF(Winners!$B$4:$J$34,$C38,Winners!$D$4:$L$34))) ->  | J38: =IF($J$2<>Players!$B$4,"",IF(SUMIF(Winners!$B$4:$J$34,$C38,Winners!$D$4:$L$34)=0,"",SUMIF(Winners!$B$4:$J$34,$C38,Winners!$D$4:$L$34))) ->  | M38: 0
A39: T19 | B39: 37 | D39: =IF($D$2<>Players!$B$4,"",IF(SUMIF(Winners!$B$4:$J$34,$C39,Winners!$D$4:$L$34)=0,"",SUMIF(Winners!$B$4:$J$34,$C39,Winners!$D$4:$L$34))) ->  | E39: =IF($E$2<>Players!$B$4,"",IF(SUMIF(Winners!$B$4:$J$34,$C39,Winners!$D$4:$L$34)=0,"",SUMIF(Winners!$B$4:$J$34,$C39,Winners!$D$4:$L$34))) ->  | F39: =IF($F$2<>Players!$B$4,"",IF(SUMIF(Winners!$B$4:$J$34,$C39,Winners!$D$4:$L$34)=0,"",SUMIF(Winners!$B$4:$J$34,$C39,Winners!$D$4:$L$34))) ->  | G39: =IF($G$2<>Players!$B$4,"",IF(SUMIF(Winners!$B$4:$J$34,$C39,Winners!$D$4:$L$34)=0,"",SUMIF(Winners!$B$4:$J$34,$C39,Winners!$D$4:$L$34))) ->  | H39: =IF($H$2<>Players!$B$4,"",IF(SUMIF(Winners!$B$4:$J$34,$C39,Winners!$D$4:$L$34)=0,"",SUMIF(Winners!$B$4:$J$34,$C39,Winners!$D$4:$L$34))) ->  | I39: =IF($I$2<>Players!$B$4,"",IF(SUMIF(Winners!$B$4:$J$34,$C39,Winners!$D$4:$L$34)=0,"",SUMIF(Winners!$B$4:$J$34,$C39,Winners!$D$4:$L$34))) ->  | J39: =IF($J$2<>Players!$B$4,"",IF(SUMIF(Winners!$B$4:$J$34,$C39,Winners!$D$4:$L$34)=0,"",SUMIF(Winners!$B$4:$J$34,$C39,Winners!$D$4:$L$34))) ->  | M39: 0
A40: T19 | B40: 38 | D40: =IF($D$2<>Players!$B$4,"",IF(SUMIF(Winners!$B$4:$J$34,$C40,Winners!$D$4:$L$34)=0,"",SUMIF(Winners!$B$4:$J$34,$C40,Winners!$D$4:$L$34))) ->  | E40: =IF($E$2<>Players!$B$4,"",IF(SUMIF(Winners!$B$4:$J$34,$C40,Winners!$D$4:$L$34)=0,"",SUMIF(Winners!$B$4:$J$34,$C40,Winners!$D$4:$L$34))) ->  | F40: =IF($F$2<>Players!$B$4,"",IF(SUMIF(Winners!$B$4:$J$34,$C40,Winners!$D$4:$L$34)=0,"",SUMIF(Winners!$B$4:$J$34,$C40,Winners!$D$4:$L$34))) ->  | G40: =IF($G$2<>Players!$B$4,"",IF(SUMIF(Winners!$B$4:$J$34,$C40,Winners!$D$4:$L$34)=0,"",SUMIF(Winners!$B$4:$J$34,$C40,Winners!$D$4:$L$34))) ->  | H40: =IF($H$2<>Players!$B$4,"",IF(SUMIF(Winners!$B$4:$J$34,$C40,Winners!$D$4:$L$34)=0,"",SUMIF(Winners!$B$4:$J$34,$C40,Winners!$D$4:$L$34))) ->  | I40: =IF($I$2<>Players!$B$4,"",IF(SUMIF(Winners!$B$4:$J$34,$C40,Winners!$D$4:$L$34)=0,"",SUMIF(Winners!$B$4:$J$34,$C40,Winners!$D$4:$L$34))) ->  | J40: =IF($J$2<>Players!$B$4,"",IF(SUMIF(Winners!$B$4:$J$34,$C40,Winners!$D$4:$L$34)=0,"",SUMIF(Winners!$B$4:$J$34,$C40,Winners!$D$4:$L$34))) ->  | M40: 0
A41: T19 | B41: 39 | D41: =IF($D$2<>Players!$B$4,"",IF(SUMIF(Winners!$B$4:$J$34,$C41,Winners!$D$4:$L$34)=0,"",SUMIF(Winners!$B$4:$J$34,$C41,Winners!$D$4:$L$34))) ->  | E41: =IF($E$2<>Players!$B$4,"",IF(SUMIF(Winners!$B$4:$J$34,$C41,Winners!$D$4:$L$34)=0,"",SUMIF(Winners!$B$4:$J$34,$C41,Winners!$D$4:$L$34))) ->  | F41: =IF($F$2<>Players!$B$4,"",IF(SUMIF(Winners!$B$4:$J$34,$C41,Winners!$D$4:$L$34)=0,"",SUMIF(Winners!$B$4:$J$34,$C41,Winners!$D$4:$L$34))) ->  | G41: =IF($G$2<>Players!$B$4,"",IF(SUMIF(Winners!$B$4:$J$34,$C41,Winners!$D$4:$L$34)=0,"",SUMIF(Winners!$B$4:$J$34,$C41,Winners!$D$4:$L$34))) ->  | H41: =IF($H$2<>Players!$B$4,"",IF(SUMIF(Winners!$B$4:$J$34,$C41,Winners!$D$4:$L$34)=0,"",SUMIF(Winners!$B$4:$J$34,$C41,Winners!$D$4:$L$34))) ->  | I41: =IF($I$2<>Players!$B$4,"",IF(SUMIF(Winners!$B$4:$J$34,$C41,Winners!$D$4:$L$34)=0,"",SUMIF(Winners!$B$4:$J$34,$C41,Winners!$D$4:$L$34))) ->  | J41: =IF($J$2<>Players!$B$4,"",IF(SUMIF(Winners!$B$4:$J$34,$C41,Winners!$D$4:$L$34)=0,"",SUMIF(Winners!$B$4:$J$34,$C41,Winners!$D$4:$L$34))) ->  | M41: 0
A42: T19 | B42: 40 | D42: =IF($D$2<>Players!$B$4,"",IF(SUMIF(Winners!$B$4:$J$34,$C42,Winners!$D$4:$L$34)=0,"",SUMIF(Winners!$B$4:$J$34,$C42,Winners!$D$4:$L$34))) ->  | E42: =IF($E$2<>Players!$B$4,"",IF(SUMIF(Winners!$B$4:$J$34,$C42,Winners!$D$4:$L$34)=0,"",SUMIF(Winners!$B$4:$J$34,$C42,Winners!$D$4:$L$34))) ->  | F42: =IF($F$2<>Players!$B$4,"",IF(SUMIF(Winners!$B$4:$J$34,$C42,Winners!$D$4:$L$34)=0,"",SUMIF(Winners!$B$4:$J$34,$C42,Winners!$D$4:$L$34))) ->  | G42: =IF($G$2<>Players!$B$4,"",IF(SUMIF(Winners!$B$4:$J$34,$C42,Winners!$D$4:$L$34)=0,"",SUMIF(Winners!$B$4:$J$34,$C42,Winners!$D$4:$L$34))) ->  | H42: =IF($H$2<>Players!$B$4,"",IF(SUMIF(Winners!$B$4:$J$34,$C42,Winners!$D$4:$L$34)=0,"",SUMIF(Winners!$B$4:$J$34,$C42,Winners!$D$4:$L$34))) ->  | I42: =IF($I$2<>Players!$B$4,"",IF(SUMIF(Winners!$B$4:$J$34,$C42,Winners!$D$4:$L$34)=0,"",SUMIF(Winners!$B$4:$J$34,$C42,Winners!$D$4:$L$34))) ->  | J42: =IF($J$2<>Players!$B$4,"",IF(SUMIF(Winners!$B$4:$J$34,$C42,Winners!$D$4:$L$34)=0,"",SUMIF(Winners!$B$4:$J$34,$C42,Winners!$D$4:$L$34))) ->  | M42: 0
A43: T19 | B43: 41 | D43: =IF($D$2<>Players!$B$4,"",IF(SUMIF(Winners!$B$4:$J$34,$C43,Winners!$D$4:$L$34)=0,"",SUMIF(Winners!$B$4:$J$34,$C43,Winners!$D$4:$L$34))) ->  | E43: =IF($E$2<>Players!$B$4,"",IF(SUMIF(Winners!$B$4:$J$34,$C43,Winners!$D$4:$L$34)=0,"",SUMIF(Winners!$B$4:$J$34,$C43,Winners!$D$4:$L$34))) ->  | F43: =IF($F$2<>Players!$B$4,"",IF(SUMIF(Winners!$B$4:$J$34,$C43,Winners!$D$4:$L$34)=0,"",SUMIF(Winners!$B$4:$J$34,$C43,Winners!$D$4:$L$34))) ->  | G43: =IF($G$2<>Players!$B$4,"",IF(SUMIF(Winners!$B$4:$J$34,$C43,Winners!$D$4:$L$34)=0,"",SUMIF(Winners!$B$4:$J$34,$C43,Winners!$D$4:$L$34))) ->  | H43: =IF($H$2<>Players!$B$4,"",IF(SUMIF(Winners!$B$4:$J$34,$C43,Winners!$D$4:$L$34)=0,"",SUMIF(Winners!$B$4:$J$34,$C43,Winners!$D$4:$L$34))) ->  | I43: =IF($I$2<>Players!$B$4,"",IF(SUMIF(Winners!$B$4:$J$34,$C43,Winners!$D$4:$L$34)=0,"",SUMIF(Winners!$B$4:$J$34,$C43,Winners!$D$4:$L$34))) ->  | J43: =IF($J$2<>Players!$B$4,"",IF(SUMIF(Winners!$B$4:$J$34,$C43,Winners!$D$4:$L$34)=0,"",SUMIF(Winners!$B$4:$J$34,$C43,Winners!$D$4:$L$34))) ->  | M43: 0
A44: T19 | B44: 42 | D44: =IF($D$2<>Players!$B$4,"",IF(SUMIF(Winners!$B$4:$J$34,$C44,Winners!$D$4:$L$34)=0,"",SUMIF(Winners!$B$4:$J$34,$C44,Winners!$D$4:$L$34))) ->  | E44: =IF($E$2<>Players!$B$4,"",IF(SUMIF(Winners!$B$4:$J$34,$C44,Winners!$D$4:$L$34)=0,"",SUMIF(Winners!$B$4:$J$34,$C44,Winners!$D$4:$L$34))) ->  | F44: =IF($F$2<>Players!$B$4,"",IF(SUMIF(Winners!$B$4:$J$34,$C44,Winners!$D$4:$L$34)=0,"",SUMIF(Winners!$B$4:$J$34,$C44,Winners!$D$4:$L$34))) ->  | G44: =IF($G$2<>Players!$B$4,"",IF(SUMIF(Winners!$B$4:$J$34,$C44,Winners!$D$4:$L$34)=0,"",SUMIF(Winners!$B$4:$J$34,$C44,Winners!$D$4:$L$34))) ->  | H44: =IF($H$2<>Players!$B$4,"",IF(SUMIF(Winners!$B$4:$J$34,$C44,Winners!$D$4:$L$34)=0,"",SUMIF(Winners!$B$4:$J$34,$C44,Winners!$D$4:$L$34))) ->  | I44: =IF($I$2<>Players!$B$4,"",IF(SUMIF(Winners!$B$4:$J$34,$C44,Winners!$D$4:$L$34)=0,"",SUMIF(Winners!$B$4:$J$34,$C44,Winners!$D$4:$L$34))) ->  | J44: =IF($J$2<>Players!$B$4,"",IF(SUMIF(Winners!$B$4:$J$34,$C44,Winners!$D$4:$L$34)=0,"",SUMIF(Winners!$B$4:$J$34,$C44,Winners!$D$4:$L$34))) ->  | M44: 0
A45: T19 | B45: 43 | D45: =IF($D$2<>Players!$B$4,"",IF(SUMIF(Winners!$B$4:$J$34,$C45,Winners!$D$4:$L$34)=0,"",SUMIF(Winners!$B$4:$J$34,$C45,Winners!$D$4:$L$34))) ->  | E45: =IF($E$2<>Players!$B$4,"",IF(SUMIF(Winners!$B$4:$J$34,$C45,Winners!$D$4:$L$34)=0,"",SUMIF(Winners!$B$4:$J$34,$C45,Winners!$D$4:$L$34))) ->  | F45: =IF($F$2<>Players!$B$4,"",IF(SUMIF(Winners!$B$4:$J$34,$C45,Winners!$D$4:$L$34)=0,"",SUMIF(Winners!$B$4:$J$34,$C45,Winners!$D$4:$L$34))) ->  | G45: =IF($G$2<>Players!$B$4,"",IF(SUMIF(Winners!$B$4:$J$34,$C45,Winners!$D$4:$L$34)=0,"",SUMIF(Winners!$B$4:$J$34,$C45,Winners!$D$4:$L$34))) ->  | H45: =IF($H$2<>Players!$B$4,"",IF(SUMIF(Winners!$B$4:$J$34,$C45,Winners!$D$4:$L$34)=0,"",SUMIF(Winners!$B$4:$J$34,$C45,Winners!$D$4:$L$34))) ->  | I45: =IF($I$2<>Players!$B$4,"",IF(SUMIF(Winners!$B$4:$J$34,$C45,Winners!$D$4:$L$34)=0,"",SUMIF(Winners!$B$4:$J$34,$C45,Winners!$D$4:$L$34))) ->  | J45: =IF($J$2<>Players!$B$4,"",IF(SUMIF(Winners!$B$4:$J$34,$C45,Winners!$D$4:$L$34)=0,"",SUMIF(Winners!$B$4:$J$34,$C45,Winners!$D$4:$L$34))) ->  | M45: 0
A46: T19 | B46: 44 | D46: =IF($D$2<>Players!$B$4,"",IF(SUMIF(Winners!$B$4:$J$34,$C46,Winners!$D$4:$L$34)=0,"",SUMIF(Winners!$B$4:$J$34,$C46,Winners!$D$4:$L$34))) ->  | E46: =IF($E$2<>Players!$B$4,"",IF(SUMIF(Winners!$B$4:$J$34,$C46,Winners!$D$4:$L$34)=0,"",SUMIF(Winners!$B$4:$J$34,$C46,Winners!$D$4:$L$34))) ->  | F46: =IF($F$2<>Players!$B$4,"",IF(SUMIF(Winners!$B$4:$J$34,$C46,Winners!$D$4:$L$34)=0,"",SUMIF(Winners!$B$4:$J$34,$C46,Winners!$D$4:$L$34))) ->  | G46: =IF($G$2<>Players!$B$4,"",IF(SUMIF(Winners!$B$4:$J$34,$C46,Winners!$D$4:$L$34)=0,"",SUMIF(Winners!$B$4:$J$34,$C46,Winners!$D$4:$L$34))) ->  | H46: =IF($H$2<>Players!$B$4,"",IF(SUMIF(Winners!$B$4:$J$34,$C46,Winners!$D$4:$L$34)=0,"",SUMIF(Winners!$B$4:$J$34,$C46,Winners!$D$4:$L$34))) ->  | I46: =IF($I$2<>Players!$B$4,"",IF(SUMIF(Winners!$B$4:$J$34,$C46,Winners!$D$4:$L$34)=0,"",SUMIF(Winners!$B$4:$J$34,$C46,Winners!$D$4:$L$34))) ->  | J46: =IF($J$2<>Players!$B$4,"",IF(SUMIF(Winners!$B$4:$J$34,$C46,Winners!$D$4:$L$34)=0,"",SUMIF(Winners!$B$4:$J$34,$C46,Winners!$D$4:$L$34))) ->  | M46: 0
A47: T19 | B47: 45 | D47: =IF($D$2<>Players!$B$4,"",IF(SUMIF(Winners!$B$4:$J$34,$C47,Winners!$D$4:$L$34)=0,"",SUMIF(Winners!$B$4:$J$34,$C47,Winners!$D$4:$L$34))) ->  | E47: =IF($E$2<>Players!$B$4,"",IF(SUMIF(Winners!$B$4:$J$34,$C47,Winners!$D$4:$L$34)=0,"",SUMIF(Winners!$B$4:$J$34,$C47,Winners!$D$4:$L$34))) ->  | F47: =IF($F$2<>Players!$B$4,"",IF(SUMIF(Winners!$B$4:$J$34,$C47,Winners!$D$4:$L$34)=0,"",SUMIF(Winners!$B$4:$J$34,$C47,Winners!$D$4:$L$34))) ->  | G47: =IF($G$2<>Players!$B$4,"",IF(SUMIF(Winners!$B$4:$J$34,$C47,Winners!$D$4:$L$34)=0,"",SUMIF(Winners!$B$4:$J$34,$C47,Winners!$D$4:$L$34))) ->  | H47: =IF($H$2<>Players!$B$4,"",IF(SUMIF(Winners!$B$4:$J$34,$C47,Winners!$D$4:$L$34)=0,"",SUMIF(Winners!$B$4:$J$34,$C47,Winners!$D$4:$L$34))) ->  | I47: =IF($I$2<>Players!$B$4,"",IF(SUMIF(Winners!$B$4:$J$34,$C47,Winners!$D$4:$L$34)=0,"",SUMIF(Winners!$B$4:$J$34,$C47,Winners!$D$4:$L$34))) ->  | J47: =IF($J$2<>Players!$B$4,"",IF(SUMIF(Winners!$B$4:$J$34,$C47,Winners!$D$4:$L$34)=0,"",SUMIF(Winners!$B$4:$J$34,$C47,Winners!$D$4:$L$34))) ->  | M47: 0
A48: T19 | B48: 46 | D48: =IF($D$2<>Players!$B$4,"",IF(SUMIF(Winners!$B$4:$J$34,$C48,Winners!$D$4:$L$34)=0,"",SUMIF(Winners!$B$4:$J$34,$C48,Winners!$D$4:$L$34))) ->  | E48: =IF($E$2<>Players!$B$4,"",IF(SUMIF(Winners!$B$4:$J$34,$C48,Winners!$D$4:$L$34)=0,"",SUMIF(Winners!$B$4:$J$34,$C48,Winners!$D$4:$L$34))) ->  | F48: =IF($F$2<>Players!$B$4,"",IF(SUMIF(Winners!$B$4:$J$34,$C48,Winners!$D$4:$L$34)=0,"",SUMIF(Winners!$B$4:$J$34,$C48,Winners!$D$4:$L$34))) ->  | G48: =IF($G$2<>Players!$B$4,"",IF(SUMIF(Winners!$B$4:$J$34,$C48,Winners!$D$4:$L$34)=0,"",SUMIF(Winners!$B$4:$J$34,$C48,Winners!$D$4:$L$34))) ->  | H48: =IF($H$2<>Players!$B$4,"",IF(SUMIF(Winners!$B$4:$J$34,$C48,Winners!$D$4:$L$34)=0,"",SUMIF(Winners!$B$4:$J$34,$C48,Winners!$D$4:$L$34))) ->  | I48: =IF($I$2<>Players!$B$4,"",IF(SUMIF(Winners!$B$4:$J$34,$C48,Winners!$D$4:$L$34)=0,"",SUMIF(Winners!$B$4:$J$34,$C48,Winners!$D$4:$L$34))) ->  | J48: =IF($J$2<>Players!$B$4,"",IF(SUMIF(Winners!$B$4:$J$34,$C48,Winners!$D$4:$L$34)=0,"",SUMIF(Winners!$B$4:$J$34,$C48,Winners!$D$4:$L$34))) ->  | M48: 0
A49: T19 | B49: 47 | D49: =IF($D$2<>Players!$B$4,"",IF(SUMIF(Winners!$B$4:$J$34,$C49,Winners!$D$4:$L$34)=0,"",SUMIF(Winners!$B$4:$J$34,$C49,Winners!$D$4:$L$34))) ->  | E49: =IF($E$2<>Players!$B$4,"",IF(SUMIF(Winners!$B$4:$J$34,$C49,Winners!$D$4:$L$34)=0,"",SUMIF(Winners!$B$4:$J$34,$C49,Winners!$D$4:$L$34))) ->  | F49: =IF($F$2<>Players!$B$4,"",IF(SUMIF(Winners!$B$4:$J$34,$C49,Winners!$D$4:$L$34)=0,"",SUMIF(Winners!$B$4:$J$34,$C49,Winners!$D$4:$L$34))) ->  | G49: =IF($G$2<>Players!$B$4,"",IF(SUMIF(Winners!$B$4:$J$34,$C49,Winners!$D$4:$L$34)=0,"",SUMIF(Winners!$B$4:$J$34,$C49,Winners!$D$4:$L$34))) ->  | H49: =IF($H$2<>Players!$B$4,"",IF(SUMIF(Winners!$B$4:$J$34,$C49,Winners!$D$4:$L$34)=0,"",SUMIF(Winners!$B$4:$J$34,$C49,Winners!$D$4:$L$34))) ->  | I49: =IF($I$2<>Players!$B$4,"",IF(SUMIF(Winners!$B$4:$J$34,$C49,Winners!$D$4:$L$34)=0,"",SUMIF(Winners!$B$4:$J$34,$C49,Winners!$D$4:$L$34))) ->  | J49: =IF($J$2<>Players!$B$4,"",IF(SUMIF(Winners!$B$4:$J$34,$C49,Winners!$D$4:$L$34)=0,"",SUMIF(Winners!$B$4:$J$34,$C49,Winners!$D$4:$L$34))) ->  | M49: 0
A50: T19 | B50: 48 | D50: =IF($D$2<>Players!$B$4,"",IF(SUMIF(Winners!$B$4:$J$34,$C50,Winners!$D$4:$L$34)=0,"",SUMIF(Winners!$B$4:$J$34,$C50,Winners!$D$4:$L$34))) ->  | E50: =IF($E$2<>Players!$B$4,"",IF(SUMIF(Winners!$B$4:$J$34,$C50,Winners!$D$4:$L$34)=0,"",SUMIF(Winners!$B$4:$J$34,$C50,Winners!$D$4:$L$34))) ->  | F50: =IF($F$2<>Players!$B$4,"",IF(SUMIF(Winners!$B$4:$J$34,$C50,Winners!$D$4:$L$34)=0,"",SUMIF(Winners!$B$4:$J$34,$C50,Winners!$D$4:$L$34))) ->  | G50: =IF($G$2<>Players!$B$4,"",IF(SUMIF(Winners!$B$4:$J$34,$C50,Winners!$D$4:$L$34)=0,"",SUMIF(Winners!$B$4:$J$34,$C50,Winners!$D$4:$L$34))) ->  | H50: =IF($H$2<>Players!$B$4,"",IF(SUMIF(Winners!$B$4:$J$34,$C50,Winners!$D$4:$L$34)=0,"",SUMIF(Winners!$B$4:$J$34,$C50,Winners!$D$4:$L$34))) ->  | I50: =IF($I$2<>Players!$B$4,"",IF(SUMIF(Winners!$B$4:$J$34,$C50,Winners!$D$4:$L$34)=0,"",SUMIF(Winners!$B$4:$J$34,$C50,Winners!$D$4:$L$34))) ->  | J50: =IF($J$2<>Players!$B$4,"",IF(SUMIF(Winners!$B$4:$J$34,$C50,Winners!$D$4:$L$34)=0,"",SUMIF(Winners!$B$4:$J$34,$C50,Winners!$D$4:$L$34))) ->  | M50: 0
A51: T19 | B51: 49 | D51: =IF($D$2<>Players!$B$4,"",IF(SUMIF(Winners!$B$4:$J$34,$C51,Winners!$D$4:$L$34)=0,"",SUMIF(Winners!$B$4:$J$34,$C51,Winners!$D$4:$L$34))) ->  | E51: =IF($E$2<>Players!$B$4,"",IF(SUMIF(Winners!$B$4:$J$34,$C51,Winners!$D$4:$L$34)=0,"",SUMIF(Winners!$B$4:$J$34,$C51,Winners!$D$4:$L$34))) ->  | F51: =IF($F$2<>Players!$B$4,"",IF(SUMIF(Winners!$B$4:$J$34,$C51,Winners!$D$4:$L$34)=0,"",SUMIF(Winners!$B$4:$J$34,$C51,Winners!$D$4:$L$34))) ->  | G51: =IF($G$2<>Players!$B$4,"",IF(SUMIF(Winners!$B$4:$J$34,$C51,Winners!$D$4:$L$34)=0,"",SUMIF(Winners!$B$4:$J$34,$C51,Winners!$D$4:$L$34))) ->  | H51: =IF($H$2<>Players!$B$4,"",IF(SUMIF(Winners!$B$4:$J$34,$C51,Winners!$D$4:$L$34)=0,"",SUMIF(Winners!$B$4:$J$34,$C51,Winners!$D$4:$L$34))) ->  | I51: =IF($I$2<>Players!$B$4,"",IF(SUMIF(Winners!$B$4:$J$34,$C51,Winners!$D$4:$L$34)=0,"",SUMIF(Winners!$B$4:$J$34,$C51,Winners!$D$4:$L$34))) ->  | J51: =IF($J$2<>Players!$B$4,"",IF(SUMIF(Winners!$B$4:$J$34,$C51,Winners!$D$4:$L$34)=0,"",SUMIF(Winners!$B$4:$J$34,$C51,Winners!$D$4:$L$34))) ->  | M51: 0
A52: T19 | B52: 50 | D52: =IF($D$2<>Players!$B$4,"",IF(SUMIF(Winners!$B$4:$J$34,$C52,Winners!$D$4:$L$34)=0,"",SUMIF(Winners!$B$4:$J$34,$C52,Winners!$D$4:$L$34))) ->  | E52: =IF($E$2<>Players!$B$4,"",IF(SUMIF(Winners!$B$4:$J$34,$C52,Winners!$D$4:$L$34)=0,"",SUMIF(Winners!$B$4:$J$34,$C52,Winners!$D$4:$L$34))) ->  | F52: =IF($F$2<>Players!$B$4,"",IF(SUMIF(Winners!$B$4:$J$34,$C52,Winners!$D$4:$L$34)=0,"",SUMIF(Winners!$B$4:$J$34,$C52,Winners!$D$4:$L$34))) ->  | G52: =IF($G$2<>Players!$B$4,"",IF(SUMIF(Winners!$B$4:$J$34,$C52,Winners!$D$4:$L$34)=0,"",SUMIF(Winners!$B$4:$J$34,$C52,Winners!$D$4:$L$34))) ->  | H52: =IF($H$2<>Players!$B$4,"",IF(SUMIF(Winners!$B$4:$J$34,$C52,Winners!$D$4:$L$34)=0,"",SUMIF(Winners!$B$4:$J$34,$C52,Winners!$D$4:$L$34))) ->  | I52: =IF($I$2<>Players!$B$4,"",IF(SUMIF(Winners!$B$4:$J$34,$C52,Winners!$D$4:$L$34)=0,"",SUMIF(Winners!$B$4:$J$34,$C52,Winners!$D$4:$L$34))) ->  | J52: =IF($J$2<>Players!$B$4,"",IF(SUMIF(Winners!$B$4:$J$34,$C52,Winners!$D$4:$L$34)=0,"",SUMIF(Winners!$B$4:$J$34,$C52,Winners!$D$4:$L$34))) ->  | M52: 0
A53: T19 | B53: 51 | D53: =IF($D$2<>Players!$B$4,"",IF(SUMIF(Winners!$B$4:$J$34,$C53,Winners!$D$4:$L$34)=0,"",SUMIF(Winners!$B$4:$J$34,$C53,Winners!$D$4:$L$34))) ->  | E53: =IF($E$2<>Players!$B$4,"",IF(SUMIF(Winners!$B$4:$J$34,$C53,Winners!$D$4:$L$34)=0,"",SUMIF(Winners!$B$4:$J$34,$C53,Winners!$D$4:$L$34))) ->  | F53: =IF($F$2<>Players!$B$4,"",IF(SUMIF(Winners!$B$4:$J$34,$C53,Winners!$D$4:$L$34)=0,"",SUMIF(Winners!$B$4:$J$34,$C53,Winners!$D$4:$L$34))) ->  | G53: =IF($G$2<>Players!$B$4,"",IF(SUMIF(Winners!$B$4:$J$34,$C53,Winners!$D$4:$L$34)=0,"",SUMIF(Winners!$B$4:$J$34,$C53,Winners!$D$4:$L$34))) ->  | H53: =IF($H$2<>Players!$B$4,"",IF(SUMIF(Winners!$B$4:$J$34,$C53,Winners!$D$4:$L$34)=0,"",SUMIF(Winners!$B$4:$J$34,$C53,Winners!$D$4:$L$34))) ->  | I53: =IF($I$2<>Players!$B$4,"",IF(SUMIF(Winners!$B$4:$J$34,$C53,Winners!$D$4:$L$34)=0,"",SUMIF(Winners!$B$4:$J$34,$C53,Winners!$D$4:$L$34))) ->  | J53: =IF($J$2<>Players!$B$4,"",IF(SUMIF(Winners!$B$4:$J$34,$C53,Winners!$D$4:$L$34)=0,"",SUMIF(Winners!$B$4:$J$34,$C53,Winners!$D$4:$L$34))) ->  | M53: 0
A54: T19 | B54: 52 | D54: =IF($D$2<>Players!$B$4,"",IF(SUMIF(Winners!$B$4:$J$34,$C54,Winners!$D$4:$L$34)=0,"",SUMIF(Winners!$B$4:$J$34,$C54,Winners!$D$4:$L$34))) ->  | E54: =IF($E$2<>Players!$B$4,"",IF(SUMIF(Winners!$B$4:$J$34,$C54,Winners!$D$4:$L$34)=0,"",SUMIF(Winners!$B$4:$J$34,$C54,Winners!$D$4:$L$34))) ->  | F54: =IF($F$2<>Players!$B$4,"",IF(SUMIF(Winners!$B$4:$J$34,$C54,Winners!$D$4:$L$34)=0,"",SUMIF(Winners!$B$4:$J$34,$C54,Winners!$D$4:$L$34))) ->  | G54: =IF($G$2<>Players!$B$4,"",IF(SUMIF(Winners!$B$4:$J$34,$C54,Winners!$D$4:$L$34)=0,"",SUMIF(Winners!$B$4:$J$34,$C54,Winners!$D$4:$L$34))) ->  | H54: =IF($H$2<>Players!$B$4,"",IF(SUMIF(Winners!$B$4:$J$34,$C54,Winners!$D$4:$L$34)=0,"",SUMIF(Winners!$B$4:$J$34,$C54,Winners!$D$4:$L$34))) ->  | I54: =IF($I$2<>Players!$B$4,"",IF(SUMIF(Winners!$B$4:$J$34,$C54,Winners!$D$4:$L$34)=0,"",SUMIF(Winners!$B$4:$J$34,$C54,Winners!$D$4:$L$34))) ->  | J54: =IF($J$2<>Players!$B$4,"",IF(SUMIF(Winners!$B$4:$J$34,$C54,Winners!$D$4:$L$34)=0,"",SUMIF(Winners!$B$4:$J$34,$C54,Winners!$D$4:$L$34))) ->  | M54: 0
A55: T19 | B55: 53 | D55: =IF($D$2<>Players!$B$4,"",IF(SUMIF(Winners!$B$4:$J$34,$C55,Winners!$D$4:$L$34)=0,"",SUMIF(Winners!$B$4:$J$34,$C55,Winners!$D$4:$L$34))) ->  | E55: =IF($E$2<>Players!$B$4,"",IF(SUMIF(Winners!$B$4:$J$34,$C55,Winners!$D$4:$L$34)=0,"",SUMIF(Winners!$B$4:$J$34,$C55,Winners!$D$4:$L$34))) ->  | F55: =IF($F$2<>Players!$B$4,"",IF(SUMIF(Winners!$B$4:$J$34,$C55,Winners!$D$4:$L$34)=0,"",SUMIF(Winners!$B$4:$J$34,$C55,Winners!$D$4:$L$34))) ->  | G55: =IF($G$2<>Players!$B$4,"",IF(SUMIF(Winners!$B$4:$J$34,$C55,Winners!$D$4:$L$34)=0,"",SUMIF(Winners!$B$4:$J$34,$C55,Winners!$D$4:$L$34))) ->  | H55: =IF($H$2<>Players!$B$4,"",IF(SUMIF(Winners!$B$4:$J$34,$C55,Winners!$D$4:$L$34)=0,"",SUMIF(Winners!$B$4:$J$34,$C55,Winners!$D$4:$L$34))) ->  | I55: =IF($I$2<>Players!$B$4,"",IF(SUMIF(Winners!$B$4:$J$34,$C55,Winners!$D$4:$L$34)=0,"",SUMIF(Winners!$B$4:$J$34,$C55,Winners!$D$4:$L$34))) ->  | J55: =IF($J$2<>Players!$B$4,"",IF(SUMIF(Winners!$B$4:$J$34,$C55,Winners!$D$4:$L$34)=0,"",SUMIF(Winners!$B$4:$J$34,$C55,Winners!$D$4:$L$34))) ->  | M55: 0
A56: T19 | B56: 54 | D56: =IF($D$2<>Players!$B$4,"",IF(SUMIF(Winners!$B$4:$J$34,$C56,Winners!$D$4:$L$34)=0,"",SUMIF(Winners!$B$4:$J$34,$C56,Winners!$D$4:$L$34))) ->  | E56: =IF($E$2<>Players!$B$4,"",IF(SUMIF(Winners!$B$4:$J$34,$C56,Winners!$D$4:$L$34)=0,"",SUMIF(Winners!$B$4:$J$34,$C56,Winners!$D$4:$L$34))) ->  | F56: =IF($F$2<>Players!$B$4,"",IF(SUMIF(Winners!$B$4:$J$34,$C56,Winners!$D$4:$L$34)=0,"",SUMIF(Winners!$B$4:$J$34,$C56,Winners!$D$4:$L$34))) ->  | G56: =IF($G$2<>Players!$B$4,"",IF(SUMIF(Winners!$B$4:$J$34,$C56,Winners!$D$4:$L$34)=0,"",SUMIF(Winners!$B$4:$J$34,$C56,Winners!$D$4:$L$34))) ->  | H56: =IF($H$2<>Players!$B$4,"",IF(SUMIF(Winners!$B$4:$J$34,$C56,Winners!$D$4:$L$34)=0,"",SUMIF(Winners!$B$4:$J$34,$C56,Winners!$D$4:$L$34))) ->  | I56: =IF($I$2<>Players!$B$4,"",IF(SUMIF(Winners!$B$4:$J$34,$C56,Winners!$D$4:$L$34)=0,"",SUMIF(Winners!$B$4:$J$34,$C56,Winners!$D$4:$L$34))) ->  | J56: =IF($J$2<>Players!$B$4,"",IF(SUMIF(Winners!$B$4:$J$34,$C56,Winners!$D$4:$L$34)=0,"",SUMIF(Winners!$B$4:$J$34,$C56,Winners!$D$4:$L$34))) ->  | M56: 0
A57: T19 | B57: 55 | D57: =IF($D$2<>Players!$B$4,"",IF(SUMIF(Winners!$B$4:$J$34,$C57,Winners!$D$4:$L$34)=0,"",SUMIF(Winners!$B$4:$J$34,$C57,Winners!$D$4:$L$34))) ->  | E57: =IF($E$2<>Players!$B$4,"",IF(SUMIF(Winners!$B$4:$J$34,$C57,Winners!$D$4:$L$34)=0,"",SUMIF(Winners!$B$4:$J$34,$C57,Winners!$D$4:$L$34))) ->  | F57: =IF($F$2<>Players!$B$4,"",IF(SUMIF(Winners!$B$4:$J$34,$C57,Winners!$D$4:$L$34)=0,"",SUMIF(Winners!$B$4:$J$34,$C57,Winners!$D$4:$L$34))) ->  | G57: =IF($G$2<>Players!$B$4,"",IF(SUMIF(Winners!$B$4:$J$34,$C57,Winners!$D$4:$L$34)=0,"",SUMIF(Winners!$B$4:$J$34,$C57,Winners!$D$4:$L$34))) ->  | H57: =IF($H$2<>Players!$B$4,"",IF(SUMIF(Winners!$B$4:$J$34,$C57,Winners!$D$4:$L$34)=0,"",SUMIF(Winners!$B$4:$J$34,$C57,Winners!$D$4:$L$34))) ->  | I57: =IF($I$2<>Players!$B$4,"",IF(SUMIF(Winners!$B$4:$J$34,$C57,Winners!$D$4:$L$34)=0,"",SUMIF(Winners!$B$4:$J$34,$C57,Winners!$D$4:$L$34))) ->  | J57: =IF($J$2<>Players!$B$4,"",IF(SUMIF(Winners!$B$4:$J$34,$C57,Winners!$D$4:$L$34)=0,"",SUMIF(Winners!$B$4:$J$34,$C57,Winners!$D$4:$L$34))) ->  | M57: 0
A58: T19 | B58: 56 | D58: =IF($D$2<>Players!$B$4,"",IF(SUMIF(Winners!$B$4:$J$34,$C58,Winners!$D$4:$L$34)=0,"",SUMIF(Winners!$B$4:$J$34,$C58,Winners!$D$4:$L$34))) ->  | E58: =IF($E$2<>Players!$B$4,"",IF(SUMIF(Winners!$B$4:$J$34,$C58,Winners!$D$4:$L$34)=0,"",SUMIF(Winners!$B$4:$J$34,$C58,Winners!$D$4:$L$34))) ->  | F58: =IF($F$2<>Players!$B$4,"",IF(SUMIF(Winners!$B$4:$J$34,$C58,Winners!$D$4:$L$34)=0,"",SUMIF(Winners!$B$4:$J$34,$C58,Winners!$D$4:$L$34))) ->  | G58: =IF($G$2<>Players!$B$4,"",IF(SUMIF(Winners!$B$4:$J$34,$C58,Winners!$D$4:$L$34)=0,"",SUMIF(Winners!$B$4:$J$34,$C58,Winners!$D$4:$L$34))) ->  | H58: =IF($H$2<>Players!$B$4,"",IF(SUMIF(Winners!$B$4:$J$34,$C58,Winners!$D$4:$L$34)=0,"",SUMIF(Winners!$B$4:$J$34,$C58,Winners!$D$4:$L$34))) ->  | I58: =IF($I$2<>Players!$B$4,"",IF(SUMIF(Winners!$B$4:$J$34,$C58,Winners!$D$4:$L$34)=0,"",SUMIF(Winners!$B$4:$J$34,$C58,Winners!$D$4:$L$34))) ->  | J58: =IF($J$2<>Players!$B$4,"",IF(SUMIF(Winners!$B$4:$J$34,$C58,Winners!$D$4:$L$34)=0,"",SUMIF(Winners!$B$4:$J$34,$C58,Winners!$D$4:$L$34))) ->  | M58: 0
A59: T19 | B59: 57 | D59: =IF($D$2<>Players!$B$4,"",IF(SUMIF(Winners!$B$4:$J$34,$C59,Winners!$D$4:$L$34)=0,"",SUMIF(Winners!$B$4:$J$34,$C59,Winners!$D$4:$L$34))) ->  | E59: =IF($E$2<>Players!$B$4,"",IF(SUMIF(Winners!$B$4:$J$34,$C59,Winners!$D$4:$L$34)=0,"",SUMIF(Winners!$B$4:$J$34,$C59,Winners!$D$4:$L$34))) ->  | F59: =IF($F$2<>Players!$B$4,"",IF(SUMIF(Winners!$B$4:$J$34,$C59,Winners!$D$4:$L$34)=0,"",SUMIF(Winners!$B$4:$J$34,$C59,Winners!$D$4:$L$34))) ->  | G59: =IF($G$2<>Players!$B$4,"",IF(SUMIF(Winners!$B$4:$J$34,$C59,Winners!$D$4:$L$34)=0,"",SUMIF(Winners!$B$4:$J$34,$C59,Winners!$D$4:$L$34))) ->  | H59: =IF($H$2<>Players!$B$4,"",IF(SUMIF(Winners!$B$4:$J$34,$C59,Winners!$D$4:$L$34)=0,"",SUMIF(Winners!$B$4:$J$34,$C59,Winners!$D$4:$L$34))) ->  | I59: =IF($I$2<>Players!$B$4,"",IF(SUMIF(Winners!$B$4:$J$34,$C59,Winners!$D$4:$L$34)=0,"",SUMIF(Winners!$B$4:$J$34,$C59,Winners!$D$4:$L$34))) ->  | J59: =IF($J$2<>Players!$B$4,"",IF(SUMIF(Winners!$B$4:$J$34,$C59,Winners!$D$4:$L$34)=0,"",SUMIF(Winners!$B$4:$J$34,$C59,Winners!$D$4:$L$34))) ->  | M59: 0
A60: T19 | B60: 58 | D60: =IF($D$2<>Players!$B$4,"",IF(SUMIF(Winners!$B$4:$J$34,$C60,Winners!$D$4:$L$34)=0,"",SUMIF(Winners!$B$4:$J$34,$C60,Winners!$D$4:$L$34))) ->  | E60: =IF($E$2<>Players!$B$4,"",IF(SUMIF(Winners!$B$4:$J$34,$C60,Winners!$D$4:$L$34)=0,"",SUMIF(Winners!$B$4:$J$34,$C60,Winners!$D$4:$L$34))) ->  | F60: =IF($F$2<>Players!$B$4,"",IF(SUMIF(Winners!$B$4:$J$34,$C60,Winners!$D$4:$L$34)=0,"",SUMIF(Winners!$B$4:$J$34,$C60,Winners!$D$4:$L$34))) ->  | G60: =IF($G$2<>Players!$B$4,"",IF(SUMIF(Winners!$B$4:$J$34,$C60,Winners!$D$4:$L$34)=0,"",SUMIF(Winners!$B$4:$J$34,$C60,Winners!$D$4:$L$34))) ->  | H60: =IF($H$2<>Players!$B$4,"",IF(SUMIF(Winners!$B$4:$J$34,$C60,Winners!$D$4:$L$34)=0,"",SUMIF(Winners!$B$4:$J$34,$C60,Winners!$D$4:$L$34))) ->  | I60: =IF($I$2<>Players!$B$4,"",IF(SUMIF(Winners!$B$4:$J$34,$C60,Winners!$D$4:$L$34)=0,"",SUMIF(Winners!$B$4:$J$34,$C60,Winners!$D$4:$L$34))) ->  | J60: =IF($J$2<>Players!$B$4,"",IF(SUMIF(Winners!$B$4:$J$34,$C60,Winners!$D$4:$L$34)=0,"",SUMIF(Winners!$B$4:$J$34,$C60,Winners!$D$4:$L$34))) ->  | M60: 0
A61: T19 | B61: 59 | D61: =IF($D$2<>Players!$B$4,"",IF(SUMIF(Winners!$B$4:$J$34,$C61,Winners!$D$4:$L$34)=0,"",SUMIF(Winners!$B$4:$J$34,$C61,Winners!$D$4:$L$34))) ->  | E61: =IF($E$2<>Players!$B$4,"",IF(SUMIF(Winners!$B$4:$J$34,$C61,Winners!$D$4:$L$34)=0,"",SUMIF(Winners!$B$4:$J$34,$C61,Winners!$D$4:$L$34))) ->  | F61: =IF($F$2<>Players!$B$4,"",IF(SUMIF(Winners!$B$4:$J$34,$C61,Winners!$D$4:$L$34)=0,"",SUMIF(Winners!$B$4:$J$34,$C61,Winners!$D$4:$L$34))) ->  | G61: =IF($G$2<>Players!$B$4,"",IF(SUMIF(Winners!$B$4:$J$34,$C61,Winners!$D$4:$L$34)=0,"",SUMIF(Winners!$B$4:$J$34,$C61,Winners!$D$4:$L$34))) ->  | H61: =IF($H$2<>Players!$B$4,"",IF(SUMIF(Winners!$B$4:$J$34,$C61,Winners!$D$4:$L$34)=0,"",SUMIF(Winners!$B$4:$J$34,$C61,Winners!$D$4:$L$34))) ->  | I61: =IF($I$2<>Players!$B$4,"",IF(SUMIF(Winners!$B$4:$J$34,$C61,Winners!$D$4:$L$34)=0,"",SUMIF(Winners!$B$4:$J$34,$C61,Winners!$D$4:$L$34))) ->  | J61: =IF($J$2<>Players!$B$4,"",IF(SUMIF(Winners!$B$4:$J$34,$C61,Winners!$D$4:$L$34)=0,"",SUMIF(Winners!$B$4:$J$34,$C61,Winners!$D$4:$L$34))) ->  | M61: 0
A62: T19 | B62: 60 | D62: =IF($D$2<>Players!$B$4,"",IF(SUMIF(Winners!$B$4:$J$34,$C62,Winners!$D$4:$L$34)=0,"",SUMIF(Winners!$B$4:$J$34,$C62,Winners!$D$4:$L$34))) ->  | E62: =IF($E$2<>Players!$B$4,"",IF(SUMIF(Winners!$B$4:$J$34,$C62,Winners!$D$4:$L$34)=0,"",SUMIF(Winners!$B$4:$J$34,$C62,Winners!$D$4:$L$34))) ->  | F62: =IF($F$2<>Players!$B$4,"",IF(SUMIF(Winners!$B$4:$J$34,$C62,Winners!$D$4:$L$34)=0,"",SUMIF(Winners!$B$4:$J$34,$C62,Winners!$D$4:$L$34))) ->  | G62: =IF($G$2<>Players!$B$4,"",IF(SUMIF(Winners!$B$4:$J$34,$C62,Winners!$D$4:$L$34)=0,"",SUMIF(Winners!$B$4:$J$34,$C62,Winners!$D$4:$L$34))) ->  | H62: =IF($H$2<>Players!$B$4,"",IF(SUMIF(Winners!$B$4:$J$34,$C62,Winners!$D$4:$L$34)=0,"",SUMIF(Winners!$B$4:$J$34,$C62,Winners!$D$4:$L$34))) ->  | I62: =IF($I$2<>Players!$B$4,"",IF(SUMIF(Winners!$B$4:$J$34,$C62,Winners!$D$4:$L$34)=0,"",SUMIF(Winners!$B$4:$J$34,$C62,Winners!$D$4:$L$34))) ->  | J62: =IF($J$2<>Players!$B$4,"",IF(SUMIF(Winners!$B$4:$J$34,$C62,Winners!$D$4:$L$34)=0,"",SUMIF(Winners!$B$4:$J$34,$C62,Winners!$D$4:$L$34))) ->  | M62: 0
A63: T19 | B63: 61 | D63: =IF($D$2<>Players!$B$4,"",IF(SUMIF(Winners!$B$4:$J$34,$C63,Winners!$D$4:$L$34)=0,"",SUMIF(Winners!$B$4:$J$34,$C63,Winners!$D$4:$L$34))) ->  | E63: =IF($E$2<>Players!$B$4,"",IF(SUMIF(Winners!$B$4:$J$34,$C63,Winners!$D$4:$L$34)=0,"",SUMIF(Winners!$B$4:$J$34,$C63,Winners!$D$4:$L$34))) ->  | F63: =IF($F$2<>Players!$B$4,"",IF(SUMIF(Winners!$B$4:$J$34,$C63,Winners!$D$4:$L$34)=0,"",SUMIF(Winners!$B$4:$J$34,$C63,Winners!$D$4:$L$34))) ->  | G63: =IF($G$2<>Players!$B$4,"",IF(SUMIF(Winners!$B$4:$J$34,$C63,Winners!$D$4:$L$34)=0,"",SUMIF(Winners!$B$4:$J$34,$C63,Winners!$D$4:$L$34))) ->  | H63: =IF($H$2<>Players!$B$4,"",IF(SUMIF(Winners!$B$4:$J$34,$C63,Winners!$D$4:$L$34)=0,"",SUMIF(Winners!$B$4:$J$34,$C63,Winners!$D$4:$L$34))) ->  | I63: =IF($I$2<>Players!$B$4,"",IF(SUMIF(Winners!$B$4:$J$34,$C63,Winners!$D$4:$L$34)=0,"",SUMIF(Winners!$B$4:$J$34,$C63,Winners!$D$4:$L$34))) ->  | J63: =IF($J$2<>Players!$B$4,"",IF(SUMIF(Winners!$B$4:$J$34,$C63,Winners!$D$4:$L$34)=0,"",SUMIF(Winners!$B$4:$J$34,$C63,Winners!$D$4:$L$34))) ->  | M63: 0
A64: T19 | B64: 62 | D64: =IF($D$2<>Players!$B$4,"",IF(SUMIF(Winners!$B$4:$J$34,$C64,Winners!$D$4:$L$34)=0,"",SUMIF(Winners!$B$4:$J$34,$C64,Winners!$D$4:$L$34))) ->  | E64: =IF($E$2<>Players!$B$4,"",IF(SUMIF(Winners!$B$4:$J$34,$C64,Winners!$D$4:$L$34)=0,"",SUMIF(Winners!$B$4:$J$34,$C64,Winners!$D$4:$L$34))) ->  | F64: =IF($F$2<>Players!$B$4,"",IF(SUMIF(Winners!$B$4:$J$34,$C64,Winners!$D$4:$L$34)=0,"",SUMIF(Winners!$B$4:$J$34,$C64,Winners!$D$4:$L$34))) ->  | G64: =IF($G$2<>Players!$B$4,"",IF(SUMIF(Winners!$B$4:$J$34,$C64,Winners!$D$4:$L$34)=0,"",SUMIF(Winners!$B$4:$J$34,$C64,Winners!$D$4:$L$34))) ->  | H64: =IF($H$2<>Players!$B$4,"",IF(SUMIF(Winners!$B$4:$J$34,$C64,Winners!$D$4:$L$34)=0,"",SUMIF(Winners!$B$4:$J$34,$C64,Winners!$D$4:$L$34))) ->  | I64: =IF($I$2<>Players!$B$4,"",IF(SUMIF(Winners!$B$4:$J$34,$C64,Winners!$D$4:$L$34)=0,"",SUMIF(Winners!$B$4:$J$34,$C64,Winners!$D$4:$L$34))) ->  | J64: =IF($J$2<>Players!$B$4,"",IF(SUMIF(Winners!$B$4:$J$34,$C64,Winners!$D$4:$L$34)=0,"",SUMIF(Winners!$B$4:$J$34,$C64,Winners!$D$4:$L$34))) ->  | M64: 0
A65: T19 | B65: 63 | D65: =IF($D$2<>Players!$B$4,"",IF(SUMIF(Winners!$B$4:$J$34,$C65,Winners!$D$4:$L$34)=0,"",SUMIF(Winners!$B$4:$J$34,$C65,Winners!$D$4:$L$34))) ->  | E65: =IF($E$2<>Players!$B$4,"",IF(SUMIF(Winners!$B$4:$J$34,$C65,Winners!$D$4:$L$34)=0,"",SUMIF(Winners!$B$4:$J$34,$C65,Winners!$D$4:$L$34))) ->  | F65: =IF($F$2<>Players!$B$4,"",IF(SUMIF(Winners!$B$4:$J$34,$C65,Winners!$D$4:$L$34)=0,"",SUMIF(Winners!$B$4:$J$34,$C65,Winners!$D$4:$L$34))) ->  | G65: =IF($G$2<>Players!$B$4,"",IF(SUMIF(Winners!$B$4:$J$34,$C65,Winners!$D$4:$L$34)=0,"",SUMIF(Winners!$B$4:$J$34,$C65,Winners!$D$4:$L$34))) ->  | H65: =IF($H$2<>Players!$B$4,"",IF(SUMIF(Winners!$B$4:$J$34,$C65,Winners!$D$4:$L$34)=0,"",SUMIF(Winners!$B$4:$J$34,$C65,Winners!$D$4:$L$34))) ->  | I65: =IF($I$2<>Players!$B$4,"",IF(SUMIF(Winners!$B$4:$J$34,$C65,Winners!$D$4:$L$34)=0,"",SUMIF(Winners!$B$4:$J$34,$C65,Winners!$D$4:$L$34))) ->  | J65: =IF($J$2<>Players!$B$4,"",IF(SUMIF(Winners!$B$4:$J$34,$C65,Winners!$D$4:$L$34)=0,"",SUMIF(Winners!$B$4:$J$34,$C65,Winners!$D$4:$L$34))) ->  | M65: 0
A66: T19 | B66: 64 | D66: =IF($D$2<>Players!$B$4,"",IF(SUMIF(Winners!$B$4:$J$34,$C66,Winners!$D$4:$L$34)=0,"",SUMIF(Winners!$B$4:$J$34,$C66,Winners!$D$4:$L$34))) ->  | E66: =IF($E$2<>Players!$B$4,"",IF(SUMIF(Winners!$B$4:$J$34,$C66,Winners!$D$4:$L$34)=0,"",SUMIF(Winners!$B$4:$J$34,$C66,Winners!$D$4:$L$34))) ->  | F66: =IF($F$2<>Players!$B$4,"",IF(SUMIF(Winners!$B$4:$J$34,$C66,Winners!$D$4:$L$34)=0,"",SUMIF(Winners!$B$4:$J$34,$C66,Winners!$D$4:$L$34))) ->  | G66: =IF($G$2<>Players!$B$4,"",IF(SUMIF(Winners!$B$4:$J$34,$C66,Winners!$D$4:$L$34)=0,"",SUMIF(Winners!$B$4:$J$34,$C66,Winners!$D$4:$L$34))) ->  | H66: =IF($H$2<>Players!$B$4,"",IF(SUMIF(Winners!$B$4:$J$34,$C66,Winners!$D$4:$L$34)=0,"",SUMIF(Winners!$B$4:$J$34,$C66,Winners!$D$4:$L$34))) ->  | I66: =IF($I$2<>Players!$B$4,"",IF(SUMIF(Winners!$B$4:$J$34,$C66,Winners!$D$4:$L$34)=0,"",SUMIF(Winners!$B$4:$J$34,$C66,Winners!$D$4:$L$34))) ->  | J66: =IF($J$2<>Players!$B$4,"",IF(SUMIF(Winners!$B$4:$J$34,$C66,Winners!$D$4:$L$34)=0,"",SUMIF(Winners!$B$4:$J$34,$C66,Winners!$D$4:$L$34))) ->  | M66: 0
A67: T19 | B67: 65 | D67: =IF($D$2<>Players!$B$4,"",IF(SUMIF(Winners!$B$4:$J$34,$C67,Winners!$D$4:$L$34)=0,"",SUMIF(Winners!$B$4:$J$34,$C67,Winners!$D$4:$L$34))) ->  | E67: =IF($E$2<>Players!$B$4,"",IF(SUMIF(Winners!$B$4:$J$34,$C67,Winners!$D$4:$L$34)=0,"",SUMIF(Winners!$B$4:$J$34,$C67,Winners!$D$4:$L$34))) ->  | F67: =IF($F$2<>Players!$B$4,"",IF(SUMIF(Winners!$B$4:$J$34,$C67,Winners!$D$4:$L$34)=0,"",SUMIF(Winners!$B$4:$J$34,$C67,Winners!$D$4:$L$34))) ->  | G67: =IF($G$2<>Players!$B$4,"",IF(SUMIF(Winners!$B$4:$J$34,$C67,Winners!$D$4:$L$34)=0,"",SUMIF(Winners!$B$4:$J$34,$C67,Winners!$D$4:$L$34))) ->  | H67: =IF($H$2<>Players!$B$4,"",IF(SUMIF(Winners!$B$4:$J$34,$C67,Winners!$D$4:$L$34)=0,"",SUMIF(Winners!$B$4:$J$34,$C67,Winners!$D$4:$L$34))) ->  | I67: =IF($I$2<>Players!$B$4,"",IF(SUMIF(Winners!$B$4:$J$34,$C67,Winners!$D$4:$L$34)=0,"",SUMIF(Winners!$B$4:$J$34,$C67,Winners!$D$4:$L$34))) ->  | J67: =IF($J$2<>Players!$B$4,"",IF(SUMIF(Winners!$B$4:$J$34,$C67,Winners!$D$4:$L$34)=0,"",SUMIF(Winners!$B$4:$J$34,$C67,Winners!$D$4:$L$34))) ->  | M67: =SUM($D67:$J67,$K67:$L67) -> 0
A68: =IF($M68=$M67,$A67,IF($M68=$M69,"T"&$B68,$B68)) -> T19 | B68: 66 | D68: =IF($D$2<>Players!$B$4,"",IF(SUMIF(Winners!$B$4:$J$34,$C68,Winners!$D$4:$L$34)=0,"",SUMIF(Winners!$B$4:$J$34,$C68,Winners!$D$4:$L$34))) ->  | E68: =IF($E$2<>Players!$B$4,"",IF(SUMIF(Winners!$B$4:$J$34,$C68,Winners!$D$4:$L$34)=0,"",SUMIF(Winners!$B$4:$J$34,$C68,Winners!$D$4:$L$34))) ->  | F68: =IF($F$2<>Players!$B$4,"",IF(SUMIF(Winners!$B$4:$J$34,$C68,Winners!$D$4:$L$34)=0,"",SUMIF(Winners!$B$4:$J$34,$C68,Winners!$D$4:$L$34))) ->  | G68: =IF($G$2<>Players!$B$4,"",IF(SUMIF(Winners!$B$4:$J$34,$C68,Winners!$D$4:$L$34)=0,"",SUMIF(Winners!$B$4:$J$34,$C68,Winners!$D$4:$L$34))) ->  | H68: =IF($H$2<>Players!$B$4,"",IF(SUMIF(Winners!$B$4:$J$34,$C68,Winners!$D$4:$L$34)=0,"",SUMIF(Winners!$B$4:$J$34,$C68,Winners!$D$4:$L$34))) ->  | I68: =IF($I$2<>Players!$B$4,"",IF(SUMIF(Winners!$B$4:$J$34,$C68,Winners!$D$4:$L$34)=0,"",SUMIF(Winners!$B$4:$J$34,$C68,Winners!$D$4:$L$34))) ->  | J68: =IF($J$2<>Players!$B$4,"",IF(SUMIF(Winners!$B$4:$J$34,$C68,Winners!$D$4:$L$34)=0,"",SUMIF(Winners!$B$4:$J$34,$C68,Winners!$D$4:$L$34))) ->  | M68: 0
A69: T19 | B69: 67 | D69: =IF($D$2<>Players!$B$4,"",IF(SUMIF(Winners!$B$4:$J$34,$C69,Winners!$D$4:$L$34)=0,"",SUMIF(Winners!$B$4:$J$34,$C69,Winners!$D$4:$L$34))) ->  | E69: =IF($E$2<>Players!$B$4,"",IF(SUMIF(Winners!$B$4:$J$34,$C69,Winners!$D$4:$L$34)=0,"",SUMIF(Winners!$B$4:$J$34,$C69,Winners!$D$4:$L$34))) ->  | F69: =IF($F$2<>Players!$B$4,"",IF(SUMIF(Winners!$B$4:$J$34,$C69,Winners!$D$4:$L$34)=0,"",SUMIF(Winners!$B$4:$J$34,$C69,Winners!$D$4:$L$34))) ->  | G69: =IF($G$2<>Players!$B$4,"",IF(SUMIF(Winners!$B$4:$J$34,$C69,Winners!$D$4:$L$34)=0,"",SUMIF(Winners!$B$4:$J$34,$C69,Winners!$D$4:$L$34))) ->  | H69: =IF($H$2<>Players!$B$4,"",IF(SUMIF(Winners!$B$4:$J$34,$C69,Winners!$D$4:$L$34)=0,"",SUMIF(Winners!$B$4:$J$34,$C69,Winners!$D$4:$L$34))) ->  | I69: =IF($I$2<>Players!$B$4,"",IF(SUMIF(Winners!$B$4:$J$34,$C69,Winners!$D$4:$L$34)=0,"",SUMIF(Winners!$B$4:$J$34,$C69,Winners!$D$4:$L$34))) ->  | J69: =IF($J$2<>Players!$B$4,"",IF(SUMIF(Winners!$B$4:$J$34,$C69,Winners!$D$4:$L$34)=0,"",SUMIF(Winners!$B$4:$J$34,$C69,Winners!$D$4:$L$34))) ->  | M69: 0
A70: T19 | B70: 68 | D70: =IF($D$2<>Players!$B$4,"",IF(SUMIF(Winners!$B$4:$J$34,$C70,Winners!$D$4:$L$34)=0,"",SUMIF(Winners!$B$4:$J$34,$C70,Winners!$D$4:$L$34))) ->  | E70: =IF($E$2<>Players!$B$4,"",IF(SUMIF(Winners!$B$4:$J$34,$C70,Winners!$D$4:$L$34)=0,"",SUMIF(Winners!$B$4:$J$34,$C70,Winners!$D$4:$L$34))) ->  | F70: =IF($F$2<>Players!$B$4,"",IF(SUMIF(Winners!$B$4:$J$34,$C70,Winners!$D$4:$L$34)=0,"",SUMIF(Winners!$B$4:$J$34,$C70,Winners!$D$4:$L$34))) ->  | G70: =IF($G$2<>Players!$B$4,"",IF(SUMIF(Winners!$B$4:$J$34,$C70,Winners!$D$4:$L$34)=0,"",SUMIF(Winners!$B$4:$J$34,$C70,Winners!$D$4:$L$34))) ->  | H70: =IF($H$2<>Players!$B$4,"",IF(SUMIF(Winners!$B$4:$J$34,$C70,Winners!$D$4:$L$34)=0,"",SUMIF(Winners!$B$4:$J$34,$C70,Winners!$D$4:$L$34))) ->  | I70: =IF($I$2<>Players!$B$4,"",IF(SUMIF(Winners!$B$4:$J$34,$C70,Winners!$D$4:$L$34)=0,"",SUMIF(Winners!$B$4:$J$34,$C70,Winners!$D$4:$L$34))) ->  | J70: =IF($J$2<>Players!$B$4,"",IF(SUMIF(Winners!$B$4:$J$34,$C70,Winners!$D$4:$L$34)=0,"",SUMIF(Winners!$B$4:$J$34,$C70,Winners!$D$4:$L$34))) ->  | M70: 0
A71: T19 | B71: 69 | D71: =IF($D$2<>Players!$B$4,"",IF(SUMIF(Winners!$B$4:$J$34,$C71,Winners!$D$4:$L$34)=0,"",SUMIF(Winners!$B$4:$J$34,$C71,Winners!$D$4:$L$34))) ->  | E71: =IF($E$2<>Players!$B$4,"",IF(SUMIF(Winners!$B$4:$J$34,$C71,Winners!$D$4:$L$34)=0,"",SUMIF(Winners!$B$4:$J$34,$C71,Winners!$D$4:$L$34))) ->  | F71: =IF($F$2<>Players!$B$4,"",IF(SUMIF(Winners!$B$4:$J$34,$C71,Winners!$D$4:$L$34)=0,"",SUMIF(Winners!$B$4:$J$34,$C71,Winners!$D$4:$L$34))) ->  | G71: =IF($G$2<>Players!$B$4,"",IF(SUMIF(Winners!$B$4:$J$34,$C71,Winners!$D$4:$L$34)=0,"",SUMIF(Winners!$B$4:$J$34,$C71,Winners!$D$4:$L$34))) ->  | H71: =IF($H$2<>Players!$B$4,"",IF(SUMIF(Winners!$B$4:$J$34,$C71,Winners!$D$4:$L$34)=0,"",SUMIF(Winners!$B$4:$J$34,$C71,Winners!$D$4:$L$34))) ->  | I71: =IF($I$2<>Players!$B$4,"",IF(SUMIF(Winners!$B$4:$J$34,$C71,Winners!$D$4:$L$34)=0,"",SUMIF(Winners!$B$4:$J$34,$C71,Winners!$D$4:$L$34))) ->  | J71: =IF($J$2<>Players!$B$4,"",IF(SUMIF(Winners!$B$4:$J$34,$C71,Winners!$D$4:$L$34)=0,"",SUMIF(Winners!$B$4:$J$34,$C71,Winners!$D$4:$L$34))) ->  | M71: 0
A72: T19 | B72: 70 | D72: =IF($D$2<>Players!$B$4,"",IF(SUMIF(Winners!$B$4:$J$34,$C72,Winners!$D$4:$L$34)=0,"",SUMIF(Winners!$B$4:$J$34,$C72,Winners!$D$4:$L$34))) ->  | E72: =IF($E$2<>Players!$B$4,"",IF(SUMIF(Winners!$B$4:$J$34,$C72,Winners!$D$4:$L$34)=0,"",SUMIF(Winners!$B$4:$J$34,$C72,Winners!$D$4:$L$34))) ->  | F72: =IF($F$2<>Players!$B$4,"",IF(SUMIF(Winners!$B$4:$J$34,$C72,Winners!$D$4:$L$34)=0,"",SUMIF(Winners!$B$4:$J$34,$C72,Winners!$D$4:$L$34))) ->  | G72: =IF($G$2<>Players!$B$4,"",IF(SUMIF(Winners!$B$4:$J$34,$C72,Winners!$D$4:$L$34)=0,"",SUMIF(Winners!$B$4:$J$34,$C72,Winners!$D$4:$L$34))) ->  | H72: =IF($H$2<>Players!$B$4,"",IF(SUMIF(Winners!$B$4:$J$34,$C72,Winners!$D$4:$L$34)=0,"",SUMIF(Winners!$B$4:$J$34,$C72,Winners!$D$4:$L$34))) ->  | I72: =IF($I$2<>Players!$B$4,"",IF(SUMIF(Winners!$B$4:$J$34,$C72,Winners!$D$4:$L$34)=0,"",SUMIF(Winners!$B$4:$J$34,$C72,Winners!$D$4:$L$34))) ->  | J72: =IF($J$2<>Players!$B$4,"",IF(SUMIF(Winners!$B$4:$J$34,$C72,Winners!$D$4:$L$34)=0,"",SUMIF(Winners!$B$4:$J$34,$C72,Winners!$D$4:$L$34))) ->  | M72: 0
A73: T19 | B73: 71 | D73: =IF($D$2<>Players!$B$4,"",IF(SUMIF(Winners!$B$4:$J$34,$C73,Winners!$D$4:$L$34)=0,"",SUMIF(Winners!$B$4:$J$34,$C73,Winners!$D$4:$L$34))) ->  | E73: =IF($E$2<>Players!$B$4,"",IF(SUMIF(Winners!$B$4:$J$34,$C73,Winners!$D$4:$L$34)=0,"",SUMIF(Winners!$B$4:$J$34,$C73,Winners!$D$4:$L$34))) ->  | F73: =IF($F$2<>Players!$B$4,"",IF(SUMIF(Winners!$B$4:$J$34,$C73,Winners!$D$4:$L$34)=0,"",SUMIF(Winners!$B$4:$J$34,$C73,Winners!$D$4:$L$34))) ->  | G73: =IF($G$2<>Players!$B$4,"",IF(SUMIF(Winners!$B$4:$J$34,$C73,Winners!$D$4:$L$34)=0,"",SUMIF(Winners!$B$4:$J$34,$C73,Winners!$D$4:$L$34))) ->  | H73: =IF($H$2<>Players!$B$4,"",IF(SUMIF(Winners!$B$4:$J$34,$C73,Winners!$D$4:$L$34)=0,"",SUMIF(Winners!$B$4:$J$34,$C73,Winners!$D$4:$L$34))) ->  | I73: =IF($I$2<>Players!$B$4,"",IF(SUMIF(Winners!$B$4:$J$34,$C73,Winners!$D$4:$L$34)=0,"",SUMIF(Winners!$B$4:$J$34,$C73,Winners!$D$4:$L$34))) ->  | J73: =IF($J$2<>Players!$B$4,"",IF(SUMIF(Winners!$B$4:$J$34,$C73,Winners!$D$4:$L$34)=0,"",SUMIF(Winners!$B$4:$J$34,$C73,Winners!$D$4:$L$34))) ->  | M73: 0
A74: T19 | B74: 72 | D74: =IF($D$2<>Players!$B$4,"",IF(SUMIF(Winners!$B$4:$J$34,$C74,Winners!$D$4:$L$34)=0,"",SUMIF(Winners!$B$4:$J$34,$C74,Winners!$D$4:$L$34))) ->  | E74: =IF($E$2<>Players!$B$4,"",IF(SUMIF(Winners!$B$4:$J$34,$C74,Winners!$D$4:$L$34)=0,"",SUMIF(Winners!$B$4:$J$34,$C74,Winners!$D$4:$L$34))) ->  | F74: =IF($F$2<>Players!$B$4,"",IF(SUMIF(Winners!$B$4:$J$34,$C74,Winners!$D$4:$L$34)=0,"",SUMIF(Winners!$B$4:$J$34,$C74,Winners!$D$4:$L$34))) ->  | G74: =IF($G$2<>Players!$B$4,"",IF(SUMIF(Winners!$B$4:$J$34,$C74,Winners!$D$4:$L$34)=0,"",SUMIF(Winners!$B$4:$J$34,$C74,Winners!$D$4:$L$34))) ->  | H74: =IF($H$2<>Players!$B$4,"",IF(SUMIF(Winners!$B$4:$J$34,$C74,Winners!$D$4:$L$34)=0,"",SUMIF(Winners!$B$4:$J$34,$C74,Winners!$D$4:$L$34))) ->  | I74: =IF($I$2<>Players!$B$4,"",IF(SUMIF(Winners!$B$4:$J$34,$C74,Winners!$D$4:$L$34)=0,"",SUMIF(Winners!$B$4:$J$34,$C74,Winners!$D$4:$L$34))) ->  | J74: =IF($J$2<>Players!$B$4,"",IF(SUMIF(Winners!$B$4:$J$34,$C74,Winners!$D$4:$L$34)=0,"",SUMIF(Winners!$B$4:$J$34,$C74,Winners!$D$4:$L$34))) ->  | M74: 0
A75: T19 | B75: 73 | D75: =IF($D$2<>Players!$B$4,"",IF(SUMIF(Winners!$B$4:$J$34,$C75,Winners!$D$4:$L$34)=0,"",SUMIF(Winners!$B$4:$J$34,$C75,Winners!$D$4:$L$34))) ->  | E75: =IF($E$2<>Players!$B$4,"",IF(SUMIF(Winners!$B$4:$J$34,$C75,Winners!$D$4:$L$34)=0,"",SUMIF(Winners!$B$4:$J$34,$C75,Winners!$D$4:$L$34))) ->  | F75: =IF($F$2<>Players!$B$4,"",IF(SUMIF(Winners!$B$4:$J$34,$C75,Winners!$D$4:$L$34)=0,"",SUMIF(Winners!$B$4:$J$34,$C75,Winners!$D$4:$L$34))) ->  | G75: =IF($G$2<>Players!$B$4,"",IF(SUMIF(Winners!$B$4:$J$34,$C75,Winners!$D$4:$L$34)=0,"",SUMIF(Winners!$B$4:$J$34,$C75,Winners!$D$4:$L$34))) ->  | H75: =IF($H$2<>Players!$B$4,"",IF(SUMIF(Winners!$B$4:$J$34,$C75,Winners!$D$4:$L$34)=0,"",SUMIF(Winners!$B$4:$J$34,$C75,Winners!$D$4:$L$34))) ->  | I75: =IF($I$2<>Players!$B$4,"",IF(SUMIF(Winners!$B$4:$J$34,$C75,Winners!$D$4:$L$34)=0,"",SUMIF(Winners!$B$4:$J$34,$C75,Winners!$D$4:$L$34))) ->  | J75: =IF($J$2<>Players!$B$4,"",IF(SUMIF(Winners!$B$4:$J$34,$C75,Winners!$D$4:$L$34)=0,"",SUMIF(Winners!$B$4:$J$34,$C75,Winners!$D$4:$L$34))) ->  | M75: 0
A76: T19 | B76: 74 | D76: =IF($D$2<>Players!$B$4,"",IF(SUMIF(Winners!$B$4:$J$34,$C76,Winners!$D$4:$L$34)=0,"",SUMIF(Winners!$B$4:$J$34,$C76,Winners!$D$4:$L$34))) ->  | E76: =IF($E$2<>Players!$B$4,"",IF(SUMIF(Winners!$B$4:$J$34,$C76,Winners!$D$4:$L$34)=0,"",SUMIF(Winners!$B$4:$J$34,$C76,Winners!$D$4:$L$34))) ->  | F76: =IF($F$2<>Players!$B$4,"",IF(SUMIF(Winners!$B$4:$J$34,$C76,Winners!$D$4:$L$34)=0,"",SUMIF(Winners!$B$4:$J$34,$C76,Winners!$D$4:$L$34))) ->  | G76: =IF($G$2<>Players!$B$4,"",IF(SUMIF(Winners!$B$4:$J$34,$C76,Winners!$D$4:$L$34)=0,"",SUMIF(Winners!$B$4:$J$34,$C76,Winners!$D$4:$L$34))) ->  | H76: =IF($H$2<>Players!$B$4,"",IF(SUMIF(Winners!$B$4:$J$34,$C76,Winners!$D$4:$L$34)=0,"",SUMIF(Winners!$B$4:$J$34,$C76,Winners!$D$4:$L$34))) ->  | I76: =IF($I$2<>Players!$B$4,"",IF(SUMIF(Winners!$B$4:$J$34,$C76,Winners!$D$4:$L$34)=0,"",SUMIF(Winners!$B$4:$J$34,$C76,Winners!$D$4:$L$34))) ->  | J76: =IF($J$2<>Players!$B$4,"",IF(SUMIF(Winners!$B$4:$J$34,$C76,Winners!$D$4:$L$34)=0,"",SUMIF(Winners!$B$4:$J$34,$C76,Winners!$D$4:$L$34))) ->  | M76: 0
A77: T19 | B77: 75 | D77: =IF($D$2<>Players!$B$4,"",IF(SUMIF(Winners!$B$4:$J$34,$C77,Winners!$D$4:$L$34)=0,"",SUMIF(Winners!$B$4:$J$34,$C77,Winners!$D$4:$L$34))) ->  | E77: =IF($E$2<>Players!$B$4,"",IF(SUMIF(Winners!$B$4:$J$34,$C77,Winners!$D$4:$L$34)=0,"",SUMIF(Winners!$B$4:$J$34,$C77,Winners!$D$4:$L$34))) ->  | F77: =IF($F$2<>Players!$B$4,"",IF(SUMIF(Winners!$B$4:$J$34,$C77,Winners!$D$4:$L$34)=0,"",SUMIF(Winners!$B$4:$J$34,$C77,Winners!$D$4:$L$34))) ->  | G77: =IF($G$2<>Players!$B$4,"",IF(SUMIF(Winners!$B$4:$J$34,$C77,Winners!$D$4:$L$34)=0,"",SUMIF(Winners!$B$4:$J$34,$C77,Winners!$D$4:$L$34))) ->  | H77: =IF($H$2<>Players!$B$4,"",IF(SUMIF(Winners!$B$4:$J$34,$C77,Winners!$D$4:$L$34)=0,"",SUMIF(Winners!$B$4:$J$34,$C77,Winners!$D$4:$L$34))) ->  | I77: =IF($I$2<>Players!$B$4,"",IF(SUMIF(Winners!$B$4:$J$34,$C77,Winners!$D$4:$L$34)=0,"",SUMIF(Winners!$B$4:$J$34,$C77,Winners!$D$4:$L$34))) ->  | J77: =IF($J$2<>Players!$B$4,"",IF(SUMIF(Winners!$B$4:$J$34,$C77,Winners!$D$4:$L$34)=0,"",SUMIF(Winners!$B$4:$J$34,$C77,Winners!$D$4:$L$34))) ->  | M77: 0
A78: Totals | D78: =SUM(D3:D77) -> 310 | E78: =SUM(E3:E77) -> 345 | F78: 275 | G78: 270 | H78: 0 | I78: 0 | J78: 0 | K78: 0 | L78: 0 | M78: 1200

Sheet GOY
A1: "2018 Golfer of the Year"
A2: Position | B2: No. | C2: Player | D2: 2018-01-20 | E2: 2018-03-18 | F2: 2018-05-20 | G2: 2018-07-22 | H2: 2018-09-15 | I2: 2018-09-16 | J2: 2018-11-01 | K2: Points
A3: =IF($K3=$K4,"T"&$B3,$B3) -> 1 | B3: 1 | C3: Lunghard, Rich | D3: 10 | E3: 10 | F3: 4 | G3: =IF($G$2<>Players!$B$4,"",IF(ISERROR(VLOOKUP($C3,GOY,4,FALSE)),"",VLOOKUP($C3,GOY,4,FALSE))) ->  | H3: =IF($H$2<>Players!$B$4,"",IF(ISERROR(VLOOKUP($C3,GOY,4,FALSE)),"",VLOOKUP($C3,GOY,4,FALSE))) ->  | I3: =IF($I$2<>Players!$B$4,"",IF(ISERROR(VLOOKUP($C3,GOY,4,FALSE)),"",VLOOKUP($C3,GOY,4,FALSE))) ->  | J3: =IF($J$2<>Players!$B$4,"",IF(ISERROR(VLOOKUP($C3,GOY,4,FALSE)),"",VLOOKUP($C3,GOY,4,FALSE))) ->  | K3: =SUM($D3:$J3) -> 24
A4: =IF($K4=$K3,$A3,IF($K4=$K5,"T"&$B4,$B4)) -> 2 | B4: 2 | C4: Escobedo, Marco | D4: 7 | E4: 3 | F4: 7 | G4: =IF($G$2<>Players!$B$4,"",IF(ISERROR(VLOOKUP($C4,GOY,4,FALSE)),"",VLOOKUP($C4,GOY,4,FALSE))) ->  | H4: =IF($H$2<>Players!$B$4,"",IF(ISERROR(VLOOKUP($C4,GOY,4,FALSE)),"",VLOOKUP($C4,GOY,4,FALSE))) ->  | I4: =IF($I$2<>Players!$B$4,"",IF(ISERROR(VLOOKUP($C4,GOY,4,FALSE)),"",VLOOKUP($C4,GOY,4,FALSE))) ->  | J4: =IF($J$2<>Players!$B$4,"",IF(ISERROR(VLOOKUP($C4,GOY,4,FALSE)),"",VLOOKUP($C4,GOY,4,FALSE))) ->  | K4: =SUM($D4:$J4) -> 17
A5: 3 | B5: 3 | C5: Graham, Travis | E5: 7 | F5: 4 | G5: =IF($G$2<>Players!$B$4,"",IF(ISERROR(VLOOKUP($C5,GOY,4,FALSE)),"",VLOOKUP($C5,GOY,4,FALSE))) ->  | H5: =IF($H$2<>Players!$B$4,"",IF(ISERROR(VLOOKUP($C5,GOY,4,FALSE)),"",VLOOKUP($C5,GOY,4,FALSE))) ->  | I5: =IF($I$2<>Players!$B$4,"",IF(ISERROR(VLOOKUP($C5,GOY,4,FALSE)),"",VLOOKUP($C5,GOY,4,FALSE))) ->  | J5: =IF($J$2<>Players!$B$4,"",IF(ISERROR(VLOOKUP($C5,GOY,4,FALSE)),"",VLOOKUP($C5,GOY,4,FALSE))) ->  | K5: =SUM($D5:$J5) -> 11
A6: T4 | B6: 4 | C6: Blodgett, Kevin | F6: 10 | G6: =IF($G$2<>Players!$B$4,"",IF(ISERROR(VLOOKUP($C6,GOY,4,FALSE)),"",VLOOKUP($C6,GOY,4,FALSE))) ->  | H6: =IF($H$2<>Players!$B$4,"",IF(ISERROR(VLOOKUP($C6,GOY,4,FALSE)),"",VLOOKUP($C6,GOY,4,FALSE))) ->  | I6: =IF($I$2<>Players!$B$4,"",IF(ISERROR(VLOOKUP($C6,GOY,4,FALSE)),"",VLOOKUP($C6,GOY,4,FALSE))) ->  | J6: =IF($J$2<>Players!$B$4,"",IF(ISERROR(VLOOKUP($C6,GOY,4,FALSE)),"",VLOOKUP($C6,GOY,4,FALSE))) ->  | K6: =SUM($D6:$J6) -> 10
A7: T4 | B7: 5 | C7: Jones, Gary | G7: =IF($G$2<>Players!$B$4,"",IF(ISERROR(VLOOKUP($C7,GOY,4,FALSE)),"",VLOOKUP($C7,GOY,4,FALSE))) -> 10 | H7: =IF($H$2<>Players!$B$4,"",IF(ISERROR(VLOOKUP($C7,GOY,4,FALSE)),"",VLOOKUP($C7,GOY,4,FALSE))) ->  | I7: =IF($I$2<>Players!$B$4,"",IF(ISERROR(VLOOKUP($C7,GOY,4,FALSE)),"",VLOOKUP($C7,GOY,4,FALSE))) ->  | J7: =IF($J$2<>Players!$B$4,"",IF(ISERROR(VLOOKUP($C7,GOY,4,FALSE)),"",VLOOKUP($C7,GOY,4,FALSE))) ->  | K7: =SUM($D7:$J7) -> 10
A8: 6 | B8: 6 | C8: Escobedo, Hector | D8: 1.333333333 | E8: 5 | F8: 0.3333333333 | G8: =IF($G$2<>Players!$B$4,"",IF(ISERROR(VLOOKUP($C8,GOY,4,FALSE)),"",VLOOKUP($C8,GOY,4,FALSE))) ->  | H8: =IF($H$2<>Players!$B$4,"",IF(ISERROR(VLOOKUP($C8,GOY,4,FALSE)),"",VLOOKUP($C8,GOY,4,FALSE))) ->  | I8: =IF($I$2<>Players!$B$4,"",IF(ISERROR(VLOOKUP($C8,GOY,4,FALSE)),"",VLOOKUP($C8,GOY,4,FALSE))) ->  | J8: =IF($J$2<>Players!$B$4,"",IF(ISERROR(VLOOKUP($C8,GOY,4,FALSE)),"",VLOOKUP($C8,GOY,4,FALSE))) ->  | K8: =SUM($D8:$J8) -> 6.666666667
A9: T7 | B9: 7 | C9: Kozachenko, Jon | G9: =IF($G$2<>Players!$B$4,"",IF(ISERROR(VLOOKUP($C9,GOY,4,FALSE)),"",VLOOKUP($C9,GOY,4,FALSE))) -> 6 | H9: =IF($H$2<>Players!$B$4,"",IF(ISERROR(VLOOKUP($C9,GOY,4,FALSE)),"",VLOOKUP($C9,GOY,4,FALSE))) ->  | I9: =IF($I$2<>Players!$B$4,"",IF(ISERROR(VLOOKUP($C9,GOY,4,FALSE)),"",VLOOKUP($C9,GOY,4,FALSE))) ->  | J9: =IF($J$2<>Players!$B$4,"",IF(ISERROR(VLOOKUP($C9,GOY,4,FALSE)),"",VLOOKUP($C9,GOY,4,FALSE))) ->  | K9: =SUM($D9:$J9) -> 6
A10: T7 | B10: 8 | C10: Tenorio, Noe | G10: =IF($G$2<>Players!$B$4,"",IF(ISERROR(VLOOKUP($C10,GOY,4,FALSE)),"",VLOOKUP($C10,GOY,4,FALSE))) -> 6 | H10: =IF($H$2<>Players!$B$4,"",IF(ISERROR(VLOOKUP($C10,GOY,4,FALSE)),"",VLOOKUP($C10,GOY,4,FALSE))) ->  | I10: =IF($I$2<>Players!$B$4,"",IF(ISERROR(VLOOKUP($C10,GOY,4,FALSE)),"",VLOOKUP($C10,GOY,4,FALSE))) ->  | J10: =IF($J$2<>Players!$B$4,"",IF(ISERROR(VLOOKUP($C10,GOY,4,FALSE)),"",VLOOKUP($C10,GOY,4,FALSE))) ->  | K10: =SUM($D10:$J10) -> 6
A11: 9 | B11: 9 | C11: Ornelas, Eddie | D11: 5 | G11: =IF($G$2<>Players!$B$4,"",IF(ISERROR(VLOOKUP($C11,GOY,4,FALSE)),"",VLOOKUP($C11,GOY,4,FALSE))) ->  | H11: =IF($H$2<>Players!$B$4,"",IF(ISERROR(VLOOKUP($C11,GOY,4,FALSE)),"",VLOOKUP($C11,GOY,4,FALSE))) ->  | I11: =IF($I$2<>Players!$B$4,"",IF(ISERROR(VLOOKUP($C11,GOY,4,FALSE)),"",VLOOKUP($C11,GOY,4,FALSE))) ->  | J11: =IF($J$2<>Players!$B$4,"",IF(ISERROR(VLOOKUP($C11,GOY,4,FALSE)),"",VLOOKUP($C11,GOY,4,FALSE))) ->  | K11: =SUM($D11:$J11) -> 5
A12: 10 | B12: 10 | C12: Havstad, Steve | D12: 1.333333333 | F12: 0.3333333333 | G12: =IF($G$2<>Players!$B$4,"",IF(ISERROR(VLOOKUP($C12,GOY,4,FALSE)),"",VLOOKUP($C12,GOY,4,FALSE))) -> 2 | H12: =IF($H$2<>Players!$B$4,"",IF(ISERROR(VLOOKUP($C12,GOY,4,FALSE)),"",VLOOKUP($C12,GOY,4,FALSE))) ->  | I12: =IF($I$2<>Players!$B$4,"",IF(ISERROR(VLOOKUP($C12,GOY,4,FALSE)),"",VLOOKUP($C12,GOY,4,FALSE))) ->  | J12: =IF($J$2<>Players!$B$4,"",IF(ISERROR(VLOOKUP($C12,GOY,4,FALSE)),"",VLOOKUP($C12,GOY,4,FALSE))) ->  | K12: =SUM($D12:$J12) -> 3.666666667
A13: 11 | B13: 11 | C13: Matthews, Keith | G13: =IF($G$2<>Players!$B$4,"",IF(ISERROR(VLOOKUP($C13,GOY,4,FALSE)),"",VLOOKUP($C13,GOY,4,FALSE))) -> 2 | H13: =IF($H$2<>Players!$B$4,"",IF(ISERROR(VLOOKUP($C13,GOY,4,FALSE)),"",VLOOKUP($C13,GOY,4,FALSE))) ->  | I13: =IF($I$2<>Players!$B$4,"",IF(ISERROR(VLOOKUP($C13,GOY,4,FALSE)),"",VLOOKUP($C13,GOY,4,FALSE))) ->  | J13: =IF($J$2<>Players!$B$4,"",IF(ISERROR(VLOOKUP($C13,GOY,4,FALSE)),"",VLOOKUP($C13,GOY,4,FALSE))) ->  | K13: =SUM($D13:$J13) -> 2
A14: 12 | B14: 12 | C14: Mariano, Joe | D14: 1.333333333 | E14: 0.5 | G14: =IF($G$2<>Players!$B$4,"",IF(ISERROR(VLOOKUP($C14,GOY,4,FALSE)),"",VLOOKUP($C14,GOY,4,FALSE))) ->  | H14: =IF($H$2<>Players!$B$4,"",IF(ISERROR(VLOOKUP($C14,GOY,4,FALSE)),"",VLOOKUP($C14,GOY,4,FALSE))) ->  | I14: =IF($I$2<>Players!$B$4,"",IF(ISERROR(VLOOKUP($C14,GOY,4,FALSE)),"",VLOOKUP($C14,GOY,4,FALSE))) ->  | J14: =IF($J$2<>Players!$B$4,"",IF(ISERROR(VLOOKUP($C14,GOY,4,FALSE)),"",VLOOKUP($C14,GOY,4,FALSE))) ->  | K14: =SUM($D14:$J14) -> 1.833333333
A15: 13 | B15: 13 | C15: Medina, Randy | E15: 0.5 | G15: =IF($G$2<>Players!$B$4,"",IF(ISERROR(VLOOKUP($C15,GOY,4,FALSE)),"",VLOOKUP($C15,GOY,4,FALSE))) ->  | H15: =IF($H$2<>Players!$B$4,"",IF(ISERROR(VLOOKUP($C15,GOY,4,FALSE)),"",VLOOKUP($C15,GOY,4,FALSE))) ->  | I15: =IF($I$2<>Players!$B$4,"",IF(ISERROR(VLOOKUP($C15,GOY,4,FALSE)),"",VLOOKUP($C15,GOY,4,FALSE))) ->  | J15: =IF($J$2<>Players!$B$4,"",IF(ISERROR(VLOOKUP($C15,GOY,4,FALSE)),"",VLOOKUP($C15,GOY,4,FALSE))) ->  | K15: =SUM($D15:$J15) -> 0.5
A16: 14 | B16: 14 | C16: Mikschl, Tom | F16: 0.3333333333 | G16: =IF($G$2<>Players!$B$4,"",IF(ISERROR(VLOOKUP($C16,GOY,4,FALSE)),"",VLOOKUP($C16,GOY,4,FALSE))) ->  | H16: =IF($H$2<>Players!$B$4,"",IF(ISERROR(VLOOKUP($C16,GOY,4,FALSE)),"",VLOOKUP($C16,GOY,4,FALSE))) ->  | I16: =IF($I$2<>Players!$B$4,"",IF(ISERROR(VLOOKUP($C16,GOY,4,FALSE)),"",VLOOKUP($C16,GOY,4,FALSE))) ->  | J16: =IF($J$2<>Players!$B$4,"",IF(ISERROR(VLOOKUP($C16,GOY,4,FALSE)),"",VLOOKUP($C16,GOY,4,FALSE))) ->  | K16: =SUM($D16:$J16) -> 0.3333333333
A17: T15 | B17: 15 | C17: Aldrian, Mark | G17: =IF($G$2<>Players!$B$4,"",IF(ISERROR(VLOOKUP($C17,GOY,4,FALSE)),"",VLOOKUP($C17,GOY,4,FALSE))) ->  | H17: =IF($H$2<>Players!$B$4,"",IF(ISERROR(VLOOKUP($C17,GOY,4,FALSE)),"",VLOOKUP($C17,GOY,4,FALSE))) ->  | I17: =IF($I$2<>Players!$B$4,"",IF(ISERROR(VLOOKUP($C17,GOY,4,FALSE)),"",VLOOKUP($C17,GOY,4,FALSE))) ->  | J17: =IF($J$2<>Players!$B$4,"",IF(ISERROR(VLOOKUP($C17,GOY,4,FALSE)),"",VLOOKUP($C17,GOY,4,FALSE))) ->  | K17: =SUM($D17:$J17) -> 0
A18: T15 | B18: 16 | C18: Bateson, Brad | G18: =IF($G$2<>Players!$B$4,"",IF(ISERROR(VLOOKUP($C18,GOY,4,FALSE)),"",VLOOKUP($C18,GOY,4,FALSE))) ->  | H18: =IF($H$2<>Players!$B$4,"",IF(ISERROR(VLOOKUP($C18,GOY,4,FALSE)),"",VLOOKUP($C18,GOY,4,FALSE))) ->  | I18: =IF($I$2<>Players!$B$4,"",IF(ISERROR(VLOOKUP($C18,GOY,4,FALSE)),"",VLOOKUP($C18,GOY,4,FALSE))) ->  | J18: =IF($J$2<>Players!$B$4,"",IF(ISERROR(VLOOKUP($C18,GOY,4,FALSE)),"",VLOOKUP($C18,GOY,4,FALSE))) ->  | K18: =SUM($D18:$J18) -> 0
A19: T15 | B19: 17 | C19: Deutsch, Paul | G19: =IF($G$2<>Players!$B$4,"",IF(ISERROR(VLOOKUP($C19,GOY,4,FALSE)),"",VLOOKUP($C19,GOY,4,FALSE))) ->  | H19: =IF($H$2<>Players!$B$4,"",IF(ISERROR(VLOOKUP($C19,GOY,4,FALSE)),"",VLOOKUP($C19,GOY,4,FALSE))) ->  | I19: =IF($I$2<>Players!$B$4,"",IF(ISERROR(VLOOKUP($C19,GOY,4,FALSE)),"",VLOOKUP($C19,GOY,4,FALSE))) ->  | J19: =IF($J$2<>Players!$B$4,"",IF(ISERROR(VLOOKUP($C19,GOY,4,FALSE)),"",VLOOKUP($C19,GOY,4,FALSE))) ->  | K19: =SUM($D19:$J19) -> 0
A20: T15 | B20: 18 | C20: Doden, Jeff | G20: =IF($G$2<>Players!$B$4,"",IF(ISERROR(VLOOKUP($C20,GOY,4,FALSE)),"",VLOOKUP($C20,GOY,4,FALSE))) ->  | H20: =IF($H$2<>Players!$B$4,"",IF(ISERROR(VLOOKUP($C20,GOY,4,FALSE)),"",VLOOKUP($C20,GOY,4,FALSE))) ->  | I20: =IF($I$2<>Players!$B$4,"",IF(ISERROR(VLOOKUP($C20,GOY,4,FALSE)),"",VLOOKUP($C20,GOY,4,FALSE))) ->  | J20: =IF($J$2<>Players!$B$4,"",IF(ISERROR(VLOOKUP($C20,GOY,4,FALSE)),"",VLOOKUP($C20,GOY,4,FALSE))) ->  | K20: =SUM($D20:$J20) -> 0
A21: T15 | B21: 19 | C21: Forstot, Joshua | G21: =IF($G$2<>Players!$B$4,"",IF(ISERROR(VLOOKUP($C21,GOY,4,FALSE)),"",VLOOKUP($C21,GOY,4,FALSE))) ->  | H21: =IF($H$2<>Players!$B$4,"",IF(ISERROR(VLOOKUP($C21,GOY,4,FALSE)),"",VLOOKUP($C21,GOY,4,FALSE))) ->  | I21: =IF($I$2<>Players!$B$4,"",IF(ISERROR(VLOOKUP($C21,GOY,4,FALSE)),"",VLOOKUP($C21,GOY,4,FALSE))) ->  | J21: =IF($J$2<>Players!$B$4,"",IF(ISERROR(VLOOKUP($C21,GOY,4,FALSE)),"",VLOOKUP($C21,GOY,4,FALSE))) ->  | K21: =SUM($D21:$J21) -> 0
A22: T15 | B22: 20 | C22: Hammond, Rob | G22: =IF($G$2<>Players!$B$4,"",IF(ISERROR(VLOOKUP($C22,GOY,4,FALSE)),"",VLOOKUP($C22,GOY,4,FALSE))) ->  | H22: =IF($H$2<>Players!$B$4,"",IF(ISERROR(VLOOKUP($C22,GOY,4,FALSE)),"",VLOOKUP($C22,GOY,4,FALSE))) ->  | I22: =IF($I$2<>Players!$B$4,"",IF(ISERROR(VLOOKUP($C22,GOY,4,FALSE)),"",VLOOKUP($C22,GOY,4,FALSE))) ->  | J22: =IF($J$2<>Players!$B$4,"",IF(ISERROR(VLOOKUP($C22,GOY,4,FALSE)),"",VLOOKUP($C22,GOY,4,FALSE))) ->  | K22: =SUM($D22:$J22) -> 0
A23: T15 | B23: 21 | C23: Hart, Dave | G23: =IF($G$2<>Players!$B$4,"",IF(ISERROR(VLOOKUP($C23,GOY,4,FALSE)),"",VLOOKUP($C23,GOY,4,FALSE))) ->  | H23: =IF($H$2<>Players!$B$4,"",IF(ISERROR(VLOOKUP($C23,GOY,4,FALSE)),"",VLOOKUP($C23,GOY,4,FALSE))) ->  | I23: =IF($I$2<>Players!$B$4,"",IF(ISERROR(VLOOKUP($C23,GOY,4,FALSE)),"",VLOOKUP($C23,GOY,4,FALSE))) ->  | J23: =IF($J$2<>Players!$B$4,"",IF(ISERROR(VLOOKUP($C23,GOY,4,FALSE)),"",VLOOKUP($C23,GOY,4,FALSE))) ->  | K23: =SUM($D23:$J23) -> 0
A24: T15 | B24: 22 | C24: Havstad, Peter | G24: =IF($G$2<>Players!$B$4,"",IF(ISERROR(VLOOKUP($C24,GOY,4,FALSE)),"",VLOOKUP($C24,GOY,4,FALSE))) ->  | H24: =IF($H$2<>Players!$B$4,"",IF(ISERROR(VLOOKUP($C24,GOY,4,FALSE)),"",VLOOKUP($C24,GOY,4,FALSE))) ->  | I24: =IF($I$2<>Players!$B$4,"",IF(ISERROR(VLOOKUP($C24,GOY,4,FALSE)),"",VLOOKUP($C24,GOY,4,FALSE))) ->  | J24: =IF($J$2<>Players!$B$4,"",IF(ISERROR(VLOOKUP($C24,GOY,4,FALSE)),"",VLOOKUP($C24,GOY,4,FALSE))) ->  | K24: =SUM($D24:$J24) -> 0
A25: T15 | B25: 23 | C25: Holzrichter, Geoff | G25: =IF($G$2<>Players!$B$4,"",IF(ISERROR(VLOOKUP($C25,GOY,4,FALSE)),"",VLOOKUP($C25,GOY,4,FALSE))) ->  | H25: =IF($H$2<>Players!$B$4,"",IF(ISERROR(VLOOKUP($C25,GOY,4,FALSE)),"",VLOOKUP($C25,GOY,4,FALSE))) ->  | I25: =IF($I$2<>Players!$B$4,"",IF(ISERROR(VLOOKUP($C25,GOY,4,FALSE)),"",VLOOKUP($C25,GOY,4,FALSE))) ->  | J25: =IF($J$2<>Players!$B$4,"",IF(ISERROR(VLOOKUP($C25,GOY,4,FALSE)),"",VLOOKUP($C25,GOY,4,FALSE))) ->  | K25: =SUM($D25:$J25) -> 0
A26: T15 | B26: 24 | C26: Johnson, Carl | G26: =IF($G$2<>Players!$B$4,"",IF(ISERROR(VLOOKUP($C26,GOY,4,FALSE)),"",VLOOKUP($C26,GOY,4,FALSE))) ->  | H26: =IF($H$2<>Players!$B$4,"",IF(ISERROR(VLOOKUP($C26,GOY,4,FALSE)),"",VLOOKUP($C26,GOY,4,FALSE))) ->  | I26: =IF($I$2<>Players!$B$4,"",IF(ISERROR(VLOOKUP($C26,GOY,4,FALSE)),"",VLOOKUP($C26,GOY,4,FALSE))) ->  | J26: =IF($J$2<>Players!$B$4,"",IF(ISERROR(VLOOKUP($C26,GOY,4,FALSE)),"",VLOOKUP($C26,GOY,4,FALSE))) ->  | K26: =SUM($D26:$J26) -> 0
A27: T15 | B27: 25 | C27: Lujan, Fil | G27: =IF($G$2<>Players!$B$4,"",IF(ISERROR(VLOOKUP($C27,GOY,4,FALSE)),"",VLOOKUP($C27,GOY,4,FALSE))) ->  | H27: =IF($H$2<>Players!$B$4,"",IF(ISERROR(VLOOKUP($C27,GOY,4,FALSE)),"",VLOOKUP($C27,GOY,4,FALSE))) ->  | I27: =IF($I$2<>Players!$B$4,"",IF(ISERROR(VLOOKUP($C27,GOY,4,FALSE)),"",VLOOKUP($C27,GOY,4,FALSE))) ->  | J27: =IF($J$2<>Players!$B$4,"",IF(ISERROR(VLOOKUP($C27,GOY,4,FALSE)),"",VLOOKUP($C27,GOY,4,FALSE))) ->  | K27: =SUM($D27:$J27) -> 0
A28: T15 | B28: 26 | C28: Montgomery, Andy | G28: =IF($G$2<>Players!$B$4,"",IF(ISERROR(VLOOKUP($C28,GOY,4,FALSE)),"",VLOOKUP($C28,GOY,4,FALSE))) ->  | H28: =IF($H$2<>Players!$B$4,"",IF(ISERROR(VLOOKUP($C28,GOY,4,FALSE)),"",VLOOKUP($C28,GOY,4,FALSE))) ->  | I28: =IF($I$2<>Players!$B$4,"",IF(ISERROR(VLOOKUP($C28,GOY,4,FALSE)),"",VLOOKUP($C28,GOY,4,FALSE))) ->  | J28: =IF($J$2<>Players!$B$4,"",IF(ISERROR(VLOOKUP($C28,GOY,4,FALSE)),"",VLOOKUP($C28,GOY,4,FALSE))) ->  | K28: =SUM($D28:$J28) -> 0
A29: T15 | B29: 27 | C29: Nagel, Rich | G29: =IF($G$2<>Players!$B$4,"",IF(ISERROR(VLOOKUP($C29,GOY,4,FALSE)),"",VLOOKUP($C29,GOY,4,FALSE))) ->  | H29: =IF($H$2<>Players!$B$4,"",IF(ISERROR(VLOOKUP($C29,GOY,4,FALSE)),"",VLOOKUP($C29,GOY,4,FALSE))) ->  | I29: =IF($I$2<>Players!$B$4,"",IF(ISERROR(VLOOKUP($C29,GOY,4,FALSE)),"",VLOOKUP($C29,GOY,4,FALSE))) ->  | J29: =IF($J$2<>Players!$B$4,"",IF(ISERROR(VLOOKUP($C29,GOY,4,FALSE)),"",VLOOKUP($C29,GOY,4,FALSE))) ->  | K29: =SUM($D29:$J29) -> 0
A30: T15 | B30: 28 | C30: Poyar, Bob | G30: =IF($G$2<>Players!$B$4,"",IF(ISERROR(VLOOKUP($C30,GOY,4,FALSE)),"",VLOOKUP($C30,GOY,4,FALSE))) ->  | H30: =IF($H$2<>Players!$B$4,"",IF(ISERROR(VLOOKUP($C30,GOY,4,FALSE)),"",VLOOKUP($C30,GOY,4,FALSE))) ->  | I30: =IF($I$2<>Players!$B$4,"",IF(ISERROR(VLOOKUP($C30,GOY,4,FALSE)),"",VLOOKUP($C30,GOY,4,FALSE))) ->  | J30: =IF($J$2<>Players!$B$4,"",IF(ISERROR(VLOOKUP($C30,GOY,4,FALSE)),"",VLOOKUP($C30,GOY,4,FALSE))) ->  | K30: =SUM($D30:$J30) -> 0
A31: T15 | B31: 29 | C31: Rojes, Ray | G31: =IF($G$2<>Players!$B$4,"",IF(ISERROR(VLOOKUP($C31,GOY,4,FALSE)),"",VLOOKUP($C31,GOY,4,FALSE))) ->  | H31: =IF($H$2<>Players!$B$4,"",IF(ISERROR(VLOOKUP($C31,GOY,4,FALSE)),"",VLOOKUP($C31,GOY,4,FALSE))) ->  | I31: =IF($I$2<>Players!$B$4,"",IF(ISERROR(VLOOKUP($C31,GOY,4,FALSE)),"",VLOOKUP($C31,GOY,4,FALSE))) ->  | J31: =IF($J$2<>Players!$B$4,"",IF(ISERROR(VLOOKUP($C31,GOY,4,FALSE)),"",VLOOKUP($C31,GOY,4,FALSE))) ->  | K31: =SUM($D31:$J31) -> 0
A32: T15 | B32: 30 | C32: Salinas, Frank | G32: =IF($G$2<>Players!$B$4,"",IF(ISERROR(VLOOKUP($C32,GOY,4,FALSE)),"",VLOOKUP($C32,GOY,4,FALSE))) ->  | H32: =IF($H$2<>Players!$B$4,"",IF(ISERROR(VLOOKUP($C32,GOY,4,FALSE)),"",VLOOKUP($C32,GOY,4,FALSE))) ->  | I32: =IF($I$2<>Players!$B$4,"",IF(ISERROR(VLOOKUP($C32,GOY,4,FALSE)),"",VLOOKUP($C32,GOY,4,FALSE))) ->  | J32: =IF($J$2<>Players!$B$4,"",IF(ISERROR(VLOOKUP($C32,GOY,4,FALSE)),"",VLOOKUP($C32,GOY,4,FALSE))) ->  | K32: =SUM($D32:$J32) -> 0
A33: T15 | B33: 31 | C33: Thompson, Dan | G33: =IF($G$2<>Players!$B$4,"",IF(ISERROR(VLOOKUP($C33,GOY,4,FALSE)),"",VLOOKUP($C33,GOY,4,FALSE))) ->  | H33: =IF($H$2<>Players!$B$4,"",IF(ISERROR(VLOOKUP($C33,GOY,4,FALSE)),"",VLOOKUP($C33,GOY,4,FALSE))) ->  | I33: =IF($I$2<>Players!$B$4,"",IF(ISERROR(VLOOKUP($C33,GOY,4,FALSE)),"",VLOOKUP($C33,GOY,4,FALSE))) ->  | J33: =IF($J$2<>Players!$B$4,"",IF(ISERROR(VLOOKUP($C33,GOY,4,FALSE)),"",VLOOKUP($C33,GOY,4,FALSE))) ->  | K33: =SUM($D33:$J33) -> 0
A34: T15 | B34: 32 | D34: =IF($D$2<>Players!$B$4,"",IF(ISERROR(VLOOKUP($C34,GOY,4,FALSE)),"",VLOOKUP($C34,GOY,4,FALSE))) ->  | E34: =IF($E$2<>Players!$B$4,"",IF(ISERROR(VLOOKUP($C34,GOY,4,FALSE)),"",VLOOKUP($C34,GOY,4,FALSE))) ->  | F34: =IF($F$2<>Players!$B$4,"",IF(ISERROR(VLOOKUP($C34,GOY,4,FALSE)),"",VLOOKUP($C34,GOY,4,FALSE))) ->  | G34: =IF($G$2<>Players!$B$4,"",IF(ISERROR(VLOOKUP($C34,GOY,4,FALSE)),"",VLOOKUP($C34,GOY,4,FALSE))) ->  | H34: =IF($H$2<>Players!$B$4,"",IF(ISERROR(VLOOKUP($C34,GOY,4,FALSE)),"",VLOOKUP($C34,GOY,4,FALSE))) ->  | I34: =IF($I$2<>Players!$B$4,"",IF(ISERROR(VLOOKUP($C34,GOY,4,FALSE)),"",VLOOKUP($C34,GOY,4,FALSE))) ->  | J34: =IF($J$2<>Players!$B$4,"",IF(ISERROR(VLOOKUP($C34,GOY,4,FALSE)),"",VLOOKUP($C34,GOY,4,FALSE))) ->  | K34: =SUM($D34:$J34) -> 0
A35: T15 | B35: 33 | D35: =IF($D$2<>Players!$B$4,"",IF(ISERROR(VLOOKUP($C35,GOY,4,FALSE)),"",VLOOKUP($C35,GOY,4,FALSE))) ->  | E35: =IF($E$2<>Players!$B$4,"",IF(ISERROR(VLOOKUP($C35,GOY,4,FALSE)),"",VLOOKUP($C35,GOY,4,FALSE))) ->  | F35: =IF($F$2<>Players!$B$4,"",IF(ISERROR(VLOOKUP($C35,GOY,4,FALSE)),"",VLOOKUP($C35,GOY,4,FALSE))) ->  | G35: =IF($G$2<>Players!$B$4,"",IF(ISERROR(VLOOKUP($C35,GOY,4,FALSE)),"",VLOOKUP($C35,GOY,4,FALSE))) ->  | H35: =IF($H$2<>Players!$B$4,"",IF(ISERROR(VLOOKUP($C35,GOY,4,FALSE)),"",VLOOKUP($C35,GOY,4,FALSE))) ->  | I35: =IF($I$2<>Players!$B$4,"",IF(ISERROR(VLOOKUP($C35,GOY,4,FALSE)),"",VLOOKUP($C35,GOY,4,FALSE))) ->  | J35: =IF($J$2<>Players!$B$4,"",IF(ISERROR(VLOOKUP($C35,GOY,4,FALSE)),"",VLOOKUP($C35,GOY,4,FALSE))) ->  | K35: =SUM($D35:$J35) -> 0
A36: T15 | B36: 34 | D36: =IF($D$2<>Players!$B$4,"",IF(ISERROR(VLOOKUP($C36,GOY,4,FALSE)),"",VLOOKUP($C36,GOY,4,FALSE))) ->  | E36: =IF($E$2<>Players!$B$4,"",IF(ISERROR(VLOOKUP($C36,GOY,4,FALSE)),"",VLOOKUP($C36,GOY,4,FALSE))) ->  | F36: =IF($F$2<>Players!$B$4,"",IF(ISERROR(VLOOKUP($C36,GOY,4,FALSE)),"",VLOOKUP($C36,GOY,4,FALSE))) ->  | G36: =IF($G$2<>Players!$B$4,"",IF(ISERROR(VLOOKUP($C36,GOY,4,FALSE)),"",VLOOKUP($C36,GOY,4,FALSE))) ->  | H36: =IF($H$2<>Players!$B$4,"",IF(ISERROR(VLOOKUP($C36,GOY,4,FALSE)),"",VLOOKUP($C36,GOY,4,FALSE))) ->  | I36: =IF($I$2<>Players!$B$4,"",IF(ISERROR(VLOOKUP($C36,GOY,4,FALSE)),"",VLOOKUP($C36,GOY,4,FALSE))) ->  | J36: =IF($J$2<>Players!$B$4,"",IF(ISERROR(VLOOKUP($C36,GOY,4,FALSE)),"",VLOOKUP($C36,GOY,4,FALSE))) ->  | K36: =SUM($D36:$J36) -> 0
A37: T15 | B37: 35 | D37: =IF($D$2<>Players!$B$4,"",IF(ISERROR(VLOOKUP($C37,GOY,4,FALSE)),"",VLOOKUP($C37,GOY,4,FALSE))) ->  | E37: =IF($E$2<>Players!$B$4,"",IF(ISERROR(VLOOKUP($C37,GOY,4,FALSE)),"",VLOOKUP($C37,GOY,4,FALSE))) ->  | F37: =IF($F$2<>Players!$B$4,"",IF(ISERROR(VLOOKUP($C37,GOY,4,FALSE)),"",VLOOKUP($C37,GOY,4,FALSE))) ->  | G37: =IF($G$2<>Players!$B$4,"",IF(ISERROR(VLOOKUP($C37,GOY,4,FALSE)),"",VLOOKUP($C37,GOY,4,FALSE))) ->  | H37: =IF($H$2<>Players!$B$4,"",IF(ISERROR(VLOOKUP($C37,GOY,4,FALSE)),"",VLOOKUP($C37,GOY,4,FALSE))) ->  | I37: =IF($I$2<>Players!$B$4,"",IF(ISERROR(VLOOKUP($C37,GOY,4,FALSE)),"",VLOOKUP($C37,GOY,4,FALSE))) ->  | J37: =IF($J$2<>Players!$B$4,"",IF(ISERROR(VLOOKUP($C37,GOY,4,FALSE)),"",VLOOKUP($C37,GOY,4,FALSE))) ->  | K37: =SUM($D37:$J37) -> 0
A38: T15 | B38: 36 | D38: =IF($D$2<>Players!$B$4,"",IF(ISERROR(VLOOKUP($C38,GOY,4,FALSE)),"",VLOOKUP($C38,GOY,4,FALSE))) ->  | E38: =IF($E$2<>Players!$B$4,"",IF(ISERROR(VLOOKUP($C38,GOY,4,FALSE)),"",VLOOKUP($C38,GOY,4,FALSE))) ->  | F38: =IF($F$2<>Players!$B$4,"",IF(ISERROR(VLOOKUP($C38,GOY,4,FALSE)),"",VLOOKUP($C38,GOY,4,FALSE))) ->  | G38: =IF($G$2<>Players!$B$4,"",IF(ISERROR(VLOOKUP($C38,GOY,4,FALSE)),"",VLOOKUP($C38,GOY,4,FALSE))) ->  | H38: =IF($H$2<>Players!$B$4,"",IF(ISERROR(VLOOKUP($C38,GOY,4,FALSE)),"",VLOOKUP($C38,GOY,4,FALSE))) ->  | I38: =IF($I$2<>Players!$B$4,"",IF(ISERROR(VLOOKUP($C38,GOY,4,FALSE)),"",VLOOKUP($C38,GOY,4,FALSE))) ->  | J38: =IF($J$2<>Players!$B$4,"",IF(ISERROR(VLOOKUP($C38,GOY,4,FALSE)),"",VLOOKUP($C38,GOY,4,FALSE))) ->  | K38: =SUM($D38:$J38) -> 0
A39: T15 | B39: 37 | D39: =IF($D$2<>Players!$B$4,"",IF(ISERROR(VLOOKUP($C39,GOY,4,FALSE)),"",VLOOKUP($C39,GOY,4,FALSE))) ->  | E39: =IF($E$2<>Players!$B$4,"",IF(ISERROR(VLOOKUP($C39,GOY,4,FALSE)),"",VLOOKUP($C39,GOY,4,FALSE))) ->  | F39: =IF($F$2<>Players!$B$4,"",IF(ISERROR(VLOOKUP($C39,GOY,4,FALSE)),"",VLOOKUP($C39,GOY,4,FALSE))) ->  | G39: =IF($G$2<>Players!$B$4,"",IF(ISERROR(VLOOKUP($C39,GOY,4,FALSE)),"",VLOOKUP($C39,GOY,4,FALSE))) ->  | H39: =IF($H$2<>Players!$B$4,"",IF(ISERROR(VLOOKUP($C39,GOY,4,FALSE)),"",VLOOKUP($C39,GOY,4,FALSE))) ->  | I39: =IF($I$2<>Players!$B$4,"",IF(ISERROR(VLOOKUP($C39,GOY,4,FALSE)),"",VLOOKUP($C39,GOY,4,FALSE))) ->  | J39: =IF($J$2<>Players!$B$4,"",IF(ISERROR(VLOOKUP($C39,GOY,4,FALSE)),"",VLOOKUP($C39,GOY,4,FALSE))) ->  | K39: =SUM($D39:$J39) -> 0
A40: T15 | B40: 38 | D40: =IF($D$2<>Players!$B$4,"",IF(ISERROR(VLOOKUP($C40,GOY,4,FALSE)),"",VLOOKUP($C40,GOY,4,FALSE))) ->  | E40: =IF($E$2<>Players!$B$4,"",IF(ISERROR(VLOOKUP($C40,GOY,4,FALSE)),"",VLOOKUP($C40,GOY,4,FALSE))) ->  | F40: =IF($F$2<>Players!$B$4,"",IF(ISERROR(VLOOKUP($C40,GOY,4,FALSE)),"",VLOOKUP($C40,GOY,4,FALSE))) ->  | G40: =IF($G$2<>Players!$B$4,"",IF(ISERROR(VLOOKUP($C40,GOY,4,FALSE)),"",VLOOKUP($C40,GOY,4,FALSE))) ->  | H40: =IF($H$2<>Players!$B$4,"",IF(ISERROR(VLOOKUP($C40,GOY,4,FALSE)),"",VLOOKUP($C40,GOY,4,FALSE))) ->  | I40: =IF($I$2<>Players!$B$4,"",IF(ISERROR(VLOOKUP($C40,GOY,4,FALSE)),"",VLOOKUP($C40,GOY,4,FALSE))) ->  | J40: =IF($J$2<>Players!$B$4,"",IF(ISERROR(VLOOKUP($C40,GOY,4,FALSE)),"",VLOOKUP($C40,GOY,4,FALSE))) ->  | K40: =SUM($D40:$J40) -> 0
A41: T15 | B41: 39 | D41: =IF($D$2<>Players!$B$4,"",IF(ISERROR(VLOOKUP($C41,GOY,4,FALSE)),"",VLOOKUP($C41,GOY,4,FALSE))) ->  | E41: =IF($E$2<>Players!$B$4,"",IF(ISERROR(VLOOKUP($C41,GOY,4,FALSE)),"",VLOOKUP($C41,GOY,4,FALSE))) ->  | F41: =IF($F$2<>Players!$B$4,"",IF(ISERROR(VLOOKUP($C41,GOY,4,FALSE)),"",VLOOKUP($C41,GOY,4,FALSE))) ->  | G41: =IF($G$2<>Players!$B$4,"",IF(ISERROR(VLOOKUP($C41,GOY,4,FALSE)),"",VLOOKUP($C41,GOY,4,FALSE))) ->  | H41: =IF($H$2<>Players!$B$4,"",IF(ISERROR(VLOOKUP($C41,GOY,4,FALSE)),"",VLOOKUP($C41,GOY,4,FALSE))) ->  | I41: =IF($I$2<>Players!$B$4,"",IF(ISERROR(VLOOKUP($C41,GOY,4,FALSE)),"",VLOOKUP($C41,GOY,4,FALSE))) ->  | J41: =IF($J$2<>Players!$B$4,"",IF(ISERROR(VLOOKUP($C41,GOY,4,FALSE)),"",VLOOKUP($C41,GOY,4,FALSE))) ->  | K41: =SUM($D41:$J41) -> 0
A42: T15 | B42: 40 | D42: =IF($D$2<>Players!$B$4,"",IF(ISERROR(VLOOKUP($C42,GOY,4,FALSE)),"",VLOOKUP($C42,GOY,4,FALSE))) ->  | E42: =IF($E$2<>Players!$B$4,"",IF(ISERROR(VLOOKUP($C42,GOY,4,FALSE)),"",VLOOKUP($C42,GOY,4,FALSE))) ->  | F42: =IF($F$2<>Players!$B$4,"",IF(ISERROR(VLOOKUP($C42,GOY,4,FALSE)),"",VLOOKUP($C42,GOY,4,FALSE))) ->  | G42: =IF($G$2<>Players!$B$4,"",IF(ISERROR(VLOOKUP($C42,GOY,4,FALSE)),"",VLOOKUP($C42,GOY,4,FALSE))) ->  | H42: =IF($H$2<>Players!$B$4,"",IF(ISERROR(VLOOKUP($C42,GOY,4,FALSE)),"",VLOOKUP($C42,GOY,4,FALSE))) ->  | I42: =IF($I$2<>Players!$B$4,"",IF(ISERROR(VLOOKUP($C42,GOY,4,FALSE)),"",VLOOKUP($C42,GOY,4,FALSE))) ->  | J42: =IF($J$2<>Players!$B$4,"",IF(ISERROR(VLOOKUP($C42,GOY,4,FALSE)),"",VLOOKUP($C42,GOY,4,FALSE))) ->  | K42: =SUM($D42:$J42) -> 0
A43: T15 | B43: 41 | D43: =IF($D$2<>Players!$B$4,"",IF(ISERROR(VLOOKUP($C43,GOY,4,FALSE)),"",VLOOKUP($C43,GOY,4,FALSE))) ->  | E43: =IF($E$2<>Players!$B$4,"",IF(ISERROR(VLOOKUP($C43,GOY,4,FALSE)),"",VLOOKUP($C43,GOY,4,FALSE))) ->  | F43: =IF($F$2<>Players!$B$4,"",IF(ISERROR(VLOOKUP($C43,GOY,4,FALSE)),"",VLOOKUP($C43,GOY,4,FALSE))) ->  | G43: =IF($G$2<>Players!$B$4,"",IF(ISERROR(VLOOKUP($C43,GOY,4,FALSE)),"",VLOOKUP($C43,GOY,4,FALSE))) ->  | H43: =IF($H$2<>Players!$B$4,"",IF(ISERROR(VLOOKUP($C43,GOY,4,FALSE)),"",VLOOKUP($C43,GOY,4,FALSE))) ->  | I43: =IF($I$2<>Players!$B$4,"",IF(ISERROR(VLOOKUP($C43,GOY,4,FALSE)),"",VLOOKUP($C43,GOY,4,FALSE))) ->  | J43: =IF($J$2<>Players!$B$4,"",IF(ISERROR(VLOOKUP($C43,GOY,4,FALSE)),"",VLOOKUP($C43,GOY,4,FALSE))) ->  | K43: =SUM($D43:$J43) -> 0
A44: T15 | B44: 42 | D44: =IF($D$2<>Players!$B$4,"",IF(ISERROR(VLOOKUP($C44,GOY,4,FALSE)),"",VLOOKUP($C44,GOY,4,FALSE))) ->  | E44: =IF($E$2<>Players!$B$4,"",IF(ISERROR(VLOOKUP($C44,GOY,4,FALSE)),"",VLOOKUP($C44,GOY,4,FALSE))) ->  | F44: =IF($F$2<>Players!$B$4,"",IF(ISERROR(VLOOKUP($C44,GOY,4,FALSE)),"",VLOOKUP($C44,GOY,4,FALSE))) ->  | G44: =IF($G$2<>Players!$B$4,"",IF(ISERROR(VLOOKUP($C44,GOY,4,FALSE)),"",VLOOKUP($C44,GOY,4,FALSE))) ->  | H44: =IF($H$2<>Players!$B$4,"",IF(ISERROR(VLOOKUP($C44,GOY,4,FALSE)),"",VLOOKUP($C44,GOY,4,FALSE))) ->  | I44: =IF($I$2<>Players!$B$4,"",IF(ISERROR(VLOOKUP($C44,GOY,4,FALSE)),"",VLOOKUP($C44,GOY,4,FALSE))) ->  | J44: =IF($J$2<>Players!$B$4,"",IF(ISERROR(VLOOKUP($C44,GOY,4,FALSE)),"",VLOOKUP($C44,GOY,4,FALSE))) ->  | K44: =SUM($D44:$J44) -> 0
A45: T15 | B45: 43 | D45: =IF($D$2<>Players!$B$4,"",IF(ISERROR(VLOOKUP($C45,GOY,4,FALSE)),"",VLOOKUP($C45,GOY,4,FALSE))) ->  | E45: =IF($E$2<>Players!$B$4,"",IF(ISERROR(VLOOKUP($C45,GOY,4,FALSE)),"",VLOOKUP($C45,GOY,4,FALSE))) ->  | F45: =IF($F$2<>Players!$B$4,"",IF(ISERROR(VLOOKUP($C45,GOY,4,FALSE)),"",VLOOKUP($C45,GOY,4,FALSE))) ->  | G45: =IF($G$2<>Players!$B$4,"",IF(ISERROR(VLOOKUP($C45,GOY,4,FALSE)),"",VLOOKUP($C45,GOY,4,FALSE))) ->  | H45: =IF($H$2<>Players!$B$4,"",IF(ISERROR(VLOOKUP($C45,GOY,4,FALSE)),"",VLOOKUP($C45,GOY,4,FALSE))) ->  | I45: =IF($I$2<>Players!$B$4,"",IF(ISERROR(VLOOKUP($C45,GOY,4,FALSE)),"",VLOOKUP($C45,GOY,4,FALSE))) ->  | J45: =IF($J$2<>Players!$B$4,"",IF(ISERROR(VLOOKUP($C45,GOY,4,FALSE)),"",VLOOKUP($C45,GOY,4,FALSE))) ->  | K45: =SUM($D45:$J45) -> 0
A46: T15 | B46: 44 | D46: =IF($D$2<>Players!$B$4,"",IF(ISERROR(VLOOKUP($C46,GOY,4,FALSE)),"",VLOOKUP($C46,GOY,4,FALSE))) ->  | E46: =IF($E$2<>Players!$B$4,"",IF(ISERROR(VLOOKUP($C46,GOY,4,FALSE)),"",VLOOKUP($C46,GOY,4,FALSE))) ->  | F46: =IF($F$2<>Players!$B$4,"",IF(ISERROR(VLOOKUP($C46,GOY,4,FALSE)),"",VLOOKUP($C46,GOY,4,FALSE))) ->  | G46: =IF($G$2<>Players!$B$4,"",IF(ISERROR(VLOOKUP($C46,GOY,4,FALSE)),"",VLOOKUP($C46,GOY,4,FALSE))) ->  | H46: =IF($H$2<>Players!$B$4,"",IF(ISERROR(VLOOKUP($C46,GOY,4,FALSE)),"",VLOOKUP($C46,GOY,4,FALSE))) ->  | I46: =IF($I$2<>Players!$B$4,"",IF(ISERROR(VLOOKUP($C46,GOY,4,FALSE)),"",VLOOKUP($C46,GOY,4,FALSE))) ->  | J46: =IF($J$2<>Players!$B$4,"",IF(ISERROR(VLOOKUP($C46,GOY,4,FALSE)),"",VLOOKUP($C46,GOY,4,FALSE))) ->  | K46: =SUM($D46:$J46) -> 0
A47: T15 | B47: 45 | D47: =IF($D$2<>Players!$B$4,"",IF(ISERROR(VLOOKUP($C47,GOY,4,FALSE)),"",VLOOKUP($C47,GOY,4,FALSE))) ->  | E47: =IF($E$2<>Players!$B$4,"",IF(ISERROR(VLOOKUP($C47,GOY,4,FALSE)),"",VLOOKUP($C47,GOY,4,FALSE))) ->  | F47: =IF($F$2<>Players!$B$4,"",IF(ISERROR(VLOOKUP($C47,GOY,4,FALSE)),"",VLOOKUP($C47,GOY,4,FALSE))) ->  | G47: =IF($G$2<>Players!$B$4,"",IF(ISERROR(VLOOKUP($C47,GOY,4,FALSE)),"",VLOOKUP($C47,GOY,4,FALSE))) ->  | H47: =IF($H$2<>Players!$B$4,"",IF(ISERROR(VLOOKUP($C47,GOY,4,FALSE)),"",VLOOKUP($C47,GOY,4,FALSE))) ->  | I47: =IF($I$2<>Players!$B$4,"",IF(ISERROR(VLOOKUP($C47,GOY,4,FALSE)),"",VLOOKUP($C47,GOY,4,FALSE))) ->  | J47: =IF($J$2<>Players!$B$4,"",IF(ISERROR(VLOOKUP($C47,GOY,4,FALSE)),"",VLOOKUP($C47,GOY,4,FALSE))) ->  | K47: =SUM($D47:$J47) -> 0
A48: T15 | B48: 46 | D48: =IF($D$2<>Players!$B$4,"",IF(ISERROR(VLOOKUP($C48,GOY,4,FALSE)),"",VLOOKUP($C48,GOY,4,FALSE))) ->  | E48: =IF($E$2<>Players!$B$4,"",IF(ISERROR(VLOOKUP($C48,GOY,4,FALSE)),"",VLOOKUP($C48,GOY,4,FALSE))) ->  | F48: =IF($F$2<>Players!$B$4,"",IF(ISERROR(VLOOKUP($C48,GOY,4,FALSE)),"",VLOOKUP($C48,GOY,4,FALSE))) ->  | G48: =IF($G$2<>Players!$B$4,"",IF(ISERROR(VLOOKUP($C48,GOY,4,FALSE)),"",VLOOKUP($C48,GOY,4,FALSE))) ->  | H48: =IF($H$2<>Players!$B$4,"",IF(ISERROR(VLOOKUP($C48,GOY,4,FALSE)),"",VLOOKUP($C48,GOY,4,FALSE))) ->  | I48: =IF($I$2<>Players!$B$4,"",IF(ISERROR(VLOOKUP($C48,GOY,4,FALSE)),"",VLOOKUP($C48,GOY,4,FALSE))) ->  | J48: =IF($J$2<>Players!$B$4,"",IF(ISERROR(VLOOKUP($C48,GOY,4,FALSE)),"",VLOOKUP($C48,GOY,4,FALSE))) ->  | K48: =SUM($D48:$J48) -> 0
A49: T15 | B49: 47 | D49: =IF($D$2<>Players!$B$4,"",IF(ISERROR(VLOOKUP($C49,GOY,4,FALSE)),"",VLOOKUP($C49,GOY,4,FALSE))) ->  | E49: =IF($E$2<>Players!$B$4,"",IF(ISERROR(VLOOKUP($C49,GOY,4,FALSE)),"",VLOOKUP($C49,GOY,4,FALSE))) ->  | F49: =IF($F$2<>Players!$B$4,"",IF(ISERROR(VLOOKUP($C49,GOY,4,FALSE)),"",VLOOKUP($C49,GOY,4,FALSE))) ->  | G49: =IF($G$2<>Players!$B$4,"",IF(ISERROR(VLOOKUP($C49,GOY,4,FALSE)),"",VLOOKUP($C49,GOY,4,FALSE))) ->  | H49: =IF($H$2<>Players!$B$4,"",IF(ISERROR(VLOOKUP($C49,GOY,4,FALSE)),"",VLOOKUP($C49,GOY,4,FALSE))) ->  | I49: =IF($I$2<>Players!$B$4,"",IF(ISERROR(VLOOKUP($C49,GOY,4,FALSE)),"",VLOOKUP($C49,GOY,4,FALSE))) ->  | J49: =IF($J$2<>Players!$B$4,"",IF(ISERROR(VLOOKUP($C49,GOY,4,FALSE)),"",VLOOKUP($C49,GOY,4,FALSE))) ->  | K49: =SUM($D49:$J49) -> 0
A50: T15 | B50: 48 | D50: =IF($D$2<>Players!$B$4,"",IF(ISERROR(VLOOKUP($C50,GOY,4,FALSE)),"",VLOOKUP($C50,GOY,4,FALSE))) ->  | E50: =IF($E$2<>Players!$B$4,"",IF(ISERROR(VLOOKUP($C50,GOY,4,FALSE)),"",VLOOKUP($C50,GOY,4,FALSE))) ->  | F50: =IF($F$2<>Players!$B$4,"",IF(ISERROR(VLOOKUP($C50,GOY,4,FALSE)),"",VLOOKUP($C50,GOY,4,FALSE))) ->  | G50: =IF($G$2<>Players!$B$4,"",IF(ISERROR(VLOOKUP($C50,GOY,4,FALSE)),"",VLOOKUP($C50,GOY,4,FALSE))) ->  | H50: =IF($H$2<>Players!$B$4,"",IF(ISERROR(VLOOKUP($C50,GOY,4,FALSE)),"",VLOOKUP($C50,GOY,4,FALSE))) ->  | I50: =IF($I$2<>Players!$B$4,"",IF(ISERROR(VLOOKUP($C50,GOY,4,FALSE)),"",VLOOKUP($C50,GOY,4,FALSE))) ->  | J50: =IF($J$2<>Players!$B$4,"",IF(ISERROR(VLOOKUP($C50,GOY,4,FALSE)),"",VLOOKUP($C50,GOY,4,FALSE))) ->  | K50: =SUM($D50:$J50) -> 0
A51: T15 | B51: 49 | D51: =IF($D$2<>Players!$B$4,"",IF(ISERROR(VLOOKUP($C51,GOY,4,FALSE)),"",VLOOKUP($C51,GOY,4,FALSE))) ->  | E51: =IF($E$2<>Players!$B$4,"",IF(ISERROR(VLOOKUP($C51,GOY,4,FALSE)),"",VLOOKUP($C51,GOY,4,FALSE))) ->  | F51: =IF($F$2<>Players!$B$4,"",IF(ISERROR(VLOOKUP($C51,GOY,4,FALSE)),"",VLOOKUP($C51,GOY,4,FALSE))) ->  | G51: =IF($G$2<>Players!$B$4,"",IF(ISERROR(VLOOKUP($C51,GOY,4,FALSE)),"",VLOOKUP($C51,GOY,4,FALSE))) ->  | H51: =IF($H$2<>Players!$B$4,"",IF(ISERROR(VLOOKUP($C51,GOY,4,FALSE)),"",VLOOKUP($C51,GOY,4,FALSE))) ->  | I51: =IF($I$2<>Players!$B$4,"",IF(ISERROR(VLOOKUP($C51,GOY,4,FALSE)),"",VLOOKUP($C51,GOY,4,FALSE))) ->  | J51: =IF($J$2<>Players!$B$4,"",IF(ISERROR(VLOOKUP($C51,GOY,4,FALSE)),"",VLOOKUP($C51,GOY,4,FALSE))) ->  | K51: =SUM($D51:$J51) -> 0
A52: T15 | B52: 50 | D52: =IF($D$2<>Players!$B$4,"",IF(ISERROR(VLOOKUP($C52,GOY,4,FALSE)),"",VLOOKUP($C52,GOY,4,FALSE))) ->  | E52: =IF($E$2<>Players!$B$4,"",IF(ISERROR(VLOOKUP($C52,GOY,4,FALSE)),"",VLOOKUP($C52,GOY,4,FALSE))) ->  | F52: =IF($F$2<>Players!$B$4,"",IF(ISERROR(VLOOKUP($C52,GOY,4,FALSE)),"",VLOOKUP($C52,GOY,4,FALSE))) ->  | G52: =IF($G$2<>Players!$B$4,"",IF(ISERROR(VLOOKUP($C52,GOY,4,FALSE)),"",VLOOKUP($C52,GOY,4,FALSE))) ->  | H52: =IF($H$2<>Players!$B$4,"",IF(ISERROR(VLOOKUP($C52,GOY,4,FALSE)),"",VLOOKUP($C52,GOY,4,FALSE))) ->  | I52: =IF($I$2<>Players!$B$4,"",IF(ISERROR(VLOOKUP($C52,GOY,4,FALSE)),"",VLOOKUP($C52,GOY,4,FALSE))) ->  | J52: =IF($J$2<>Players!$B$4,"",IF(ISERROR(VLOOKUP($C52,GOY,4,FALSE)),"",VLOOKUP($C52,GOY,4,FALSE))) ->  | K52: =SUM($D52:$J52) -> 0
A53: T15 | B53: 51 | D53: =IF($D$2<>Players!$B$4,"",IF(ISERROR(VLOOKUP($C53,GOY,4,FALSE)),"",VLOOKUP($C53,GOY,4,FALSE))) ->  | E53: =IF($E$2<>Players!$B$4,"",IF(ISERROR(VLOOKUP($C53,GOY,4,FALSE)),"",VLOOKUP($C53,GOY,4,FALSE))) ->  | F53: =IF($F$2<>Players!$B$4,"",IF(ISERROR(VLOOKUP($C53,GOY,4,FALSE)),"",VLOOKUP($C53,GOY,4,FALSE))) ->  | G53: =IF($G$2<>Players!$B$4,"",IF(ISERROR(VLOOKUP($C53,GOY,4,FALSE)),"",VLOOKUP($C53,GOY,4,FALSE))) ->  | H53: =IF($H$2<>Players!$B$4,"",IF(ISERROR(VLOOKUP($C53,GOY,4,FALSE)),"",VLOOKUP($C53,GOY,4,FALSE))) ->  | I53: =IF($I$2<>Players!$B$4,"",IF(ISERROR(VLOOKUP($C53,GOY,4,FALSE)),"",VLOOKUP($C53,GOY,4,FALSE))) ->  | J53: =IF($J$2<>Players!$B$4,"",IF(ISERROR(VLOOKUP($C53,GOY,4,FALSE)),"",VLOOKUP($C53,GOY,4,FALSE))) ->  | K53: =SUM($D53:$J53) -> 0
A54: T15 | B54: 52 | D54: =IF($D$2<>Players!$B$4,"",IF(ISERROR(VLOOKUP($C54,GOY,4,FALSE)),"",VLOOKUP($C54,GOY,4,FALSE))) ->  | E54: =IF($E$2<>Players!$B$4,"",IF(ISERROR(VLOOKUP($C54,GOY,4,FALSE)),"",VLOOKUP($C54,GOY,4,FALSE))) ->  | F54: =IF($F$2<>Players!$B$4,"",IF(ISERROR(VLOOKUP($C54,GOY,4,FALSE)),"",VLOOKUP($C54,GOY,4,FALSE))) ->  | G54: =IF($G$2<>Players!$B$4,"",IF(ISERROR(VLOOKUP($C54,GOY,4,FALSE)),"",VLOOKUP($C54,GOY,4,FALSE))) ->  | H54: =IF($H$2<>Players!$B$4,"",IF(ISERROR(VLOOKUP($C54,GOY,4,FALSE)),"",VLOOKUP($C54,GOY,4,FALSE))) ->  | I54: =IF($I$2<>Players!$B$4,"",IF(ISERROR(VLOOKUP($C54,GOY,4,FALSE)),"",VLOOKUP($C54,GOY,4,FALSE))) ->  | J54: =IF($J$2<>Players!$B$4,"",IF(ISERROR(VLOOKUP($C54,GOY,4,FALSE)),"",VLOOKUP($C54,GOY,4,FALSE))) ->  | K54: =SUM($D54:$J54) -> 0
A55: T15 | B55: 53 | D55: =IF($D$2<>Players!$B$4,"",IF(ISERROR(VLOOKUP($C55,GOY,4,FALSE)),"",VLOOKUP($C55,GOY,4,FALSE))) ->  | E55: =IF($E$2<>Players!$B$4,"",IF(ISERROR(VLOOKUP($C55,GOY,4,FALSE)),"",VLOOKUP($C55,GOY,4,FALSE))) ->  | F55: =IF($F$2<>Players!$B$4,"",IF(ISERROR(VLOOKUP($C55,GOY,4,FALSE)),"",VLOOKUP($C55,GOY,4,FALSE))) ->  | G55: =IF($G$2<>Players!$B$4,"",IF(ISERROR(VLOOKUP($C55,GOY,4,FALSE)),"",VLOOKUP($C55,GOY,4,FALSE))) ->  | H55: =IF($H$2<>Players!$B$4,"",IF(ISERROR(VLOOKUP($C55,GOY,4,FALSE)),"",VLOOKUP($C55,GOY,4,FALSE))) ->  | I55: =IF($I$2<>Players!$B$4,"",IF(ISERROR(VLOOKUP($C55,GOY,4,FALSE)),"",VLOOKUP($C55,GOY,4,FALSE))) ->  | J55: =IF($J$2<>Players!$B$4,"",IF(ISERROR(VLOOKUP($C55,GOY,4,FALSE)),"",VLOOKUP($C55,GOY,4,FALSE))) ->  | K55: =SUM($D55:$J55) -> 0
A56: T15 | B56: 54 | D56: =IF($D$2<>Players!$B$4,"",IF(ISERROR(VLOOKUP($C56,GOY,4,FALSE)),"",VLOOKUP($C56,GOY,4,FALSE))) ->  | E56: =IF($E$2<>Players!$B$4,"",IF(ISERROR(VLOOKUP($C56,GOY,4,FALSE)),"",VLOOKUP($C56,GOY,4,FALSE))) ->  | F56: =IF($F$2<>Players!$B$4,"",IF(ISERROR(VLOOKUP($C56,GOY,4,FALSE)),"",VLOOKUP($C56,GOY,4,FALSE))) ->  | G56: =IF($G$2<>Players!$B$4,"",IF(ISERROR(VLOOKUP($C56,GOY,4,FALSE)),"",VLOOKUP($C56,GOY,4,FALSE))) ->  | H56: =IF($H$2<>Players!$B$4,"",IF(ISERROR(VLOOKUP($C56,GOY,4,FALSE)),"",VLOOKUP($C56,GOY,4,FALSE))) ->  | I56: =IF($I$2<>Players!$B$4,"",IF(ISERROR(VLOOKUP($C56,GOY,4,FALSE)),"",VLOOKUP($C56,GOY,4,FALSE))) ->  | J56: =IF($J$2<>Players!$B$4,"",IF(ISERROR(VLOOKUP($C56,GOY,4,FALSE)),"",VLOOKUP($C56,GOY,4,FALSE))) ->  | K56: =SUM($D56:$J56) -> 0
A57: T15 | B57: 55 | D57: =IF($D$2<>Players!$B$4,"",IF(ISERROR(VLOOKUP($C57,GOY,4,FALSE)),"",VLOOKUP($C57,GOY,4,FALSE))) ->  | E57: =IF($E$2<>Players!$B$4,"",IF(ISERROR(VLOOKUP($C57,GOY,4,FALSE)),"",VLOOKUP($C57,GOY,4,FALSE))) ->  | F57: =IF($F$2<>Players!$B$4,"",IF(ISERROR(VLOOKUP($C57,GOY,4,FALSE)),"",VLOOKUP($C57,GOY,4,FALSE))) ->  | G57: =IF($G$2<>Players!$B$4,"",IF(ISERROR(VLOOKUP($C57,GOY,4,FALSE)),"",VLOOKUP($C57,GOY,4,FALSE))) ->  | H57: =IF($H$2<>Players!$B$4,"",IF(ISERROR(VLOOKUP($C57,GOY,4,FALSE)),"",VLOOKUP($C57,GOY,4,FALSE))) ->  | I57: =IF($I$2<>Players!$B$4,"",IF(ISERROR(VLOOKUP($C57,GOY,4,FALSE)),"",VLOOKUP($C57,GOY,4,FALSE))) ->  | J57: =IF($J$2<>Players!$B$4,"",IF(ISERROR(VLOOKUP($C57,GOY,4,FALSE)),"",VLOOKUP($C57,GOY,4,FALSE))) ->  | K57: =SUM($D57:$J57) -> 0
A58: T15 | B58: 56 | D58: =IF($D$2<>Players!$B$4,"",IF(ISERROR(VLOOKUP($C58,GOY,4,FALSE)),"",VLOOKUP($C58,GOY,4,FALSE))) ->  | E58: =IF($E$2<>Players!$B$4,"",IF(ISERROR(VLOOKUP($C58,GOY,4,FALSE)),"",VLOOKUP($C58,GOY,4,FALSE))) ->  | F58: =IF($F$2<>Players!$B$4,"",IF(ISERROR(VLOOKUP($C58,GOY,4,FALSE)),"",VLOOKUP($C58,GOY,4,FALSE))) ->  | G58: =IF($G$2<>Players!$B$4,"",IF(ISERROR(VLOOKUP($C58,GOY,4,FALSE)),"",VLOOKUP($C58,GOY,4,FALSE))) ->  | H58: =IF($H$2<>Players!$B$4,"",IF(ISERROR(VLOOKUP($C58,GOY,4,FALSE)),"",VLOOKUP($C58,GOY,4,FALSE))) ->  | I58: =IF($I$2<>Players!$B$4,"",IF(ISERROR(VLOOKUP($C58,GOY,4,FALSE)),"",VLOOKUP($C58,GOY,4,FALSE))) ->  | J58: =IF($J$2<>Players!$B$4,"",IF(ISERROR(VLOOKUP($C58,GOY,4,FALSE)),"",VLOOKUP($C58,GOY,4,FALSE))) ->  | K58: =SUM($D58:$J58) -> 0
A59: T15 | B59: 57 | D59: =IF($D$2<>Players!$B$4,"",IF(ISERROR(VLOOKUP($C59,GOY,4,FALSE)),"",VLOOKUP($C59,GOY,4,FALSE))) ->  | E59: =IF($E$2<>Players!$B$4,"",IF(ISERROR(VLOOKUP($C59,GOY,4,FALSE)),"",VLOOKUP($C59,GOY,4,FALSE))) ->  | F59: =IF($F$2<>Players!$B$4,"",IF(ISERROR(VLOOKUP($C59,GOY,4,FALSE)),"",VLOOKUP($C59,GOY,4,FALSE))) ->  | G59: =IF($G$2<>Players!$B$4,"",IF(ISERROR(VLOOKUP($C59,GOY,4,FALSE)),"",VLOOKUP($C59,GOY,4,FALSE))) ->  | H59: =IF($H$2<>Players!$B$4,"",IF(ISERROR(VLOOKUP($C59,GOY,4,FALSE)),"",VLOOKUP($C59,GOY,4,FALSE))) ->  | I59: =IF($I$2<>Players!$B$4,"",IF(ISERROR(VLOOKUP($C59,GOY,4,FALSE)),"",VLOOKUP($C59,GOY,4,FALSE))) ->  | J59: =IF($J$2<>Players!$B$4,"",IF(ISERROR(VLOOKUP($C59,GOY,4,FALSE)),"",VLOOKUP($C59,GOY,4,FALSE))) ->  | K59: =SUM($D59:$J59) -> 0
A60: T15 | B60: 58 | D60: =IF($D$2<>Players!$B$4,"",IF(ISERROR(VLOOKUP($C60,GOY,4,FALSE)),"",VLOOKUP($C60,GOY,4,FALSE))) ->  | E60: =IF($E$2<>Players!$B$4,"",IF(ISERROR(VLOOKUP($C60,GOY,4,FALSE)),"",VLOOKUP($C60,GOY,4,FALSE))) ->  | F60: =IF($F$2<>Players!$B$4,"",IF(ISERROR(VLOOKUP($C60,GOY,4,FALSE)),"",VLOOKUP($C60,GOY,4,FALSE))) ->  | G60: =IF($G$2<>Players!$B$4,"",IF(ISERROR(VLOOKUP($C60,GOY,4,FALSE)),"",VLOOKUP($C60,GOY,4,FALSE))) ->  | H60: =IF($H$2<>Players!$B$4,"",IF(ISERROR(VLOOKUP($C60,GOY,4,FALSE)),"",VLOOKUP($C60,GOY,4,FALSE))) ->  | I60: =IF($I$2<>Players!$B$4,"",IF(ISERROR(VLOOKUP($C60,GOY,4,FALSE)),"",VLOOKUP($C60,GOY,4,FALSE))) ->  | J60: =IF($J$2<>Players!$B$4,"",IF(ISERROR(VLOOKUP($C60,GOY,4,FALSE)),"",VLOOKUP($C60,GOY,4,FALSE))) ->  | K60: =SUM($D60:$J60) -> 0
A61: T15 | B61: 59 | D61: =IF($D$2<>Players!$B$4,"",IF(ISERROR(VLOOKUP($C61,GOY,4,FALSE)),"",VLOOKUP($C61,GOY,4,FALSE))) ->  | E61: =IF($E$2<>Players!$B$4,"",IF(ISERROR(VLOOKUP($C61,GOY,4,FALSE)),"",VLOOKUP($C61,GOY,4,FALSE))) ->  | F61: =IF($F$2<>Players!$B$4,"",IF(ISERROR(VLOOKUP($C61,GOY,4,FALSE)),"",VLOOKUP($C61,GOY,4,FALSE))) ->  | G61: =IF($G$2<>Players!$B$4,"",IF(ISERROR(VLOOKUP($C61,GOY,4,FALSE)),"",VLOOKUP($C61,GOY,4,FALSE))) ->  | H61: =IF($H$2<>Players!$B$4,"",IF(ISERROR(VLOOKUP($C61,GOY,4,FALSE)),"",VLOOKUP($C61,GOY,4,FALSE))) ->  | I61: =IF($I$2<>Players!$B$4,"",IF(ISERROR(VLOOKUP($C61,GOY,4,FALSE)),"",VLOOKUP($C61,GOY,4,FALSE))) ->  | J61: =IF($J$2<>Players!$B$4,"",IF(ISERROR(VLOOKUP($C61,GOY,4,FALSE)),"",VLOOKUP($C61,GOY,4,FALSE))) ->  | K61: =SUM($D61:$J61) -> 0
A62: T15 | B62: 60 | D62: =IF($D$2<>Players!$B$4,"",IF(ISERROR(VLOOKUP($C62,GOY,4,FALSE)),"",VLOOKUP($C62,GOY,4,FALSE))) ->  | E62: =IF($E$2<>Players!$B$4,"",IF(ISERROR(VLOOKUP($C62,GOY,4,FALSE)),"",VLOOKUP($C62,GOY,4,FALSE))) ->  | F62: =IF($F$2<>Players!$B$4,"",IF(ISERROR(VLOOKUP($C62,GOY,4,FALSE)),"",VLOOKUP($C62,GOY,4,FALSE))) ->  | G62: =IF($G$2<>Players!$B$4,"",IF(ISERROR(VLOOKUP($C62,GOY,4,FALSE)),"",VLOOKUP($C62,GOY,4,FALSE))) ->  | H62: =IF($H$2<>Players!$B$4,"",IF(ISERROR(VLOOKUP($C62,GOY,4,FALSE)),"",VLOOKUP($C62,GOY,4,FALSE))) ->  | I62: =IF($I$2<>Players!$B$4,"",IF(ISERROR(VLOOKUP($C62,GOY,4,FALSE)),"",VLOOKUP($C62,GOY,4,FALSE))) ->  | J62: =IF($J$2<>Players!$B$4,"",IF(ISERROR(VLOOKUP($C62,GOY,4,FALSE)),"",VLOOKUP($C62,GOY,4,FALSE))) ->  | K62: =SUM($D62:$J62) -> 0
A63: T15 | B63: 61 | D63: =IF($D$2<>Players!$B$4,"",IF(ISERROR(VLOOKUP($C63,GOY,4,FALSE)),"",VLOOKUP($C63,GOY,4,FALSE))) ->  | E63: =IF($E$2<>Players!$B$4,"",IF(ISERROR(VLOOKUP($C63,GOY,4,FALSE)),"",VLOOKUP($C63,GOY,4,FALSE))) ->  | F63: =IF($F$2<>Players!$B$4,"",IF(ISERROR(VLOOKUP($C63,GOY,4,FALSE)),"",VLOOKUP($C63,GOY,4,FALSE))) ->  | G63: =IF($G$2<>Players!$B$4,"",IF(ISERROR(VLOOKUP($C63,GOY,4,FALSE)),"",VLOOKUP($C63,GOY,4,FALSE))) ->  | H63: =IF($H$2<>Players!$B$4,"",IF(ISERROR(VLOOKUP($C63,GOY,4,FALSE)),"",VLOOKUP($C63,GOY,4,FALSE))) ->  | I63: =IF($I$2<>Players!$B$4,"",IF(ISERROR(VLOOKUP($C63,GOY,4,FALSE)),"",VLOOKUP($C63,GOY,4,FALSE))) ->  | J63: =IF($J$2<>Players!$B$4,"",IF(ISERROR(VLOOKUP($C63,GOY,4,FALSE)),"",VLOOKUP($C63,GOY,4,FALSE))) ->  | K63: =SUM($D63:$J63) -> 0
A64: T15 | B64: 62 | D64: =IF($D$2<>Players!$B$4,"",IF(ISERROR(VLOOKUP($C64,GOY,4,FALSE)),"",VLOOKUP($C64,GOY,4,FALSE))) ->  | E64: =IF($E$2<>Players!$B$4,"",IF(ISERROR(VLOOKUP($C64,GOY,4,FALSE)),"",VLOOKUP($C64,GOY,4,FALSE))) ->  | F64: =IF($F$2<>Players!$B$4,"",IF(ISERROR(VLOOKUP($C64,GOY,4,FALSE)),"",VLOOKUP($C64,GOY,4,FALSE))) ->  | G64: =IF($G$2<>Players!$B$4,"",IF(ISERROR(VLOOKUP($C64,GOY,4,FALSE)),"",VLOOKUP($C64,GOY,4,FALSE))) ->  | H64: =IF($H$2<>Players!$B$4,"",IF(ISERROR(VLOOKUP($C64,GOY,4,FALSE)),"",VLOOKUP($C64,GOY,4,FALSE))) ->  | I64: =IF($I$2<>Players!$B$4,"",IF(ISERROR(VLOOKUP($C64,GOY,4,FALSE)),"",VLOOKUP($C64,GOY,4,FALSE))) ->  | J64: =IF($J$2<>Players!$B$4,"",IF(ISERROR(VLOOKUP($C64,GOY,4,FALSE)),"",VLOOKUP($C64,GOY,4,FALSE))) ->  | K64: =SUM($D64:$J64) -> 0
A65: T15 | B65: 63 | D65: =IF($D$2<>Players!$B$4,"",IF(ISERROR(VLOOKUP($C65,GOY,4,FALSE)),"",VLOOKUP($C65,GOY,4,FALSE))) ->  | E65: =IF($E$2<>Players!$B$4,"",IF(ISERROR(VLOOKUP($C65,GOY,4,FALSE)),"",VLOOKUP($C65,GOY,4,FALSE))) ->  | F65: =IF($F$2<>Players!$B$4,"",IF(ISERROR(VLOOKUP($C65,GOY,4,FALSE)),"",VLOOKUP($C65,GOY,4,FALSE))) ->  | G65: =IF($G$2<>Players!$B$4,"",IF(ISERROR(VLOOKUP($C65,GOY,4,FALSE)),"",VLOOKUP($C65,GOY,4,FALSE))) ->  | H65: =IF($H$2<>Players!$B$4,"",IF(ISERROR(VLOOKUP($C65,GOY,4,FALSE)),"",VLOOKUP($C65,GOY,4,FALSE))) ->  | I65: =IF($I$2<>Players!$B$4,"",IF(ISERROR(VLOOKUP($C65,GOY,4,FALSE)),"",VLOOKUP($C65,GOY,4,FALSE))) ->  | J65: =IF($J$2<>Players!$B$4,"",IF(ISERROR(VLOOKUP($C65,GOY,4,FALSE)),"",VLOOKUP($C65,GOY,4,FALSE))) ->  | K65: =SUM($D65:$J65) -> 0
A66: T15 | B66: 64 | D66: =IF($D$2<>Players!$B$4,"",IF(ISERROR(VLOOKUP($C66,GOY,4,FALSE)),"",VLOOKUP($C66,GOY,4,FALSE))) ->  | E66: =IF($E$2<>Players!$B$4,"",IF(ISERROR(VLOOKUP($C66,GOY,4,FALSE)),"",VLOOKUP($C66,GOY,4,FALSE))) ->  | F66: =IF($F$2<>Players!$B$4,"",IF(ISERROR(VLOOKUP($C66,GOY,4,FALSE)),"",VLOOKUP($C66,GOY,4,FALSE))) ->  | G66: =IF($G$2<>Players!$B$4,"",IF(ISERROR(VLOOKUP($C66,GOY,4,FALSE)),"",VLOOKUP($C66,GOY,4,FALSE))) ->  | H66: =IF($H$2<>Players!$B$4,"",IF(ISERROR(VLOOKUP($C66,GOY,4,FALSE)),"",VLOOKUP($C66,GOY,4,FALSE))) ->  | I66: =IF($I$2<>Players!$B$4,"",IF(ISERROR(VLOOKUP($C66,GOY,4,FALSE)),"",VLOOKUP($C66,GOY,4,FALSE))) ->  | J66: =IF($J$2<>Players!$B$4,"",IF(ISERROR(VLOOKUP($C66,GOY,4,FALSE)),"",VLOOKUP($C66,GOY,4,FALSE))) ->  | K66: =SUM($D66:$J66) -> 0
A67: T15 | B67: 65 | D67: =IF($D$2<>Players!$B$4,"",IF(ISERROR(VLOOKUP($C67,GOY,4,FALSE)),"",VLOOKUP($C67,GOY,4,FALSE))) ->  | E67: =IF($E$2<>Players!$B$4,"",IF(ISERROR(VLOOKUP($C67,GOY,4,FALSE)),"",VLOOKUP($C67,GOY,4,FALSE))) ->  | F67: =IF($F$2<>Players!$B$4,"",IF(ISERROR(VLOOKUP($C67,GOY,4,FALSE)),"",VLOOKUP($C67,GOY,4,FALSE))) ->  | G67: =IF($G$2<>Players!$B$4,"",IF(ISERROR(VLOOKUP($C67,GOY,4,FALSE)),"",VLOOKUP($C67,GOY,4,FALSE))) ->  | H67: =IF($H$2<>Players!$B$4,"",IF(ISERROR(VLOOKUP($C67,GOY,4,FALSE)),"",VLOOKUP($C67,GOY,4,FALSE))) ->  | I67: =IF($I$2<>Players!$B$4,"",IF(ISERROR(VLOOKUP($C67,GOY,4,FALSE)),"",VLOOKUP($C67,GOY,4,FALSE))) ->  | J67: =IF($J$2<>Players!$B$4,"",IF(ISERROR(VLOOKUP($C67,GOY,4,FALSE)),"",VLOOKUP($C67,GOY,4,FALSE))) ->  | K67: =SUM($D67:$J67) -> 0
A68: =IF($K68=$K67,$A67,IF($K68=$K69,"T"&$B68,$B68)) -> T15 | B68: 66 | D68: =IF($D$2<>Players!$B$4,"",IF(ISERROR(VLOOKUP($C68,GOY,4,FALSE)),"",VLOOKUP($C68,GOY,4,FALSE))) ->  | E68: =IF($E$2<>Players!$B$4,"",IF(ISERROR(VLOOKUP($C68,GOY,4,FALSE)),"",VLOOKUP($C68,GOY,4,FALSE))) ->  | F68: =IF($F$2<>Players!$B$4,"",IF(ISERROR(VLOOKUP($C68,GOY,4,FALSE)),"",VLOOKUP($C68,GOY,4,FALSE))) ->  | G68: =IF($G$2<>Players!$B$4,"",IF(ISERROR(VLOOKUP($C68,GOY,4,FALSE)),"",VLOOKUP($C68,GOY,4,FALSE))) ->  | H68: =IF($H$2<>Players!$B$4,"",IF(ISERROR(VLOOKUP($C68,GOY,4,FALSE)),"",VLOOKUP($C68,GOY,4,FALSE))) ->  | I68: =IF($I$2<>Players!$B$4,"",IF(ISERROR(VLOOKUP($C68,GOY,4,FALSE)),"",VLOOKUP($C68,GOY,4,FALSE))) ->  | J68: =IF($J$2<>Players!$B$4,"",IF(ISERROR(VLOOKUP($C68,GOY,4,FALSE)),"",VLOOKUP($C68,GOY,4,FALSE))) ->  | K68: =SUM($D68:$J68) -> 0
A69: T15 | B69: 67 | D69: =IF($D$2<>Players!$B$4,"",IF(ISERROR(VLOOKUP($C69,GOY,4,FALSE)),"",VLOOKUP($C69,GOY,4,FALSE))) ->  | E69: =IF($E$2<>Players!$B$4,"",IF(ISERROR(VLOOKUP($C69,GOY,4,FALSE)),"",VLOOKUP($C69,GOY,4,FALSE))) ->  | F69: =IF($F$2<>Players!$B$4,"",IF(ISERROR(VLOOKUP($C69,GOY,4,FALSE)),"",VLOOKUP($C69,GOY,4,FALSE))) ->  | G69: =IF($G$2<>Players!$B$4,"",IF(ISERROR(VLOOKUP($C69,GOY,4,FALSE)),"",VLOOKUP($C69,GOY,4,FALSE))) ->  | H69: =IF($H$2<>Players!$B$4,"",IF(ISERROR(VLOOKUP($C69,GOY,4,FALSE)),"",VLOOKUP($C69,GOY,4,FALSE))) ->  | I69: =IF($I$2<>Players!$B$4,"",IF(ISERROR(VLOOKUP($C69,GOY,4,FALSE)),"",VLOOKUP($C69,GOY,4,FALSE))) ->  | J69: =IF($J$2<>Players!$B$4,"",IF(ISERROR(VLOOKUP($C69,GOY,4,FALSE)),"",VLOOKUP($C69,GOY,4,FALSE))) ->  | K69: =SUM($D69:$J69) -> 0
A70: T15 | B70: 68 | D70: =IF($D$2<>Players!$B$4,"",IF(ISERROR(VLOOKUP($C70,GOY,4,FALSE)),"",VLOOKUP($C70,GOY,4,FALSE))) ->  | E70: =IF($E$2<>Players!$B$4,"",IF(ISERROR(VLOOKUP($C70,GOY,4,FALSE)),"",VLOOKUP($C70,GOY,4,FALSE))) ->  | F70: =IF($F$2<>Players!$B$4,"",IF(ISERROR(VLOOKUP($C70,GOY,4,FALSE)),"",VLOOKUP($C70,GOY,4,FALSE))) ->  | G70: =IF($G$2<>Players!$B$4,"",IF(ISERROR(VLOOKUP($C70,GOY,4,FALSE)),"",VLOOKUP($C70,GOY,4,FALSE))) ->  | H70: =IF($H$2<>Players!$B$4,"",IF(ISERROR(VLOOKUP($C70,GOY,4,FALSE)),"",VLOOKUP($C70,GOY,4,FALSE))) ->  | I70: =IF($I$2<>Players!$B$4,"",IF(ISERROR(VLOOKUP($C70,GOY,4,FALSE)),"",VLOOKUP($C70,GOY,4,FALSE))) ->  | J70: =IF($J$2<>Players!$B$4,"",IF(ISERROR(VLOOKUP($C70,GOY,4,FALSE)),"",VLOOKUP($C70,GOY,4,FALSE))) ->  | K70: =SUM($D70:$J70) -> 0
A71: T15 | B71: 69 | D71: =IF($D$2<>Players!$B$4,"",IF(ISERROR(VLOOKUP($C71,GOY,4,FALSE)),"",VLOOKUP($C71,GOY,4,FALSE))) ->  | E71: =IF($E$2<>Players!$B$4,"",IF(ISERROR(VLOOKUP($C71,GOY,4,FALSE)),"",VLOOKUP($C71,GOY,4,FALSE))) ->  | F71: =IF($F$2<>Players!$B$4,"",IF(ISERROR(VLOOKUP($C71,GOY,4,FALSE)),"",VLOOKUP($C71,GOY,4,FALSE))) ->  | G71: =IF($G$2<>Players!$B$4,"",IF(ISERROR(VLOOKUP($C71,GOY,4,FALSE)),"",VLOOKUP($C71,GOY,4,FALSE))) ->  | H71: =IF($H$2<>Players!$B$4,"",IF(ISERROR(VLOOKUP($C71,GOY,4,FALSE)),"",VLOOKUP($C71,GOY,4,FALSE))) ->  | I71: =IF($I$2<>Players!$B$4,"",IF(ISERROR(VLOOKUP($C71,GOY,4,FALSE)),"",VLOOKUP($C71,GOY,4,FALSE))) ->  | J71: =IF($J$2<>Players!$B$4,"",IF(ISERROR(VLOOKUP($C71,GOY,4,FALSE)),"",VLOOKUP($C71,GOY,4,FALSE))) ->  | K71: =SUM($D71:$J71) -> 0
A72: T15 | B72: 70 | D72: =IF($D$2<>Players!$B$4,"",IF(ISERROR(VLOOKUP($C72,GOY,4,FALSE)),"",VLOOKUP($C72,GOY,4,FALSE))) ->  | E72: =IF($E$2<>Players!$B$4,"",IF(ISERROR(VLOOKUP($C72,GOY,4,FALSE)),"",VLOOKUP($C72,GOY,4,FALSE))) ->  | F72: =IF($F$2<>Players!$B$4,"",IF(ISERROR(VLOOKUP($C72,GOY,4,FALSE)),"",VLOOKUP($C72,GOY,4,FALSE))) ->  | G72: =IF($G$2<>Players!$B$4,"",IF(ISERROR(VLOOKUP($C72,GOY,4,FALSE)),"",VLOOKUP($C72,GOY,4,FALSE))) ->  | H72: =IF($H$2<>Players!$B$4,"",IF(ISERROR(VLOOKUP($C72,GOY,4,FALSE)),"",VLOOKUP($C72,GOY,4,FALSE))) ->  | I72: =IF($I$2<>Players!$B$4,"",IF(ISERROR(VLOOKUP($C72,GOY,4,FALSE)),"",VLOOKUP($C72,GOY,4,FALSE))) ->  | J72: =IF($J$2<>Players!$B$4,"",IF(ISERROR(VLOOKUP($C72,GOY,4,FALSE)),"",VLOOKUP($C72,GOY,4,FALSE))) ->  | K72: =SUM($D72:$J72) -> 0
A73: T15 | B73: 71 | D73: =IF($D$2<>Players!$B$4,"",IF(ISERROR(VLOOKUP($C73,GOY,4,FALSE)),"",VLOOKUP($C73,GOY,4,FALSE))) ->  | E73: =IF($E$2<>Players!$B$4,"",IF(ISERROR(VLOOKUP($C73,GOY,4,FALSE)),"",VLOOKUP($C73,GOY,4,FALSE))) ->  | F73: =IF($F$2<>Players!$B$4,"",IF(ISERROR(VLOOKUP($C73,GOY,4,FALSE)),"",VLOOKUP($C73,GOY,4,FALSE))) ->  | G73: =IF($G$2<>Players!$B$4,"",IF(ISERROR(VLOOKUP($C73,GOY,4,FALSE)),"",VLOOKUP($C73,GOY,4,FALSE))) ->  | H73: =IF($H$2<>Players!$B$4,"",IF(ISERROR(VLOOKUP($C73,GOY,4,FALSE)),"",VLOOKUP($C73,GOY,4,FALSE))) ->  | I73: =IF($I$2<>Players!$B$4,"",IF(ISERROR(VLOOKUP($C73,GOY,4,FALSE)),"",VLOOKUP($C73,GOY,4,FALSE))) ->  | J73: =IF($J$2<>Players!$B$4,"",IF(ISERROR(VLOOKUP($C73,GOY,4,FALSE)),"",VLOOKUP($C73,GOY,4,FALSE))) ->  | K73: =SUM($D73:$J73) -> 0
A74: T15 | B74: 72 | D74: =IF($D$2<>Players!$B$4,"",IF(ISERROR(VLOOKUP($C74,GOY,4,FALSE)),"",VLOOKUP($C74,GOY,4,FALSE))) ->  | E74: =IF($E$2<>Players!$B$4,"",IF(ISERROR(VLOOKUP($C74,GOY,4,FALSE)),"",VLOOKUP($C74,GOY,4,FALSE))) ->  | F74: =IF($F$2<>Players!$B$4,"",IF(ISERROR(VLOOKUP($C74,GOY,4,FALSE)),"",VLOOKUP($C74,GOY,4,FALSE))) ->  | G74: =IF($G$2<>Players!$B$4,"",IF(ISERROR(VLOOKUP($C74,GOY,4,FALSE)),"",VLOOKUP($C74,GOY,4,FALSE))) ->  | H74: =IF($H$2<>Players!$B$4,"",IF(ISERROR(VLOOKUP($C74,GOY,4,FALSE)),"",VLOOKUP($C74,GOY,4,FALSE))) ->  | I74: =IF($I$2<>Players!$B$4,"",IF(ISERROR(VLOOKUP($C74,GOY,4,FALSE)),"",VLOOKUP($C74,GOY,4,FALSE))) ->  | J74: =IF($J$2<>Players!$B$4,"",IF(ISERROR(VLOOKUP($C74,GOY,4,FALSE)),"",VLOOKUP($C74,GOY,4,FALSE))) ->  | K74: =SUM($D74:$J74) -> 0
A75: T15 | B75: 73 | D75: =IF($D$2<>Players!$B$4,"",IF(ISERROR(VLOOKUP($C75,GOY,4,FALSE)),"",VLOOKUP($C75,GOY,4,FALSE))) ->  | E75: =IF($E$2<>Players!$B$4,"",IF(ISERROR(VLOOKUP($C75,GOY,4,FALSE)),"",VLOOKUP($C75,GOY,4,FALSE))) ->  | F75: =IF($F$2<>Players!$B$4,"",IF(ISERROR(VLOOKUP($C75,GOY,4,FALSE)),"",VLOOKUP($C75,GOY,4,FALSE))) ->  | G75: =IF($G$2<>Players!$B$4,"",IF(ISERROR(VLOOKUP($C75,GOY,4,FALSE)),"",VLOOKUP($C75,GOY,4,FALSE))) ->  | H75: =IF($H$2<>Players!$B$4,"",IF(ISERROR(VLOOKUP($C75,GOY,4,FALSE)),"",VLOOKUP($C75,GOY,4,FALSE))) ->  | I75: =IF($I$2<>Players!$B$4,"",IF(ISERROR(VLOOKUP($C75,GOY,4,FALSE)),"",VLOOKUP($C75,GOY,4,FALSE))) ->  | J75: =IF($J$2<>Players!$B$4,"",IF(ISERROR(VLOOKUP($C75,GOY,4,FALSE)),"",VLOOKUP($C75,GOY,4,FALSE))) ->  | K75: =SUM($D75:$J75) -> 0
A76: T15 | B76: 74 | D76: =IF($D$2<>Players!$B$4,"",IF(ISERROR(VLOOKUP($C76,GOY,4,FALSE)),"",VLOOKUP($C76,GOY,4,FALSE))) ->  | E76: =IF($E$2<>Players!$B$4,"",IF(ISERROR(VLOOKUP($C76,GOY,4,FALSE)),"",VLOOKUP($C76,GOY,4,FALSE))) ->  | F76: =IF($F$2<>Players!$B$4,"",IF(ISERROR(VLOOKUP($C76,GOY,4,FALSE)),"",VLOOKUP($C76,GOY,4,FALSE))) ->  | G76: =IF($G$2<>Players!$B$4,"",IF(ISERROR(VLOOKUP($C76,GOY,4,FALSE)),"",VLOOKUP($C76,GOY,4,FALSE))) ->  | H76: =IF($H$2<>Players!$B$4,"",IF(ISERROR(VLOOKUP($C76,GOY,4,FALSE)),"",VLOOKUP($C76,GOY,4,FALSE))) ->  | I76: =IF($I$2<>Players!$B$4,"",IF(ISERROR(VLOOKUP($C76,GOY,4,FALSE)),"",VLOOKUP($C76,GOY,4,FALSE))) ->  | J76: =IF($J$2<>Players!$B$4,"",IF(ISERROR(VLOOKUP($C76,GOY,4,FALSE)),"",VLOOKUP($C76,GOY,4,FALSE))) ->  | K76: =SUM($D76:$J76) -> 0
A77: T15 | B77: 75 | D77: =IF($D$2<>Players!$B$4,"",IF(ISERROR(VLOOKUP($C77,GOY,4,FALSE)),"",VLOOKUP($C77,GOY,4,FALSE))) ->  | E77: =IF($E$2<>Players!$B$4,"",IF(ISERROR(VLOOKUP($C77,GOY,4,FALSE)),"",VLOOKUP($C77,GOY,4,FALSE))) ->  | F77: =IF($F$2<>Players!$B$4,"",IF(ISERROR(VLOOKUP($C77,GOY,4,FALSE)),"",VLOOKUP($C77,GOY,4,FALSE))) ->  | G77: =IF($G$2<>Players!$B$4,"",IF(ISERROR(VLOOKUP($C77,GOY,4,FALSE)),"",VLOOKUP($C77,GOY,4,FALSE))) ->  | H77: =IF($H$2<>Players!$B$4,"",IF(ISERROR(VLOOKUP($C77,GOY,4,FALSE)),"",VLOOKUP($C77,GOY,4,FALSE))) ->  | I77: =IF($I$2<>Players!$B$4,"",IF(ISERROR(VLOOKUP($C77,GOY,4,FALSE)),"",VLOOKUP($C77,GOY,4,FALSE))) ->  | J77: =IF($J$2<>Players!$B$4,"",IF(ISERROR(VLOOKUP($C77,GOY,4,FALSE)),"",VLOOKUP($C77,GOY,4,FALSE))) ->  | K77: =SUM($D77:$J77) -> 0
D78: =SUM(D3:D77) -> 26 | E78: =SUM(E3:E77) -> 26 | F78: 26 | G78: 26 | H78: 0 | I78: 0 | J78: 0

Sheet Match Play
A1: "2018 Match Play Championship"
A2: "A" Flight
A3: Player | B3: Record | E3: 2018-01-20 | F3: 2018-03-18 | G3: 2018-05-20 | H3: 2018-07-22 | I3: 2018-09-15 | J3: 2018-09-16 | K3: Current Points | L3: Matches Left | M3: Possible Points | N3: Tiebreaker (GOY Points)
B4: W | C4: L | D4: T
A5: Escobedo, Hector | B5: =COUNTIF(E5:J5,"W") -> 2 | C5: =COUNTIF(E5:J5,"L") -> 1 | D5: =COUNTIF(E5:J5,"T") -> 1 | E5: T | F5: W | G5: W | H5: =IF($H$3<>Players!$B$4,"",IF(ISERROR(VLOOKUP($A5,Results,3,FALSE)),"",IF(VLOOKUP($A5,Results,3,FALSE)="","",IF(VLOOKUP($A5,Results,3,FALSE)="-","",IF(VLOOKUP($A5,Results,3,FALSE)="lost","L",IF(VLOOKUP($A5,Results,3,FALSE)="AS","T","W")))))) -> L | I5: =IF($I$3<>Players!$B$4,"",IF(ISERROR(VLOOKUP($A5,Results,3,FALSE)),"",IF(VLOOKUP($A5,Results,3,FALSE)="","",IF(VLOOKUP($A5,Results,3,FALSE)="-","",IF(VLOOKUP($A5,Results,3,FALSE)="lost","L",IF(VLOOKUP($A5,Results,3,FALSE)="AS","T","W")))))) ->  | J5: =IF($J$3<>Players!$B$4,"",IF(ISERROR(VLOOKUP($A5,Results,3,FALSE)),"",IF(VLOOKUP($A5,Results,3,FALSE)="","",IF(VLOOKUP($A5,Results,3,FALSE)="-","",IF(VLOOKUP($A5,Results,3,FALSE)="lost","L",IF(VLOOKUP($A5,Results,3,FALSE)="AS","T","W")))))) ->  | K5: =(B5*2)+(C5*0)+(D5*1) -> 5 | L5: =MIN(4-SUM(B5:D5),COUNTIF($E$3:$J$3,">"&TODAY())) -> 0 | M5: =K5+(L5*2) -> 5 | N5: =VLOOKUP($A5,MatchPlayTB,9,FALSE) -> 6.666666667
A6: Graham, Travis | B6: =COUNTIF(E6:J6,"W") -> 2 | C6: =COUNTIF(E6:J6,"L") -> 0 | D6: =COUNTIF(E6:J6,"T") -> 0 | F6: W | G6: W | H6: =IF($H$3<>Players!$B$4,"",IF(ISERROR(VLOOKUP($A6,Results,3,FALSE)),"",IF(VLOOKUP($A6,Results,3,FALSE)="","",IF(VLOOKUP($A6,Results,3,FALSE)="-","",IF(VLOOKUP($A6,Results,3,FALSE)="lost","L",IF(VLOOKUP($A6,Results,3,FALSE)="AS","T","W")))))) ->  | I6: =IF($I$3<>Players!$B$4,"",IF(ISERROR(VLOOKUP($A6,Results,3,FALSE)),"",IF(VLOOKUP($A6,Results,3,FALSE)="","",IF(VLOOKUP($A6,Results,3,FALSE)="-","",IF(VLOOKUP($A6,Results,3,FALSE)="lost","L",IF(VLOOKUP($A6,Results,3,FALSE)="AS","T","W")))))) ->  | J6: =IF($J$3<>Players!$B$4,"",IF(ISERROR(VLOOKUP($A6,Results,3,FALSE)),"",IF(VLOOKUP($A6,Results,3,FALSE)="","",IF(VLOOKUP($A6,Results,3,FALSE)="-","",IF(VLOOKUP($A6,Results,3,FALSE)="lost","L",IF(VLOOKUP($A6,Results,3,FALSE)="AS","T","W")))))) ->  | K6: =(B6*2)+(C6*0)+(D6*1) -> 4 | L6: =MIN(4-SUM(B6:D6),COUNTIF($E$3:$J$3,">"&TODAY())) -> 2 | M6: =K6+(L6*2) -> 8 | N6: =VLOOKUP($A6,MatchPlayTB,9,FALSE) -> 11
A7: Jones, Gary | B7: =COUNTIF(E7:J7,"W") -> 1 | C7: =COUNTIF(E7:J7,"L") -> 0 | D7: =COUNTIF(E7:J7,"T") -> 1 | F7: T | H7: =IF($H$3<>Players!$B$4,"",IF(ISERROR(VLOOKUP($A7,Results,3,FALSE)),"",IF(VLOOKUP($A7,Results,3,FALSE)="","",IF(VLOOKUP($A7,Results,3,FALSE)="-","",IF(VLOOKUP($A7,Results,3,FALSE)="lost","L",IF(VLOOKUP($A7,Results,3,FALSE)="AS","T","W")))))) -> W | I7: =IF($I$3<>Players!$B$4,"",IF(ISERROR(VLOOKUP($A7,Results,3,FALSE)),"",IF(VLOOKUP($A7,Results,3,FALSE)="","",IF(VLOOKUP($A7,Results,3,FALSE)="-","",IF(VLOOKUP($A7,Results,3,FALSE)="lost","L",IF(VLOOKUP($A7,Results,3,FALSE)="AS","T","W")))))) ->  | J7: =IF($J$3<>Players!$B$4,"",IF(ISERROR(VLOOKUP($A7,Results,3,FALSE)),"",IF(VLOOKUP($A7,Results,3,FALSE)="","",IF(VLOOKUP($A7,Results,3,FALSE)="-","",IF(VLOOKUP($A7,Results,3,FALSE)="lost","L",IF(VLOOKUP($A7,Results,3,FALSE)="AS","T","W")))))) ->  | K7: =(B7*2)+(C7*0)+(D7*1) -> 3 | L7: =MIN(4-SUM(B7:D7),COUNTIF($E$3:$J$3,">"&TODAY())) -> 2 | M7: =K7+(L7*2) -> 7 | N7: =VLOOKUP($A7,MatchPlayTB,9,FALSE) -> 10
A8: Ornelas, Eddie | B8: =COUNTIF(E8:J8,"W") -> 1 | C8: =COUNTIF(E8:J8,"L") -> 0 | D8: =COUNTIF(E8:J8,"T") -> 1 | E8: T | H8: =IF($H$3<>Players!$B$4,"",IF(ISERROR(VLOOKUP($A8,Results,3,FALSE)),"",IF(VLOOKUP($A8,Results,3,FALSE)="","",IF(VLOOKUP($A8,Results,3,FALSE)="-","",IF(VLOOKUP($A8,Results,3,FALSE)="lost","L",IF(VLOOKUP($A8,Results,3,FALSE)="AS","T","W")))))) -> W | I8: =IF($I$3<>Players!$B$4,"",IF(ISERROR(VLOOKUP($A8,Results,3,FALSE)),"",IF(VLOOKUP($A8,Results,3,FALSE)="","",IF(VLOOKUP($A8,Results,3,FALSE)="-","",IF(VLOOKUP($A8,Results,3,FALSE)="lost","L",IF(VLOOKUP($A8,Results,3,FALSE)="AS","T","W")))))) ->  | J8: =IF($J$3<>Players!$B$4,"",IF(ISERROR(VLOOKUP($A8,Results,3,FALSE)),"",IF(VLOOKUP($A8,Results,3,FALSE)="","",IF(VLOOKUP($A8,Results,3,FALSE)="-","",IF(VLOOKUP($A8,Results,3,FALSE)="lost","L",IF(VLOOKUP($A8,Results,3,FALSE)="AS","T","W")))))) ->  | K8: =(B8*2)+(C8*0)+(D8*1) -> 3 | L8: =MIN(4-SUM(B8:D8),COUNTIF($E$3:$J$3,">"&TODAY())) -> 2 | M8: =K8+(L8*2) -> 7 | N8: =VLOOKUP($A8,MatchPlayTB,9,FALSE) -> 5
A9: Doden, Jeff | B9: =COUNTIF(E9:J9,"W") -> 1 | C9: =COUNTIF(E9:J9,"L") -> 1 | D9: =COUNTIF(E9:J9,"T") -> 1 | E9: W | F9: T | G9: L | H9: =IF($H$3<>Players!$B$4,"",IF(ISERROR(VLOOKUP($A9,Results,3,FALSE)),"",IF(VLOOKUP($A9,Results,3,FALSE)="","",IF(VLOOKUP($A9,Results,3,FALSE)="-","",IF(VLOOKUP($A9,Results,3,FALSE)="lost","L",IF(VLOOKUP($A9,Results,3,FALSE)="AS","T","W")))))) ->  | I9: =IF($I$3<>Players!$B$4,"",IF(ISERROR(VLOOKUP($A9,Results,3,FALSE)),"",IF(VLOOKUP($A9,Results,3,FALSE)="","",IF(VLOOKUP($A9,Results,3,FALSE)="-","",IF(VLOOKUP($A9,Results,3,FALSE)="lost","L",IF(VLOOKUP($A9,Results,3,FALSE)="AS","T","W")))))) ->  | J9: =IF($J$3<>Players!$B$4,"",IF(ISERROR(VLOOKUP($A9,Results,3,FALSE)),"",IF(VLOOKUP($A9,Results,3,FALSE)="","",IF(VLOOKUP($A9,Results,3,FALSE)="-","",IF(VLOOKUP($A9,Results,3,FALSE)="lost","L",IF(VLOOKUP($A9,Results,3,FALSE)="AS","T","W")))))) ->  | K9: =(B9*2)+(C9*0)+(D9*1) -> 3 | L9: =MIN(4-SUM(B9:D9),COUNTIF($E$3:$J$3,">"&TODAY())) -> 1 | M9: =K9+(L9*2) -> 5 | N9: =VLOOKUP($A9,MatchPlayTB,9,FALSE) -> 0
A10: Mariano, Joe | B10: =COUNTIF(E10:J10,"W") -> 1 | C10: =COUNTIF(E10:J10,"L") -> 2 | D10: =COUNTIF(E10:J10,"T") -> 0 | E10: W | F10: L | H10: =IF($H$3<>Players!$B$4,"",IF(ISERROR(VLOOKUP($A10,Results,3,FALSE)),"",IF(VLOOKUP($A10,Results,3,FALSE)="","",IF(VLOOKUP($A10,Results,3,FALSE)="-","",IF(VLOOKUP($A10,Results,3,FALSE)="lost","L",IF(VLOOKUP($A10,Results,3,FALSE)="AS","T","W")))))) -> L | I10: =IF($I$3<>Players!$B$4,"",IF(ISERROR(VLOOKUP($A10,Results,3,FALSE)),"",IF(VLOOKUP($A10,Results,3,FALSE)="","",IF(VLOOKUP($A10,Results,3,FALSE)="-","",IF(VLOOKUP($A10,Results,3,FALSE)="lost","L",IF(VLOOKUP($A10,Results,3,FALSE)="AS","T","W")))))) ->  | J10: =IF($J$3<>Players!$B$4,"",IF(ISERROR(VLOOKUP($A10,Results,3,FALSE)),"",IF(VLOOKUP($A10,Results,3,FALSE)="","",IF(VLOOKUP($A10,Results,3,FALSE)="-","",IF(VLOOKUP($A10,Results,3,FALSE)="lost","L",IF(VLOOKUP($A10,Results,3,FALSE)="AS","T","W")))))) ->  | K10: =(B10*2)+(C10*0)+(D10*1) -> 2 | L10: =MIN(4-SUM(B10:D10),COUNTIF($E$3:$J$3,">"&TODAY())) -> 1 | M10: =K10+(L10*2) -> 4 | N10: =VLOOKUP($A10,MatchPlayTB,9,FALSE) -> 1.833333333
A11: Mikschl, Tom | B11: =COUNTIF(E11:J11,"W") -> 0 | C11: =COUNTIF(E11:J11,"L") -> 1 | D11: =COUNTIF(E11:J11,"T") -> 0 | G11: L | H11: =IF($H$3<>Players!$B$4,"",IF(ISERROR(VLOOKUP($A11,Results,3,FALSE)),"",IF(VLOOKUP($A11,Results,3,FALSE)="","",IF(VLOOKUP($A11,Results,3,FALSE)="-","",IF(VLOOKUP($A11,Results,3,FALSE)="lost","L",IF(VLOOKUP($A11,Results,3,FALSE)="AS","T","W")))))) ->  | I11: =IF($I$3<>Players!$B$4,"",IF(ISERROR(VLOOKUP($A11,Results,3,FALSE)),"",IF(VLOOKUP($A11,Results,3,FALSE)="","",IF(VLOOKUP($A11,Results,3,FALSE)="-","",IF(VLOOKUP($A11,Results,3,FALSE)="lost","L",IF(VLOOKUP($A11,Results,3,FALSE)="AS","T","W")))))) ->  | J11: =IF($J$3<>Players!$B$4,"",IF(ISERROR(VLOOKUP($A11,Results,3,FALSE)),"",IF(VLOOKUP($A11,Results,3,FALSE)="","",IF(VLOOKUP($A11,Results,3,FALSE)="-","",IF(VLOOKUP($A11,Results,3,FALSE)="lost","L",IF(VLOOKUP($A11,Results,3,FALSE)="AS","T","W")))))) ->  | K11: =(B11*2)+(C11*0)+(D11*1) -> 0 | L11: =MIN(4-SUM(B11:D11),COUNTIF($E$3:$J$3,">"&TODAY())) -> 2 | M11: =K11+(L11*2) -> 4 | N11: =VLOOKUP($A11,MatchPlayTB,9,FALSE) -> 0.3333333333
A12: Thompson, Dan | B12: =COUNTIF(E12:J12,"W") -> 0 | C12: =COUNTIF(E12:J12,"L") -> 2 | D12: =COUNTIF(E12:J12,"T") -> 0 | E12: L | F12: L | H12: =IF($H$3<>Players!$B$4,"",IF(ISERROR(VLOOKUP($A12,Results,3,FALSE)),"",IF(VLOOKUP($A12,Results,3,FALSE)="","",IF(VLOOKUP($A12,Results,3,FALSE)="-","",IF(VLOOKUP($A12,Results,3,FALSE)="lost","L",IF(VLOOKUP($A12,Results,3,FALSE)="AS","T","W")))))) ->  | I12: =IF($I$3<>Players!$B$4,"",IF(ISERROR(VLOOKUP($A12,Results,3,FALSE)),"",IF(VLOOKUP($A12,Results,3,FALSE)="","",IF(VLOOKUP($A12,Results,3,FALSE)="-","",IF(VLOOKUP($A12,Results,3,FALSE)="lost","L",IF(VLOOKUP($A12,Results,3,FALSE)="AS","T","W")))))) ->  | J12: =IF($J$3<>Players!$B$4,"",IF(ISERROR(VLOOKUP($A12,Results,3,FALSE)),"",IF(VLOOKUP($A12,Results,3,FALSE)="","",IF(VLOOKUP($A12,Results,3,FALSE)="-","",IF(VLOOKUP($A12,Results,3,FALSE)="lost","L",IF(VLOOKUP($A12,Results,3,FALSE)="AS","T","W")))))) ->  | K12: =(B12*2)+(C12*0)+(D12*1) -> 0 | L12: =MIN(4-SUM(B12:D12),COUNTIF($E$3:$J$3,">"&TODAY())) -> 2 | M12: =K12+(L12*2) -> 4 | N12: =VLOOKUP($A12,MatchPlayTB,9,FALSE) -> 0
B13: =COUNTIF(E13:J13,"W") -> 0 | C13: =COUNTIF(E13:J13,"L") -> 0 | D13: =COUNTIF(E13:J13,"T") -> 0 | E13: =IF($E$3<>Players!$B$4,"",IF(ISERROR(VLOOKUP($A13,Results,3,FALSE)),"",IF(VLOOKUP($A13,Results,3,FALSE)="","",IF(VLOOKUP($A13,Results,3,FALSE)="-","",IF(VLOOKUP($A13,Results,3,FALSE)="lost","L",IF(VLOOKUP($A13,Results,3,FALSE)="AS","T","W")))))) ->  | F13: =IF($F$3<>Players!$B$4,"",IF(ISERROR(VLOOKUP($A13,Results,3,FALSE)),"",IF(VLOOKUP($A13,Results,3,FALSE)="","",IF(VLOOKUP($A13,Results,3,FALSE)="-","",IF(VLOOKUP($A13,Results,3,FALSE)="lost","L",IF(VLOOKUP($A13,Results,3,FALSE)="AS","T","W")))))) ->  | G13: =IF($G$3<>Players!$B$4,"",IF(ISERROR(VLOOKUP($A13,Results,3,FALSE)),"",IF(VLOOKUP($A13,Results,3,FALSE)="","",IF(VLOOKUP($A13,Results,3,FALSE)="-","",IF(VLOOKUP($A13,Results,3,FALSE)="lost","L",IF(VLOOKUP($A13,Results,3,FALSE)="AS","T","W")))))) ->  | H13: =IF($H$3<>Players!$B$4,"",IF(ISERROR(VLOOKUP($A13,Results,3,FALSE)),"",IF(VLOOKUP($A13,Results,3,FALSE)="","",IF(VLOOKUP($A13,Results,3,FALSE)="-","",IF(VLOOKUP($A13,Results,3,FALSE)="lost","L",IF(VLOOKUP($A13,Results,3,FALSE)="AS","T","W")))))) ->  | I13: =IF($I$3<>Players!$B$4,"",IF(ISERROR(VLOOKUP($A13,Results,3,FALSE)),"",IF(VLOOKUP($A13,Results,3,FALSE)="","",IF(VLOOKUP($A13,Results,3,FALSE)="-","",IF(VLOOKUP($A13,Results,3,FALSE)="lost","L",IF(VLOOKUP($A13,Results,3,FALSE)="AS","T","W")))))) ->  | J13: =IF($J$3<>Players!$B$4,"",IF(ISERROR(VLOOKUP($A13,Results,3,FALSE)),"",IF(VLOOKUP($A13,Results,3,FALSE)="","",IF(VLOOKUP($A13,Results,3,FALSE)="-","",IF(VLOOKUP($A13,Results,3,FALSE)="lost","L",IF(VLOOKUP($A13,Results,3,FALSE)="AS","T","W")))))) ->  | K13: =(B13*2)+(C13*0)+(D13*1) -> 0 | L13: =MIN(4-SUM(B13:D13),COUNTIF($E$3:$J$3,">"&TODAY())) -> 2 | M13: =K13+(L13*2) -> 4 | N13: =VLOOKUP($A13,MatchPlayTB,9,FALSE) -> 
B14: 0 | C14: 0 | D14: 0 | E14: =IF($E$3<>Players!$B$4,"",IF(ISERROR(VLOOKUP($A14,Results,3,FALSE)),"",IF(VLOOKUP($A14,Results,3,FALSE)="","",IF(VLOOKUP($A14,Results,3,FALSE)="-","",IF(VLOOKUP($A14,Results,3,FALSE)="lost","L",IF(VLOOKUP($A14,Results,3,FALSE)="AS","T","W")))))) ->  | F14: =IF($F$3<>Players!$B$4,"",IF(ISERROR(VLOOKUP($A14,Results,3,FALSE)),"",IF(VLOOKUP($A14,Results,3,FALSE)="","",IF(VLOOKUP($A14,Results,3,FALSE)="-","",IF(VLOOKUP($A14,Results,3,FALSE)="lost","L",IF(VLOOKUP($A14,Results,3,FALSE)="AS","T","W")))))) ->  | G14: =IF($G$3<>Players!$B$4,"",IF(ISERROR(VLOOKUP($A14,Results,3,FALSE)),"",IF(VLOOKUP($A14,Results,3,FALSE)="","",IF(VLOOKUP($A14,Results,3,FALSE)="-","",IF(VLOOKUP($A14,Results,3,FALSE)="lost","L",IF(VLOOKUP($A14,Results,3,FALSE)="AS","T","W")))))) ->  | H14: =IF($H$3<>Players!$B$4,"",IF(ISERROR(VLOOKUP($A14,Results,3,FALSE)),"",IF(VLOOKUP($A14,Results,3,FALSE)="","",IF(VLOOKUP($A14,Results,3,FALSE)="-","",IF(VLOOKUP($A14,Results,3,FALSE)="lost","L",IF(VLOOKUP($A14,Results,3,FALSE)="AS","T","W")))))) ->  | I14: =IF($I$3<>Players!$B$4,"",IF(ISERROR(VLOOKUP($A14,Results,3,FALSE)),"",IF(VLOOKUP($A14,Results,3,FALSE)="","",IF(VLOOKUP($A14,Results,3,FALSE)="-","",IF(VLOOKUP($A14,Results,3,FALSE)="lost","L",IF(VLOOKUP($A14,Results,3,FALSE)="AS","T","W")))))) ->  | J14: =IF($J$3<>Players!$B$4,"",IF(ISERROR(VLOOKUP($A14,Results,3,FALSE)),"",IF(VLOOKUP($A14,Results,3,FALSE)="","",IF(VLOOKUP($A14,Results,3,FALSE)="-","",IF(VLOOKUP($A14,Results,3,FALSE)="lost","L",IF(VLOOKUP($A14,Results,3,FALSE)="AS","T","W")))))) ->  | K14: 0 | L14: 2 | M14: 4
B15: =COUNTIF(E15:J15,"W") -> 0 | C15: =COUNTIF(E15:J15,"L") -> 0 | D15: =COUNTIF(E15:J15,"T") -> 0 | E15: =IF($E$3<>Players!$B$4,"",IF(ISERROR(VLOOKUP($A15,Results,3,FALSE)),"",IF(VLOOKUP($A15,Results,3,FALSE)="","",IF(VLOOKUP($A15,Results,3,FALSE)="-","",IF(VLOOKUP($A15,Results,3,FALSE)="lost","L",IF(VLOOKUP($A15,Results,3,FALSE)="AS","T","W")))))) ->  | F15: =IF($F$3<>Players!$B$4,"",IF(ISERROR(VLOOKUP($A15,Results,3,FALSE)),"",IF(VLOOKUP($A15,Results,3,FALSE)="","",IF(VLOOKUP($A15,Results,3,FALSE)="-","",IF(VLOOKUP($A15,Results,3,FALSE)="lost","L",IF(VLOOKUP($A15,Results,3,FALSE)="AS","T","W")))))) ->  | G15: =IF($G$3<>Players!$B$4,"",IF(ISERROR(VLOOKUP($A15,Results,3,FALSE)),"",IF(VLOOKUP($A15,Results,3,FALSE)="","",IF(VLOOKUP($A15,Results,3,FALSE)="-","",IF(VLOOKUP($A15,Results,3,FALSE)="lost","L",IF(VLOOKUP($A15,Results,3,FALSE)="AS","T","W")))))) ->  | H15: =IF($H$3<>Players!$B$4,"",IF(ISERROR(VLOOKUP($A15,Results,3,FALSE)),"",IF(VLOOKUP($A15,Results,3,FALSE)="","",IF(VLOOKUP($A15,Results,3,FALSE)="-","",IF(VLOOKUP($A15,Results,3,FALSE)="lost","L",IF(VLOOKUP($A15,Results,3,FALSE)="AS","T","W")))))) ->  | I15: =IF($I$3<>Players!$B$4,"",IF(ISERROR(VLOOKUP($A15,Results,3,FALSE)),"",IF(VLOOKUP($A15,Results,3,FALSE)="","",IF(VLOOKUP($A15,Results,3,FALSE)="-","",IF(VLOOKUP($A15,Results,3,FALSE)="lost","L",IF(VLOOKUP($A15,Results,3,FALSE)="AS","T","W")))))) ->  | J15: =IF($J$3<>Players!$B$4,"",IF(ISERROR(VLOOKUP($A15,Results,3,FALSE)),"",IF(VLOOKUP($A15,Results,3,FALSE)="","",IF(VLOOKUP($A15,Results,3,FALSE)="-","",IF(VLOOKUP($A15,Results,3,FALSE)="lost","L",IF(VLOOKUP($A15,Results,3,FALSE)="AS","T","W")))))) ->  | K15: =(B15*2)+(C15*0)+(D15*1) -> 0 | L15: =MIN(4-SUM(B15:D15),COUNTIF($E$3:$J$3,">"&TODAY())) -> 2 | M15: =K15+(L15*2) -> 4
B16: =COUNTIF(E16:J16,"W") -> 0 | C16: =COUNTIF(E16:J16,"L") -> 0 | D16: =COUNTIF(E16:J16,"T") -> 0 | E16: =IF($E$3<>Players!$B$4,"",IF(ISERROR(VLOOKUP($A16,Results,3,FALSE)),"",IF(VLOOKUP($A16,Results,3,FALSE)="","",IF(VLOOKUP($A16,Results,3,FALSE)="-","",IF(VLOOKUP($A16,Results,3,FALSE)="lost","L",IF(VLOOKUP($A16,Results,3,FALSE)="AS","T","W")))))) ->  | F16: =IF($F$3<>Players!$B$4,"",IF(ISERROR(VLOOKUP($A16,Results,3,FALSE)),"",IF(VLOOKUP($A16,Results,3,FALSE)="","",IF(VLOOKUP($A16,Results,3,FALSE)="-","",IF(VLOOKUP($A16,Results,3,FALSE)="lost","L",IF(VLOOKUP($A16,Results,3,FALSE)="AS","T","W")))))) ->  | G16: =IF($G$3<>Players!$B$4,"",IF(ISERROR(VLOOKUP($A16,Results,3,FALSE)),"",IF(VLOOKUP($A16,Results,3,FALSE)="","",IF(VLOOKUP($A16,Results,3,FALSE)="-","",IF(VLOOKUP($A16,Results,3,FALSE)="lost","L",IF(VLOOKUP($A16,Results,3,FALSE)="AS","T","W")))))) ->  | H16: =IF($H$3<>Players!$B$4,"",IF(ISERROR(VLOOKUP($A16,Results,3,FALSE)),"",IF(VLOOKUP($A16,Results,3,FALSE)="","",IF(VLOOKUP($A16,Results,3,FALSE)="-","",IF(VLOOKUP($A16,Results,3,FALSE)="lost","L",IF(VLOOKUP($A16,Results,3,FALSE)="AS","T","W")))))) ->  | I16: =IF($I$3<>Players!$B$4,"",IF(ISERROR(VLOOKUP($A16,Results,3,FALSE)),"",IF(VLOOKUP($A16,Results,3,FALSE)="","",IF(VLOOKUP($A16,Results,3,FALSE)="-","",IF(VLOOKUP($A16,Results,3,FALSE)="lost","L",IF(VLOOKUP($A16,Results,3,FALSE)="AS","T","W")))))) ->  | J16: =IF($J$3<>Players!$B$4,"",IF(ISERROR(VLOOKUP($A16,Results,3,FALSE)),"",IF(VLOOKUP($A16,Results,3,FALSE)="","",IF(VLOOKUP($A16,Results,3,FALSE)="-","",IF(VLOOKUP($A16,Results,3,FALSE)="lost","L",IF(VLOOKUP($A16,Results,3,FALSE)="AS","T","W")))))) ->  | K16: =(B16*2)+(C16*0)+(D16*1) -> 0 | L16: =MIN(4-SUM(B16:D16),COUNTIF($E$3:$J$3,">"&TODAY())) -> 2 | M16: =K16+(L16*2) -> 4
B17: =COUNTIF(E17:J17,"W") -> 0 | C17: =COUNTIF(E17:J17,"L") -> 0 | D17: =COUNTIF(E17:J17,"T") -> 0 | E17: =IF($E$3<>Players!$B$4,"",IF(ISERROR(VLOOKUP($A17,Results,3,FALSE)),"",IF(VLOOKUP($A17,Results,3,FALSE)="","",IF(VLOOKUP($A17,Results,3,FALSE)="-","",IF(VLOOKUP($A17,Results,3,FALSE)="lost","L",IF(VLOOKUP($A17,Results,3,FALSE)="AS","T","W")))))) ->  | F17: =IF($F$3<>Players!$B$4,"",IF(ISERROR(VLOOKUP($A17,Results,3,FALSE)),"",IF(VLOOKUP($A17,Results,3,FALSE)="","",IF(VLOOKUP($A17,Results,3,FALSE)="-","",IF(VLOOKUP($A17,Results,3,FALSE)="lost","L",IF(VLOOKUP($A17,Results,3,FALSE)="AS","T","W")))))) ->  | G17: =IF($G$3<>Players!$B$4,"",IF(ISERROR(VLOOKUP($A17,Results,3,FALSE)),"",IF(VLOOKUP($A17,Results,3,FALSE)="","",IF(VLOOKUP($A17,Results,3,FALSE)="-","",IF(VLOOKUP($A17,Results,3,FALSE)="lost","L",IF(VLOOKUP($A17,Results,3,FALSE)="AS","T","W")))))) ->  | H17: =IF($H$3<>Players!$B$4,"",IF(ISERROR(VLOOKUP($A17,Results,3,FALSE)),"",IF(VLOOKUP($A17,Results,3,FALSE)="","",IF(VLOOKUP($A17,Results,3,FALSE)="-","",IF(VLOOKUP($A17,Results,3,FALSE)="lost","L",IF(VLOOKUP($A17,Results,3,FALSE)="AS","T","W")))))) ->  | I17: =IF($I$3<>Players!$B$4,"",IF(ISERROR(VLOOKUP($A17,Results,3,FALSE)),"",IF(VLOOKUP($A17,Results,3,FALSE)="","",IF(VLOOKUP($A17,Results,3,FALSE)="-","",IF(VLOOKUP($A17,Results,3,FALSE)="lost","L",IF(VLOOKUP($A17,Results,3,FALSE)="AS","T","W")))))) ->  | J17: =IF($J$3<>Players!$B$4,"",IF(ISERROR(VLOOKUP($A17,Results,3,FALSE)),"",IF(VLOOKUP($A17,Results,3,FALSE)="","",IF(VLOOKUP($A17,Results,3,FALSE)="-","",IF(VLOOKUP($A17,Results,3,FALSE)="lost","L",IF(VLOOKUP($A17,Results,3,FALSE)="AS","T","W")))))) ->  | K17: =(B17*2)+(C17*0)+(D17*1) -> 0 | L17: =MIN(4-SUM(B17:D17),COUNTIF($E$3:$J$3,">"&TODAY())) -> 2 | M17: =K17+(L17*2) -> 4
B18: =COUNTIF(E18:J18,"W") -> 0 | C18: =COUNTIF(E18:J18,"L") -> 0 | D18: =COUNTIF(E18:J18,"T") -> 0 | E18: =IF($E$3<>Players!$B$4,"",IF(ISERROR(VLOOKUP($A18,Results,3,FALSE)),"",IF(VLOOKUP($A18,Results,3,FALSE)="","",IF(VLOOKUP($A18,Results,3,FALSE)="-","",IF(VLOOKUP($A18,Results,3,FALSE)="lost","L",IF(VLOOKUP($A18,Results,3,FALSE)="AS","T","W")))))) ->  | F18: =IF($F$3<>Players!$B$4,"",IF(ISERROR(VLOOKUP($A18,Results,3,FALSE)),"",IF(VLOOKUP($A18,Results,3,FALSE)="","",IF(VLOOKUP($A18,Results,3,FALSE)="-","",IF(VLOOKUP($A18,Results,3,FALSE)="lost","L",IF(VLOOKUP($A18,Results,3,FALSE)="AS","T","W")))))) ->  | G18: =IF($G$3<>Players!$B$4,"",IF(ISERROR(VLOOKUP($A18,Results,3,FALSE)),"",IF(VLOOKUP($A18,Results,3,FALSE)="","",IF(VLOOKUP($A18,Results,3,FALSE)="-","",IF(VLOOKUP($A18,Results,3,FALSE)="lost","L",IF(VLOOKUP($A18,Results,3,FALSE)="AS","T","W")))))) ->  | H18: =IF($H$3<>Players!$B$4,"",IF(ISERROR(VLOOKUP($A18,Results,3,FALSE)),"",IF(VLOOKUP($A18,Results,3,FALSE)="","",IF(VLOOKUP($A18,Results,3,FALSE)="-","",IF(VLOOKUP($A18,Results,3,FALSE)="lost","L",IF(VLOOKUP($A18,Results,3,FALSE)="AS","T","W")))))) ->  | I18: =IF($I$3<>Players!$B$4,"",IF(ISERROR(VLOOKUP($A18,Results,3,FALSE)),"",IF(VLOOKUP($A18,Results,3,FALSE)="","",IF(VLOOKUP($A18,Results,3,FALSE)="-","",IF(VLOOKUP($A18,Results,3,FALSE)="lost","L",IF(VLOOKUP($A18,Results,3,FALSE)="AS","T","W")))))) ->  | J18: =IF($J$3<>Players!$B$4,"",IF(ISERROR(VLOOKUP($A18,Results,3,FALSE)),"",IF(VLOOKUP($A18,Results,3,FALSE)="","",IF(VLOOKUP($A18,Results,3,FALSE)="-","",IF(VLOOKUP($A18,Results,3,FALSE)="lost","L",IF(VLOOKUP($A18,Results,3,FALSE)="AS","T","W")))))) ->  | K18: =(B18*2)+(C18*0)+(D18*1) -> 0 | L18: =MIN(4-SUM(B18:D18),COUNTIF($E$3:$J$3,">"&TODAY())) -> 2 | M18: =K18+(L18*2) -> 4
B19: =COUNTIF(E19:J19,"W") -> 0 | C19: =COUNTIF(E19:J19,"L") -> 0 | D19: =COUNTIF(E19:J19,"T") -> 0 | E19: =IF($E$3<>Players!$B$4,"",IF(ISERROR(VLOOKUP($A19,Results,3,FALSE)),"",IF(VLOOKUP($A19,Results,3,FALSE)="","",IF(VLOOKUP($A19,Results,3,FALSE)="-","",IF(VLOOKUP($A19,Results,3,FALSE)="lost","L",IF(VLOOKUP($A19,Results,3,FALSE)="AS","T","W")))))) ->  | F19: =IF($F$3<>Players!$B$4,"",IF(ISERROR(VLOOKUP($A19,Results,3,FALSE)),"",IF(VLOOKUP($A19,Results,3,FALSE)="","",IF(VLOOKUP($A19,Results,3,FALSE)="-","",IF(VLOOKUP($A19,Results,3,FALSE)="lost","L",IF(VLOOKUP($A19,Results,3,FALSE)="AS","T","W")))))) ->  | G19: =IF($G$3<>Players!$B$4,"",IF(ISERROR(VLOOKUP($A19,Results,3,FALSE)),"",IF(VLOOKUP($A19,Results,3,FALSE)="","",IF(VLOOKUP($A19,Results,3,FALSE)="-","",IF(VLOOKUP($A19,Results,3,FALSE)="lost","L",IF(VLOOKUP($A19,Results,3,FALSE)="AS","T","W")))))) ->  | H19: =IF($H$3<>Players!$B$4,"",IF(ISERROR(VLOOKUP($A19,Results,3,FALSE)),"",IF(VLOOKUP($A19,Results,3,FALSE)="","",IF(VLOOKUP($A19,Results,3,FALSE)="-","",IF(VLOOKUP($A19,Results,3,FALSE)="lost","L",IF(VLOOKUP($A19,Results,3,FALSE)="AS","T","W")))))) ->  | I19: =IF($I$3<>Players!$B$4,"",IF(ISERROR(VLOOKUP($A19,Results,3,FALSE)),"",IF(VLOOKUP($A19,Results,3,FALSE)="","",IF(VLOOKUP($A19,Results,3,FALSE)="-","",IF(VLOOKUP($A19,Results,3,FALSE)="lost","L",IF(VLOOKUP($A19,Results,3,FALSE)="AS","T","W")))))) ->  | J19: =IF($J$3<>Players!$B$4,"",IF(ISERROR(VLOOKUP($A19,Results,3,FALSE)),"",IF(VLOOKUP($A19,Results,3,FALSE)="","",IF(VLOOKUP($A19,Results,3,FALSE)="-","",IF(VLOOKUP($A19,Results,3,FALSE)="lost","L",IF(VLOOKUP($A19,Results,3,FALSE)="AS","T","W")))))) ->  | K19: =(B19*2)+(C19*0)+(D19*1) -> 0 | L19: =MIN(4-SUM(B19:D19),COUNTIF($E$3:$J$3,">"&TODAY())) -> 2 | M19: =K19+(L19*2) -> 4
A22: "B" Flight
A23: Player | B23: Record | E23: 2018-01-20 | F23: 2018-03-18 | G23: 2018-05-20 | H23: 2018-07-22 | I23: 2018-09-15 | J23: 2018-09-16 | K23: Current Points | L23: Matches Left | M23: Possible Points | N23: Tiebreaker (GOY Points)
B24: W | C24: L | D24: T
A25: Escobedo, Marco | B25: =COUNTIF(E25:J25,"W") -> 2 | C25: =COUNTIF(E25:J25,"L") -> 1 | D25: =COUNTIF(E25:J25,"T") -> 0 | E25: W | F25: L | G25: W | H25: =IF($H$3<>Players!$B$4,"",IF(ISERROR(VLOOKUP($A25,Results,3,FALSE)),"",IF(VLOOKUP($A25,Results,3,FALSE)="","",IF(VLOOKUP($A25,Results,3,FALSE)="-","",IF(VLOOKUP($A25,Results,3,FALSE)="lost","L",IF(VLOOKUP($A25,Results,3,FALSE)="AS","T","W")))))) ->  | I25: =IF($I$3<>Players!$B$4,"",IF(ISERROR(VLOOKUP($A25,Results,3,FALSE)),"",IF(VLOOKUP($A25,Results,3,FALSE)="","",IF(VLOOKUP($A25,Results,3,FALSE)="-","",IF(VLOOKUP($A25,Results,3,FALSE)="lost","L",IF(VLOOKUP($A25,Results,3,FALSE)="AS","T","W")))))) ->  | J25: =IF($J$3<>Players!$B$4,"",IF(ISERROR(VLOOKUP($A25,Results,3,FALSE)),"",IF(VLOOKUP($A25,Results,3,FALSE)="","",IF(VLOOKUP($A25,Results,3,FALSE)="-","",IF(VLOOKUP($A25,Results,3,FALSE)="lost","L",IF(VLOOKUP($A25,Results,3,FALSE)="AS","T","W")))))) ->  | K25: =(B25*2)+(C25*0)+(D25*1) -> 4 | L25: =MIN(4-SUM(B25:D25),COUNTIF($E$23:$J$23,">"&TODAY())) -> 1 | M25: =K25+(L25*2) -> 6 | N25: =VLOOKUP($A25,MatchPlayTB,9,FALSE) -> 17
A26: Havstad, Steve | B26: =COUNTIF(E26:J26,"W") -> 2 | C26: =COUNTIF(E26:J26,"L") -> 1 | D26: =COUNTIF(E26:J26,"T") -> 0 | E26: W | F26: L | G26: W | H26: =IF($H$3<>Players!$B$4,"",IF(ISERROR(VLOOKUP($A26,Results,3,FALSE)),"",IF(VLOOKUP($A26,Results,3,FALSE)="","",IF(VLOOKUP($A26,Results,3,FALSE)="-","",IF(VLOOKUP($A26,Results,3,FALSE)="lost","L",IF(VLOOKUP($A26,Results,3,FALSE)="AS","T","W")))))) ->  | I26: =IF($I$3<>Players!$B$4,"",IF(ISERROR(VLOOKUP($A26,Results,3,FALSE)),"",IF(VLOOKUP($A26,Results,3,FALSE)="","",IF(VLOOKUP($A26,Results,3,FALSE)="-","",IF(VLOOKUP($A26,Results,3,FALSE)="lost","L",IF(VLOOKUP($A26,Results,3,FALSE)="AS","T","W")))))) ->  | J26: =IF($J$3<>Players!$B$4,"",IF(ISERROR(VLOOKUP($A26,Results,3,FALSE)),"",IF(VLOOKUP($A26,Results,3,FALSE)="","",IF(VLOOKUP($A26,Results,3,FALSE)="-","",IF(VLOOKUP($A26,Results,3,FALSE)="lost","L",IF(VLOOKUP($A26,Results,3,FALSE)="AS","T","W")))))) ->  | K26: =(B26*2)+(C26*0)+(D26*1) -> 4 | L26: =MIN(4-SUM(B26:D26),COUNTIF($E$23:$J$23,">"&TODAY())) -> 1 | M26: =K26+(L26*2) -> 6 | N26: =VLOOKUP($A26,MatchPlayTB,9,FALSE) -> 3.666666667
A27: Kozachenko, Jon | B27: =COUNTIF(E27:J27,"W") -> 1 | C27: =COUNTIF(E27:J27,"L") -> 1 | D27: =COUNTIF(E27:J27,"T") -> 1 | F27: W | G27: L | H27: =IF($H$3<>Players!$B$4,"",IF(ISERROR(VLOOKUP($A27,Results,3,FALSE)),"",IF(VLOOKUP($A27,Results,3,FALSE)="","",IF(VLOOKUP($A27,Results,3,FALSE)="-","",IF(VLOOKUP($A27,Results,3,FALSE)="lost","L",IF(VLOOKUP($A27,Results,3,FALSE)="AS","T","W")))))) -> T | I27: =IF($I$3<>Players!$B$4,"",IF(ISERROR(VLOOKUP($A27,Results,3,FALSE)),"",IF(VLOOKUP($A27,Results,3,FALSE)="","",IF(VLOOKUP($A27,Results,3,FALSE)="-","",IF(VLOOKUP($A27,Results,3,FALSE)="lost","L",IF(VLOOKUP($A27,Results,3,FALSE)="AS","T","W")))))) ->  | J27: =IF($J$3<>Players!$B$4,"",IF(ISERROR(VLOOKUP($A27,Results,3,FALSE)),"",IF(VLOOKUP($A27,Results,3,FALSE)="","",IF(VLOOKUP($A27,Results,3,FALSE)="-","",IF(VLOOKUP($A27,Results,3,FALSE)="lost","L",IF(VLOOKUP($A27,Results,3,FALSE)="AS","T","W")))))) ->  | K27: =(B27*2)+(C27*0)+(D27*1) -> 3 | L27: =MIN(4-SUM(B27:D27),COUNTIF($E$23:$J$23,">"&TODAY())) -> 1 | M27: =K27+(L27*2) -> 5 | N27: =VLOOKUP($A27,MatchPlayTB,9,FALSE) -> 6
A28: Matthews, Keith | B28: =COUNTIF(E28:J28,"W") -> 1 | C28: =COUNTIF(E28:J28,"L") -> 2 | D28: =COUNTIF(E28:J28,"T") -> 1 | E28: L | F28: W | G28: L | H28: =IF($H$3<>Players!$B$4,"",IF(ISERROR(VLOOKUP($A28,Results,3,FALSE)),"",IF(VLOOKUP($A28,Results,3,FALSE)="","",IF(VLOOKUP($A28,Results,3,FALSE)="-","",IF(VLOOKUP($A28,Results,3,FALSE)="lost","L",IF(VLOOKUP($A28,Results,3,FALSE)="AS","T","W")))))) -> T | I28: =IF($I$3<>Players!$B$4,"",IF(ISERROR(VLOOKUP($A28,Results,3,FALSE)),"",IF(VLOOKUP($A28,Results,3,FALSE)="","",IF(VLOOKUP($A28,Results,3,FALSE)="-","",IF(VLOOKUP($A28,Results,3,FALSE)="lost","L",IF(VLOOKUP($A28,Results,3,FALSE)="AS","T","W")))))) ->  | J28: =IF($J$3<>Players!$B$4,"",IF(ISERROR(VLOOKUP($A28,Results,3,FALSE)),"",IF(VLOOKUP($A28,Results,3,FALSE)="","",IF(VLOOKUP($A28,Results,3,FALSE)="-","",IF(VLOOKUP($A28,Results,3,FALSE)="lost","L",IF(VLOOKUP($A28,Results,3,FALSE)="AS","T","W")))))) ->  | K28: =(B28*2)+(C28*0)+(D28*1) -> 3 | L28: =MIN(4-SUM(B28:D28),COUNTIF($E$23:$J$23,">"&TODAY())) -> 0 | M28: =K28+(L28*2) -> 3 | N28: =VLOOKUP($A28,MatchPlayTB,9,FALSE) -> 2
A29: Tenorio, Noe | B29: =COUNTIF(E29:J29,"W") -> 1 | C29: =COUNTIF(E29:J29,"L") -> 2 | D29: =COUNTIF(E29:J29,"T") -> 0 | E29: L | F29: W | G29: L | H29: =IF($H$3<>Players!$B$4,"",IF(ISERROR(VLOOKUP($A29,Results,3,FALSE)),"",IF(VLOOKUP($A29,Results,3,FALSE)="","",IF(VLOOKUP($A29,Results,3,FALSE)="-","",IF(VLOOKUP($A29,Results,3,FALSE)="lost","L",IF(VLOOKUP($A29,Results,3,FALSE)="AS","T","W")))))) ->  | I29: =IF($I$3<>Players!$B$4,"",IF(ISERROR(VLOOKUP($A29,Results,3,FALSE)),"",IF(VLOOKUP($A29,Results,3,FALSE)="","",IF(VLOOKUP($A29,Results,3,FALSE)="-","",IF(VLOOKUP($A29,Results,3,FALSE)="lost","L",IF(VLOOKUP($A29,Results,3,FALSE)="AS","T","W")))))) ->  | J29: =IF($J$3<>Players!$B$4,"",IF(ISERROR(VLOOKUP($A29,Results,3,FALSE)),"",IF(VLOOKUP($A29,Results,3,FALSE)="","",IF(VLOOKUP($A29,Results,3,FALSE)="-","",IF(VLOOKUP($A29,Results,3,FALSE)="lost","L",IF(VLOOKUP($A29,Results,3,FALSE)="AS","T","W")))))) ->  | K29: =(B29*2)+(C29*0)+(D29*1) -> 2 | L29: =MIN(4-SUM(B29:D29),COUNTIF($E$23:$J$23,">"&TODAY())) -> 1 | M29: =K29+(L29*2) -> 4 | N29: =VLOOKUP($A29,MatchPlayTB,9,FALSE) -> 6
A30: Aldrian, Mark | B30: =COUNTIF(E30:J30,"W") -> 0 | C30: =COUNTIF(E30:J30,"L") -> 0 | D30: =COUNTIF(E30:J30,"T") -> 0 | H30: =IF($H$3<>Players!$B$4,"",IF(ISERROR(VLOOKUP($A30,Results,3,FALSE)),"",IF(VLOOKUP($A30,Results,3,FALSE)="","",IF(VLOOKUP($A30,Results,3,FALSE)="-","",IF(VLOOKUP($A30,Results,3,FALSE)="lost","L",IF(VLOOKUP($A30,Results,3,FALSE)="AS","T","W")))))) ->  | I30: =IF($I$3<>Players!$B$4,"",IF(ISERROR(VLOOKUP($A30,Results,3,FALSE)),"",IF(VLOOKUP($A30,Results,3,FALSE)="","",IF(VLOOKUP($A30,Results,3,FALSE)="-","",IF(VLOOKUP($A30,Results,3,FALSE)="lost","L",IF(VLOOKUP($A30,Results,3,FALSE)="AS","T","W")))))) ->  | J30: =IF($J$3<>Players!$B$4,"",IF(ISERROR(VLOOKUP($A30,Results,3,FALSE)),"",IF(VLOOKUP($A30,Results,3,FALSE)="","",IF(VLOOKUP($A30,Results,3,FALSE)="-","",IF(VLOOKUP($A30,Results,3,FALSE)="lost","L",IF(VLOOKUP($A30,Results,3,FALSE)="AS","T","W")))))) ->  | K30: =(B30*2)+(C30*0)+(D30*1) -> 0 | L30: =MIN(4-SUM(B30:D30),COUNTIF($E$23:$J$23,">"&TODAY())) -> 2 | M30: =K30+(L30*2) -> 4 | N30: =VLOOKUP($A30,MatchPlayTB,9,FALSE) -> 0
A31: Lujan, Fil | B31: =COUNTIF(E31:J31,"W") -> 0 | C31: =COUNTIF(E31:J31,"L") -> 0 | D31: =COUNTIF(E31:J31,"T") -> 0 | H31: =IF($H$3<>Players!$B$4,"",IF(ISERROR(VLOOKUP($A31,Results,3,FALSE)),"",IF(VLOOKUP($A31,Results,3,FALSE)="","",IF(VLOOKUP($A31,Results,3,FALSE)="-","",IF(VLOOKUP($A31,Results,3,FALSE)="lost","L",IF(VLOOKUP($A31,Results,3,FALSE)="AS","T","W")))))) ->  | I31: =IF($I$3<>Players!$B$4,"",IF(ISERROR(VLOOKUP($A31,Results,3,FALSE)),"",IF(VLOOKUP($A31,Results,3,FALSE)="","",IF(VLOOKUP($A31,Results,3,FALSE)="-","",IF(VLOOKUP($A31,Results,3,FALSE)="lost","L",IF(VLOOKUP($A31,Results,3,FALSE)="AS","T","W")))))) ->  | J31: =IF($J$3<>Players!$B$4,"",IF(ISERROR(VLOOKUP($A31,Results,3,FALSE)),"",IF(VLOOKUP($A31,Results,3,FALSE)="","",IF(VLOOKUP($A31,Results,3,FALSE)="-","",IF(VLOOKUP($A31,Results,3,FALSE)="lost","L",IF(VLOOKUP($A31,Results,3,FALSE)="AS","T","W")))))) ->  | K31: =(B31*2)+(C31*0)+(D31*1) -> 0 | L31: =MIN(4-SUM(B31:D31),COUNTIF($E$23:$J$23,">"&TODAY())) -> 2 | M31: =K31+(L31*2) -> 4 | N31: =VLOOKUP($A31,MatchPlayTB,9,FALSE) -> 0
B32: =COUNTIF(E32:J32,"W") -> 0 | C32: =COUNTIF(E32:J32,"L") -> 0 | D32: =COUNTIF(E32:J32,"T") -> 0 | E32: =IF($E$3<>Players!$B$4,"",IF(ISERROR(VLOOKUP($A32,Results,3,FALSE)),"",IF(VLOOKUP($A32,Results,3,FALSE)="","",IF(VLOOKUP($A32,Results,3,FALSE)="-","",IF(VLOOKUP($A32,Results,3,FALSE)="lost","L",IF(VLOOKUP($A32,Results,3,FALSE)="AS","T","W")))))) ->  | F32: =IF($F$3<>Players!$B$4,"",IF(ISERROR(VLOOKUP($A32,Results,3,FALSE)),"",IF(VLOOKUP($A32,Results,3,FALSE)="","",IF(VLOOKUP($A32,Results,3,FALSE)="-","",IF(VLOOKUP($A32,Results,3,FALSE)="lost","L",IF(VLOOKUP($A32,Results,3,FALSE)="AS","T","W")))))) ->  | G32: =IF($G$3<>Players!$B$4,"",IF(ISERROR(VLOOKUP($A32,Results,3,FALSE)),"",IF(VLOOKUP($A32,Results,3,FALSE)="","",IF(VLOOKUP($A32,Results,3,FALSE)="-","",IF(VLOOKUP($A32,Results,3,FALSE)="lost","L",IF(VLOOKUP($A32,Results,3,FALSE)="AS","T","W")))))) ->  | H32: =IF($H$3<>Players!$B$4,"",IF(ISERROR(VLOOKUP($A32,Results,3,FALSE)),"",IF(VLOOKUP($A32,Results,3,FALSE)="","",IF(VLOOKUP($A32,Results,3,FALSE)="-","",IF(VLOOKUP($A32,Results,3,FALSE)="lost","L",IF(VLOOKUP($A32,Results,3,FALSE)="AS","T","W")))))) ->  | I32: =IF($I$3<>Players!$B$4,"",IF(ISERROR(VLOOKUP($A32,Results,3,FALSE)),"",IF(VLOOKUP($A32,Results,3,FALSE)="","",IF(VLOOKUP($A32,Results,3,FALSE)="-","",IF(VLOOKUP($A32,Results,3,FALSE)="lost","L",IF(VLOOKUP($A32,Results,3,FALSE)="AS","T","W")))))) ->  | J32: =IF($J$3<>Players!$B$4,"",IF(ISERROR(VLOOKUP($A32,Results,3,FALSE)),"",IF(VLOOKUP($A32,Results,3,FALSE)="","",IF(VLOOKUP($A32,Results,3,FALSE)="-","",IF(VLOOKUP($A32,Results,3,FALSE)="lost","L",IF(VLOOKUP($A32,Results,3,FALSE)="AS","T","W")))))) ->  | K32: =(B32*2)+(C32*0)+(D32*1) -> 0 | L32: =MIN(4-SUM(B32:D32),COUNTIF($E$23:$J$23,">"&TODAY())) -> 2 | M32: =K32+(L32*2) -> 4 | N32: =VLOOKUP($A32,MatchPlayTB,9,FALSE) -> 
B33: 0 | C33: 0 | D33: 0 | E33: =IF($E$3<>Players!$B$4,"",IF(ISERROR(VLOOKUP($A33,Results,3,FALSE)),"",IF(VLOOKUP($A33,Results,3,FALSE)="","",IF(VLOOKUP($A33,Results,3,FALSE)="-","",IF(VLOOKUP($A33,Results,3,FALSE)="lost","L",IF(VLOOKUP($A33,Results,3,FALSE)="AS","T","W")))))) ->  | F33: =IF($F$3<>Players!$B$4,"",IF(ISERROR(VLOOKUP($A33,Results,3,FALSE)),"",IF(VLOOKUP($A33,Results,3,FALSE)="","",IF(VLOOKUP($A33,Results,3,FALSE)="-","",IF(VLOOKUP($A33,Results,3,FALSE)="lost","L",IF(VLOOKUP($A33,Results,3,FALSE)="AS","T","W")))))) ->  | G33: =IF($G$3<>Players!$B$4,"",IF(ISERROR(VLOOKUP($A33,Results,3,FALSE)),"",IF(VLOOKUP($A33,Results,3,FALSE)="","",IF(VLOOKUP($A33,Results,3,FALSE)="-","",IF(VLOOKUP($A33,Results,3,FALSE)="lost","L",IF(VLOOKUP($A33,Results,3,FALSE)="AS","T","W")))))) ->  | H33: =IF($H$3<>Players!$B$4,"",IF(ISERROR(VLOOKUP($A33,Results,3,FALSE)),"",IF(VLOOKUP($A33,Results,3,FALSE)="","",IF(VLOOKUP($A33,Results,3,FALSE)="-","",IF(VLOOKUP($A33,Results,3,FALSE)="lost","L",IF(VLOOKUP($A33,Results,3,FALSE)="AS","T","W")))))) ->  | I33: =IF($I$3<>Players!$B$4,"",IF(ISERROR(VLOOKUP($A33,Results,3,FALSE)),"",IF(VLOOKUP($A33,Results,3,FALSE)="","",IF(VLOOKUP($A33,Results,3,FALSE)="-","",IF(VLOOKUP($A33,Results,3,FALSE)="lost","L",IF(VLOOKUP($A33,Results,3,FALSE)="AS","T","W")))))) ->  | J33: =IF($J$3<>Players!$B$4,"",IF(ISERROR(VLOOKUP($A33,Results,3,FALSE)),"",IF(VLOOKUP($A33,Results,3,FALSE)="","",IF(VLOOKUP($A33,Results,3,FALSE)="-","",IF(VLOOKUP($A33,Results,3,FALSE)="lost","L",IF(VLOOKUP($A33,Results,3,FALSE)="AS","T","W")))))) ->  | K33: 0 | L33: 2 | M33: 4
B34: 0 | C34: 0 | D34: 0 | E34: =IF($E$3<>Players!$B$4,"",IF(ISERROR(VLOOKUP($A34,Results,3,FALSE)),"",IF(VLOOKUP($A34,Results,3,FALSE)="","",IF(VLOOKUP($A34,Results,3,FALSE)="-","",IF(VLOOKUP($A34,Results,3,FALSE)="lost","L",IF(VLOOKUP($A34,Results,3,FALSE)="AS","T","W")))))) ->  | F34: =IF($F$3<>Players!$B$4,"",IF(ISERROR(VLOOKUP($A34,Results,3,FALSE)),"",IF(VLOOKUP($A34,Results,3,FALSE)="","",IF(VLOOKUP($A34,Results,3,FALSE)="-","",IF(VLOOKUP($A34,Results,3,FALSE)="lost","L",IF(VLOOKUP($A34,Results,3,FALSE)="AS","T","W")))))) ->  | G34: =IF($G$3<>Players!$B$4,"",IF(ISERROR(VLOOKUP($A34,Results,3,FALSE)),"",IF(VLOOKUP($A34,Results,3,FALSE)="","",IF(VLOOKUP($A34,Results,3,FALSE)="-","",IF(VLOOKUP($A34,Results,3,FALSE)="lost","L",IF(VLOOKUP($A34,Results,3,FALSE)="AS","T","W")))))) ->  | H34: =IF($H$3<>Players!$B$4,"",IF(ISERROR(VLOOKUP($A34,Results,3,FALSE)),"",IF(VLOOKUP($A34,Results,3,FALSE)="","",IF(VLOOKUP($A34,Results,3,FALSE)="-","",IF(VLOOKUP($A34,Results,3,FALSE)="lost","L",IF(VLOOKUP($A34,Results,3,FALSE)="AS","T","W")))))) ->  | I34: =IF($I$3<>Players!$B$4,"",IF(ISERROR(VLOOKUP($A34,Results,3,FALSE)),"",IF(VLOOKUP($A34,Results,3,FALSE)="","",IF(VLOOKUP($A34,Results,3,FALSE)="-","",IF(VLOOKUP($A34,Results,3,FALSE)="lost","L",IF(VLOOKUP($A34,Results,3,FALSE)="AS","T","W")))))) ->  | J34: =IF($J$3<>Players!$B$4,"",IF(ISERROR(VLOOKUP($A34,Results,3,FALSE)),"",IF(VLOOKUP($A34,Results,3,FALSE)="","",IF(VLOOKUP($A34,Results,3,FALSE)="-","",IF(VLOOKUP($A34,Results,3,FALSE)="lost","L",IF(VLOOKUP($A34,Results,3,FALSE)="AS","T","W")))))) ->  | K34: 0 | L34: 2 | M34: 4
B35: =COUNTIF(E35:J35,"W") -> 0 | C35: =COUNTIF(E35:J35,"L") -> 0 | D35: =COUNTIF(E35:J35,"T") -> 0 | E35: =IF($E$3<>Players!$B$4,"",IF(ISERROR(VLOOKUP($A35,Results,3,FALSE)),"",IF(VLOOKUP($A35,Results,3,FALSE)="","",IF(VLOOKUP($A35,Results,3,FALSE)="-","",IF(VLOOKUP($A35,Results,3,FALSE)="lost","L",IF(VLOOKUP($A35,Results,3,FALSE)="AS","T","W")))))) ->  | F35: =IF($F$3<>Players!$B$4,"",IF(ISERROR(VLOOKUP($A35,Results,3,FALSE)),"",IF(VLOOKUP($A35,Results,3,FALSE)="","",IF(VLOOKUP($A35,Results,3,FALSE)="-","",IF(VLOOKUP($A35,Results,3,FALSE)="lost","L",IF(VLOOKUP($A35,Results,3,FALSE)="AS","T","W")))))) ->  | G35: =IF($G$3<>Players!$B$4,"",IF(ISERROR(VLOOKUP($A35,Results,3,FALSE)),"",IF(VLOOKUP($A35,Results,3,FALSE)="","",IF(VLOOKUP($A35,Results,3,FALSE)="-","",IF(VLOOKUP($A35,Results,3,FALSE)="lost","L",IF(VLOOKUP($A35,Results,3,FALSE)="AS","T","W")))))) ->  | H35: =IF($H$3<>Players!$B$4,"",IF(ISERROR(VLOOKUP($A35,Results,3,FALSE)),"",IF(VLOOKUP($A35,Results,3,FALSE)="","",IF(VLOOKUP($A35,Results,3,FALSE)="-","",IF(VLOOKUP($A35,Results,3,FALSE)="lost","L",IF(VLOOKUP($A35,Results,3,FALSE)="AS","T","W")))))) ->  | I35: =IF($I$3<>Players!$B$4,"",IF(ISERROR(VLOOKUP($A35,Results,3,FALSE)),"",IF(VLOOKUP($A35,Results,3,FALSE)="","",IF(VLOOKUP($A35,Results,3,FALSE)="-","",IF(VLOOKUP($A35,Results,3,FALSE)="lost","L",IF(VLOOKUP($A35,Results,3,FALSE)="AS","T","W")))))) ->  | J35: =IF($J$3<>Players!$B$4,"",IF(ISERROR(VLOOKUP($A35,Results,3,FALSE)),"",IF(VLOOKUP($A35,Results,3,FALSE)="","",IF(VLOOKUP($A35,Results,3,FALSE)="-","",IF(VLOOKUP($A35,Results,3,FALSE)="lost","L",IF(VLOOKUP($A35,Results,3,FALSE)="AS","T","W")))))) ->  | K35: =(B35*2)+(C35*0)+(D35*1) -> 0 | L35: =MIN(4-SUM(B35:D35),COUNTIF($E$23:$J$23,">"&TODAY())) -> 2 | M35: =K35+(L35*2) -> 4
B36: =COUNTIF(E36:J36,"W") -> 0 | C36: =COUNTIF(E36:J36,"L") -> 0 | D36: =COUNTIF(E36:J36,"T") -> 0 | E36: =IF($E$3<>Players!$B$4,"",IF(ISERROR(VLOOKUP($A36,Results,3,FALSE)),"",IF(VLOOKUP($A36,Results,3,FALSE)="","",IF(VLOOKUP($A36,Results,3,FALSE)="-","",IF(VLOOKUP($A36,Results,3,FALSE)="lost","L",IF(VLOOKUP($A36,Results,3,FALSE)="AS","T","W")))))) ->  | F36: =IF($F$3<>Players!$B$4,"",IF(ISERROR(VLOOKUP($A36,Results,3,FALSE)),"",IF(VLOOKUP($A36,Results,3,FALSE)="","",IF(VLOOKUP($A36,Results,3,FALSE)="-","",IF(VLOOKUP($A36,Results,3,FALSE)="lost","L",IF(VLOOKUP($A36,Results,3,FALSE)="AS","T","W")))))) ->  | G36: =IF($G$3<>Players!$B$4,"",IF(ISERROR(VLOOKUP($A36,Results,3,FALSE)),"",IF(VLOOKUP($A36,Results,3,FALSE)="","",IF(VLOOKUP($A36,Results,3,FALSE)="-","",IF(VLOOKUP($A36,Results,3,FALSE)="lost","L",IF(VLOOKUP($A36,Results,3,FALSE)="AS","T","W")))))) ->  | H36: =IF($H$3<>Players!$B$4,"",IF(ISERROR(VLOOKUP($A36,Results,3,FALSE)),"",IF(VLOOKUP($A36,Results,3,FALSE)="","",IF(VLOOKUP($A36,Results,3,FALSE)="-","",IF(VLOOKUP($A36,Results,3,FALSE)="lost","L",IF(VLOOKUP($A36,Results,3,FALSE)="AS","T","W")))))) ->  | I36: =IF($I$3<>Players!$B$4,"",IF(ISERROR(VLOOKUP($A36,Results,3,FALSE)),"",IF(VLOOKUP($A36,Results,3,FALSE)="","",IF(VLOOKUP($A36,Results,3,FALSE)="-","",IF(VLOOKUP($A36,Results,3,FALSE)="lost","L",IF(VLOOKUP($A36,Results,3,FALSE)="AS","T","W")))))) ->  | J36: =IF($J$3<>Players!$B$4,"",IF(ISERROR(VLOOKUP($A36,Results,3,FALSE)),"",IF(VLOOKUP($A36,Results,3,FALSE)="","",IF(VLOOKUP($A36,Results,3,FALSE)="-","",IF(VLOOKUP($A36,Results,3,FALSE)="lost","L",IF(VLOOKUP($A36,Results,3,FALSE)="AS","T","W")))))) ->  | K36: =(B36*2)+(C36*0)+(D36*1) -> 0 | L36: =MIN(4-SUM(B36:D36),COUNTIF($E$23:$J$23,">"&TODAY())) -> 2 | M36: =K36+(L36*2) -> 4
B37: =COUNTIF(E37:J37,"W") -> 0 | C37: =COUNTIF(E37:J37,"L") -> 0 | D37: =COUNTIF(E37:J37,"T") -> 0 | E37: =IF($E$3<>Players!$B$4,"",IF(ISERROR(VLOOKUP($A37,Results,3,FALSE)),"",IF(VLOOKUP($A37,Results,3,FALSE)="","",IF(VLOOKUP($A37,Results,3,FALSE)="-","",IF(VLOOKUP($A37,Results,3,FALSE)="lost","L",IF(VLOOKUP($A37,Results,3,FALSE)="AS","T","W")))))) ->  | F37: =IF($F$3<>Players!$B$4,"",IF(ISERROR(VLOOKUP($A37,Results,3,FALSE)),"",IF(VLOOKUP($A37,Results,3,FALSE)="","",IF(VLOOKUP($A37,Results,3,FALSE)="-","",IF(VLOOKUP($A37,Results,3,FALSE)="lost","L",IF(VLOOKUP($A37,Results,3,FALSE)="AS","T","W")))))) ->  | G37: =IF($G$3<>Players!$B$4,"",IF(ISERROR(VLOOKUP($A37,Results,3,FALSE)),"",IF(VLOOKUP($A37,Results,3,FALSE)="","",IF(VLOOKUP($A37,Results,3,FALSE)="-","",IF(VLOOKUP($A37,Results,3,FALSE)="lost","L",IF(VLOOKUP($A37,Results,3,FALSE)="AS","T","W")))))) ->  | H37: =IF($H$3<>Players!$B$4,"",IF(ISERROR(VLOOKUP($A37,Results,3,FALSE)),"",IF(VLOOKUP($A37,Results,3,FALSE)="","",IF(VLOOKUP($A37,Results,3,FALSE)="-","",IF(VLOOKUP($A37,Results,3,FALSE)="lost","L",IF(VLOOKUP($A37,Results,3,FALSE)="AS","T","W")))))) ->  | I37: =IF($I$3<>Players!$B$4,"",IF(ISERROR(VLOOKUP($A37,Results,3,FALSE)),"",IF(VLOOKUP($A37,Results,3,FALSE)="","",IF(VLOOKUP($A37,Results,3,FALSE)="-","",IF(VLOOKUP($A37,Results,3,FALSE)="lost","L",IF(VLOOKUP($A37,Results,3,FALSE)="AS","T","W")))))) ->  | J37: =IF($J$3<>Players!$B$4,"",IF(ISERROR(VLOOKUP($A37,Results,3,FALSE)),"",IF(VLOOKUP($A37,Results,3,FALSE)="","",IF(VLOOKUP($A37,Results,3,FALSE)="-","",IF(VLOOKUP($A37,Results,3,FALSE)="lost","L",IF(VLOOKUP($A37,Results,3,FALSE)="AS","T","W")))))) ->  | K37: =(B37*2)+(C37*0)+(D37*1) -> 0 | L37: =MIN(4-SUM(B37:D37),COUNTIF($E$23:$J$23,">"&TODAY())) -> 2 | M37: =K37+(L37*2) -> 4
B38: =COUNTIF(E38:J38,"W") -> 0 | C38: =COUNTIF(E38:J38,"L") -> 0 | D38: =COUNTIF(E38:J38,"T") -> 0 | E38: =IF($E$3<>Players!$B$4,"",IF(ISERROR(VLOOKUP($A38,Results,3,FALSE)),"",IF(VLOOKUP($A38,Results,3,FALSE)="","",IF(VLOOKUP($A38,Results,3,FALSE)="-","",IF(VLOOKUP($A38,Results,3,FALSE)="lost","L",IF(VLOOKUP($A38,Results,3,FALSE)="AS","T","W")))))) ->  | F38: =IF($F$3<>Players!$B$4,"",IF(ISERROR(VLOOKUP($A38,Results,3,FALSE)),"",IF(VLOOKUP($A38,Results,3,FALSE)="","",IF(VLOOKUP($A38,Results,3,FALSE)="-","",IF(VLOOKUP($A38,Results,3,FALSE)="lost","L",IF(VLOOKUP($A38,Results,3,FALSE)="AS","T","W")))))) ->  | G38: =IF($G$3<>Players!$B$4,"",IF(ISERROR(VLOOKUP($A38,Results,3,FALSE)),"",IF(VLOOKUP($A38,Results,3,FALSE)="","",IF(VLOOKUP($A38,Results,3,FALSE)="-","",IF(VLOOKUP($A38,Results,3,FALSE)="lost","L",IF(VLOOKUP($A38,Results,3,FALSE)="AS","T","W")))))) ->  | H38: =IF($H$3<>Players!$B$4,"",IF(ISERROR(VLOOKUP($A38,Results,3,FALSE)),"",IF(VLOOKUP($A38,Results,3,FALSE)="","",IF(VLOOKUP($A38,Results,3,FALSE)="-","",IF(VLOOKUP($A38,Results,3,FALSE)="lost","L",IF(VLOOKUP($A38,Results,3,FALSE)="AS","T","W")))))) ->  | I38: =IF($I$3<>Players!$B$4,"",IF(ISERROR(VLOOKUP($A38,Results,3,FALSE)),"",IF(VLOOKUP($A38,Results,3,FALSE)="","",IF(VLOOKUP($A38,Results,3,FALSE)="-","",IF(VLOOKUP($A38,Results,3,FALSE)="lost","L",IF(VLOOKUP($A38,Results,3,FALSE)="AS","T","W")))))) ->  | J38: =IF($J$3<>Players!$B$4,"",IF(ISERROR(VLOOKUP($A38,Results,3,FALSE)),"",IF(VLOOKUP($A38,Results,3,FALSE)="","",IF(VLOOKUP($A38,Results,3,FALSE)="-","",IF(VLOOKUP($A38,Results,3,FALSE)="lost","L",IF(VLOOKUP($A38,Results,3,FALSE)="AS","T","W")))))) ->  | K38: =(B38*2)+(C38*0)+(D38*1) -> 0 | L38: =MIN(4-SUM(B38:D38),COUNTIF($E$23:$J$23,">"&TODAY())) -> 2 | M38: =K38+(L38*2) -> 4
B39: =COUNTIF(E39:J39,"W") -> 0 | C39: =COUNTIF(E39:J39,"L") -> 0 | D39: =COUNTIF(E39:J39,"T") -> 0 | E39: =IF($E$3<>Players!$B$4,"",IF(ISERROR(VLOOKUP($A39,Results,3,FALSE)),"",IF(VLOOKUP($A39,Results,3,FALSE)="","",IF(VLOOKUP($A39,Results,3,FALSE)="-","",IF(VLOOKUP($A39,Results,3,FALSE)="lost","L",IF(VLOOKUP($A39,Results,3,FALSE)="AS","T","W")))))) ->  | F39: =IF($F$3<>Players!$B$4,"",IF(ISERROR(VLOOKUP($A39,Results,3,FALSE)),"",IF(VLOOKUP($A39,Results,3,FALSE)="","",IF(VLOOKUP($A39,Results,3,FALSE)="-","",IF(VLOOKUP($A39,Results,3,FALSE)="lost","L",IF(VLOOKUP($A39,Results,3,FALSE)="AS","T","W")))))) ->  | G39: =IF($G$3<>Players!$B$4,"",IF(ISERROR(VLOOKUP($A39,Results,3,FALSE)),"",IF(VLOOKUP($A39,Results,3,FALSE)="","",IF(VLOOKUP($A39,Results,3,FALSE)="-","",IF(VLOOKUP($A39,Results,3,FALSE)="lost","L",IF(VLOOKUP($A39,Results,3,FALSE)="AS","T","W")))))) ->  | H39: =IF($H$3<>Players!$B$4,"",IF(ISERROR(VLOOKUP($A39,Results,3,FALSE)),"",IF(VLOOKUP($A39,Results,3,FALSE)="","",IF(VLOOKUP($A39,Results,3,FALSE)="-","",IF(VLOOKUP($A39,Results,3,FALSE)="lost","L",IF(VLOOKUP($A39,Results,3,FALSE)="AS","T","W")))))) ->  | I39: =IF($I$3<>Players!$B$4,"",IF(ISERROR(VLOOKUP($A39,Results,3,FALSE)),"",IF(VLOOKUP($A39,Results,3,FALSE)="","",IF(VLOOKUP($A39,Results,3,FALSE)="-","",IF(VLOOKUP($A39,Results,3,FALSE)="lost","L",IF(VLOOKUP($A39,Results,3,FALSE)="AS","T","W")))))) ->  | J39: =IF($J$3<>Players!$B$4,"",IF(ISERROR(VLOOKUP($A39,Results,3,FALSE)),"",IF(VLOOKUP($A39,Results,3,FALSE)="","",IF(VLOOKUP($A39,Results,3,FALSE)="-","",IF(VLOOKUP($A39,Results,3,FALSE)="lost","L",IF(VLOOKUP($A39,Results,3,FALSE)="AS","T","W")))))) ->  | K39: =(B39*2)+(C39*0)+(D39*1) -> 0 | L39: =MIN(4-SUM(B39:D39),COUNTIF($E$23:$J$23,">"&TODAY())) -> 2 | M39: =K39+(L39*2) -> 4

Sheet Winners
C1: HACK ATTACK GOLF CLUB | H1: =IF(Players!B1="","",Players!B1) -> Mile Square Golf Course (Players)
C2: Tournament Results | H2: =IF(Players!B4="","",Players!B4) -> 2018-07-22
A3: Place | B3: Front | C3: Score | D3: Money | E3: Place | F3: Back | G3: Score | H3: Money | I3: Place | J3: Total | K3: Score | L3: Money
A4: =IF(B4="","",IF(C4=C5,"T1","1")) -> 1 | B4: =IF(OR(G113="",G113="-"),"",F113) -> Jones, Gary | C4: =IF(OR(G113="",G113="-"),"",G113) -> 32.5 | D4: =IF(B4="","",IF(AND(A4="1",A5=""),0.3*Pots!$D$121/COUNT($C$4:$C$13),IF(A4="1",0.2*Pots!$D$121,IF(A4="T1",0.3*Pots!$D$121/COUNT($C$4:$C$13))))) -> 24 | E4: =IF(F4="","",IF(G4=G5,"T1","1")) -> 1 | F4: =IF(OR(K113="",K113="-"),"",J113) -> Tenorio, Noe | G4: =IF(OR(K113="",K113="-"),"",K113) -> 32.5 | H4: =IF(F4="","",IF(AND(E4="1",E5=""),0.3*Pots!$D$121/COUNT($G$4:$G$13),IF(E4="1",0.2*Pots!$D$121,IF(E4="T1",0.3*Pots!$D$121/COUNT($G$4:$G$13))))) -> 24 | I4: =IF(J4="","",IF(K4=K5,"T1","1")) -> 1 | J4: =IF(OR(O113="",O113="-"),"",N113) -> Jones, Gary | K4: =IF(OR(O113="",O113="-"),"",O113) -> 66 | L4: =IF(J4="","",IF(AND(I4="1",I5=""),0.4*Pots!$D$121/COUNT($K$4:$K$13),IF(I4="1",0.25*Pots!$D$121,IF(I4="T1",0.4*Pots!$D$121/COUNT($K$4:$K$13))))) -> 30
A5: =IF(B5="","",IF(C5=C4,"T1",IF(AND(C5<>C4,C5=C6),"T2","2"))) -> 2 | B5: =IF(OR(G114="",G114="-"),"",IF(G114<=SMALL($G$113:$G$122,2),F114,"")) -> Kozachenko, Jon | C5: =IF(OR(G114="",G114="-"),"",IF(G114<=SMALL($G$113:$G$122,2),G114,"")) -> 33.5 | D5: =IF(B5="","",IF(A5="T1",0.3*Pots!$D$121/COUNT($C$4:$C$13),IF(A5="2",0.1*Pots!$D$121,IF(A5="T2",0.1*Pots!$D$121/(COUNT($C$4:$C$13)-1))))) -> 12 | E5: =IF(F5="","",IF(G5=G4,"T1",IF(AND(G5<>G4,G5=G6),"T2","2"))) -> T2 | F5: =IF(OR(K114="",K114="-"),"",IF(K114<=SMALL($K$113:$K$122,2),J114,"")) -> Jones, Gary | G5: =IF(OR(K114="",K114="-"),"",IF(K114<=SMALL($K$113:$K$122,2),K114,"")) -> 33.5 | H5: =IF(F5="","",IF(E5="T1",0.3*Pots!$D$121/COUNT($G$4:$G$13),IF(E5="2",0.1*Pots!$D$121,IF(E5="T2",0.1*Pots!$D$121/(COUNT($G$4:$G$13)-1))))) -> 6 | I5: =IF(J5="","",IF(K5=K4,"T1",IF(AND(K5<>K4,K5=K6),"T2","2"))) -> T2 | J5: =IF(OR(O114="",O114="-"),"",IF(O114<=SMALL($O$113:$O$122,2),N114,"")) -> Tenorio, Noe | K5: =IF(OR(O114="",O114="-"),"",IF(O114<=SMALL($O$113:$O$122,2),O114,"")) -> 69 | L5: =IF(J5="","",IF(I5="T1",0.4*Pots!$D$121/COUNT($K$4:$K$13),IF(I5="2",0.15*Pots!$D$121,IF(I5="T2",0.15*Pots!$D$121/(COUNT($K$4:$K$13)-1))))) -> 9
A6: =IF(B6="","",IF(C6=$C$4,"T1","T2")) ->  | D6: =IF(B6="","",IF(A6="T1",0.3*Pots!$D$121/COUNT($C$4:$C$13),IF(A6="2",0.1*Pots!$D$121,IF(A6="T2",0.1*Pots!$D$121/(COUNT($C$4:$C$13)-1))))) ->  | E6: =IF(F6="","",IF(G6=$G$4,"T1","T2")) -> T2 | F6: Blodgett, Kevin | G6: 33.5 | H6: =IF(F6="","",IF(E6="T1",0.3*Pots!$D$121/COUNT($G$4:$G$13),IF(E6="2",0.1*Pots!$D$121,IF(E6="T2",0.1*Pots!$D$121/(COUNT($G$4:$G$13)-1))))) -> 6 | I6: =IF(J6="","",IF(K6=$K$4,"T1","T2")) -> T2 | J6: Kozachenko, Jon | K6: 69 | L6: =IF(J6="","",IF(I6="T1",0.4*Pots!$D$121/COUNT($K$4:$K$13),IF(I6="2",0.15*Pots!$D$121,IF(I6="T2",0.15*Pots!$D$121/(COUNT($K$4:$K$13)-1))))) -> 9
A7: =IF(B7="","",IF(C7=$C$4,"T1","T2")) ->  | D7: =IF(B7="","",IF(A7="T1",0.3*Pots!$D$121/COUNT($C$4:$C$13),IF(A7="2",0.1*Pots!$D$121,IF(A7="T2",0.1*Pots!$D$121/(COUNT($C$4:$C$13)-1))))) ->  | E7: =IF(F7="","",IF(G7=$G$4,"T1","T2")) ->  | H7: =IF(F7="","",IF(E7="T1",0.3*Pots!$D$121/COUNT($G$4:$G$13),IF(E7="2",0.1*Pots!$D$121,IF(E7="T2",0.1*Pots!$D$121/(COUNT($G$4:$G$13)-1))))) ->  | I7: =IF(J7="","",IF(K7=$K$4,"T1","T2")) ->  | L7: =IF(J7="","",IF(I7="T1",0.4*Pots!$D$121/COUNT($K$4:$K$13),IF(I7="2",0.15*Pots!$D$121,IF(I7="T2",0.15*Pots!$D$121/(COUNT($K$4:$K$13)-1))))) -> 
D8: =IF(B8="","",IF(A8="T1",0.3*Pots!$D$121/COUNT($C$4:$C$13),IF(A8="2",0.1*Pots!$D$121,IF(A8="T2",0.1*Pots!$D$121/(COUNT($C$4:$C$13)-1))))) ->  | H8: =IF(F8="","",IF(E8="T1",0.3*Pots!$D$121/COUNT($G$4:$G$13),IF(E8="2",0.1*Pots!$D$121,IF(E8="T2",0.1*Pots!$D$121/(COUNT($G$4:$G$13)-1))))) ->  | L8: =IF(J8="","",IF(I8="T1",0.4*Pots!$D$121/COUNT($K$4:$K$13),IF(I8="2",0.15*Pots!$D$121,IF(I8="T2",0.15*Pots!$D$121/(COUNT($K$4:$K$13)-1))))) -> 
D9: =IF(B9="","",IF(A9="T1",0.3*Pots!$D$121/COUNT($C$4:$C$13),IF(A9="2",0.1*Pots!$D$121,IF(A9="T2",0.1*Pots!$D$121/(COUNT($C$4:$C$13)-1))))) ->  | H9: =IF(F9="","",IF(E9="T1",0.3*Pots!$D$121/COUNT($G$4:$G$13),IF(E9="2",0.1*Pots!$D$121,IF(E9="T2",0.1*Pots!$D$121/(COUNT($G$4:$G$13)-1))))) ->  | L9: =IF(J9="","",IF(I9="T1",0.4*Pots!$D$121/COUNT($K$4:$K$13),IF(I9="2",0.15*Pots!$D$121,IF(I9="T2",0.15*Pots!$D$121/(COUNT($K$4:$K$13)-1))))) -> 
D10: =IF(B10="","",IF(A10="T1",0.3*Pots!$D$121/COUNT($C$4:$C$13),IF(A10="2",0.1*Pots!$D$121,IF(A10="T2",0.1*Pots!$D$121/(COUNT($C$4:$C$13)-1))))) ->  | H10: =IF(F10="","",IF(E10="T1",0.3*Pots!$D$121/COUNT($G$4:$G$13),IF(E10="2",0.1*Pots!$D$121,IF(E10="T2",0.1*Pots!$D$121/(COUNT($G$4:$G$13)-1))))) ->  | L10: =IF(J10="","",IF(I10="T1",0.4*Pots!$D$121/COUNT($K$4:$K$13),IF(I10="2",0.15*Pots!$D$121,IF(I10="T2",0.15*Pots!$D$121/(COUNT($K$4:$K$13)-1))))) -> 
D11: =IF(B11="","",IF(A11="T1",0.3*Pots!$D$121/COUNT($C$4:$C$13),IF(A11="2",0.1*Pots!$D$121,IF(A11="T2",0.1*Pots!$D$121/(COUNT($C$4:$C$13)-1))))) ->  | H11: =IF(F11="","",IF(E11="T1",0.3*Pots!$D$121/COUNT($G$4:$G$13),IF(E11="2",0.1*Pots!$D$121,IF(E11="T2",0.1*Pots!$D$121/(COUNT($G$4:$G$13)-1))))) ->  | L11: =IF(J11="","",IF(I11="T1",0.4*Pots!$D$121/COUNT($K$4:$K$13),IF(I11="2",0.15*Pots!$D$121,IF(I11="T2",0.15*Pots!$D$121/(COUNT($K$4:$K$13)-1))))) -> 
D12: =IF(B12="","",IF(A12="T1",0.3*Pots!$D$121/COUNT($C$4:$C$13),IF(A12="2",0.1*Pots!$D$121,IF(A12="T2",0.1*Pots!$D$121/(COUNT($C$4:$C$13)-1))))) ->  | H12: =IF(F12="","",IF(E12="T1",0.3*Pots!$D$121/COUNT($G$4:$G$13),IF(E12="2",0.1*Pots!$D$121,IF(E12="T2",0.1*Pots!$D$121/(COUNT($G$4:$G$13)-1))))) ->  | L12: =IF(J12="","",IF(I12="T1",0.4*Pots!$D$121/COUNT($K$4:$K$13),IF(I12="2",0.15*Pots!$D$121,IF(I12="T2",0.15*Pots!$D$121/(COUNT($K$4:$K$13)-1))))) -> 
D13: =IF(B13="","",IF(A13="T1",0.3*Pots!$D$121/COUNT($C$4:$C$13),IF(A13="2",0.1*Pots!$D$121,IF(A13="T2",0.1*Pots!$D$121/(COUNT($C$4:$C$13)-1))))) ->  | H13: =IF(F13="","",IF(E13="T1",0.3*Pots!$D$121/COUNT($G$4:$G$13),IF(E13="2",0.1*Pots!$D$121,IF(E13="T2",0.1*Pots!$D$121/(COUNT($G$4:$G$13)-1))))) ->  | L13: =IF(J13="","",IF(I13="T1",0.4*Pots!$D$121/COUNT($K$4:$K$13),IF(I13="2",0.15*Pots!$D$121,IF(I13="T2",0.15*Pots!$D$121/(COUNT($K$4:$K$13)-1))))) -> 
A16: Hole | B16: A-Skins | C16: Score | D16: Money | E16: Hole | F16: B-Skins | G16: Score | H16: Money | I16: Place | J16: Putts | K16: Total | L16: Money | Q16: Hole | R16: Par | S16: Par-3s
A17: =IF(Players!$H$4="","",Players!$H$4) -> 1 | B17: =IF($V$162="","",VLOOKUP($V$166,ASkins,2,FALSE)) ->  | C17: =IF($V$162="","",IF($V$164=$V$111-1,"Birdie-"&$V$164,IF($V$164=$V$111-2,"Eagle-"&$V$164,IF($V$164=$V$111-3,"Double Eagle-"&$V$164)))) ->  | D17: =IF($B17="","",Pots!$E$121/(18-COUNTBLANK($B$17:$B$34))) ->  | E17: =IF(Players!$H$4="","",Players!$H$4) -> 1 | F17: =IF($AP$162="","",VLOOKUP($AP$166,BSkins,2,FALSE)) ->  | G17: =IF($AP$162="","",IF($AP$164=$AP$111-1,"Birdie-"&$AP$164,IF($AP$164=$AP$111-2,"Eagle-"&$AP$164,IF($AP$164=$AP$111-3,"Double Eagle-"&$AP$164)))) ->  | H17: =IF($F17="","",Pots!$F$121/(18-COUNTBLANK($F$17:$F$34))) ->  | I17: =IF(J17="","",IF(K17=K18,"T1","1")) -> 1 | J17: =IF(OR(C113="",C113="-"),"",B113) -> Escobedo, Hector | K17: =IF(OR(C113="",C113="-"),"",C113) -> 28 | L17: =IF($J17="","",Pots!$G$121/(9-COUNTBLANK($J$26:$J$34)+1)/(8-COUNTBLANK($J$17:$J$24))) -> 16 | Q17: =Players!$H4 -> 1 | R17: =Players!$H5 -> 4 | S17: =IF($R17=3,$Q17,"") -> 
A18: =IF(Players!$I$4="","",Players!$I$4) -> 2 | B18: =IF($W$162="","",VLOOKUP($W$166,ASkins,2,FALSE)) ->  | C18: =IF($W$162="","",IF($W$164=$W$111-1,"Birdie-"&$W$164,IF($W$164=$W$111-2,"Eagle-"&$W$164,IF($W$164=$W$111-3,"Double Eagle-"&$W$164)))) ->  | D18: =IF($B18="","",Pots!$E$121/(18-COUNTBLANK($B$17:$B$34))) ->  | E18: =IF(Players!$I$4="","",Players!$I$4) -> 2 | F18: =IF($AQ$162="","",VLOOKUP($AQ$166,BSkins,2,FALSE)) ->  | G18: =IF($AQ$162="","",IF($AQ$164=$AQ$111-1,"Birdie-"&$AQ$164,IF($AQ$164=$AQ$111-2,"Eagle-"&$AQ$164,IF($AQ$164=$AQ$111-3,"Double Eagle-"&$AQ$164)))) ->  | H18: =IF($F18="","",Pots!$F$121/(18-COUNTBLANK($F$17:$F$34))) ->  | I18: =IF(J18="","",IF(K18=$K$17,"T1","")) ->  | J18: =IF(OR(C114="",C114="-"),"",IF(C114=SMALL($C$113:$C$122,1),B114,"")) ->  | K18: =IF(OR(C114="",C114="-"),"",IF(C114=SMALL($C$113:$C$122,1),C114,"")) ->  | L18: =IF($J18="","",Pots!$G$121/(9-COUNTBLANK($J$26:$J$34)+1)/(8-COUNTBLANK($J$17:$J$24))) ->  | Q18: =Players!$I4 -> 2 | R18: =Players!$I5 -> 4 | S18: =IF($R18=3,$Q18,"") -> 
A19: =IF(Players!$J$4="","",Players!$J$4) -> 3 | B19: =IF($X$162="","",VLOOKUP($X$166,ASkins,2,FALSE)) ->  | C19: =IF($X$162="","",IF($X$164=$X$111-1,"Birdie-"&$X$164,IF($X$164=$X$111-2,"Eagle-"&$X$164,IF($X$164=$X$111-3,"Double Eagle-"&$X$164)))) ->  | D19: =IF($B19="","",Pots!$E$121/(18-COUNTBLANK($B$17:$B$34))) ->  | E19: =IF(Players!$J$4="","",Players!$J$4) -> 3 | F19: =IF($AR$162="","",VLOOKUP($AR$166,BSkins,2,FALSE)) ->  | G19: =IF($AR$162="","",IF($AR$164=$AR$111-1,"Birdie-"&$AR$164,IF($AR$164=$AR$111-2,"Eagle-"&$AR$164,IF($AR$164=$AR$111-3,"Double Eagle-"&$AR$164)))) ->  | H19: =IF($F19="","",Pots!$F$121/(18-COUNTBLANK($F$17:$F$34))) ->  | L19: =IF($J19="","",Pots!$G$121/(9-COUNTBLANK($J$26:$J$34)+1)/(8-COUNTBLANK($J$17:$J$24))) ->  | Q19: =Players!$J4 -> 3 | R19: =Players!$J5 -> 4
A20: =IF(Players!$K$4="","",Players!$K$4) -> 4 | B20: =IF($Y$162="","",VLOOKUP($Y$166,ASkins,2,FALSE)) -> Jones, Gary | C20: =IF($Y$162="","",IF($Y$164=$Y$111-1,"Birdie-"&$Y$164,IF($Y$164=$Y$111-2,"Eagle-"&$Y$164,IF($Y$164=$Y$111-3,"Double Eagle-"&$Y$164)))) -> Birdie-2 | D20: =IF($B20="","",Pots!$E$121/(18-COUNTBLANK($B$17:$B$34))) -> 7.5 | E20: =IF(Players!$K$4="","",Players!$K$4) -> 4 | F20: =IF($AS$162="","",VLOOKUP($AS$166,BSkins,2,FALSE)) ->  | G20: =IF($AS$162="","",IF($AS$164=$AS$111-1,"Birdie-"&$AS$164,IF($AS$164=$AS$111-2,"Eagle-"&$AS$164,IF($AS$164=$AS$111-3,"Double Eagle-"&$AS$164)))) ->  | H20: =IF($F20="","",Pots!$F$121/(18-COUNTBLANK($F$17:$F$34))) ->  | L20: =IF($J20="","",Pots!$G$121/(9-COUNTBLANK($J$26:$J$34)+1)/(8-COUNTBLANK($J$17:$J$24))) ->  | Q20: =Players!$K4 -> 4 | R20: =Players!$K5 -> 3 | S20: 4
A21: =IF(Players!$L$4="","",Players!$L$4) -> 5 | B21: =IF($Z$162="","",VLOOKUP($Z$166,ASkins,2,FALSE)) ->  | C21: =IF($Z$162="","",IF($Z$164=$Z$111-1,"Birdie-"&$Z$164,IF($Z$164=$Z$111-2,"Eagle-"&$Z$164,IF($Z$164=$Z$111-3,"Double Eagle-"&$Z$164)))) ->  | D21: =IF($B21="","",Pots!$E$121/(18-COUNTBLANK($B$17:$B$34))) ->  | E21: =IF(Players!$L$4="","",Players!$L$4) -> 5 | F21: =IF($AT$162="","",VLOOKUP($AT$166,BSkins,2,FALSE)) ->  | G21: =IF($AT$162="","",IF($AT$164=$AT$111-1,"Birdie-"&$AT$164,IF($AT$164=$AT$111-2,"Eagle-"&$AT$164,IF($AT$164=$AT$111-3,"Double Eagle-"&$AT$164)))) ->  | H21: =IF($F21="","",Pots!$F$121/(18-COUNTBLANK($F$17:$F$34))) ->  | L21: =IF($J21="","",Pots!$G$121/(9-COUNTBLANK($J$26:$J$34)+1)/(8-COUNTBLANK($J$17:$J$24))) ->  | Q21: =Players!$L4 -> 5 | R21: =Players!$L5 -> 5
A22: =IF(Players!$M$4="","",Players!$M$4) -> 6 | B22: =IF($AA$162="","",VLOOKUP($AA$166,ASkins,2,FALSE)) ->  | C22: =IF($AA$162="","",IF($AA$164=$AA$111-1,"Birdie-"&$AA$164,IF($AA$164=$AA$111-2,"Eagle-"&$AA$164,IF($AA$164=$AA$111-3,"Double Eagle-"&$AA$164)))) ->  | D22: =IF($B22="","",Pots!$E$121/(18-COUNTBLANK($B$17:$B$34))) ->  | E22: =IF(Players!$M$4="","",Players!$M$4) -> 6 | F22: =IF($AU$162="","",VLOOKUP($AU$166,BSkins,2,FALSE)) ->  | G22: =IF($AU$162="","",IF($AU$164=$AU$111-1,"Birdie-"&$AU$164,IF($AU$164=$AU$111-2,"Eagle-"&$AU$164,IF($AU$164=$AU$111-3,"Double Eagle-"&$AU$164)))) ->  | H22: =IF($F22="","",Pots!$F$121/(18-COUNTBLANK($F$17:$F$34))) ->  | L22: =IF($J22="","",Pots!$G$121/(9-COUNTBLANK($J$26:$J$34)+1)/(8-COUNTBLANK($J$17:$J$24))) ->  | Q22: =Players!$M4 -> 6 | R22: =Players!$M5 -> 3 | S22: 6
A23: =IF(Players!$N$4="","",Players!$N$4) -> 7 | B23: =IF($AB$162="","",VLOOKUP($AB$166,ASkins,2,FALSE)) ->  | C23: =IF($AB$162="","",IF($AB$164=$AB$111-1,"Birdie-"&$AB$164,IF($AB$164=$AB$111-2,"Eagle-"&$AB$164,IF($AB$164=$AB$111-3,"Double Eagle-"&$AB$164)))) ->  | D23: =IF($B23="","",Pots!$E$121/(18-COUNTBLANK($B$17:$B$34))) ->  | E23: =IF(Players!$N$4="","",Players!$N$4) -> 7 | F23: =IF($AV$162="","",VLOOKUP($AV$166,BSkins,2,FALSE)) ->  | G23: =IF($AV$162="","",IF($AV$164=$AV$111-1,"Birdie-"&$AV$164,IF($AV$164=$AV$111-2,"Eagle-"&$AV$164,IF($AV$164=$AV$111-3,"Double Eagle-"&$AV$164)))) ->  | H23: =IF($F23="","",Pots!$F$121/(18-COUNTBLANK($F$17:$F$34))) ->  | L23: =IF($J23="","",Pots!$G$121/(9-COUNTBLANK($J$26:$J$34)+1)/(8-COUNTBLANK($J$17:$J$24))) ->  | Q23: =Players!$N4 -> 7 | R23: =Players!$N5 -> 4
A24: =IF(Players!$O$4="","",Players!$O$4) -> 8 | B24: =IF($AC$162="","",VLOOKUP($AC$166,ASkins,2,FALSE)) ->  | C24: =IF($AC$162="","",IF($AC$164=$AC$111-1,"Birdie-"&$AC$164,IF($AC$164=$AC$111-2,"Eagle-"&$AC$164,IF($AC$164=$AC$111-3,"Double Eagle-"&$AC$164)))) ->  | D24: =IF($B24="","",Pots!$E$121/(18-COUNTBLANK($B$17:$B$34))) ->  | E24: =IF(Players!$O$4="","",Players!$O$4) -> 8 | F24: =IF($AW$162="","",VLOOKUP($AW$166,BSkins,2,FALSE)) ->  | G24: =IF($AW$162="","",IF($AW$164=$AW$111-1,"Birdie-"&$AW$164,IF($AW$164=$AW$111-2,"Eagle-"&$AW$164,IF($AW$164=$AW$111-3,"Double Eagle-"&$AW$164)))) ->  | H24: =IF($F24="","",Pots!$F$121/(18-COUNTBLANK($F$17:$F$34))) ->  | L24: =IF($J24="","",Pots!$G$121/(9-COUNTBLANK($J$26:$J$34)+1)/(8-COUNTBLANK($J$17:$J$24))) ->  | Q24: =Players!$O4 -> 8 | R24: =Players!$O5 -> 4
A25: =IF(Players!$P$4="","",Players!$P$4) -> 9 | B25: =IF($AD$162="","",VLOOKUP($AD$166,ASkins,2,FALSE)) -> Jones, Gary | C25: =IF($AD$162="","",IF($AD$164=$AD$111-1,"Birdie-"&$AD$164,IF($AD$164=$AD$111-2,"Eagle-"&$AD$164,IF($AD$164=$AD$111-3,"Double Eagle-"&$AD$164)))) -> Birdie-4 | D25: =IF($B25="","",Pots!$E$121/(18-COUNTBLANK($B$17:$B$34))) -> 7.5 | E25: =IF(Players!$P$4="","",Players!$P$4) -> 9 | F25: =IF($AX$162="","",VLOOKUP($AX$166,BSkins,2,FALSE)) ->  | G25: =IF($AX$162="","",IF($AX$164=$AX$111-1,"Birdie-"&$AX$164,IF($AX$164=$AX$111-2,"Eagle-"&$AX$164,IF($AX$164=$AX$111-3,"Double Eagle-"&$AX$164)))) ->  | H25: =IF($F25="","",Pots!$F$121/(18-COUNTBLANK($F$17:$F$34))) ->  | I25: Hole | J25: CPs | L25: Money | Q25: =Players!$P4 -> 9 | R25: =Players!$P5 -> 5
A26: =IF(Players!$R$4="","",Players!$R$4) -> 10 | B26: =IF($AE$162="","",VLOOKUP($AE$166,ASkins,2,FALSE)) -> Christen, Lou | C26: =IF($AE$162="","",IF($AE$164=$AE$111-1,"Birdie-"&$AE$164,IF($AE$164=$AE$111-2,"Eagle-"&$AE$164,IF($AE$164=$AE$111-3,"Double Eagle-"&$AE$164)))) -> Birdie-3 | D26: =IF($B26="","",Pots!$E$121/(18-COUNTBLANK($B$17:$B$34))) -> 7.5 | E26: =IF(Players!$R$4="","",Players!$R$4) -> 10 | F26: =IF($AY$162="","",VLOOKUP($AY$166,BSkins,2,FALSE)) ->  | G26: =IF($AY$162="","",IF($AY$164=$AY$111-1,"Birdie-"&$AY$164,IF($AY$164=$AY$111-2,"Eagle-"&$AY$164,IF($AY$164=$AY$111-3,"Double Eagle-"&$AY$164)))) ->  | H26: =IF($F26="","",Pots!$F$121/(18-COUNTBLANK($F$17:$F$34))) ->  | I26: 4 | J26: Jones, Gary | L26: =IF($J26="","",Pots!$G$121/(9-COUNTBLANK($J$26:$J$34)+1)) -> 16 | Q26: =Players!$R4 -> 10 | R26: =Players!$R5 -> 4
A27: =IF(Players!$S$4="","",Players!$S$4) -> 11 | B27: =IF($AF$162="","",VLOOKUP($AF$166,ASkins,2,FALSE)) ->  | C27: =IF($AF$162="","",IF($AF$164=$AF$111-1,"Birdie-"&$AF$164,IF($AF$164=$AF$111-2,"Eagle-"&$AF$164,IF($AF$164=$AF$111-3,"Double Eagle-"&$AF$164)))) ->  | D27: =IF($B27="","",Pots!$E$121/(18-COUNTBLANK($B$17:$B$34))) ->  | E27: =IF(Players!$S$4="","",Players!$S$4) -> 11 | F27: =IF($AZ$162="","",VLOOKUP($AZ$166,BSkins,2,FALSE)) ->  | G27: =IF($AZ$162="","",IF($AZ$164=$AZ$111-1,"Birdie-"&$AZ$164,IF($AZ$164=$AZ$111-2,"Eagle-"&$AZ$164,IF($AZ$164=$AZ$111-3,"Double Eagle-"&$AZ$164)))) ->  | H27: =IF($F27="","",Pots!$F$121/(18-COUNTBLANK($F$17:$F$34))) ->  | I27: 6 | J27: Christen, Lou | L27: =IF($J27="","",Pots!$G$121/(9-COUNTBLANK($J$26:$J$34)+1)) -> 16 | Q27: =Players!$S4 -> 11 | R27: =Players!$S5 -> 4
A28: =IF(Players!$T$4="","",Players!$T$4) -> 12 | B28: =IF($AG$162="","",VLOOKUP($AG$166,ASkins,2,FALSE)) -> Jones, Gary | C28: =IF($AG$162="","",IF($AG$164=$AG$111-1,"Birdie-"&$AG$164,IF($AG$164=$AG$111-2,"Eagle-"&$AG$164,IF($AG$164=$AG$111-3,"Double Eagle-"&$AG$164)))) -> Birdie-2 | D28: =IF($B28="","",Pots!$E$121/(18-COUNTBLANK($B$17:$B$34))) -> 7.5 | E28: =IF(Players!$T$4="","",Players!$T$4) -> 12 | F28: =IF($BA$162="","",VLOOKUP($BA$166,BSkins,2,FALSE)) -> Tenorio, Noe | G28: =IF($BA$162="","",IF($BA$164=$BA$111-1,"Birdie-"&$BA$164,IF($BA$164=$BA$111-2,"Eagle-"&$BA$164,IF($BA$164=$BA$111-3,"Double Eagle-"&$BA$164)))) -> Birdie-2 | H28: =IF($F28="","",Pots!$F$121/(18-COUNTBLANK($F$17:$F$34))) -> 25 | I28: 12 | J28: Jones, Gary | L28: =IF($J28="","",Pots!$G$121/(9-COUNTBLANK($J$26:$J$34)+1)) -> 16 | Q28: =Players!$T4 -> 12 | R28: =Players!$T5 -> 3 | S28: 12
A29: =IF(Players!$U$4="","",Players!$U$4) -> 13 | B29: =IF($AH$162="","",VLOOKUP($AH$166,ASkins,2,FALSE)) ->  | C29: =IF($AH$162="","",IF($AH$164=$AH$111-1,"Birdie-"&$AH$164,IF($AH$164=$AH$111-2,"Eagle-"&$AH$164,IF($AH$164=$AH$111-3,"Double Eagle-"&$AH$164)))) ->  | D29: =IF($B29="","",Pots!$E$121/(18-COUNTBLANK($B$17:$B$34))) ->  | E29: =IF(Players!$U$4="","",Players!$U$4) -> 13 | F29: =IF($BB$162="","",VLOOKUP($BB$166,BSkins,2,FALSE)) ->  | G29: =IF($BB$162="","",IF($BB$164=$BB$111-1,"Birdie-"&$BB$164,IF($BB$164=$BB$111-2,"Eagle-"&$BB$164,IF($BB$164=$BB$111-3,"Double Eagle-"&$BB$164)))) ->  | H29: =IF($F29="","",Pots!$F$121/(18-COUNTBLANK($F$17:$F$34))) ->  | I29: 16 | J29: Christen, Lou | L29: =IF($J29="","",Pots!$G$121/(9-COUNTBLANK($J$26:$J$34)+1)) -> 16 | Q29: =Players!$U4 -> 13 | R29: =Players!$U5 -> 4
A30: =IF(Players!$V$4="","",Players!$V$4) -> 14 | B30: =IF($AI$162="","",VLOOKUP($AI$166,ASkins,2,FALSE)) ->  | C30: =IF($AI$162="","",IF($AI$164=$AI$111-1,"Birdie-"&$AI$164,IF($AI$164=$AI$111-2,"Eagle-"&$AI$164,IF($AI$164=$AI$111-3,"Double Eagle-"&$AI$164)))) ->  | D30: =IF($B30="","",Pots!$E$121/(18-COUNTBLANK($B$17:$B$34))) ->  | E30: =IF(Players!$V$4="","",Players!$V$4) -> 14 | F30: =IF($BC$162="","",VLOOKUP($BC$166,BSkins,2,FALSE)) ->  | G30: =IF($BC$162="","",IF($BC$164=$BC$111-1,"Birdie-"&$BC$164,IF($BC$164=$BC$111-2,"Eagle-"&$BC$164,IF($BC$164=$BC$111-3,"Double Eagle-"&$BC$164)))) ->  | H30: =IF($F30="","",Pots!$F$121/(18-COUNTBLANK($F$17:$F$34))) ->  | L30: =IF($J30="","",Pots!$G$121/(9-COUNTBLANK($J$26:$J$34)+1)) ->  | Q30: =Players!$V4 -> 14 | R30: =Players!$V5 -> 5
A31: =IF(Players!$W$4="","",Players!$W$4) -> 15 | B31: =IF($AJ$162="","",VLOOKUP($AJ$166,ASkins,2,FALSE)) ->  | C31: =IF($AJ$162="","",IF($AJ$164=$AJ$111-1,"Birdie-"&$AJ$164,IF($AJ$164=$AJ$111-2,"Eagle-"&$AJ$164,IF($AJ$164=$AJ$111-3,"Double Eagle-"&$AJ$164)))) ->  | D31: =IF($B31="","",Pots!$E$121/(18-COUNTBLANK($B$17:$B$34))) ->  | E31: =IF(Players!$W$4="","",Players!$W$4) -> 15 | F31: =IF($BD$162="","",VLOOKUP($BD$166,BSkins,2,FALSE)) ->  | G31: =IF($BD$162="","",IF($BD$164=$BD$111-1,"Birdie-"&$BD$164,IF($BD$164=$BD$111-2,"Eagle-"&$BD$164,IF($BD$164=$BD$111-3,"Double Eagle-"&$BD$164)))) ->  | H31: =IF($F31="","",Pots!$F$121/(18-COUNTBLANK($F$17:$F$34))) ->  | L31: =IF($J31="","",Pots!$G$121/(9-COUNTBLANK($J$26:$J$34)+1)) ->  | Q31: =Players!$W4 -> 15 | R31: =Players!$W5 -> 4
A32: =IF(Players!$X$4="","",Players!$X$4) -> 16 | B32: =IF($AK$162="","",VLOOKUP($AK$166,ASkins,2,FALSE)) -> Jones, Gary | C32: =IF($AK$162="","",IF($AK$164=$AK$111-1,"Birdie-"&$AK$164,IF($AK$164=$AK$111-2,"Eagle-"&$AK$164,IF($AK$164=$AK$111-3,"Double Eagle-"&$AK$164)))) -> Birdie-2 | D32: =IF($B32="","",Pots!$E$121/(18-COUNTBLANK($B$17:$B$34))) -> 7.5 | E32: =IF(Players!$X$4="","",Players!$X$4) -> 16 | F32: =IF($BE$162="","",VLOOKUP($BE$166,BSkins,2,FALSE)) ->  | G32: =IF($BE$162="","",IF($BE$164=$BE$111-1,"Birdie-"&$BE$164,IF($BE$164=$BE$111-2,"Eagle-"&$BE$164,IF($BE$164=$BE$111-3,"Double Eagle-"&$BE$164)))) ->  | H32: =IF($F32="","",Pots!$F$121/(18-COUNTBLANK($F$17:$F$34))) ->  | L32: =IF($J32="","",Pots!$G$121/(9-COUNTBLANK($J$26:$J$34)+1)) ->  | Q32: =Players!$X4 -> 16 | R32: =Players!$X5 -> 3 | S32: 16
A33: =IF(Players!$Y$4="","",Players!$Y$4) -> 17 | B33: =IF($AL$162="","",VLOOKUP($AL$166,ASkins,2,FALSE)) -> Jones, Gary | C33: =IF($AL$162="","",IF($AL$164=$AL$111-1,"Birdie-"&$AL$164,IF($AL$164=$AL$111-2,"Eagle-"&$AL$164,IF($AL$164=$AL$111-3,"Double Eagle-"&$AL$164)))) -> Birdie-4 | D33: =IF($B33="","",Pots!$E$121/(18-COUNTBLANK($B$17:$B$34))) -> 7.5 | E33: =IF(Players!$Y$4="","",Players!$Y$4) -> 17 | F33: =IF($BF$162="","",VLOOKUP($BF$166,BSkins,2,FALSE)) ->  | G33: =IF($BF$162="","",IF($BF$164=$BF$111-1,"Birdie-"&$BF$164,IF($BF$164=$BF$111-2,"Eagle-"&$BF$164,IF($BF$164=$BF$111-3,"Double Eagle-"&$BF$164)))) ->  | H33: =IF($F33="","",Pots!$F$121/(18-COUNTBLANK($F$17:$F$34))) ->  | L33: =IF($J33="","",Pots!$G$121/(9-COUNTBLANK($J$26:$J$34)+1)) ->  | Q33: =Players!$Y4 -> 17 | R33: =Players!$Y5 -> 5
A34: =IF(Players!$Z$4="","",Players!$Z$4) -> 18 | B34: =IF($AM$162="","",VLOOKUP($AM$166,ASkins,2,FALSE)) ->  | C34: =IF($AM$162="","",IF($AM$164=$AM$111-1,"Birdie-"&$AM$164,IF($AM$164=$AM$111-2,"Eagle-"&$AM$164,IF($AM$164=$AM$111-3,"Double Eagle-"&$AM$164)))) ->  | D34: =IF($B34="","",Pots!$E$121/(18-COUNTBLANK($B$17:$B$34))) ->  | E34: =IF(Players!$Z$4="","",Players!$Z$4) -> 18 | F34: =IF($BG$162="","",VLOOKUP($BG$166,BSkins,2,FALSE)) ->  | G34: =IF($BG$162="","",IF($BG$164=$BG$111-1,"Birdie-"&$BG$164,IF($BG$164=$BG$111-2,"Eagle-"&$BG$164,IF($BG$164=$BG$111-3,"Double Eagle-"&$BG$164)))) ->  | H34: =IF($F34="","",Pots!$F$121/(18-COUNTBLANK($F$17:$F$34))) ->  | L34: =IF($J34="","",Pots!$G$121/(9-COUNTBLANK($J$26:$J$34)+1)) ->  | Q34: =Players!$Z4 -> 18 | R34: =Players!$Z5 -> 4
J35: =Members!B2 -> Aldrian, Mark | K35: =Members!#REF! -> 
J36: =Members!B3 -> Bateson, Brad | K36: =Members!#REF! -> 
J37: =Members!B4 -> Blodgett, Kevin | K37: =Members!#REF! -> 
J38: =Members!B5 -> Deutsch, Paul | K38: =Members!#REF! -> 
J39: =Members!B6 -> Doden, Jeff | K39: =Members!#REF! -> 
J40: =Members!B7 -> Escobedo, Hector | K40: =Members!#REF! -> 
J41: =Members!B8 -> Escobedo, Marco | K41: =Members!#REF! -> 
J42: =Members!B9 -> Forstot, Joshua | K42: =Members!#REF! -> 
J43: =Members!B10 -> Graham, Travis | K43: =Members!#REF! -> 
J44: =Members!B11 -> Hammond, Rob | K44: =Members!#REF! -> 
J45: =Members!B12 -> Hart, Dave | K45: =Members!#REF! -> 
J46: =Members!B13 -> Havstad, Peter | K46: =Members!#REF! -> 
J47: =Members!B14 -> Havstad, Steve | K47: =Members!#REF! -> 
J48: =Members!B15 -> Holzrichter, Geoff | K48: =Members!#REF! -> 
J49: =Members!B16 -> Johnson, Carl | K49: =Members!#REF! -> 
J50: =Members!B17 -> Jones, Gary | K50: =Members!#REF! -> 
J51: =Members!B18 -> Kozachenko, Jon | K51: =Members!#REF! -> 
J52: =Members!B19 -> Lujan, Fil | K52: =Members!#REF! -> 
J53: =Members!B20 -> Lunghard, Rich | K53: =Members!#REF! -> 
J54: =Members!B21 -> Mariano, Joe | K54: =Members!#REF! -> 
J55: =Members!B22 -> Matthews, Keith | K55: =Members!#REF! -> 
J56: =Members!B23 -> Medina, Randy | K56: =Members!#REF! -> 
J57: =Members!B24 -> Mikschl, Tom | K57: =Members!#REF! -> 
J58: =Members!B25 -> Montgomery, Andy | K58: =Members!#REF! -> 
J59: =Members!B26 -> Nagel, Rich | K59: =Members!#REF! -> 
J60: =Members!B27 -> Ornelas, Eddie | K60: =Members!#REF! -> 
J61: =Members!B28 -> Poyar, Bob | K61: =Members!#REF! -> 
J62: =Members!B29 -> Rojes, Ray | K62: =Members!#REF! -> 
J63: =Members!B30 -> Salinas, Frank | K63: =Members!#REF! -> 
J64: =Members!B31 -> Tenorio, Noe | K64: =Members!#REF! -> 
J65: =Members!B32 -> Thompson, Dan | K65: =Members!#REF! -> 
J66: =Members!B33 -> 0 | K66: =Members!#REF! -> 
J67: =Members!B34 -> Christen, Lou | K67: =Members!#REF! -> 
J68: =Members!B35 -> Iinuma, Shiro | K68: =Members!#REF! -> 
J69: =Members!B36 -> Ikeda, Blaine | K69: =Members!#REF! -> 
J70: =Members!B37 -> Endo, Johnny | K70: =Members!#REF! -> 
J71: =Members!B38 -> 0 | K71: =Members!#REF! -> 
J72: =Members!B39 -> 0 | K72: =Members!#REF! -> 
J73: =Members!B40 -> 0 | K73: =Members!#REF! -> 
J74: =Members!B41 -> 0 | K74: =Members!#REF! -> 
J75: =Members!B42 -> 0 | K75: =Members!#REF! -> 
J76: =Members!B43 -> 0 | K76: =Members!#REF! -> 
J77: =Members!B44 -> 0 | K77: =Members!#REF! -> 
J78: =Members!B45 -> 0 | K78: =Members!#REF! -> 
J79: =Members!B46 -> 0 | K79: =Members!#REF! -> 
J80: =Members!B47 -> 0 | K80: =Members!#REF! -> 
J81: =Members!B48 -> 0 | K81: =Members!#REF! -> 
J82: =Members!B49 -> 0 | K82: =Members!#REF! -> 
J83: =Members!B50 -> 0 | K83: =Members!#REF! -> 
J84: =Members!B51 -> 0 | K84: =Members!#REF! -> 
J85: =Members!B52 -> 0 | K85: =Members!#REF! -> 
J86: =Members!B53 -> 0 | K86: =Members!#REF! -> 
J87: =Members!B54 -> 0 | K87: =Members!#REF! -> 
J88: =Members!B55 -> 0 | K88: =Members!#REF! -> 
J89: =Members!B56 -> 0 | K89: =Members!#REF! -> 
J90: =Members!B57 -> 0 | K90: =Members!#REF! -> 
J91: =Members!B58 -> 0 | K91: =Members!#REF! -> 
J92: =Members!B59 -> 0 | K92: =Members!#REF! -> 
J93: =Members!B60 -> 0 | K93: =Members!#REF! -> 
J94: =Members!B61 -> 0 | K94: =Members!#REF! -> 
J95: =Members!B62 -> 0 | K95: =Members!#REF! -> 
J96: =Members!B63 -> 0 | K96: =Members!#REF! -> 
J97: =Members!B64 -> 0 | K97: =Members!#REF! -> 
J98: =Members!B65 -> 0 | K98: =Members!#REF! -> 
J99: =Members!B66 -> 0 | K99: =Members!#REF! -> 
J100: =Members!B67 -> 0 | K100: =Members!#REF! -> 
J101: =Members!B68 -> 0 | K101: =Members!#REF! -> 
J102: =Members!B69 -> 0 | K102: =Members!#REF! -> 
J103: =Members!B70 -> 0 | K103: =Members!#REF! -> 
J104: =Members!B71 -> 0 | K104: =Members!#REF! -> 
J105: =Members!B72 -> 0 | K105: =Members!#REF! -> 
J106: =Members!B73 -> 0 | K106: =Members!#REF! -> 
J107: =Members!B74 -> 0 | K107: =Members!#REF! -> 
J108: =Members!B75 -> 0 | K108: =Members!#REF! -> 
J109: =Members!B76 -> 0 | K109: =Members!#REF! -> 
V110: =Players!$H$4 -> 1 | W110: =Players!$I$4 -> 2 | X110: =Players!$J$4 -> 3 | Y110: =Players!$K$4 -> 4 | Z110: =Players!$L$4 -> 5 | AA110: =Players!$M$4 -> 6 | AB110: =Players!$N$4 -> 7 | AC110: =Players!$O$4 -> 8 | AD110: =Players!$P$4 -> 9 | AE110: =Players!$R$4 -> 10 | AF110: =Players!$S$4 -> 11 | AG110: =Players!$T$4 -> 12 | AH110: =Players!$U$4 -> 13 | AI110: =Players!$V$4 -> 14 | AJ110: =Players!$W$4 -> 15 | AK110: =Players!$X$4 -> 16 | AL110: =Players!$Y$4 -> 17 | AM110: =Players!$Z$4 -> 18 | AP110: =Players!$H$4 -> 1 | AQ110: =Players!$I$4 -> 2 | AR110: =Players!$J$4 -> 3 | AS110: =Players!$K$4 -> 4 | AT110: =Players!$L$4 -> 5 | AU110: =Players!$M$4 -> 6 | AV110: =Players!$N$4 -> 7 | AW110: =Players!$O$4 -> 8 | AX110: =Players!$P$4 -> 9 | AY110: =Players!$R$4 -> 10 | AZ110: =Players!$S$4 -> 11 | BA110: =Players!$T$4 -> 12 | BB110: =Players!$U$4 -> 13 | BC110: =Players!$V$4 -> 14 | BD110: =Players!$W$4 -> 15 | BE110: =Players!$X$4 -> 16 | BF110: =Players!$Y$4 -> 17 | BG110: =Players!$Z$4 -> 18
U111: A-Skins | V111: =Players!$H$5 -> 4 | W111: =Players!$I$5 -> 4 | X111: =Players!$J$5 -> 4 | Y111: =Players!$K$5 -> 3 | Z111: =Players!$L$5 -> 5 | AA111: =Players!$M$5 -> 3 | AB111: =Players!$N$5 -> 4 | AC111: =Players!$O$5 -> 4 | AD111: =Players!$P$5 -> 5 | AE111: =Players!$R$5 -> 4 | AF111: =Players!$S$5 -> 4 | AG111: =Players!$T$5 -> 3 | AH111: =Players!$U$5 -> 4 | AI111: =Players!$V$5 -> 5 | AJ111: =Players!$W$5 -> 4 | AK111: =Players!$X$5 -> 3 | AL111: =Players!$Y$5 -> 5 | AM111: =Players!$Z$5 -> 4 | AO111: B-Skins | AP111: =Players!$H$5 -> 4 | AQ111: =Players!$I$5 -> 4 | AR111: =Players!$J$5 -> 4 | AS111: =Players!$K$5 -> 3 | AT111: =Players!$L$5 -> 5 | AU111: =Players!$M$5 -> 3 | AV111: =Players!$N$5 -> 4 | AW111: =Players!$O$5 -> 4 | AX111: =Players!$P$5 -> 5 | AY111: =Players!$R$5 -> 4 | AZ111: =Players!$S$5 -> 4 | BA111: =Players!$T$5 -> 3 | BB111: =Players!$U$5 -> 4 | BC111: =Players!$V$5 -> 5 | BD111: =Players!$W$5 -> 4 | BE111: =Players!$X$5 -> 3 | BF111: =Players!$Y$5 -> 5 | BG111: =Players!$Z$5 -> 4
A112: No. | B112: Putts | C112: Total | E112: No. | F112: Front | G112: Score | I112: No. | J112: Back | K112: Score | M112: No. | N112: Total | O112: Score | T112: 1 | U112: Jones, Gary | Y112: 2 | AD112: 4 | AG112: 2 | AK112: 2 | AL112: 4 | AN112: 1 | AO112: Blodgett, Kevin
A113: 1 | B113: Escobedo, Hector | C113: 28 | E113: 1 | F113: Jones, Gary | G113: 32.5 | I113: 1 | J113: Tenorio, Noe | K113: 32.5 | M113: 1 | N113: Jones, Gary | O113: 66 | T113: 2 | U113: Escobedo, Hector | AN113: 2 | AO113: Tenorio, Noe | BA113: 2
A114: 2 | B114: Havstad, Steve | C114: 29 | E114: 2 | F114: Kozachenko, Jon | G114: 33.5 | I114: 2 | J114: Jones, Gary | K114: 33.5 | M114: 2 | N114: Tenorio, Noe | O114: 69 | T114: 3 | U114: Mariano, Joe | AN114: 3 | AO114: Deutsch, Paul
A115: 3 | B115: Deutsch, Paul | C115: 29 | E115: 3 | F115: Havstad, Steve | G115: 34 | I115: 3 | J115: Blodgett, Kevin | K115: 33.5 | M115: 3 | N115: Kozachenko, Jon | O115: 69 | T115: 4 | U115: Ornelas, Eddie | AN115: 4 | AO115: Lunghard, Rich
A116: 4 | B116: Jones, Gary | C116: 31 | E116: 4 | F116: Holzrichter, Geoff | G116: 34 | I116: 4 | J116: Matthews, Keith | K116: 34 | M116: 4 | N116: Matthews, Keith | O116: 72 | T116: 5 | U116: Kozachenko, Jon | AN116: 5 | AO116: Holzrichter, Geoff
A117: 5 | B117: Tenorio, Noe | C117: 32 | E117: 5 | F117: Escobedo, Hector | G117: 35.5 | I117: 5 | J117: Kozachenko, Jon | K117: 35.5 | M117: 5 | N117: Christen, Lou | O117: 72 | T117: 6 | U117: Matthews, Keith | AN117: 6
A118: 6 | B118: Holzrichter, Geoff | C118: 32 | E118: 6 | F118: Christen, Lou | G118: 35.5 | I118: 6 | J118: Christen, Lou | K118: 36.5 | M118: 6 | N118: Havstad, Steve | O118: 72 | T118: 7 | U118: Christen, Lou | AE118: 3 | AN118: 7
A119: 7 | B119: Kozachenko, Jon | C119: 33 | E119: 7 | F119: Lunghard, Rich | G119: 35.5 | I119: 7 | J119: Ornelas, Eddie | K119: 37 | M119: 7 | N119: Lunghard, Rich | O119: 74 | T119: 8 | U119: Havstad, Steve | AN119: 8
A120: 8 | B120: Christen, Lou | C120: 33 | E120: 8 | F120: Tenorio, Noe | G120: 36.5 | I120: 8 | J120: Havstad, Steve | K120: 38 | M120: 8 | N120: Holzrichter, Geoff | O120: 74 | T120: 9 | U120: Blodgett, Kevin | AN120: 9
A121: 9 | B121: Ornelas, Eddie | C121: 34 | E121: 9 | F121: Ornelas, Eddie | G121: 38 | I121: 9 | J121: Lunghard, Rich | K121: 38.5 | M121: 9 | N121: Blodgett, Kevin | O121: 75 | T121: 10 | AN121: 10
A122: 10 | B122: Lunghard, Rich | C122: 34 | E122: 10 | F122: Matthews, Keith | G122: 38 | I122: 10 | J122: Escobedo, Hector | K122: 39.5 | M122: 10 | N122: Ornelas, Eddie | O122: 75 | T122: 11 | AN122: 11
T123: 12 | AN123: 12
M124: Place | N124: Total | O124: Total | P124: GOY Score | Q124: GOY Pts. | R124: Ties | S124: No. | T124: 13 | AN124: 13
M125: =IF($N125="","",IF($P125=$P126,"T1","1")) -> 1 | N125: Jones, Gary | O125: 66 | P125: =IF($N125="","",IF(VLOOKUP($N125,Members,5,FALSE)="X",$O125,"NGOY")) -> 66 | Q125: =IF($N125="","",IF($M125="1",10,IF($S125=2,(10+7)/2,IF($S125=3,(10+7+5)/3,IF($S125=4,(10+7+5+3)/4,(10+7+5+3+1)/$S125))))) -> 10 | R125: T1 | S125: =IF($N$125="","",COUNTIF($M$125:$M$134,"T1")) -> 0 | T125: 14 | AN125: 14
M126: =IF($N126="","",IF($P126=$P125,"T1",IF($P126=$P127,"T2","2"))) -> T2 | N126: Tenorio, Noe | O126: 69 | P126: =IF($N126="","",IF(VLOOKUP($N126,Members,5,FALSE)="X",$O126,"NGOY")) -> 69 | Q126: =IF($N126="","",IF($M126="T1",$Q$125,IF($M126="2",7,IF($S126=2,(7+5)/2,IF($S126=3,(7+5+3)/3,(7+5+3+1)/$S126))))) -> 6 | R126: T2 | S126: =IF($N$125="","",COUNTIF($M$125:$M$134,"T2")) -> 2 | T126: 15 | AN126: 15
M127: =IF($N127="","",IF($P127=$P125,"T1",IF($P127=$P126,"T2",IF($P127=$P128,"T3","3")))) -> T2 | N127: Kozachenko, Jon | O127: 69 | P127: =IF($N127="","",IF(VLOOKUP($N127,Members,5,FALSE)="X",$O127,"NGOY")) -> 69 | Q127: =IF($N127="","",IF($M127="T1",$Q$125,IF($M127="T2",$Q$126,IF($M127="3",5,IF($S127=2,(5+3)/2,(5+3+1)/$S127))))) -> 6 | R127: T3 | S127: =IF($N$125="","",COUNTIF($M$125:$M$134,"T3")) -> 0 | T127: 16 | AN127: 16
M128: =IF($N128="","",IF($P128=$P125,"T1",IF($P128=$P126,"T2",IF($P128=$P127,"T3",IF($P128=$P129,"T4","4"))))) -> T4 | N128: Matthews, Keith | O128: 72 | P128: =IF($N128="","",IF(VLOOKUP($N128,Members,5,FALSE)="X",$O128,"NGOY")) -> 72 | Q128: =IF($N128="","",IF($M128="T1",$Q$125,IF($M128="T2",$Q$126,IF($M128="T3",$Q$127,IF($M128="4",3,(3+1)/$S128))))) -> 2 | R128: T4 | S128: =IF($N$125="","",COUNTIF($M$125:$M$134,"T4")) -> 2 | T128: 17 | AN128: 17
M129: =IF($N129="","",IF($P129=$P125,"T1",IF($P129=$P126,"T2",IF($P129=$P127,"T3",IF($P129=$P128,"T4",IF($P129=$P130,"T5","5")))))) -> T4 | N129: Havstad, Steve | O129: 72 | P129: =IF($N129="","",IF(VLOOKUP($N129,Members,5,FALSE)="X",$O129,"NGOY")) -> 72 | Q129: =IF($N129="","",IF($M129="T1",$Q$125,IF($M129="T2",$Q$126,IF($M129="T3",$Q$127,IF($M129="T4",$Q$128,IF($M129="5",1,1/$S129)))))) -> 2 | R129: T5 | S129: =IF($N$125="","",COUNTIF($M$125:$M$134,"T5")) -> 0 | T129: 18 | AN129: 18
M130: =IF($N130="","",IF($P130=$P$125,"T1",IF($P130=$P$126,"T2",IF($P130=$P$127,"T3",IF($P130=$P$128,"T4",IF($P130=$P$129,"T5","")))))) ->  | N130: Lunghard, Rich | O130: 74 | P130: =IF($N130="","",IF(VLOOKUP($N130,Members,5,FALSE)="X",$O130,"NGOY")) -> 74 | Q130: =IF($N130="","",IF($M130="T1",$Q$125,IF($M130="T2",$Q$126,IF($M130="T3",$Q$127,IF($M130="T4",$Q$128,IF($M130="T5",$Q$129,"")))))) ->  | T130: 19 | AN130: 19
M131: =IF($N131="","",IF($P131=$P$125,"T1",IF($P131=$P$126,"T2",IF($P131=$P$127,"T3",IF($P131=$P$128,"T4",IF($P131=$P$129,"T5","")))))) ->  | N131: Holzrichter, Geoff | O131: 74 | P131: =IF($N131="","",IF(VLOOKUP($N131,Members,5,FALSE)="X",$O131,"NGOY")) -> 74 | Q131: =IF($N131="","",IF($M131="T1",$Q$125,IF($M131="T2",$Q$126,IF($M131="T3",$Q$127,IF($M131="T4",$Q$128,IF($M131="T5",$Q$129,"")))))) ->  | T131: 20 | AN131: 20
M132: =IF($N132="","",IF($P132=$P$125,"T1",IF($P132=$P$126,"T2",IF($P132=$P$127,"T3",IF($P132=$P$128,"T4",IF($P132=$P$129,"T5","")))))) ->  | N132: Blodgett, Kevin | O132: 75 | P132: =IF($N132="","",IF(VLOOKUP($N132,Members,5,FALSE)="X",$O132,"NGOY")) -> 75 | Q132: =IF($N132="","",IF($M132="T1",$Q$125,IF($M132="T2",$Q$126,IF($M132="T3",$Q$127,IF($M132="T4",$Q$128,IF($M132="T5",$Q$129,"")))))) ->  | T132: 21 | AN132: 21
M133: =IF($N133="","",IF($P133=$P$125,"T1",IF($P133=$P$126,"T2",IF($P133=$P$127,"T3",IF($P133=$P$128,"T4",IF($P133=$P$129,"T5","")))))) ->  | N133: Ornelas, Eddie | O133: 75 | P133: =IF($N133="","",IF(VLOOKUP($N133,Members,5,FALSE)="X",$O133,"NGOY")) -> 75 | Q133: =IF($N133="","",IF($M133="T1",$Q$125,IF($M133="T2",$Q$126,IF($M133="T3",$Q$127,IF($M133="T4",$Q$128,IF($M133="T5",$Q$129,"")))))) ->  | T133: 22 | AN133: 22
M134: =IF($N134="","",IF($P134=$P$125,"T1",IF($P134=$P$126,"T2",IF($P134=$P$127,"T3",IF($P134=$P$128,"T4",IF($P134=$P$129,"T5","")))))) ->  | N134: Christen, Lou | O134: 72 | P134: =IF($N134="","",IF(VLOOKUP($N134,Members,5,FALSE)="X",$O134,"NGOY")) -> NGOY | Q134: =IF($N134="","",IF($M134="T1",$Q$125,IF($M134="T2",$Q$126,IF($M134="T3",$Q$127,IF($M134="T4",$Q$128,IF($M134="T5",$Q$129,"")))))) ->  | T134: 23 | AN134: 23
T135: 24 | AN135: 24
T136: 25 | AN136: 25
T137: 26 | AN137: 26
T138: 27 | AN138: 27
T139: 28 | AN139: 28
T140: 29 | AN140: 29
T141: 30 | AN141: 30
T142: 31 | AN142: 31
T143: 32 | AN143: 32
T144: 33 | AN144: 33
T145: 34 | AN145: 34
T146: 35 | AN146: 35
T147: 36 | AN147: 36
T148: 37 | AN148: 37
T149: 38 | AN149: 38
T150: 39 | AN150: 39
T151: 40 | AN151: 40
T152: 41 | AN152: 41
T153: 42 | AN153: 42
T154: 43 | AN154: 43
T155: 44 | AN155: 44
T156: 45 | AN156: 45
T157: 46 | AN157: 46
T158: 47 | AN158: 47
T159: 48 | AN159: 48
T160: 49 | AN160: 49
T161: 50 | AN161: 50
U162: SKINS (S) | Y162: S | AD162: S | AE162: S | AG162: S | AK162: S | AL162: S | AO162: SKINS (S) | BA162: S
U164: Score | V164: =IF(V162="S",MIN(V112:V161),"") ->  | Y164: 2 | AD164: 4 | AE164: 3 | AG164: 2 | AK164: 2 | AL164: 4 | AO164: Score | AP164: =IF(AP162="S",MIN(AP112:AP161),"") ->  | BA164: 2
U166: Position (array) | V166: =IF(V162="S",MATCH(V164,V112:V161,0),"") ->  | Y166: 1 | AD166: 1 | AE166: 7 | AG166: 1 | AK166: 1 | AL166: 1 | AO166: Position (array) | AP166: =IF(AP162="S",MATCH(AP164,AP112:AP161,0),"") ->  | BA166: 2

Sheet Results (Low Net)
E1: HACK ATTACK GOLF CLUB | R1: =IF(Players!B1="","",Players!B1) -> Mile Square Golf Course (Players)
E2: Tournament Results | R2: =IF(Players!B4="","",Players!B4) -> 2018-07-22
A3: Place | C3: Player | D3: Tour. Hdcp. | E3: Match Play | F3: Putts | G3: Front Side (Hole No. / Par) | R3: Back Side (Hole No. / Par) | AC3: Total
G4: =IF(Players!H4="","",Players!H4) -> 1 | H4: =IF(Players!I4="","",Players!I4) -> 2 | I4: =IF(Players!J4="","",Players!J4) -> 3 | J4: =IF(Players!K4="","",Players!K4) -> 4 | K4: =IF(Players!L4="","",Players!L4) -> 5 | L4: =IF(Players!M4="","",Players!M4) -> 6 | M4: =IF(Players!N4="","",Players!N4) -> 7 | N4: =IF(Players!O4="","",Players!O4) -> 8 | O4: =IF(Players!P4="","",Players!P4) -> 9 | P4: Gross | Q4: Net | R4: =IF(Players!R4="","",Players!R4) -> 10 | S4: =IF(Players!S4="","",Players!S4) -> 11 | T4: =IF(Players!T4="","",Players!T4) -> 12 | U4: =IF(Players!U4="","",Players!U4) -> 13 | V4: =IF(Players!V4="","",Players!V4) -> 14 | W4: =IF(Players!W4="","",Players!W4) -> 15 | X4: =IF(Players!X4="","",Players!X4) -> 16 | Y4: =IF(Players!Y4="","",Players!Y4) -> 17 | Z4: =IF(Players!Z4="","",Players!Z4) -> 18 | AA4: Gross | AB4: Net | AC4: Gross | AD4: Net
G5: =IF(Players!H5="","",Players!H5) -> 4 | H5: =IF(Players!I5="","",Players!I5) -> 4 | I5: =IF(Players!J5="","",Players!J5) -> 4 | J5: =IF(Players!K5="","",Players!K5) -> 3 | K5: =IF(Players!L5="","",Players!L5) -> 5 | L5: =IF(Players!M5="","",Players!M5) -> 3 | M5: =IF(Players!N5="","",Players!N5) -> 4 | N5: =IF(Players!O5="","",Players!O5) -> 4 | O5: =IF(Players!P5="","",Players!P5) -> 5 | P5: =IF(Players!Q5="","",Players!Q5) -> 36 | Q5: - | R5: =IF(Players!R5="","",Players!R5) -> 4 | S5: =IF(Players!S5="","",Players!S5) -> 4 | T5: =IF(Players!T5="","",Players!T5) -> 3 | U5: =IF(Players!U5="","",Players!U5) -> 4 | V5: =IF(Players!V5="","",Players!V5) -> 5 | W5: =IF(Players!W5="","",Players!W5) -> 4 | X5: =IF(Players!X5="","",Players!X5) -> 3 | Y5: =IF(Players!Y5="","",Players!Y5) -> 5 | Z5: =IF(Players!Z5="","",Players!Z5) -> 4 | AA5: =IF(Players!AA5="","",Players!AA5) -> 36 | AB5: - | AC5: =IF(Players!AB5="","",Players!AB5) -> 72 | AD5: -
A6: =IF(OR($AD6="",$AD6="-"),"",IF($AD6=$AD7,"T"&$B6,$B6)) -> 1 | B6: 1 | C6: Jones, Gary | D6: =IF($C6="","",VLOOKUP($C6,Scores,4,FALSE)) -> 13 | E6: =IF($C6="","",IF(VLOOKUP($C6,Scores,5,FALSE)="","-",VLOOKUP($C6,Matches,25,FALSE))) -> 3 and 1 | F6: =IF($C6="","",IF(VLOOKUP($C6,Scores,6,FALSE)="","",VLOOKUP($C6,Scores,6,FALSE))) -> 31 | G6: =IF($C6="","",IF(VLOOKUP($C6,Scores,7,FALSE)="","",VLOOKUP($C6,Scores,7,FALSE))) -> 5 | H6: =IF($C6="","",IF(VLOOKUP($C6,Scores,8,FALSE)="","",VLOOKUP($C6,Scores,8,FALSE))) -> 4 | I6: =IF($C6="","",IF(VLOOKUP($C6,Scores,9,FALSE)="","",VLOOKUP($C6,Scores,9,FALSE))) -> 5 | J6: =IF($C6="","",IF(VLOOKUP($C6,Scores,10,FALSE)="","",VLOOKUP($C6,Scores,10,FALSE))) -> 2 | K6: =IF($C6="","",IF(VLOOKUP($C6,Scores,11,FALSE)="","",VLOOKUP($C6,Scores,11,FALSE))) -> 5 | L6: =IF($C6="","",IF(VLOOKUP($C6,Scores,12,FALSE)="","",VLOOKUP($C6,Scores,12,FALSE))) -> 4 | M6: =IF($C6="","",IF(VLOOKUP($C6,Scores,13,FALSE)="","",VLOOKUP($C6,Scores,13,FALSE))) -> 5 | N6: =IF($C6="","",IF(VLOOKUP($C6,Scores,14,FALSE)="","",VLOOKUP($C6,Scores,14,FALSE))) -> 5 | O6: =IF($C6="","",IF(VLOOKUP($C6,Scores,15,FALSE)="","",VLOOKUP($C6,Scores,15,FALSE))) -> 4 | P6: =IF($O6="","",SUM($G6:$O6)) -> 39 | Q6: =IF($D6="-","-",IF($P6="","",$P6-($D6/2))) -> 32.5 | R6: =IF($C6="","",IF(VLOOKUP($C6,Scores,17,FALSE)="","",VLOOKUP($C6,Scores,17,FALSE))) -> 5 | S6: =IF($C6="","",IF(VLOOKUP($C6,Scores,18,FALSE)="","",VLOOKUP($C6,Scores,18,FALSE))) -> 6 | T6: =IF($C6="","",IF(VLOOKUP($C6,Scores,19,FALSE)="","",VLOOKUP($C6,Scores,19,FALSE))) -> 2 | U6: =IF($C6="","",IF(VLOOKUP($C6,Scores,20,FALSE)="","",VLOOKUP($C6,Scores,20,FALSE))) -> 5 | V6: =IF($C6="","",IF(VLOOKUP($C6,Scores,21,FALSE)="","",VLOOKUP($C6,Scores,21,FALSE))) -> 5 | W6: =IF($C6="","",IF(VLOOKUP($C6,Scores,22,FALSE)="","",VLOOKUP($C6,Scores,22,FALSE))) -> 5 | X6: =IF($C6="","",IF(VLOOKUP($C6,Scores,23,FALSE)="","",VLOOKUP($C6,Scores,23,FALSE))) -> 2 | Y6: =IF($C6="","",IF(VLOOKUP($C6,Scores,24,FALSE)="","",VLOOKUP($C6,Scores,24,FALSE))) -> 4 | Z6: =IF($C6="","",IF(VLOOKUP($C6,Scores,25,FALSE)="","",VLOOKUP($C6,Scores,25,FALSE))) -> 6 | AA6: =IF($Z6="","",SUM($R6:$Z6)) -> 40 | AB6: =IF($D6="-","-",IF($AA6="","",$AA6-($D6/2))) -> 33.5 | AC6: =IF(OR($P6="",$AA6=""),"",SUM($P6,$AA6)) -> 79 | AD6: =IF($D6="-","-",IF(OR($Q6="",$AB6=""),"",SUM($Q6,$AB6))) -> 66
A7: =IF(OR($AD7="",$AD7="-"),"",IF($AD7=$AD6,$A6,IF($AD7=$AD8,"T"&$B7,$B7))) -> T2 | B7: 2 | C7: Tenorio, Noe | D7: =IF($C7="","",VLOOKUP($C7,Scores,4,FALSE)) -> 17 | E7: =IF($C7="","",IF(VLOOKUP($C7,Scores,5,FALSE)="","-",VLOOKUP($C7,Matches,25,FALSE))) -> - | F7: =IF($C7="","",IF(VLOOKUP($C7,Scores,6,FALSE)="","",VLOOKUP($C7,Scores,6,FALSE))) -> 32 | G7: =IF($C7="","",IF(VLOOKUP($C7,Scores,7,FALSE)="","",VLOOKUP($C7,Scores,7,FALSE))) -> 4 | H7: =IF($C7="","",IF(VLOOKUP($C7,Scores,8,FALSE)="","",VLOOKUP($C7,Scores,8,FALSE))) -> 5 | I7: =IF($C7="","",IF(VLOOKUP($C7,Scores,9,FALSE)="","",VLOOKUP($C7,Scores,9,FALSE))) -> 4 | J7: =IF($C7="","",IF(VLOOKUP($C7,Scores,10,FALSE)="","",VLOOKUP($C7,Scores,10,FALSE))) -> 5 | K7: =IF($C7="","",IF(VLOOKUP($C7,Scores,11,FALSE)="","",VLOOKUP($C7,Scores,11,FALSE))) -> 7 | L7: =IF($C7="","",IF(VLOOKUP($C7,Scores,12,FALSE)="","",VLOOKUP($C7,Scores,12,FALSE))) -> 4 | M7: =IF($C7="","",IF(VLOOKUP($C7,Scores,13,FALSE)="","",VLOOKUP($C7,Scores,13,FALSE))) -> 4 | N7: =IF($C7="","",IF(VLOOKUP($C7,Scores,14,FALSE)="","",VLOOKUP($C7,Scores,14,FALSE))) -> 5 | O7: =IF($C7="","",IF(VLOOKUP($C7,Scores,15,FALSE)="","",VLOOKUP($C7,Scores,15,FALSE))) -> 7 | P7: =IF($O7="","",SUM($G7:$O7)) -> 45 | Q7: =IF($D7="-","-",IF($P7="","",$P7-($D7/2))) -> 36.5 | R7: =IF($C7="","",IF(VLOOKUP($C7,Scores,17,FALSE)="","",VLOOKUP($C7,Scores,17,FALSE))) -> 5 | S7: =IF($C7="","",IF(VLOOKUP($C7,Scores,18,FALSE)="","",VLOOKUP($C7,Scores,18,FALSE))) -> 4 | T7: =IF($C7="","",IF(VLOOKUP($C7,Scores,19,FALSE)="","",VLOOKUP($C7,Scores,19,FALSE))) -> 2 | U7: =IF($C7="","",IF(VLOOKUP($C7,Scores,20,FALSE)="","",VLOOKUP($C7,Scores,20,FALSE))) -> 5 | V7: =IF($C7="","",IF(VLOOKUP($C7,Scores,21,FALSE)="","",VLOOKUP($C7,Scores,21,FALSE))) -> 7 | W7: =IF($C7="","",IF(VLOOKUP($C7,Scores,22,FALSE)="","",VLOOKUP($C7,Scores,22,FALSE))) -> 6 | X7: =IF($C7="","",IF(VLOOKUP($C7,Scores,23,FALSE)="","",VLOOKUP($C7,Scores,23,FALSE))) -> 3 | Y7: =IF($C7="","",IF(VLOOKUP($C7,Scores,24,FALSE)="","",VLOOKUP($C7,Scores,24,FALSE))) -> 5 | Z7: =IF($C7="","",IF(VLOOKUP($C7,Scores,25,FALSE)="","",VLOOKUP($C7,Scores,25,FALSE))) -> 4 | AA7: =IF($Z7="","",SUM($R7:$Z7)) -> 41 | AB7: =IF($D7="-","-",IF($AA7="","",$AA7-($D7/2))) -> 32.5 | AC7: =IF(OR($P7="",$AA7=""),"",SUM($P7,$AA7)) -> 86 | AD7: =IF($D7="-","-",IF(OR($Q7="",$AB7=""),"",SUM($Q7,$AB7))) -> 69
A8: =IF(OR($AD8="",$AD8="-"),"",IF($AD8=$AD7,$A7,IF($AD8=$AD9,"T"&$B8,$B8))) -> T2 | B8: 3 | C8: Kozachenko, Jon | D8: =IF($C8="","",VLOOKUP($C8,Scores,4,FALSE)) -> 15 | E8: =IF($C8="","",IF(VLOOKUP($C8,Scores,5,FALSE)="","-",VLOOKUP($C8,Matches,25,FALSE))) -> AS | F8: =IF($C8="","",IF(VLOOKUP($C8,Scores,6,FALSE)="","",VLOOKUP($C8,Scores,6,FALSE))) -> 33 | G8: =IF($C8="","",IF(VLOOKUP($C8,Scores,7,FALSE)="","",VLOOKUP($C8,Scores,7,FALSE))) -> 5 | H8: =IF($C8="","",IF(VLOOKUP($C8,Scores,8,FALSE)="","",VLOOKUP($C8,Scores,8,FALSE))) -> 5 | I8: =IF($C8="","",IF(VLOOKUP($C8,Scores,9,FALSE)="","",VLOOKUP($C8,Scores,9,FALSE))) -> 4 | J8: =IF($C8="","",IF(VLOOKUP($C8,Scores,10,FALSE)="","",VLOOKUP($C8,Scores,10,FALSE))) -> 3 | K8: =IF($C8="","",IF(VLOOKUP($C8,Scores,11,FALSE)="","",VLOOKUP($C8,Scores,11,FALSE))) -> 6 | L8: =IF($C8="","",IF(VLOOKUP($C8,Scores,12,FALSE)="","",VLOOKUP($C8,Scores,12,FALSE))) -> 3 | M8: =IF($C8="","",IF(VLOOKUP($C8,Scores,13,FALSE)="","",VLOOKUP($C8,Scores,13,FALSE))) -> 4 | N8: =IF($C8="","",IF(VLOOKUP($C8,Scores,14,FALSE)="","",VLOOKUP($C8,Scores,14,FALSE))) -> 5 | O8: =IF($C8="","",IF(VLOOKUP($C8,Scores,15,FALSE)="","",VLOOKUP($C8,Scores,15,FALSE))) -> 6 | P8: =IF($O8="","",SUM($G8:$O8)) -> 41 | Q8: =IF($D8="-","-",IF($P8="","",$P8-($D8/2))) -> 33.5 | R8: =IF($C8="","",IF(VLOOKUP($C8,Scores,17,FALSE)="","",VLOOKUP($C8,Scores,17,FALSE))) -> 5 | S8: =IF($C8="","",IF(VLOOKUP($C8,Scores,18,FALSE)="","",VLOOKUP($C8,Scores,18,FALSE))) -> 4 | T8: =IF($C8="","",IF(VLOOKUP($C8,Scores,19,FALSE)="","",VLOOKUP($C8,Scores,19,FALSE))) -> 5 | U8: =IF($C8="","",IF(VLOOKUP($C8,Scores,20,FALSE)="","",VLOOKUP($C8,Scores,20,FALSE))) -> 4 | V8: =IF($C8="","",IF(VLOOKUP($C8,Scores,21,FALSE)="","",VLOOKUP($C8,Scores,21,FALSE))) -> 6 | W8: =IF($C8="","",IF(VLOOKUP($C8,Scores,22,FALSE)="","",VLOOKUP($C8,Scores,22,FALSE))) -> 4 | X8: =IF($C8="","",IF(VLOOKUP($C8,Scores,23,FALSE)="","",VLOOKUP($C8,Scores,23,FALSE))) -> 3 | Y8: =IF($C8="","",IF(VLOOKUP($C8,Scores,24,FALSE)="","",VLOOKUP($C8,Scores,24,FALSE))) -> 6 | Z8: =IF($C8="","",IF(VLOOKUP($C8,Scores,25,FALSE)="","",VLOOKUP($C8,Scores,25,FALSE))) -> 6 | AA8: =IF($Z8="","",SUM($R8:$Z8)) -> 43 | AB8: =IF($D8="-","-",IF($AA8="","",$AA8-($D8/2))) -> 35.5 | AC8: =IF(OR($P8="",$AA8=""),"",SUM($P8,$AA8)) -> 84 | AD8: =IF($D8="-","-",IF(OR($Q8="",$AB8=""),"",SUM($Q8,$AB8))) -> 69
A9: T4 | B9: 4 | C9: Matthews, Keith | D9: =IF($C9="","",VLOOKUP($C9,Scores,4,FALSE)) -> 14 | E9: =IF($C9="","",IF(VLOOKUP($C9,Scores,5,FALSE)="","-",VLOOKUP($C9,Matches,25,FALSE))) -> AS | F9: =IF($C9="","",IF(VLOOKUP($C9,Scores,6,FALSE)="","",VLOOKUP($C9,Scores,6,FALSE))) -> 35 | G9: =IF($C9="","",IF(VLOOKUP($C9,Scores,7,FALSE)="","",VLOOKUP($C9,Scores,7,FALSE))) -> 6 | H9: =IF($C9="","",IF(VLOOKUP($C9,Scores,8,FALSE)="","",VLOOKUP($C9,Scores,8,FALSE))) -> 4 | I9: =IF($C9="","",IF(VLOOKUP($C9,Scores,9,FALSE)="","",VLOOKUP($C9,Scores,9,FALSE))) -> 4 | J9: =IF($C9="","",IF(VLOOKUP($C9,Scores,10,FALSE)="","",VLOOKUP($C9,Scores,10,FALSE))) -> 5 | K9: =IF($C9="","",IF(VLOOKUP($C9,Scores,11,FALSE)="","",VLOOKUP($C9,Scores,11,FALSE))) -> 5 | L9: =IF($C9="","",IF(VLOOKUP($C9,Scores,12,FALSE)="","",VLOOKUP($C9,Scores,12,FALSE))) -> 3 | M9: =IF($C9="","",IF(VLOOKUP($C9,Scores,13,FALSE)="","",VLOOKUP($C9,Scores,13,FALSE))) -> 7 | N9: =IF($C9="","",IF(VLOOKUP($C9,Scores,14,FALSE)="","",VLOOKUP($C9,Scores,14,FALSE))) -> 5 | O9: =IF($C9="","",IF(VLOOKUP($C9,Scores,15,FALSE)="","",VLOOKUP($C9,Scores,15,FALSE))) -> 6 | P9: =IF($O9="","",SUM($G9:$O9)) -> 45 | Q9: =IF($D9="-","-",IF($P9="","",$P9-($D9/2))) -> 38 | R9: =IF($C9="","",IF(VLOOKUP($C9,Scores,17,FALSE)="","",VLOOKUP($C9,Scores,17,FALSE))) -> 4 | S9: =IF($C9="","",IF(VLOOKUP($C9,Scores,18,FALSE)="","",VLOOKUP($C9,Scores,18,FALSE))) -> 4 | T9: =IF($C9="","",IF(VLOOKUP($C9,Scores,19,FALSE)="","",VLOOKUP($C9,Scores,19,FALSE))) -> 4 | U9: =IF($C9="","",IF(VLOOKUP($C9,Scores,20,FALSE)="","",VLOOKUP($C9,Scores,20,FALSE))) -> 5 | V9: =IF($C9="","",IF(VLOOKUP($C9,Scores,21,FALSE)="","",VLOOKUP($C9,Scores,21,FALSE))) -> 5 | W9: =IF($C9="","",IF(VLOOKUP($C9,Scores,22,FALSE)="","",VLOOKUP($C9,Scores,22,FALSE))) -> 4 | X9: =IF($C9="","",IF(VLOOKUP($C9,Scores,23,FALSE)="","",VLOOKUP($C9,Scores,23,FALSE))) -> 3 | Y9: =IF($C9="","",IF(VLOOKUP($C9,Scores,24,FALSE)="","",VLOOKUP($C9,Scores,24,FALSE))) -> 6 | Z9: =IF($C9="","",IF(VLOOKUP($C9,Scores,25,FALSE)="","",VLOOKUP($C9,Scores,25,FALSE))) -> 6 | AA9: =IF($Z9="","",SUM($R9:$Z9)) -> 41 | AB9: =IF($D9="-","-",IF($AA9="","",$AA9-($D9/2))) -> 34 | AC9: =IF(OR($P9="",$AA9=""),"",SUM($P9,$AA9)) -> 86 | AD9: =IF($D9="-","-",IF(OR($Q9="",$AB9=""),"",SUM($Q9,$AB9))) -> 72
A10: T4 | B10: 5 | C10: Christen, Lou | D10: =IF($C10="","",VLOOKUP($C10,Scores,4,FALSE)) -> 7 | E10: =IF($C10="","",IF(VLOOKUP($C10,Scores,5,FALSE)="","-",VLOOKUP($C10,Matches,25,FALSE))) -> - | F10: =IF($C10="","",IF(VLOOKUP($C10,Scores,6,FALSE)="","",VLOOKUP($C10,Scores,6,FALSE))) -> 33 | G10: =IF($C10="","",IF(VLOOKUP($C10,Scores,7,FALSE)="","",VLOOKUP($C10,Scores,7,FALSE))) -> 4 | H10: =IF($C10="","",IF(VLOOKUP($C10,Scores,8,FALSE)="","",VLOOKUP($C10,Scores,8,FALSE))) -> 6 | I10: =IF($C10="","",IF(VLOOKUP($C10,Scores,9,FALSE)="","",VLOOKUP($C10,Scores,9,FALSE))) -> 4 | J10: =IF($C10="","",IF(VLOOKUP($C10,Scores,10,FALSE)="","",VLOOKUP($C10,Scores,10,FALSE))) -> 3 | K10: =IF($C10="","",IF(VLOOKUP($C10,Scores,11,FALSE)="","",VLOOKUP($C10,Scores,11,FALSE))) -> 5 | L10: =IF($C10="","",IF(VLOOKUP($C10,Scores,12,FALSE)="","",VLOOKUP($C10,Scores,12,FALSE))) -> 4 | M10: =IF($C10="","",IF(VLOOKUP($C10,Scores,13,FALSE)="","",VLOOKUP($C10,Scores,13,FALSE))) -> 4 | N10: =IF($C10="","",IF(VLOOKUP($C10,Scores,14,FALSE)="","",VLOOKUP($C10,Scores,14,FALSE))) -> 4 | O10: =IF($C10="","",IF(VLOOKUP($C10,Scores,15,FALSE)="","",VLOOKUP($C10,Scores,15,FALSE))) -> 5 | P10: =IF($O10="","",SUM($G10:$O10)) -> 39 | Q10: =IF($D10="-","-",IF($P10="","",$P10-($D10/2))) -> 35.5 | R10: =IF($C10="","",IF(VLOOKUP($C10,Scores,17,FALSE)="","",VLOOKUP($C10,Scores,17,FALSE))) -> 3 | S10: =IF($C10="","",IF(VLOOKUP($C10,Scores,18,FALSE)="","",VLOOKUP($C10,Scores,18,FALSE))) -> 5 | T10: =IF($C10="","",IF(VLOOKUP($C10,Scores,19,FALSE)="","",VLOOKUP($C10,Scores,19,FALSE))) -> 3 | U10: =IF($C10="","",IF(VLOOKUP($C10,Scores,20,FALSE)="","",VLOOKUP($C10,Scores,20,FALSE))) -> 4 | V10: =IF($C10="","",IF(VLOOKUP($C10,Scores,21,FALSE)="","",VLOOKUP($C10,Scores,21,FALSE))) -> 6 | W10: =IF($C10="","",IF(VLOOKUP($C10,Scores,22,FALSE)="","",VLOOKUP($C10,Scores,22,FALSE))) -> 5 | X10: =IF($C10="","",IF(VLOOKUP($C10,Scores,23,FALSE)="","",VLOOKUP($C10,Scores,23,FALSE))) -> 3 | Y10: =IF($C10="","",IF(VLOOKUP($C10,Scores,24,FALSE)="","",VLOOKUP($C10,Scores,24,FALSE))) -> 6 | Z10: =IF($C10="","",IF(VLOOKUP($C10,Scores,25,FALSE)="","",VLOOKUP($C10,Scores,25,FALSE))) -> 5 | AA10: =IF($Z10="","",SUM($R10:$Z10)) -> 40 | AB10: =IF($D10="-","-",IF($AA10="","",$AA10-($D10/2))) -> 36.5 | AC10: =IF(OR($P10="",$AA10=""),"",SUM($P10,$AA10)) -> 79 | AD10: =IF($D10="-","-",IF(OR($Q10="",$AB10=""),"",SUM($Q10,$AB10))) -> 72
A11: T4 | B11: 6 | C11: Havstad, Steve | D11: =IF($C11="","",VLOOKUP($C11,Scores,4,FALSE)) -> 14 | E11: =IF($C11="","",IF(VLOOKUP($C11,Scores,5,FALSE)="","-",VLOOKUP($C11,Matches,25,FALSE))) -> - | F11: =IF($C11="","",IF(VLOOKUP($C11,Scores,6,FALSE)="","",VLOOKUP($C11,Scores,6,FALSE))) -> 29 | G11: =IF($C11="","",IF(VLOOKUP($C11,Scores,7,FALSE)="","",VLOOKUP($C11,Scores,7,FALSE))) -> 4 | H11: =IF($C11="","",IF(VLOOKUP($C11,Scores,8,FALSE)="","",VLOOKUP($C11,Scores,8,FALSE))) -> 5 | I11: =IF($C11="","",IF(VLOOKUP($C11,Scores,9,FALSE)="","",VLOOKUP($C11,Scores,9,FALSE))) -> 5 | J11: =IF($C11="","",IF(VLOOKUP($C11,Scores,10,FALSE)="","",VLOOKUP($C11,Scores,10,FALSE))) -> 3 | K11: =IF($C11="","",IF(VLOOKUP($C11,Scores,11,FALSE)="","",VLOOKUP($C11,Scores,11,FALSE))) -> 5 | L11: =IF($C11="","",IF(VLOOKUP($C11,Scores,12,FALSE)="","",VLOOKUP($C11,Scores,12,FALSE))) -> 4 | M11: =IF($C11="","",IF(VLOOKUP($C11,Scores,13,FALSE)="","",VLOOKUP($C11,Scores,13,FALSE))) -> 5 | N11: =IF($C11="","",IF(VLOOKUP($C11,Scores,14,FALSE)="","",VLOOKUP($C11,Scores,14,FALSE))) -> 5 | O11: =IF($C11="","",IF(VLOOKUP($C11,Scores,15,FALSE)="","",VLOOKUP($C11,Scores,15,FALSE))) -> 5 | P11: =IF($O11="","",SUM($G11:$O11)) -> 41 | Q11: =IF($D11="-","-",IF($P11="","",$P11-($D11/2))) -> 34 | R11: =IF($C11="","",IF(VLOOKUP($C11,Scores,17,FALSE)="","",VLOOKUP($C11,Scores,17,FALSE))) -> 5 | S11: =IF($C11="","",IF(VLOOKUP($C11,Scores,18,FALSE)="","",VLOOKUP($C11,Scores,18,FALSE))) -> 4 | T11: =IF($C11="","",IF(VLOOKUP($C11,Scores,19,FALSE)="","",VLOOKUP($C11,Scores,19,FALSE))) -> 3 | U11: =IF($C11="","",IF(VLOOKUP($C11,Scores,20,FALSE)="","",VLOOKUP($C11,Scores,20,FALSE))) -> 7 | V11: =IF($C11="","",IF(VLOOKUP($C11,Scores,21,FALSE)="","",VLOOKUP($C11,Scores,21,FALSE))) -> 5 | W11: =IF($C11="","",IF(VLOOKUP($C11,Scores,22,FALSE)="","",VLOOKUP($C11,Scores,22,FALSE))) -> 5 | X11: =IF($C11="","",IF(VLOOKUP($C11,Scores,23,FALSE)="","",VLOOKUP($C11,Scores,23,FALSE))) -> 4 | Y11: =IF($C11="","",IF(VLOOKUP($C11,Scores,24,FALSE)="","",VLOOKUP($C11,Scores,24,FALSE))) -> 6 | Z11: =IF($C11="","",IF(VLOOKUP($C11,Scores,25,FALSE)="","",VLOOKUP($C11,Scores,25,FALSE))) -> 6 | AA11: =IF($Z11="","",SUM($R11:$Z11)) -> 45 | AB11: =IF($D11="-","-",IF($AA11="","",$AA11-($D11/2))) -> 38 | AC11: =IF(OR($P11="",$AA11=""),"",SUM($P11,$AA11)) -> 86 | AD11: =IF($D11="-","-",IF(OR($Q11="",$AB11=""),"",SUM($Q11,$AB11))) -> 72
A12: T7 | B12: 7 | C12: Lunghard, Rich | D12: =IF($C12="","",VLOOKUP($C12,Scores,4,FALSE)) -> 23 | E12: =IF($C12="","",IF(VLOOKUP($C12,Scores,5,FALSE)="","-",VLOOKUP($C12,Matches,25,FALSE))) -> - | F12: =IF($C12="","",IF(VLOOKUP($C12,Scores,6,FALSE)="","",VLOOKUP($C12,Scores,6,FALSE))) -> 34 | G12: =IF($C12="","",IF(VLOOKUP($C12,Scores,7,FALSE)="","",VLOOKUP($C12,Scores,7,FALSE))) -> 6 | H12: =IF($C12="","",IF(VLOOKUP($C12,Scores,8,FALSE)="","",VLOOKUP($C12,Scores,8,FALSE))) -> 6 | I12: =IF($C12="","",IF(VLOOKUP($C12,Scores,9,FALSE)="","",VLOOKUP($C12,Scores,9,FALSE))) -> 4 | J12: =IF($C12="","",IF(VLOOKUP($C12,Scores,10,FALSE)="","",VLOOKUP($C12,Scores,10,FALSE))) -> 4 | K12: =IF($C12="","",IF(VLOOKUP($C12,Scores,11,FALSE)="","",VLOOKUP($C12,Scores,11,FALSE))) -> 6 | L12: =IF($C12="","",IF(VLOOKUP($C12,Scores,12,FALSE)="","",VLOOKUP($C12,Scores,12,FALSE))) -> 4 | M12: =IF($C12="","",IF(VLOOKUP($C12,Scores,13,FALSE)="","",VLOOKUP($C12,Scores,13,FALSE))) -> 4 | N12: =IF($C12="","",IF(VLOOKUP($C12,Scores,14,FALSE)="","",VLOOKUP($C12,Scores,14,FALSE))) -> 7 | O12: =IF($C12="","",IF(VLOOKUP($C12,Scores,15,FALSE)="","",VLOOKUP($C12,Scores,15,FALSE))) -> 6 | P12: =IF($O12="","",SUM($G12:$O12)) -> 47 | Q12: =IF($D12="-","-",IF($P12="","",$P12-($D12/2))) -> 35.5 | R12: =IF($C12="","",IF(VLOOKUP($C12,Scores,17,FALSE)="","",VLOOKUP($C12,Scores,17,FALSE))) -> 6 | S12: =IF($C12="","",IF(VLOOKUP($C12,Scores,18,FALSE)="","",VLOOKUP($C12,Scores,18,FALSE))) -> 6 | T12: =IF($C12="","",IF(VLOOKUP($C12,Scores,19,FALSE)="","",VLOOKUP($C12,Scores,19,FALSE))) -> 3 | U12: =IF($C12="","",IF(VLOOKUP($C12,Scores,20,FALSE)="","",VLOOKUP($C12,Scores,20,FALSE))) -> 6 | V12: =IF($C12="","",IF(VLOOKUP($C12,Scores,21,FALSE)="","",VLOOKUP($C12,Scores,21,FALSE))) -> 6 | W12: =IF($C12="","",IF(VLOOKUP($C12,Scores,22,FALSE)="","",VLOOKUP($C12,Scores,22,FALSE))) -> 6 | X12: =IF($C12="","",IF(VLOOKUP($C12,Scores,23,FALSE)="","",VLOOKUP($C12,Scores,23,FALSE))) -> 4 | Y12: =IF($C12="","",IF(VLOOKUP($C12,Scores,24,FALSE)="","",VLOOKUP($C12,Scores,24,FALSE))) -> 7 | Z12: =IF($C12="","",IF(VLOOKUP($C12,Scores,25,FALSE)="","",VLOOKUP($C12,Scores,25,FALSE))) -> 6 | AA12: =IF($Z12="","",SUM($R12:$Z12)) -> 50 | AB12: =IF($D12="-","-",IF($AA12="","",$AA12-($D12/2))) -> 38.5 | AC12: =IF(OR($P12="",$AA12=""),"",SUM($P12,$AA12)) -> 97 | AD12: =IF($D12="-","-",IF(OR($Q12="",$AB12=""),"",SUM($Q12,$AB12))) -> 74
A13: T7 | B13: 8 | C13: Holzrichter, Geoff | D13: =IF($C13="","",VLOOKUP($C13,Scores,4,FALSE)) -> 22 | E13: =IF($C13="","",IF(VLOOKUP($C13,Scores,5,FALSE)="","-",VLOOKUP($C13,Matches,25,FALSE))) -> - | F13: =IF($C13="","",IF(VLOOKUP($C13,Scores,6,FALSE)="","",VLOOKUP($C13,Scores,6,FALSE))) -> 32 | G13: =IF($C13="","",IF(VLOOKUP($C13,Scores,7,FALSE)="","",VLOOKUP($C13,Scores,7,FALSE))) -> 4 | H13: =IF($C13="","",IF(VLOOKUP($C13,Scores,8,FALSE)="","",VLOOKUP($C13,Scores,8,FALSE))) -> 5 | I13: =IF($C13="","",IF(VLOOKUP($C13,Scores,9,FALSE)="","",VLOOKUP($C13,Scores,9,FALSE))) -> 7 | J13: =IF($C13="","",IF(VLOOKUP($C13,Scores,10,FALSE)="","",VLOOKUP($C13,Scores,10,FALSE))) -> 4 | K13: =IF($C13="","",IF(VLOOKUP($C13,Scores,11,FALSE)="","",VLOOKUP($C13,Scores,11,FALSE))) -> 5 | L13: =IF($C13="","",IF(VLOOKUP($C13,Scores,12,FALSE)="","",VLOOKUP($C13,Scores,12,FALSE))) -> 5 | M13: =IF($C13="","",IF(VLOOKUP($C13,Scores,13,FALSE)="","",VLOOKUP($C13,Scores,13,FALSE))) -> 5 | N13: =IF($C13="","",IF(VLOOKUP($C13,Scores,14,FALSE)="","",VLOOKUP($C13,Scores,14,FALSE))) -> 5 | O13: =IF($C13="","",IF(VLOOKUP($C13,Scores,15,FALSE)="","",VLOOKUP($C13,Scores,15,FALSE))) -> 5 | P13: =IF($O13="","",SUM($G13:$O13)) -> 45 | Q13: =IF($D13="-","-",IF($P13="","",$P13-($D13/2))) -> 34 | R13: =IF($C13="","",IF(VLOOKUP($C13,Scores,17,FALSE)="","",VLOOKUP($C13,Scores,17,FALSE))) -> 4 | S13: =IF($C13="","",IF(VLOOKUP($C13,Scores,18,FALSE)="","",VLOOKUP($C13,Scores,18,FALSE))) -> 5 | T13: =IF($C13="","",IF(VLOOKUP($C13,Scores,19,FALSE)="","",VLOOKUP($C13,Scores,19,FALSE))) -> 5 | U13: =IF($C13="","",IF(VLOOKUP($C13,Scores,20,FALSE)="","",VLOOKUP($C13,Scores,20,FALSE))) -> 4 | V13: =IF($C13="","",IF(VLOOKUP($C13,Scores,21,FALSE)="","",VLOOKUP($C13,Scores,21,FALSE))) -> 7 | W13: =IF($C13="","",IF(VLOOKUP($C13,Scores,22,FALSE)="","",VLOOKUP($C13,Scores,22,FALSE))) -> 6 | X13: =IF($C13="","",IF(VLOOKUP($C13,Scores,23,FALSE)="","",VLOOKUP($C13,Scores,23,FALSE))) -> 4 | Y13: =IF($C13="","",IF(VLOOKUP($C13,Scores,24,FALSE)="","",VLOOKUP($C13,Scores,24,FALSE))) -> 10 | Z13: =IF($C13="","",IF(VLOOKUP($C13,Scores,25,FALSE)="","",VLOOKUP($C13,Scores,25,FALSE))) -> 6 | AA13: =IF($Z13="","",SUM($R13:$Z13)) -> 51 | AB13: =IF($D13="-","-",IF($AA13="","",$AA13-($D13/2))) -> 40 | AC13: =IF(OR($P13="",$AA13=""),"",SUM($P13,$AA13)) -> 96 | AD13: =IF($D13="-","-",IF(OR($Q13="",$AB13=""),"",SUM($Q13,$AB13))) -> 74
A14: T9 | B14: 9 | C14: Blodgett, Kevin | D14: =IF($C14="","",VLOOKUP($C14,Scores,4,FALSE)) -> 27 | E14: =IF($C14="","",IF(VLOOKUP($C14,Scores,5,FALSE)="","-",VLOOKUP($C14,Matches,25,FALSE))) -> - | F14: =IF($C14="","",IF(VLOOKUP($C14,Scores,6,FALSE)="","",VLOOKUP($C14,Scores,6,FALSE))) -> 39 | G14: =IF($C14="","",IF(VLOOKUP($C14,Scores,7,FALSE)="","",VLOOKUP($C14,Scores,7,FALSE))) -> 4 | H14: =IF($C14="","",IF(VLOOKUP($C14,Scores,8,FALSE)="","",VLOOKUP($C14,Scores,8,FALSE))) -> 7 | I14: =IF($C14="","",IF(VLOOKUP($C14,Scores,9,FALSE)="","",VLOOKUP($C14,Scores,9,FALSE))) -> 7 | J14: =IF($C14="","",IF(VLOOKUP($C14,Scores,10,FALSE)="","",VLOOKUP($C14,Scores,10,FALSE))) -> 4 | K14: =IF($C14="","",IF(VLOOKUP($C14,Scores,11,FALSE)="","",VLOOKUP($C14,Scores,11,FALSE))) -> 6 | L14: =IF($C14="","",IF(VLOOKUP($C14,Scores,12,FALSE)="","",VLOOKUP($C14,Scores,12,FALSE))) -> 7 | M14: =IF($C14="","",IF(VLOOKUP($C14,Scores,13,FALSE)="","",VLOOKUP($C14,Scores,13,FALSE))) -> 5 | N14: =IF($C14="","",IF(VLOOKUP($C14,Scores,14,FALSE)="","",VLOOKUP($C14,Scores,14,FALSE))) -> 6 | O14: =IF($C14="","",IF(VLOOKUP($C14,Scores,15,FALSE)="","",VLOOKUP($C14,Scores,15,FALSE))) -> 9 | P14: =IF($O14="","",SUM($G14:$O14)) -> 55 | Q14: =IF($D14="-","-",IF($P14="","",$P14-($D14/2))) -> 41.5 | R14: =IF($C14="","",IF(VLOOKUP($C14,Scores,17,FALSE)="","",VLOOKUP($C14,Scores,17,FALSE))) -> 5 | S14: =IF($C14="","",IF(VLOOKUP($C14,Scores,18,FALSE)="","",VLOOKUP($C14,Scores,18,FALSE))) -> 5 | T14: =IF($C14="","",IF(VLOOKUP($C14,Scores,19,FALSE)="","",VLOOKUP($C14,Scores,19,FALSE))) -> 4 | U14: =IF($C14="","",IF(VLOOKUP($C14,Scores,20,FALSE)="","",VLOOKUP($C14,Scores,20,FALSE))) -> 4 | V14: =IF($C14="","",IF(VLOOKUP($C14,Scores,21,FALSE)="","",VLOOKUP($C14,Scores,21,FALSE))) -> 6 | W14: =IF($C14="","",IF(VLOOKUP($C14,Scores,22,FALSE)="","",VLOOKUP($C14,Scores,22,FALSE))) -> 5 | X14: =IF($C14="","",IF(VLOOKUP($C14,Scores,23,FALSE)="","",VLOOKUP($C14,Scores,23,FALSE))) -> 6 | Y14: =IF($C14="","",IF(VLOOKUP($C14,Scores,24,FALSE)="","",VLOOKUP($C14,Scores,24,FALSE))) -> 7 | Z14: =IF($C14="","",IF(VLOOKUP($C14,Scores,25,FALSE)="","",VLOOKUP($C14,Scores,25,FALSE))) -> 5 | AA14: =IF($Z14="","",SUM($R14:$Z14)) -> 47 | AB14: =IF($D14="-","-",IF($AA14="","",$AA14-($D14/2))) -> 33.5 | AC14: =IF(OR($P14="",$AA14=""),"",SUM($P14,$AA14)) -> 102 | AD14: =IF($D14="-","-",IF(OR($Q14="",$AB14=""),"",SUM($Q14,$AB14))) -> 75
A15: T9 | B15: 10 | C15: Ornelas, Eddie | D15: =IF($C15="","",VLOOKUP($C15,Scores,4,FALSE)) -> 10 | E15: =IF($C15="","",IF(VLOOKUP($C15,Scores,5,FALSE)="","-",VLOOKUP($C15,Matches,25,FALSE))) -> 2 and 1 | F15: =IF($C15="","",IF(VLOOKUP($C15,Scores,6,FALSE)="","",VLOOKUP($C15,Scores,6,FALSE))) -> 34 | G15: =IF($C15="","",IF(VLOOKUP($C15,Scores,7,FALSE)="","",VLOOKUP($C15,Scores,7,FALSE))) -> 4 | H15: =IF($C15="","",IF(VLOOKUP($C15,Scores,8,FALSE)="","",VLOOKUP($C15,Scores,8,FALSE))) -> 5 | I15: =IF($C15="","",IF(VLOOKUP($C15,Scores,9,FALSE)="","",VLOOKUP($C15,Scores,9,FALSE))) -> 6 | J15: =IF($C15="","",IF(VLOOKUP($C15,Scores,10,FALSE)="","",VLOOKUP($C15,Scores,10,FALSE))) -> 4 | K15: =IF($C15="","",IF(VLOOKUP($C15,Scores,11,FALSE)="","",VLOOKUP($C15,Scores,11,FALSE))) -> 5 | L15: =IF($C15="","",IF(VLOOKUP($C15,Scores,12,FALSE)="","",VLOOKUP($C15,Scores,12,FALSE))) -> 4 | M15: =IF($C15="","",IF(VLOOKUP($C15,Scores,13,FALSE)="","",VLOOKUP($C15,Scores,13,FALSE))) -> 4 | N15: =IF($C15="","",IF(VLOOKUP($C15,Scores,14,FALSE)="","",VLOOKUP($C15,Scores,14,FALSE))) -> 6 | O15: =IF($C15="","",IF(VLOOKUP($C15,Scores,15,FALSE)="","",VLOOKUP($C15,Scores,15,FALSE))) -> 5 | P15: =IF($O15="","",SUM($G15:$O15)) -> 43 | Q15: =IF($D15="-","-",IF($P15="","",$P15-($D15/2))) -> 38 | R15: =IF($C15="","",IF(VLOOKUP($C15,Scores,17,FALSE)="","",VLOOKUP($C15,Scores,17,FALSE))) -> 4 | S15: =IF($C15="","",IF(VLOOKUP($C15,Scores,18,FALSE)="","",VLOOKUP($C15,Scores,18,FALSE))) -> 4 | T15: =IF($C15="","",IF(VLOOKUP($C15,Scores,19,FALSE)="","",VLOOKUP($C15,Scores,19,FALSE))) -> 3 | U15: =IF($C15="","",IF(VLOOKUP($C15,Scores,20,FALSE)="","",VLOOKUP($C15,Scores,20,FALSE))) -> 4 | V15: =IF($C15="","",IF(VLOOKUP($C15,Scores,21,FALSE)="","",VLOOKUP($C15,Scores,21,FALSE))) -> 6 | W15: =IF($C15="","",IF(VLOOKUP($C15,Scores,22,FALSE)="","",VLOOKUP($C15,Scores,22,FALSE))) -> 6 | X15: =IF($C15="","",IF(VLOOKUP($C15,Scores,23,FALSE)="","",VLOOKUP($C15,Scores,23,FALSE))) -> 5 | Y15: =IF($C15="","",IF(VLOOKUP($C15,Scores,24,FALSE)="","",VLOOKUP($C15,Scores,24,FALSE))) -> 6 | Z15: =IF($C15="","",IF(VLOOKUP($C15,Scores,25,FALSE)="","",VLOOKUP($C15,Scores,25,FALSE))) -> 4 | AA15: =IF($Z15="","",SUM($R15:$Z15)) -> 42 | AB15: =IF($D15="-","-",IF($AA15="","",$AA15-($D15/2))) -> 37 | AC15: =IF(OR($P15="",$AA15=""),"",SUM($P15,$AA15)) -> 85 | AD15: =IF($D15="-","-",IF(OR($Q15="",$AB15=""),"",SUM($Q15,$AB15))) -> 75
A16: T9 | B16: 11 | C16: Escobedo, Hector | D16: =IF($C16="","",VLOOKUP($C16,Scores,4,FALSE)) -> 11 | E16: =IF($C16="","",IF(VLOOKUP($C16,Scores,5,FALSE)="","-",VLOOKUP($C16,Matches,25,FALSE))) -> lost | F16: =IF($C16="","",IF(VLOOKUP($C16,Scores,6,FALSE)="","",VLOOKUP($C16,Scores,6,FALSE))) -> 28 | G16: =IF($C16="","",IF(VLOOKUP($C16,Scores,7,FALSE)="","",VLOOKUP($C16,Scores,7,FALSE))) -> 4 | H16: =IF($C16="","",IF(VLOOKUP($C16,Scores,8,FALSE)="","",VLOOKUP($C16,Scores,8,FALSE))) -> 6 | I16: =IF($C16="","",IF(VLOOKUP($C16,Scores,9,FALSE)="","",VLOOKUP($C16,Scores,9,FALSE))) -> 4 | J16: =IF($C16="","",IF(VLOOKUP($C16,Scores,10,FALSE)="","",VLOOKUP($C16,Scores,10,FALSE))) -> 4 | K16: =IF($C16="","",IF(VLOOKUP($C16,Scores,11,FALSE)="","",VLOOKUP($C16,Scores,11,FALSE))) -> 5 | L16: =IF($C16="","",IF(VLOOKUP($C16,Scores,12,FALSE)="","",VLOOKUP($C16,Scores,12,FALSE))) -> 3 | M16: =IF($C16="","",IF(VLOOKUP($C16,Scores,13,FALSE)="","",VLOOKUP($C16,Scores,13,FALSE))) -> 4 | N16: =IF($C16="","",IF(VLOOKUP($C16,Scores,14,FALSE)="","",VLOOKUP($C16,Scores,14,FALSE))) -> 5 | O16: =IF($C16="","",IF(VLOOKUP($C16,Scores,15,FALSE)="","",VLOOKUP($C16,Scores,15,FALSE))) -> 6 | P16: =IF($O16="","",SUM($G16:$O16)) -> 41 | Q16: =IF($D16="-","-",IF($P16="","",$P16-($D16/2))) -> 35.5 | R16: =IF($C16="","",IF(VLOOKUP($C16,Scores,17,FALSE)="","",VLOOKUP($C16,Scores,17,FALSE))) -> 7 | S16: =IF($C16="","",IF(VLOOKUP($C16,Scores,18,FALSE)="","",VLOOKUP($C16,Scores,18,FALSE))) -> 5 | T16: =IF($C16="","",IF(VLOOKUP($C16,Scores,19,FALSE)="","",VLOOKUP($C16,Scores,19,FALSE))) -> 3 | U16: =IF($C16="","",IF(VLOOKUP($C16,Scores,20,FALSE)="","",VLOOKUP($C16,Scores,20,FALSE))) -> 5 | V16: =IF($C16="","",IF(VLOOKUP($C16,Scores,21,FALSE)="","",VLOOKUP($C16,Scores,21,FALSE))) -> 7 | W16: =IF($C16="","",IF(VLOOKUP($C16,Scores,22,FALSE)="","",VLOOKUP($C16,Scores,22,FALSE))) -> 4 | X16: =IF($C16="","",IF(VLOOKUP($C16,Scores,23,FALSE)="","",VLOOKUP($C16,Scores,23,FALSE))) -> 3 | Y16: =IF($C16="","",IF(VLOOKUP($C16,Scores,24,FALSE)="","",VLOOKUP($C16,Scores,24,FALSE))) -> 5 | Z16: =IF($C16="","",IF(VLOOKUP($C16,Scores,25,FALSE)="","",VLOOKUP($C16,Scores,25,FALSE))) -> 6 | AA16: =IF($Z16="","",SUM($R16:$Z16)) -> 45 | AB16: =IF($D16="-","-",IF($AA16="","",$AA16-($D16/2))) -> 39.5 | AC16: =IF(OR($P16="",$AA16=""),"",SUM($P16,$AA16)) -> 86 | AD16: =IF($D16="-","-",IF(OR($Q16="",$AB16=""),"",SUM($Q16,$AB16))) -> 75
A17: 12 | B17: 12 | C17: Mariano, Joe | D17: =IF($C17="","",VLOOKUP($C17,Scores,4,FALSE)) -> 13 | E17: =IF($C17="","",IF(VLOOKUP($C17,Scores,5,FALSE)="","-",VLOOKUP($C17,Matches,25,FALSE))) -> lost | F17: =IF($C17="","",IF(VLOOKUP($C17,Scores,6,FALSE)="","",VLOOKUP($C17,Scores,6,FALSE))) -> 37 | G17: =IF($C17="","",IF(VLOOKUP($C17,Scores,7,FALSE)="","",VLOOKUP($C17,Scores,7,FALSE))) -> 7 | H17: =IF($C17="","",IF(VLOOKUP($C17,Scores,8,FALSE)="","",VLOOKUP($C17,Scores,8,FALSE))) -> 4 | I17: =IF($C17="","",IF(VLOOKUP($C17,Scores,9,FALSE)="","",VLOOKUP($C17,Scores,9,FALSE))) -> 5 | J17: =IF($C17="","",IF(VLOOKUP($C17,Scores,10,FALSE)="","",VLOOKUP($C17,Scores,10,FALSE))) -> 3 | K17: =IF($C17="","",IF(VLOOKUP($C17,Scores,11,FALSE)="","",VLOOKUP($C17,Scores,11,FALSE))) -> 5 | L17: =IF($C17="","",IF(VLOOKUP($C17,Scores,12,FALSE)="","",VLOOKUP($C17,Scores,12,FALSE))) -> 5 | M17: =IF($C17="","",IF(VLOOKUP($C17,Scores,13,FALSE)="","",VLOOKUP($C17,Scores,13,FALSE))) -> 6 | N17: =IF($C17="","",IF(VLOOKUP($C17,Scores,14,FALSE)="","",VLOOKUP($C17,Scores,14,FALSE))) -> 5 | O17: =IF($C17="","",IF(VLOOKUP($C17,Scores,15,FALSE)="","",VLOOKUP($C17,Scores,15,FALSE))) -> 6 | P17: =IF($O17="","",SUM($G17:$O17)) -> 46 | Q17: =IF($D17="-","-",IF($P17="","",$P17-($D17/2))) -> 39.5 | R17: =IF($C17="","",IF(VLOOKUP($C17,Scores,17,FALSE)="","",VLOOKUP($C17,Scores,17,FALSE))) -> 5 | S17: =IF($C17="","",IF(VLOOKUP($C17,Scores,18,FALSE)="","",VLOOKUP($C17,Scores,18,FALSE))) -> 6 | T17: =IF($C17="","",IF(VLOOKUP($C17,Scores,19,FALSE)="","",VLOOKUP($C17,Scores,19,FALSE))) -> 5 | U17: =IF($C17="","",IF(VLOOKUP($C17,Scores,20,FALSE)="","",VLOOKUP($C17,Scores,20,FALSE))) -> 4 | V17: =IF($C17="","",IF(VLOOKUP($C17,Scores,21,FALSE)="","",VLOOKUP($C17,Scores,21,FALSE))) -> 7 | W17: =IF($C17="","",IF(VLOOKUP($C17,Scores,22,FALSE)="","",VLOOKUP($C17,Scores,22,FALSE))) -> 5 | X17: =IF($C17="","",IF(VLOOKUP($C17,Scores,23,FALSE)="","",VLOOKUP($C17,Scores,23,FALSE))) -> 3 | Y17: =IF($C17="","",IF(VLOOKUP($C17,Scores,24,FALSE)="","",VLOOKUP($C17,Scores,24,FALSE))) -> 6 | Z17: =IF($C17="","",IF(VLOOKUP($C17,Scores,25,FALSE)="","",VLOOKUP($C17,Scores,25,FALSE))) -> 6 | AA17: =IF($Z17="","",SUM($R17:$Z17)) -> 47 | AB17: =IF($D17="-","-",IF($AA17="","",$AA17-($D17/2))) -> 40.5 | AC17: =IF(OR($P17="",$AA17=""),"",SUM($P17,$AA17)) -> 93 | AD17: =IF($D17="-","-",IF(OR($Q17="",$AB17=""),"",SUM($Q17,$AB17))) -> 80
B18: 13 | D18: =IF($C18="","",VLOOKUP($C18,Scores,4,FALSE)) ->  | E18: =IF($C18="","",IF(VLOOKUP($C18,Scores,5,FALSE)="","-",VLOOKUP($C18,Matches,25,FALSE))) ->  | F18: =IF($C18="","",IF(VLOOKUP($C18,Scores,6,FALSE)="","",VLOOKUP($C18,Scores,6,FALSE))) ->  | G18: =IF($C18="","",IF(VLOOKUP($C18,Scores,7,FALSE)="","",VLOOKUP($C18,Scores,7,FALSE))) ->  | H18: =IF($C18="","",IF(VLOOKUP($C18,Scores,8,FALSE)="","",VLOOKUP($C18,Scores,8,FALSE))) ->  | I18: =IF($C18="","",IF(VLOOKUP($C18,Scores,9,FALSE)="","",VLOOKUP($C18,Scores,9,FALSE))) ->  | J18: =IF($C18="","",IF(VLOOKUP($C18,Scores,10,FALSE)="","",VLOOKUP($C18,Scores,10,FALSE))) ->  | K18: =IF($C18="","",IF(VLOOKUP($C18,Scores,11,FALSE)="","",VLOOKUP($C18,Scores,11,FALSE))) ->  | L18: =IF($C18="","",IF(VLOOKUP($C18,Scores,12,FALSE)="","",VLOOKUP($C18,Scores,12,FALSE))) ->  | M18: =IF($C18="","",IF(VLOOKUP($C18,Scores,13,FALSE)="","",VLOOKUP($C18,Scores,13,FALSE))) ->  | N18: =IF($C18="","",IF(VLOOKUP($C18,Scores,14,FALSE)="","",VLOOKUP($C18,Scores,14,FALSE))) ->  | O18: =IF($C18="","",IF(VLOOKUP($C18,Scores,15,FALSE)="","",VLOOKUP($C18,Scores,15,FALSE))) ->  | P18: =IF($O18="","",SUM($G18:$O18)) ->  | Q18: =IF($D18="-","-",IF($P18="","",$P18-($D18/2))) ->  | R18: =IF($C18="","",IF(VLOOKUP($C18,Scores,17,FALSE)="","",VLOOKUP($C18,Scores,17,FALSE))) ->  | S18: =IF($C18="","",IF(VLOOKUP($C18,Scores,18,FALSE)="","",VLOOKUP($C18,Scores,18,FALSE))) ->  | T18: =IF($C18="","",IF(VLOOKUP($C18,Scores,19,FALSE)="","",VLOOKUP($C18,Scores,19,FALSE))) ->  | U18: =IF($C18="","",IF(VLOOKUP($C18,Scores,20,FALSE)="","",VLOOKUP($C18,Scores,20,FALSE))) ->  | V18: =IF($C18="","",IF(VLOOKUP($C18,Scores,21,FALSE)="","",VLOOKUP($C18,Scores,21,FALSE))) ->  | W18: =IF($C18="","",IF(VLOOKUP($C18,Scores,22,FALSE)="","",VLOOKUP($C18,Scores,22,FALSE))) ->  | X18: =IF($C18="","",IF(VLOOKUP($C18,Scores,23,FALSE)="","",VLOOKUP($C18,Scores,23,FALSE))) ->  | Y18: =IF($C18="","",IF(VLOOKUP($C18,Scores,24,FALSE)="","",VLOOKUP($C18,Scores,24,FALSE))) ->  | Z18: =IF($C18="","",IF(VLOOKUP($C18,Scores,25,FALSE)="","",VLOOKUP($C18,Scores,25,FALSE))) ->  | AA18: =IF($Z18="","",SUM($R18:$Z18)) ->  | AB18: =IF($D18="-","-",IF($AA18="","",$AA18-($D18/2))) ->  | AC18: =IF(OR($P18="",$AA18=""),"",SUM($P18,$AA18)) ->  | AD18: =IF($D18="-","-",IF(OR($Q18="",$AB18=""),"",SUM($Q18,$AB18))) -> 
B19: 14 | D19: =IF($C19="","",VLOOKUP($C19,Scores,4,FALSE)) ->  | E19: =IF($C19="","",IF(VLOOKUP($C19,Scores,5,FALSE)="","-",VLOOKUP($C19,Matches,25,FALSE))) ->  | F19: =IF($C19="","",IF(VLOOKUP($C19,Scores,6,FALSE)="","",VLOOKUP($C19,Scores,6,FALSE))) ->  | G19: =IF($C19="","",IF(VLOOKUP($C19,Scores,7,FALSE)="","",VLOOKUP($C19,Scores,7,FALSE))) ->  | H19: =IF($C19="","",IF(VLOOKUP($C19,Scores,8,FALSE)="","",VLOOKUP($C19,Scores,8,FALSE))) ->  | I19: =IF($C19="","",IF(VLOOKUP($C19,Scores,9,FALSE)="","",VLOOKUP($C19,Scores,9,FALSE))) ->  | J19: =IF($C19="","",IF(VLOOKUP($C19,Scores,10,FALSE)="","",VLOOKUP($C19,Scores,10,FALSE))) ->  | K19: =IF($C19="","",IF(VLOOKUP($C19,Scores,11,FALSE)="","",VLOOKUP($C19,Scores,11,FALSE))) ->  | L19: =IF($C19="","",IF(VLOOKUP($C19,Scores,12,FALSE)="","",VLOOKUP($C19,Scores,12,FALSE))) ->  | M19: =IF($C19="","",IF(VLOOKUP($C19,Scores,13,FALSE)="","",VLOOKUP($C19,Scores,13,FALSE))) ->  | N19: =IF($C19="","",IF(VLOOKUP($C19,Scores,14,FALSE)="","",VLOOKUP($C19,Scores,14,FALSE))) ->  | O19: =IF($C19="","",IF(VLOOKUP($C19,Scores,15,FALSE)="","",VLOOKUP($C19,Scores,15,FALSE))) ->  | P19: =IF($O19="","",SUM($G19:$O19)) ->  | Q19: =IF($D19="-","-",IF($P19="","",$P19-($D19/2))) ->  | R19: =IF($C19="","",IF(VLOOKUP($C19,Scores,17,FALSE)="","",VLOOKUP($C19,Scores,17,FALSE))) ->  | S19: =IF($C19="","",IF(VLOOKUP($C19,Scores,18,FALSE)="","",VLOOKUP($C19,Scores,18,FALSE))) ->  | T19: =IF($C19="","",IF(VLOOKUP($C19,Scores,19,FALSE)="","",VLOOKUP($C19,Scores,19,FALSE))) ->  | U19: =IF($C19="","",IF(VLOOKUP($C19,Scores,20,FALSE)="","",VLOOKUP($C19,Scores,20,FALSE))) ->  | V19: =IF($C19="","",IF(VLOOKUP($C19,Scores,21,FALSE)="","",VLOOKUP($C19,Scores,21,FALSE))) ->  | W19: =IF($C19="","",IF(VLOOKUP($C19,Scores,22,FALSE)="","",VLOOKUP($C19,Scores,22,FALSE))) ->  | X19: =IF($C19="","",IF(VLOOKUP($C19,Scores,23,FALSE)="","",VLOOKUP($C19,Scores,23,FALSE))) ->  | Y19: =IF($C19="","",IF(VLOOKUP($C19,Scores,24,FALSE)="","",VLOOKUP($C19,Scores,24,FALSE))) ->  | Z19: =IF($C19="","",IF(VLOOKUP($C19,Scores,25,FALSE)="","",VLOOKUP($C19,Scores,25,FALSE))) ->  | AA19: =IF($Z19="","",SUM($R19:$Z19)) ->  | AB19: =IF($D19="-","-",IF($AA19="","",$AA19-($D19/2))) ->  | AC19: =IF(OR($P19="",$AA19=""),"",SUM($P19,$AA19)) ->  | AD19: =IF($D19="-","-",IF(OR($Q19="",$AB19=""),"",SUM($Q19,$AB19))) -> 
B20: 15 | D20: =IF($C20="","",VLOOKUP($C20,Scores,4,FALSE)) ->  | E20: =IF($C20="","",IF(VLOOKUP($C20,Scores,5,FALSE)="","-",VLOOKUP($C20,Matches,25,FALSE))) ->  | F20: =IF($C20="","",IF(VLOOKUP($C20,Scores,6,FALSE)="","",VLOOKUP($C20,Scores,6,FALSE))) ->  | G20: =IF($C20="","",IF(VLOOKUP($C20,Scores,7,FALSE)="","",VLOOKUP($C20,Scores,7,FALSE))) ->  | H20: =IF($C20="","",IF(VLOOKUP($C20,Scores,8,FALSE)="","",VLOOKUP($C20,Scores,8,FALSE))) ->  | I20: =IF($C20="","",IF(VLOOKUP($C20,Scores,9,FALSE)="","",VLOOKUP($C20,Scores,9,FALSE))) ->  | J20: =IF($C20="","",IF(VLOOKUP($C20,Scores,10,FALSE)="","",VLOOKUP($C20,Scores,10,FALSE))) ->  | K20: =IF($C20="","",IF(VLOOKUP($C20,Scores,11,FALSE)="","",VLOOKUP($C20,Scores,11,FALSE))) ->  | L20: =IF($C20="","",IF(VLOOKUP($C20,Scores,12,FALSE)="","",VLOOKUP($C20,Scores,12,FALSE))) ->  | M20: =IF($C20="","",IF(VLOOKUP($C20,Scores,13,FALSE)="","",VLOOKUP($C20,Scores,13,FALSE))) ->  | N20: =IF($C20="","",IF(VLOOKUP($C20,Scores,14,FALSE)="","",VLOOKUP($C20,Scores,14,FALSE))) ->  | O20: =IF($C20="","",IF(VLOOKUP($C20,Scores,15,FALSE)="","",VLOOKUP($C20,Scores,15,FALSE))) ->  | P20: =IF($O20="","",SUM($G20:$O20)) ->  | Q20: =IF($D20="-","-",IF($P20="","",$P20-($D20/2))) ->  | R20: =IF($C20="","",IF(VLOOKUP($C20,Scores,17,FALSE)="","",VLOOKUP($C20,Scores,17,FALSE))) ->  | S20: =IF($C20="","",IF(VLOOKUP($C20,Scores,18,FALSE)="","",VLOOKUP($C20,Scores,18,FALSE))) ->  | T20: =IF($C20="","",IF(VLOOKUP($C20,Scores,19,FALSE)="","",VLOOKUP($C20,Scores,19,FALSE))) ->  | U20: =IF($C20="","",IF(VLOOKUP($C20,Scores,20,FALSE)="","",VLOOKUP($C20,Scores,20,FALSE))) ->  | V20: =IF($C20="","",IF(VLOOKUP($C20,Scores,21,FALSE)="","",VLOOKUP($C20,Scores,21,FALSE))) ->  | W20: =IF($C20="","",IF(VLOOKUP($C20,Scores,22,FALSE)="","",VLOOKUP($C20,Scores,22,FALSE))) ->  | X20: =IF($C20="","",IF(VLOOKUP($C20,Scores,23,FALSE)="","",VLOOKUP($C20,Scores,23,FALSE))) ->  | Y20: =IF($C20="","",IF(VLOOKUP($C20,Scores,24,FALSE)="","",VLOOKUP($C20,Scores,24,FALSE))) ->  | Z20: =IF($C20="","",IF(VLOOKUP($C20,Scores,25,FALSE)="","",VLOOKUP($C20,Scores,25,FALSE))) ->  | AA20: =IF($Z20="","",SUM($R20:$Z20)) ->  | AB20: =IF($D20="-","-",IF($AA20="","",$AA20-($D20/2))) ->  | AC20: =IF(OR($P20="",$AA20=""),"",SUM($P20,$AA20)) ->  | AD20: =IF($D20="-","-",IF(OR($Q20="",$AB20=""),"",SUM($Q20,$AB20))) -> 
B21: 16 | D21: =IF($C21="","",VLOOKUP($C21,Scores,4,FALSE)) ->  | E21: =IF($C21="","",IF(VLOOKUP($C21,Scores,5,FALSE)="","-",VLOOKUP($C21,Matches,25,FALSE))) ->  | F21: =IF($C21="","",IF(VLOOKUP($C21,Scores,6,FALSE)="","",VLOOKUP($C21,Scores,6,FALSE))) ->  | G21: =IF($C21="","",IF(VLOOKUP($C21,Scores,7,FALSE)="","",VLOOKUP($C21,Scores,7,FALSE))) ->  | H21: =IF($C21="","",IF(VLOOKUP($C21,Scores,8,FALSE)="","",VLOOKUP($C21,Scores,8,FALSE))) ->  | I21: =IF($C21="","",IF(VLOOKUP($C21,Scores,9,FALSE)="","",VLOOKUP($C21,Scores,9,FALSE))) ->  | J21: =IF($C21="","",IF(VLOOKUP($C21,Scores,10,FALSE)="","",VLOOKUP($C21,Scores,10,FALSE))) ->  | K21: =IF($C21="","",IF(VLOOKUP($C21,Scores,11,FALSE)="","",VLOOKUP($C21,Scores,11,FALSE))) ->  | L21: =IF($C21="","",IF(VLOOKUP($C21,Scores,12,FALSE)="","",VLOOKUP($C21,Scores,12,FALSE))) ->  | M21: =IF($C21="","",IF(VLOOKUP($C21,Scores,13,FALSE)="","",VLOOKUP($C21,Scores,13,FALSE))) ->  | N21: =IF($C21="","",IF(VLOOKUP($C21,Scores,14,FALSE)="","",VLOOKUP($C21,Scores,14,FALSE))) ->  | O21: =IF($C21="","",IF(VLOOKUP($C21,Scores,15,FALSE)="","",VLOOKUP($C21,Scores,15,FALSE))) ->  | P21: =IF($O21="","",SUM($G21:$O21)) ->  | Q21: =IF($D21="-","-",IF($P21="","",$P21-($D21/2))) ->  | R21: =IF($C21="","",IF(VLOOKUP($C21,Scores,17,FALSE)="","",VLOOKUP($C21,Scores,17,FALSE))) ->  | S21: =IF($C21="","",IF(VLOOKUP($C21,Scores,18,FALSE)="","",VLOOKUP($C21,Scores,18,FALSE))) ->  | T21: =IF($C21="","",IF(VLOOKUP($C21,Scores,19,FALSE)="","",VLOOKUP($C21,Scores,19,FALSE))) ->  | U21: =IF($C21="","",IF(VLOOKUP($C21,Scores,20,FALSE)="","",VLOOKUP($C21,Scores,20,FALSE))) ->  | V21: =IF($C21="","",IF(VLOOKUP($C21,Scores,21,FALSE)="","",VLOOKUP($C21,Scores,21,FALSE))) ->  | W21: =IF($C21="","",IF(VLOOKUP($C21,Scores,22,FALSE)="","",VLOOKUP($C21,Scores,22,FALSE))) ->  | X21: =IF($C21="","",IF(VLOOKUP($C21,Scores,23,FALSE)="","",VLOOKUP($C21,Scores,23,FALSE))) ->  | Y21: =IF($C21="","",IF(VLOOKUP($C21,Scores,24,FALSE)="","",VLOOKUP($C21,Scores,24,FALSE))) ->  | Z21: =IF($C21="","",IF(VLOOKUP($C21,Scores,25,FALSE)="","",VLOOKUP($C21,Scores,25,FALSE))) ->  | AA21: =IF($Z21="","",SUM($R21:$Z21)) ->  | AB21: =IF($D21="-","-",IF($AA21="","",$AA21-($D21/2))) ->  | AC21: =IF(OR($P21="",$AA21=""),"",SUM($P21,$AA21)) ->  | AD21: =IF($D21="-","-",IF(OR($Q21="",$AB21=""),"",SUM($Q21,$AB21))) -> 
B22: 17 | D22: =IF($C22="","",VLOOKUP($C22,Scores,4,FALSE)) ->  | E22: =IF($C22="","",IF(VLOOKUP($C22,Scores,5,FALSE)="","-",VLOOKUP($C22,Matches,25,FALSE))) ->  | F22: =IF($C22="","",IF(VLOOKUP($C22,Scores,6,FALSE)="","",VLOOKUP($C22,Scores,6,FALSE))) ->  | G22: =IF($C22="","",IF(VLOOKUP($C22,Scores,7,FALSE)="","",VLOOKUP($C22,Scores,7,FALSE))) ->  | H22: =IF($C22="","",IF(VLOOKUP($C22,Scores,8,FALSE)="","",VLOOKUP($C22,Scores,8,FALSE))) ->  | I22: =IF($C22="","",IF(VLOOKUP($C22,Scores,9,FALSE)="","",VLOOKUP($C22,Scores,9,FALSE))) ->  | J22: =IF($C22="","",IF(VLOOKUP($C22,Scores,10,FALSE)="","",VLOOKUP($C22,Scores,10,FALSE))) ->  | K22: =IF($C22="","",IF(VLOOKUP($C22,Scores,11,FALSE)="","",VLOOKUP($C22,Scores,11,FALSE))) ->  | L22: =IF($C22="","",IF(VLOOKUP($C22,Scores,12,FALSE)="","",VLOOKUP($C22,Scores,12,FALSE))) ->  | M22: =IF($C22="","",IF(VLOOKUP($C22,Scores,13,FALSE)="","",VLOOKUP($C22,Scores,13,FALSE))) ->  | N22: =IF($C22="","",IF(VLOOKUP($C22,Scores,14,FALSE)="","",VLOOKUP($C22,Scores,14,FALSE))) ->  | O22: =IF($C22="","",IF(VLOOKUP($C22,Scores,15,FALSE)="","",VLOOKUP($C22,Scores,15,FALSE))) ->  | P22: =IF($O22="","",SUM($G22:$O22)) ->  | Q22: =IF($D22="-","-",IF($P22="","",$P22-($D22/2))) ->  | R22: =IF($C22="","",IF(VLOOKUP($C22,Scores,17,FALSE)="","",VLOOKUP($C22,Scores,17,FALSE))) ->  | S22: =IF($C22="","",IF(VLOOKUP($C22,Scores,18,FALSE)="","",VLOOKUP($C22,Scores,18,FALSE))) ->  | T22: =IF($C22="","",IF(VLOOKUP($C22,Scores,19,FALSE)="","",VLOOKUP($C22,Scores,19,FALSE))) ->  | U22: =IF($C22="","",IF(VLOOKUP($C22,Scores,20,FALSE)="","",VLOOKUP($C22,Scores,20,FALSE))) ->  | V22: =IF($C22="","",IF(VLOOKUP($C22,Scores,21,FALSE)="","",VLOOKUP($C22,Scores,21,FALSE))) ->  | W22: =IF($C22="","",IF(VLOOKUP($C22,Scores,22,FALSE)="","",VLOOKUP($C22,Scores,22,FALSE))) ->  | X22: =IF($C22="","",IF(VLOOKUP($C22,Scores,23,FALSE)="","",VLOOKUP($C22,Scores,23,FALSE))) ->  | Y22: =IF($C22="","",IF(VLOOKUP($C22,Scores,24,FALSE)="","",VLOOKUP($C22,Scores,24,FALSE))) ->  | Z22: =IF($C22="","",IF(VLOOKUP($C22,Scores,25,FALSE)="","",VLOOKUP($C22,Scores,25,FALSE))) ->  | AA22: =IF($Z22="","",SUM($R22:$Z22)) ->  | AB22: =IF($D22="-","-",IF($AA22="","",$AA22-($D22/2))) ->  | AC22: =IF(OR($P22="",$AA22=""),"",SUM($P22,$AA22)) ->  | AD22: =IF($D22="-","-",IF(OR($Q22="",$AB22=""),"",SUM($Q22,$AB22))) -> 
B23: 18 | D23: =IF($C23="","",VLOOKUP($C23,Scores,4,FALSE)) ->  | E23: =IF($C23="","",IF(VLOOKUP($C23,Scores,5,FALSE)="","-",VLOOKUP($C23,Matches,25,FALSE))) ->  | F23: =IF($C23="","",IF(VLOOKUP($C23,Scores,6,FALSE)="","",VLOOKUP($C23,Scores,6,FALSE))) ->  | G23: =IF($C23="","",IF(VLOOKUP($C23,Scores,7,FALSE)="","",VLOOKUP($C23,Scores,7,FALSE))) ->  | H23: =IF($C23="","",IF(VLOOKUP($C23,Scores,8,FALSE)="","",VLOOKUP($C23,Scores,8,FALSE))) ->  | I23: =IF($C23="","",IF(VLOOKUP($C23,Scores,9,FALSE)="","",VLOOKUP($C23,Scores,9,FALSE))) ->  | J23: =IF($C23="","",IF(VLOOKUP($C23,Scores,10,FALSE)="","",VLOOKUP($C23,Scores,10,FALSE))) ->  | K23: =IF($C23="","",IF(VLOOKUP($C23,Scores,11,FALSE)="","",VLOOKUP($C23,Scores,11,FALSE))) ->  | L23: =IF($C23="","",IF(VLOOKUP($C23,Scores,12,FALSE)="","",VLOOKUP($C23,Scores,12,FALSE))) ->  | M23: =IF($C23="","",IF(VLOOKUP($C23,Scores,13,FALSE)="","",VLOOKUP($C23,Scores,13,FALSE))) ->  | N23: =IF($C23="","",IF(VLOOKUP($C23,Scores,14,FALSE)="","",VLOOKUP($C23,Scores,14,FALSE))) ->  | O23: =IF($C23="","",IF(VLOOKUP($C23,Scores,15,FALSE)="","",VLOOKUP($C23,Scores,15,FALSE))) ->  | P23: =IF($O23="","",SUM($G23:$O23)) ->  | Q23: =IF($D23="-","-",IF($P23="","",$P23-($D23/2))) ->  | R23: =IF($C23="","",IF(VLOOKUP($C23,Scores,17,FALSE)="","",VLOOKUP($C23,Scores,17,FALSE))) ->  | S23: =IF($C23="","",IF(VLOOKUP($C23,Scores,18,FALSE)="","",VLOOKUP($C23,Scores,18,FALSE))) ->  | T23: =IF($C23="","",IF(VLOOKUP($C23,Scores,19,FALSE)="","",VLOOKUP($C23,Scores,19,FALSE))) ->  | U23: =IF($C23="","",IF(VLOOKUP($C23,Scores,20,FALSE)="","",VLOOKUP($C23,Scores,20,FALSE))) ->  | V23: =IF($C23="","",IF(VLOOKUP($C23,Scores,21,FALSE)="","",VLOOKUP($C23,Scores,21,FALSE))) ->  | W23: =IF($C23="","",IF(VLOOKUP($C23,Scores,22,FALSE)="","",VLOOKUP($C23,Scores,22,FALSE))) ->  | X23: =IF($C23="","",IF(VLOOKUP($C23,Scores,23,FALSE)="","",VLOOKUP($C23,Scores,23,FALSE))) ->  | Y23: =IF($C23="","",IF(VLOOKUP($C23,Scores,24,FALSE)="","",VLOOKUP($C23,Scores,24,FALSE))) ->  | Z23: =IF($C23="","",IF(VLOOKUP($C23,Scores,25,FALSE)="","",VLOOKUP($C23,Scores,25,FALSE))) ->  | AA23: =IF($Z23="","",SUM($R23:$Z23)) ->  | AB23: =IF($D23="-","-",IF($AA23="","",$AA23-($D23/2))) ->  | AC23: =IF(OR($P23="",$AA23=""),"",SUM($P23,$AA23)) ->  | AD23: =IF($D23="-","-",IF(OR($Q23="",$AB23=""),"",SUM($Q23,$AB23))) -> 
B24: 19 | D24: =IF($C24="","",VLOOKUP($C24,Scores,4,FALSE)) ->  | E24: =IF($C24="","",IF(VLOOKUP($C24,Scores,5,FALSE)="","-",VLOOKUP($C24,Matches,25,FALSE))) ->  | F24: =IF($C24="","",IF(VLOOKUP($C24,Scores,6,FALSE)="","",VLOOKUP($C24,Scores,6,FALSE))) ->  | G24: =IF($C24="","",IF(VLOOKUP($C24,Scores,7,FALSE)="","",VLOOKUP($C24,Scores,7,FALSE))) ->  | H24: =IF($C24="","",IF(VLOOKUP($C24,Scores,8,FALSE)="","",VLOOKUP($C24,Scores,8,FALSE))) ->  | I24: =IF($C24="","",IF(VLOOKUP($C24,Scores,9,FALSE)="","",VLOOKUP($C24,Scores,9,FALSE))) ->  | J24: =IF($C24="","",IF(VLOOKUP($C24,Scores,10,FALSE)="","",VLOOKUP($C24,Scores,10,FALSE))) ->  | K24: =IF($C24="","",IF(VLOOKUP($C24,Scores,11,FALSE)="","",VLOOKUP($C24,Scores,11,FALSE))) ->  | L24: =IF($C24="","",IF(VLOOKUP($C24,Scores,12,FALSE)="","",VLOOKUP($C24,Scores,12,FALSE))) ->  | M24: =IF($C24="","",IF(VLOOKUP($C24,Scores,13,FALSE)="","",VLOOKUP($C24,Scores,13,FALSE))) ->  | N24: =IF($C24="","",IF(VLOOKUP($C24,Scores,14,FALSE)="","",VLOOKUP($C24,Scores,14,FALSE))) ->  | O24: =IF($C24="","",IF(VLOOKUP($C24,Scores,15,FALSE)="","",VLOOKUP($C24,Scores,15,FALSE))) ->  | P24: =IF($O24="","",SUM($G24:$O24)) ->  | Q24: =IF($D24="-","-",IF($P24="","",$P24-($D24/2))) ->  | R24: =IF($C24="","",IF(VLOOKUP($C24,Scores,17,FALSE)="","",VLOOKUP($C24,Scores,17,FALSE))) ->  | S24: =IF($C24="","",IF(VLOOKUP($C24,Scores,18,FALSE)="","",VLOOKUP($C24,Scores,18,FALSE))) ->  | T24: =IF($C24="","",IF(VLOOKUP($C24,Scores,19,FALSE)="","",VLOOKUP($C24,Scores,19,FALSE))) ->  | U24: =IF($C24="","",IF(VLOOKUP($C24,Scores,20,FALSE)="","",VLOOKUP($C24,Scores,20,FALSE))) ->  | V24: =IF($C24="","",IF(VLOOKUP($C24,Scores,21,FALSE)="","",VLOOKUP($C24,Scores,21,FALSE))) ->  | W24: =IF($C24="","",IF(VLOOKUP($C24,Scores,22,FALSE)="","",VLOOKUP($C24,Scores,22,FALSE))) ->  | X24: =IF($C24="","",IF(VLOOKUP($C24,Scores,23,FALSE)="","",VLOOKUP($C24,Scores,23,FALSE))) ->  | Y24: =IF($C24="","",IF(VLOOKUP($C24,Scores,24,FALSE)="","",VLOOKUP($C24,Scores,24,FALSE))) ->  | Z24: =IF($C24="","",IF(VLOOKUP($C24,Scores,25,FALSE)="","",VLOOKUP($C24,Scores,25,FALSE))) ->  | AA24: =IF($Z24="","",SUM($R24:$Z24)) ->  | AB24: =IF($D24="-","-",IF($AA24="","",$AA24-($D24/2))) ->  | AC24: =IF(OR($P24="",$AA24=""),"",SUM($P24,$AA24)) ->  | AD24: =IF($D24="-","-",IF(OR($Q24="",$AB24=""),"",SUM($Q24,$AB24))) -> 
B25: 20 | D25: =IF($C25="","",VLOOKUP($C25,Scores,4,FALSE)) ->  | E25: =IF($C25="","",IF(VLOOKUP($C25,Scores,5,FALSE)="","-",VLOOKUP($C25,Matches,25,FALSE))) ->  | F25: =IF($C25="","",IF(VLOOKUP($C25,Scores,6,FALSE)="","",VLOOKUP($C25,Scores,6,FALSE))) ->  | G25: =IF($C25="","",IF(VLOOKUP($C25,Scores,7,FALSE)="","",VLOOKUP($C25,Scores,7,FALSE))) ->  | H25: =IF($C25="","",IF(VLOOKUP($C25,Scores,8,FALSE)="","",VLOOKUP($C25,Scores,8,FALSE))) ->  | I25: =IF($C25="","",IF(VLOOKUP($C25,Scores,9,FALSE)="","",VLOOKUP($C25,Scores,9,FALSE))) ->  | J25: =IF($C25="","",IF(VLOOKUP($C25,Scores,10,FALSE)="","",VLOOKUP($C25,Scores,10,FALSE))) ->  | K25: =IF($C25="","",IF(VLOOKUP($C25,Scores,11,FALSE)="","",VLOOKUP($C25,Scores,11,FALSE))) ->  | L25: =IF($C25="","",IF(VLOOKUP($C25,Scores,12,FALSE)="","",VLOOKUP($C25,Scores,12,FALSE))) ->  | M25: =IF($C25="","",IF(VLOOKUP($C25,Scores,13,FALSE)="","",VLOOKUP($C25,Scores,13,FALSE))) ->  | N25: =IF($C25="","",IF(VLOOKUP($C25,Scores,14,FALSE)="","",VLOOKUP($C25,Scores,14,FALSE))) ->  | O25: =IF($C25="","",IF(VLOOKUP($C25,Scores,15,FALSE)="","",VLOOKUP($C25,Scores,15,FALSE))) ->  | P25: =IF($O25="","",SUM($G25:$O25)) ->  | Q25: =IF($D25="-","-",IF($P25="","",$P25-($D25/2))) ->  | R25: =IF($C25="","",IF(VLOOKUP($C25,Scores,17,FALSE)="","",VLOOKUP($C25,Scores,17,FALSE))) ->  | S25: =IF($C25="","",IF(VLOOKUP($C25,Scores,18,FALSE)="","",VLOOKUP($C25,Scores,18,FALSE))) ->  | T25: =IF($C25="","",IF(VLOOKUP($C25,Scores,19,FALSE)="","",VLOOKUP($C25,Scores,19,FALSE))) ->  | U25: =IF($C25="","",IF(VLOOKUP($C25,Scores,20,FALSE)="","",VLOOKUP($C25,Scores,20,FALSE))) ->  | V25: =IF($C25="","",IF(VLOOKUP($C25,Scores,21,FALSE)="","",VLOOKUP($C25,Scores,21,FALSE))) ->  | W25: =IF($C25="","",IF(VLOOKUP($C25,Scores,22,FALSE)="","",VLOOKUP($C25,Scores,22,FALSE))) ->  | X25: =IF($C25="","",IF(VLOOKUP($C25,Scores,23,FALSE)="","",VLOOKUP($C25,Scores,23,FALSE))) ->  | Y25: =IF($C25="","",IF(VLOOKUP($C25,Scores,24,FALSE)="","",VLOOKUP($C25,Scores,24,FALSE))) ->  | Z25: =IF($C25="","",IF(VLOOKUP($C25,Scores,25,FALSE)="","",VLOOKUP($C25,Scores,25,FALSE))) ->  | AA25: =IF($Z25="","",SUM($R25:$Z25)) ->  | AB25: =IF($D25="-","-",IF($AA25="","",$AA25-($D25/2))) ->  | AC25: =IF(OR($P25="",$AA25=""),"",SUM($P25,$AA25)) ->  | AD25: =IF($D25="-","-",IF(OR($Q25="",$AB25=""),"",SUM($Q25,$AB25))) -> 
B26: 21 | D26: =IF($C26="","",VLOOKUP($C26,Scores,4,FALSE)) ->  | E26: =IF($C26="","",IF(VLOOKUP($C26,Scores,5,FALSE)="","-",VLOOKUP($C26,Matches,25,FALSE))) ->  | F26: =IF($C26="","",IF(VLOOKUP($C26,Scores,6,FALSE)="","",VLOOKUP($C26,Scores,6,FALSE))) ->  | G26: =IF($C26="","",IF(VLOOKUP($C26,Scores,7,FALSE)="","",VLOOKUP($C26,Scores,7,FALSE))) ->  | H26: =IF($C26="","",IF(VLOOKUP($C26,Scores,8,FALSE)="","",VLOOKUP($C26,Scores,8,FALSE))) ->  | I26: =IF($C26="","",IF(VLOOKUP($C26,Scores,9,FALSE)="","",VLOOKUP($C26,Scores,9,FALSE))) ->  | J26: =IF($C26="","",IF(VLOOKUP($C26,Scores,10,FALSE)="","",VLOOKUP($C26,Scores,10,FALSE))) ->  | K26: =IF($C26="","",IF(VLOOKUP($C26,Scores,11,FALSE)="","",VLOOKUP($C26,Scores,11,FALSE))) ->  | L26: =IF($C26="","",IF(VLOOKUP($C26,Scores,12,FALSE)="","",VLOOKUP($C26,Scores,12,FALSE))) ->  | M26: =IF($C26="","",IF(VLOOKUP($C26,Scores,13,FALSE)="","",VLOOKUP($C26,Scores,13,FALSE))) ->  | N26: =IF($C26="","",IF(VLOOKUP($C26,Scores,14,FALSE)="","",VLOOKUP($C26,Scores,14,FALSE))) ->  | O26: =IF($C26="","",IF(VLOOKUP($C26,Scores,15,FALSE)="","",VLOOKUP($C26,Scores,15,FALSE))) ->  | P26: =IF($O26="","",SUM($G26:$O26)) ->  | Q26: =IF($D26="-","-",IF($P26="","",$P26-($D26/2))) ->  | R26: =IF($C26="","",IF(VLOOKUP($C26,Scores,17,FALSE)="","",VLOOKUP($C26,Scores,17,FALSE))) ->  | S26: =IF($C26="","",IF(VLOOKUP($C26,Scores,18,FALSE)="","",VLOOKUP($C26,Scores,18,FALSE))) ->  | T26: =IF($C26="","",IF(VLOOKUP($C26,Scores,19,FALSE)="","",VLOOKUP($C26,Scores,19,FALSE))) ->  | U26: =IF($C26="","",IF(VLOOKUP($C26,Scores,20,FALSE)="","",VLOOKUP($C26,Scores,20,FALSE))) ->  | V26: =IF($C26="","",IF(VLOOKUP($C26,Scores,21,FALSE)="","",VLOOKUP($C26,Scores,21,FALSE))) ->  | W26: =IF($C26="","",IF(VLOOKUP($C26,Scores,22,FALSE)="","",VLOOKUP($C26,Scores,22,FALSE))) ->  | X26: =IF($C26="","",IF(VLOOKUP($C26,Scores,23,FALSE)="","",VLOOKUP($C26,Scores,23,FALSE))) ->  | Y26: =IF($C26="","",IF(VLOOKUP($C26,Scores,24,FALSE)="","",VLOOKUP($C26,Scores,24,FALSE))) ->  | Z26: =IF($C26="","",IF(VLOOKUP($C26,Scores,25,FALSE)="","",VLOOKUP($C26,Scores,25,FALSE))) ->  | AA26: =IF($Z26="","",SUM($R26:$Z26)) ->  | AB26: =IF($D26="-","-",IF($AA26="","",$AA26-($D26/2))) ->  | AC26: =IF(OR($P26="",$AA26=""),"",SUM($P26,$AA26)) ->  | AD26: =IF($D26="-","-",IF(OR($Q26="",$AB26=""),"",SUM($Q26,$AB26))) -> 
B27: 22 | D27: =IF($C27="","",VLOOKUP($C27,Scores,4,FALSE)) ->  | E27: =IF($C27="","",IF(VLOOKUP($C27,Scores,5,FALSE)="","-",VLOOKUP($C27,Matches,25,FALSE))) ->  | F27: =IF($C27="","",IF(VLOOKUP($C27,Scores,6,FALSE)="","",VLOOKUP($C27,Scores,6,FALSE))) ->  | G27: =IF($C27="","",IF(VLOOKUP($C27,Scores,7,FALSE)="","",VLOOKUP($C27,Scores,7,FALSE))) ->  | H27: =IF($C27="","",IF(VLOOKUP($C27,Scores,8,FALSE)="","",VLOOKUP($C27,Scores,8,FALSE))) ->  | I27: =IF($C27="","",IF(VLOOKUP($C27,Scores,9,FALSE)="","",VLOOKUP($C27,Scores,9,FALSE))) ->  | J27: =IF($C27="","",IF(VLOOKUP($C27,Scores,10,FALSE)="","",VLOOKUP($C27,Scores,10,FALSE))) ->  | K27: =IF($C27="","",IF(VLOOKUP($C27,Scores,11,FALSE)="","",VLOOKUP($C27,Scores,11,FALSE))) ->  | L27: =IF($C27="","",IF(VLOOKUP($C27,Scores,12,FALSE)="","",VLOOKUP($C27,Scores,12,FALSE))) ->  | M27: =IF($C27="","",IF(VLOOKUP($C27,Scores,13,FALSE)="","",VLOOKUP($C27,Scores,13,FALSE))) ->  | N27: =IF($C27="","",IF(VLOOKUP($C27,Scores,14,FALSE)="","",VLOOKUP($C27,Scores,14,FALSE))) ->  | O27: =IF($C27="","",IF(VLOOKUP($C27,Scores,15,FALSE)="","",VLOOKUP($C27,Scores,15,FALSE))) ->  | P27: =IF($O27="","",SUM($G27:$O27)) ->  | Q27: =IF($D27="-","-",IF($P27="","",$P27-($D27/2))) ->  | R27: =IF($C27="","",IF(VLOOKUP($C27,Scores,17,FALSE)="","",VLOOKUP($C27,Scores,17,FALSE))) ->  | S27: =IF($C27="","",IF(VLOOKUP($C27,Scores,18,FALSE)="","",VLOOKUP($C27,Scores,18,FALSE))) ->  | T27: =IF($C27="","",IF(VLOOKUP($C27,Scores,19,FALSE)="","",VLOOKUP($C27,Scores,19,FALSE))) ->  | U27: =IF($C27="","",IF(VLOOKUP($C27,Scores,20,FALSE)="","",VLOOKUP($C27,Scores,20,FALSE))) ->  | V27: =IF($C27="","",IF(VLOOKUP($C27,Scores,21,FALSE)="","",VLOOKUP($C27,Scores,21,FALSE))) ->  | W27: =IF($C27="","",IF(VLOOKUP($C27,Scores,22,FALSE)="","",VLOOKUP($C27,Scores,22,FALSE))) ->  | X27: =IF($C27="","",IF(VLOOKUP($C27,Scores,23,FALSE)="","",VLOOKUP($C27,Scores,23,FALSE))) ->  | Y27: =IF($C27="","",IF(VLOOKUP($C27,Scores,24,FALSE)="","",VLOOKUP($C27,Scores,24,FALSE))) ->  | Z27: =IF($C27="","",IF(VLOOKUP($C27,Scores,25,FALSE)="","",VLOOKUP($C27,Scores,25,FALSE))) ->  | AA27: =IF($Z27="","",SUM($R27:$Z27)) ->  | AB27: =IF($D27="-","-",IF($AA27="","",$AA27-($D27/2))) ->  | AC27: =IF(OR($P27="",$AA27=""),"",SUM($P27,$AA27)) ->  | AD27: =IF($D27="-","-",IF(OR($Q27="",$AB27=""),"",SUM($Q27,$AB27))) -> 
B28: 23 | D28: =IF($C28="","",VLOOKUP($C28,Scores,4,FALSE)) ->  | E28: =IF($C28="","",IF(VLOOKUP($C28,Scores,5,FALSE)="","-",VLOOKUP($C28,Matches,25,FALSE))) ->  | F28: =IF($C28="","",IF(VLOOKUP($C28,Scores,6,FALSE)="","",VLOOKUP($C28,Scores,6,FALSE))) ->  | G28: =IF($C28="","",IF(VLOOKUP($C28,Scores,7,FALSE)="","",VLOOKUP($C28,Scores,7,FALSE))) ->  | H28: =IF($C28="","",IF(VLOOKUP($C28,Scores,8,FALSE)="","",VLOOKUP($C28,Scores,8,FALSE))) ->  | I28: =IF($C28="","",IF(VLOOKUP($C28,Scores,9,FALSE)="","",VLOOKUP($C28,Scores,9,FALSE))) ->  | J28: =IF($C28="","",IF(VLOOKUP($C28,Scores,10,FALSE)="","",VLOOKUP($C28,Scores,10,FALSE))) ->  | K28: =IF($C28="","",IF(VLOOKUP($C28,Scores,11,FALSE)="","",VLOOKUP($C28,Scores,11,FALSE))) ->  | L28: =IF($C28="","",IF(VLOOKUP($C28,Scores,12,FALSE)="","",VLOOKUP($C28,Scores,12,FALSE))) ->  | M28: =IF($C28="","",IF(VLOOKUP($C28,Scores,13,FALSE)="","",VLOOKUP($C28,Scores,13,FALSE))) ->  | N28: =IF($C28="","",IF(VLOOKUP($C28,Scores,14,FALSE)="","",VLOOKUP($C28,Scores,14,FALSE))) ->  | O28: =IF($C28="","",IF(VLOOKUP($C28,Scores,15,FALSE)="","",VLOOKUP($C28,Scores,15,FALSE))) ->  | P28: =IF($O28="","",SUM($G28:$O28)) ->  | Q28: =IF($D28="-","-",IF($P28="","",$P28-($D28/2))) ->  | R28: =IF($C28="","",IF(VLOOKUP($C28,Scores,17,FALSE)="","",VLOOKUP($C28,Scores,17,FALSE))) ->  | S28: =IF($C28="","",IF(VLOOKUP($C28,Scores,18,FALSE)="","",VLOOKUP($C28,Scores,18,FALSE))) ->  | T28: =IF($C28="","",IF(VLOOKUP($C28,Scores,19,FALSE)="","",VLOOKUP($C28,Scores,19,FALSE))) ->  | U28: =IF($C28="","",IF(VLOOKUP($C28,Scores,20,FALSE)="","",VLOOKUP($C28,Scores,20,FALSE))) ->  | V28: =IF($C28="","",IF(VLOOKUP($C28,Scores,21,FALSE)="","",VLOOKUP($C28,Scores,21,FALSE))) ->  | W28: =IF($C28="","",IF(VLOOKUP($C28,Scores,22,FALSE)="","",VLOOKUP($C28,Scores,22,FALSE))) ->  | X28: =IF($C28="","",IF(VLOOKUP($C28,Scores,23,FALSE)="","",VLOOKUP($C28,Scores,23,FALSE))) ->  | Y28: =IF($C28="","",IF(VLOOKUP($C28,Scores,24,FALSE)="","",VLOOKUP($C28,Scores,24,FALSE))) ->  | Z28: =IF($C28="","",IF(VLOOKUP($C28,Scores,25,FALSE)="","",VLOOKUP($C28,Scores,25,FALSE))) ->  | AA28: =IF($Z28="","",SUM($R28:$Z28)) ->  | AB28: =IF($D28="-","-",IF($AA28="","",$AA28-($D28/2))) ->  | AC28: =IF(OR($P28="",$AA28=""),"",SUM($P28,$AA28)) ->  | AD28: =IF($D28="-","-",IF(OR($Q28="",$AB28=""),"",SUM($Q28,$AB28))) -> 
B29: 24 | D29: =IF($C29="","",VLOOKUP($C29,Scores,4,FALSE)) ->  | E29: =IF($C29="","",IF(VLOOKUP($C29,Scores,5,FALSE)="","-",VLOOKUP($C29,Matches,25,FALSE))) ->  | F29: =IF($C29="","",IF(VLOOKUP($C29,Scores,6,FALSE)="","",VLOOKUP($C29,Scores,6,FALSE))) ->  | G29: =IF($C29="","",IF(VLOOKUP($C29,Scores,7,FALSE)="","",VLOOKUP($C29,Scores,7,FALSE))) ->  | H29: =IF($C29="","",IF(VLOOKUP($C29,Scores,8,FALSE)="","",VLOOKUP($C29,Scores,8,FALSE))) ->  | I29: =IF($C29="","",IF(VLOOKUP($C29,Scores,9,FALSE)="","",VLOOKUP($C29,Scores,9,FALSE))) ->  | J29: =IF($C29="","",IF(VLOOKUP($C29,Scores,10,FALSE)="","",VLOOKUP($C29,Scores,10,FALSE))) ->  | K29: =IF($C29="","",IF(VLOOKUP($C29,Scores,11,FALSE)="","",VLOOKUP($C29,Scores,11,FALSE))) ->  | L29: =IF($C29="","",IF(VLOOKUP($C29,Scores,12,FALSE)="","",VLOOKUP($C29,Scores,12,FALSE))) ->  | M29: =IF($C29="","",IF(VLOOKUP($C29,Scores,13,FALSE)="","",VLOOKUP($C29,Scores,13,FALSE))) ->  | N29: =IF($C29="","",IF(VLOOKUP($C29,Scores,14,FALSE)="","",VLOOKUP($C29,Scores,14,FALSE))) ->  | O29: =IF($C29="","",IF(VLOOKUP($C29,Scores,15,FALSE)="","",VLOOKUP($C29,Scores,15,FALSE))) ->  | P29: =IF($O29="","",SUM($G29:$O29)) ->  | Q29: =IF($D29="-","-",IF($P29="","",$P29-($D29/2))) ->  | R29: =IF($C29="","",IF(VLOOKUP($C29,Scores,17,FALSE)="","",VLOOKUP($C29,Scores,17,FALSE))) ->  | S29: =IF($C29="","",IF(VLOOKUP($C29,Scores,18,FALSE)="","",VLOOKUP($C29,Scores,18,FALSE))) ->  | T29: =IF($C29="","",IF(VLOOKUP($C29,Scores,19,FALSE)="","",VLOOKUP($C29,Scores,19,FALSE))) ->  | U29: =IF($C29="","",IF(VLOOKUP($C29,Scores,20,FALSE)="","",VLOOKUP($C29,Scores,20,FALSE))) ->  | V29: =IF($C29="","",IF(VLOOKUP($C29,Scores,21,FALSE)="","",VLOOKUP($C29,Scores,21,FALSE))) ->  | W29: =IF($C29="","",IF(VLOOKUP($C29,Scores,22,FALSE)="","",VLOOKUP($C29,Scores,22,FALSE))) ->  | X29: =IF($C29="","",IF(VLOOKUP($C29,Scores,23,FALSE)="","",VLOOKUP($C29,Scores,23,FALSE))) ->  | Y29: =IF($C29="","",IF(VLOOKUP($C29,Scores,24,FALSE)="","",VLOOKUP($C29,Scores,24,FALSE))) ->  | Z29: =IF($C29="","",IF(VLOOKUP($C29,Scores,25,FALSE)="","",VLOOKUP($C29,Scores,25,FALSE))) ->  | AA29: =IF($Z29="","",SUM($R29:$Z29)) ->  | AB29: =IF($D29="-","-",IF($AA29="","",$AA29-($D29/2))) ->  | AC29: =IF(OR($P29="",$AA29=""),"",SUM($P29,$AA29)) ->  | AD29: =IF($D29="-","-",IF(OR($Q29="",$AB29=""),"",SUM($Q29,$AB29))) -> 
B30: 25 | D30: =IF($C30="","",VLOOKUP($C30,Scores,4,FALSE)) ->  | E30: =IF($C30="","",IF(VLOOKUP($C30,Scores,5,FALSE)="","-",VLOOKUP($C30,Matches,25,FALSE))) ->  | F30: =IF($C30="","",IF(VLOOKUP($C30,Scores,6,FALSE)="","",VLOOKUP($C30,Scores,6,FALSE))) ->  | G30: =IF($C30="","",IF(VLOOKUP($C30,Scores,7,FALSE)="","",VLOOKUP($C30,Scores,7,FALSE))) ->  | H30: =IF($C30="","",IF(VLOOKUP($C30,Scores,8,FALSE)="","",VLOOKUP($C30,Scores,8,FALSE))) ->  | I30: =IF($C30="","",IF(VLOOKUP($C30,Scores,9,FALSE)="","",VLOOKUP($C30,Scores,9,FALSE))) ->  | J30: =IF($C30="","",IF(VLOOKUP($C30,Scores,10,FALSE)="","",VLOOKUP($C30,Scores,10,FALSE))) ->  | K30: =IF($C30="","",IF(VLOOKUP($C30,Scores,11,FALSE)="","",VLOOKUP($C30,Scores,11,FALSE))) ->  | L30: =IF($C30="","",IF(VLOOKUP($C30,Scores,12,FALSE)="","",VLOOKUP($C30,Scores,12,FALSE))) ->  | M30: =IF($C30="","",IF(VLOOKUP($C30,Scores,13,FALSE)="","",VLOOKUP($C30,Scores,13,FALSE))) ->  | N30: =IF($C30="","",IF(VLOOKUP($C30,Scores,14,FALSE)="","",VLOOKUP($C30,Scores,14,FALSE))) ->  | O30: =IF($C30="","",IF(VLOOKUP($C30,Scores,15,FALSE)="","",VLOOKUP($C30,Scores,15,FALSE))) ->  | P30: =IF($O30="","",SUM($G30:$O30)) ->  | Q30: =IF($D30="-","-",IF($P30="","",$P30-($D30/2))) ->  | R30: =IF($C30="","",IF(VLOOKUP($C30,Scores,17,FALSE)="","",VLOOKUP($C30,Scores,17,FALSE))) ->  | S30: =IF($C30="","",IF(VLOOKUP($C30,Scores,18,FALSE)="","",VLOOKUP($C30,Scores,18,FALSE))) ->  | T30: =IF($C30="","",IF(VLOOKUP($C30,Scores,19,FALSE)="","",VLOOKUP($C30,Scores,19,FALSE))) ->  | U30: =IF($C30="","",IF(VLOOKUP($C30,Scores,20,FALSE)="","",VLOOKUP($C30,Scores,20,FALSE))) ->  | V30: =IF($C30="","",IF(VLOOKUP($C30,Scores,21,FALSE)="","",VLOOKUP($C30,Scores,21,FALSE))) ->  | W30: =IF($C30="","",IF(VLOOKUP($C30,Scores,22,FALSE)="","",VLOOKUP($C30,Scores,22,FALSE))) ->  | X30: =IF($C30="","",IF(VLOOKUP($C30,Scores,23,FALSE)="","",VLOOKUP($C30,Scores,23,FALSE))) ->  | Y30: =IF($C30="","",IF(VLOOKUP($C30,Scores,24,FALSE)="","",VLOOKUP($C30,Scores,24,FALSE))) ->  | Z30: =IF($C30="","",IF(VLOOKUP($C30,Scores,25,FALSE)="","",VLOOKUP($C30,Scores,25,FALSE))) ->  | AA30: =IF($Z30="","",SUM($R30:$Z30)) ->  | AB30: =IF($D30="-","-",IF($AA30="","",$AA30-($D30/2))) ->  | AC30: =IF(OR($P30="",$AA30=""),"",SUM($P30,$AA30)) ->  | AD30: =IF($D30="-","-",IF(OR($Q30="",$AB30=""),"",SUM($Q30,$AB30))) -> 
B31: 26 | D31: =IF($C31="","",VLOOKUP($C31,Scores,4,FALSE)) ->  | E31: =IF($C31="","",IF(VLOOKUP($C31,Scores,5,FALSE)="","-",VLOOKUP($C31,Matches,25,FALSE))) ->  | F31: =IF($C31="","",IF(VLOOKUP($C31,Scores,6,FALSE)="","",VLOOKUP($C31,Scores,6,FALSE))) ->  | G31: =IF($C31="","",IF(VLOOKUP($C31,Scores,7,FALSE)="","",VLOOKUP($C31,Scores,7,FALSE))) ->  | H31: =IF($C31="","",IF(VLOOKUP($C31,Scores,8,FALSE)="","",VLOOKUP($C31,Scores,8,FALSE))) ->  | I31: =IF($C31="","",IF(VLOOKUP($C31,Scores,9,FALSE)="","",VLOOKUP($C31,Scores,9,FALSE))) ->  | J31: =IF($C31="","",IF(VLOOKUP($C31,Scores,10,FALSE)="","",VLOOKUP($C31,Scores,10,FALSE))) ->  | K31: =IF($C31="","",IF(VLOOKUP($C31,Scores,11,FALSE)="","",VLOOKUP($C31,Scores,11,FALSE))) ->  | L31: =IF($C31="","",IF(VLOOKUP($C31,Scores,12,FALSE)="","",VLOOKUP($C31,Scores,12,FALSE))) ->  | M31: =IF($C31="","",IF(VLOOKUP($C31,Scores,13,FALSE)="","",VLOOKUP($C31,Scores,13,FALSE))) ->  | N31: =IF($C31="","",IF(VLOOKUP($C31,Scores,14,FALSE)="","",VLOOKUP($C31,Scores,14,FALSE))) ->  | O31: =IF($C31="","",IF(VLOOKUP($C31,Scores,15,FALSE)="","",VLOOKUP($C31,Scores,15,FALSE))) ->  | P31: =IF($O31="","",SUM($G31:$O31)) ->  | Q31: =IF($D31="-","-",IF($P31="","",$P31-($D31/2))) ->  | R31: =IF($C31="","",IF(VLOOKUP($C31,Scores,17,FALSE)="","",VLOOKUP($C31,Scores,17,FALSE))) ->  | S31: =IF($C31="","",IF(VLOOKUP($C31,Scores,18,FALSE)="","",VLOOKUP($C31,Scores,18,FALSE))) ->  | T31: =IF($C31="","",IF(VLOOKUP($C31,Scores,19,FALSE)="","",VLOOKUP($C31,Scores,19,FALSE))) ->  | U31: =IF($C31="","",IF(VLOOKUP($C31,Scores,20,FALSE)="","",VLOOKUP($C31,Scores,20,FALSE))) ->  | V31: =IF($C31="","",IF(VLOOKUP($C31,Scores,21,FALSE)="","",VLOOKUP($C31,Scores,21,FALSE))) ->  | W31: =IF($C31="","",IF(VLOOKUP($C31,Scores,22,FALSE)="","",VLOOKUP($C31,Scores,22,FALSE))) ->  | X31: =IF($C31="","",IF(VLOOKUP($C31,Scores,23,FALSE)="","",VLOOKUP($C31,Scores,23,FALSE))) ->  | Y31: =IF($C31="","",IF(VLOOKUP($C31,Scores,24,FALSE)="","",VLOOKUP($C31,Scores,24,FALSE))) ->  | Z31: =IF($C31="","",IF(VLOOKUP($C31,Scores,25,FALSE)="","",VLOOKUP($C31,Scores,25,FALSE))) ->  | AA31: =IF($Z31="","",SUM($R31:$Z31)) ->  | AB31: =IF($D31="-","-",IF($AA31="","",$AA31-($D31/2))) ->  | AC31: =IF(OR($P31="",$AA31=""),"",SUM($P31,$AA31)) ->  | AD31: =IF($D31="-","-",IF(OR($Q31="",$AB31=""),"",SUM($Q31,$AB31))) -> 
B32: 27 | D32: =IF($C32="","",VLOOKUP($C32,Scores,4,FALSE)) ->  | E32: =IF($C32="","",IF(VLOOKUP($C32,Scores,5,FALSE)="","-",VLOOKUP($C32,Matches,25,FALSE))) ->  | F32: =IF($C32="","",IF(VLOOKUP($C32,Scores,6,FALSE)="","",VLOOKUP($C32,Scores,6,FALSE))) ->  | G32: =IF($C32="","",IF(VLOOKUP($C32,Scores,7,FALSE)="","",VLOOKUP($C32,Scores,7,FALSE))) ->  | H32: =IF($C32="","",IF(VLOOKUP($C32,Scores,8,FALSE)="","",VLOOKUP($C32,Scores,8,FALSE))) ->  | I32: =IF($C32="","",IF(VLOOKUP($C32,Scores,9,FALSE)="","",VLOOKUP($C32,Scores,9,FALSE))) ->  | J32: =IF($C32="","",IF(VLOOKUP($C32,Scores,10,FALSE)="","",VLOOKUP($C32,Scores,10,FALSE))) ->  | K32: =IF($C32="","",IF(VLOOKUP($C32,Scores,11,FALSE)="","",VLOOKUP($C32,Scores,11,FALSE))) ->  | L32: =IF($C32="","",IF(VLOOKUP($C32,Scores,12,FALSE)="","",VLOOKUP($C32,Scores,12,FALSE))) ->  | M32: =IF($C32="","",IF(VLOOKUP($C32,Scores,13,FALSE)="","",VLOOKUP($C32,Scores,13,FALSE))) ->  | N32: =IF($C32="","",IF(VLOOKUP($C32,Scores,14,FALSE)="","",VLOOKUP($C32,Scores,14,FALSE))) ->  | O32: =IF($C32="","",IF(VLOOKUP($C32,Scores,15,FALSE)="","",VLOOKUP($C32,Scores,15,FALSE))) ->  | P32: =IF($O32="","",SUM($G32:$O32)) ->  | Q32: =IF($D32="-","-",IF($P32="","",$P32-($D32/2))) ->  | R32: =IF($C32="","",IF(VLOOKUP($C32,Scores,17,FALSE)="","",VLOOKUP($C32,Scores,17,FALSE))) ->  | S32: =IF($C32="","",IF(VLOOKUP($C32,Scores,18,FALSE)="","",VLOOKUP($C32,Scores,18,FALSE))) ->  | T32: =IF($C32="","",IF(VLOOKUP($C32,Scores,19,FALSE)="","",VLOOKUP($C32,Scores,19,FALSE))) ->  | U32: =IF($C32="","",IF(VLOOKUP($C32,Scores,20,FALSE)="","",VLOOKUP($C32,Scores,20,FALSE))) ->  | V32: =IF($C32="","",IF(VLOOKUP($C32,Scores,21,FALSE)="","",VLOOKUP($C32,Scores,21,FALSE))) ->  | W32: =IF($C32="","",IF(VLOOKUP($C32,Scores,22,FALSE)="","",VLOOKUP($C32,Scores,22,FALSE))) ->  | X32: =IF($C32="","",IF(VLOOKUP($C32,Scores,23,FALSE)="","",VLOOKUP($C32,Scores,23,FALSE))) ->  | Y32: =IF($C32="","",IF(VLOOKUP($C32,Scores,24,FALSE)="","",VLOOKUP($C32,Scores,24,FALSE))) ->  | Z32: =IF($C32="","",IF(VLOOKUP($C32,Scores,25,FALSE)="","",VLOOKUP($C32,Scores,25,FALSE))) ->  | AA32: =IF($Z32="","",SUM($R32:$Z32)) ->  | AB32: =IF($D32="-","-",IF($AA32="","",$AA32-($D32/2))) ->  | AC32: =IF(OR($P32="",$AA32=""),"",SUM($P32,$AA32)) ->  | AD32: =IF($D32="-","-",IF(OR($Q32="",$AB32=""),"",SUM($Q32,$AB32))) -> 
B33: 28 | D33: =IF($C33="","",VLOOKUP($C33,Scores,4,FALSE)) ->  | E33: =IF($C33="","",IF(VLOOKUP($C33,Scores,5,FALSE)="","-",VLOOKUP($C33,Matches,25,FALSE))) ->  | F33: =IF($C33="","",IF(VLOOKUP($C33,Scores,6,FALSE)="","",VLOOKUP($C33,Scores,6,FALSE))) ->  | G33: =IF($C33="","",IF(VLOOKUP($C33,Scores,7,FALSE)="","",VLOOKUP($C33,Scores,7,FALSE))) ->  | H33: =IF($C33="","",IF(VLOOKUP($C33,Scores,8,FALSE)="","",VLOOKUP($C33,Scores,8,FALSE))) ->  | I33: =IF($C33="","",IF(VLOOKUP($C33,Scores,9,FALSE)="","",VLOOKUP($C33,Scores,9,FALSE))) ->  | J33: =IF($C33="","",IF(VLOOKUP($C33,Scores,10,FALSE)="","",VLOOKUP($C33,Scores,10,FALSE))) ->  | K33: =IF($C33="","",IF(VLOOKUP($C33,Scores,11,FALSE)="","",VLOOKUP($C33,Scores,11,FALSE))) ->  | L33: =IF($C33="","",IF(VLOOKUP($C33,Scores,12,FALSE)="","",VLOOKUP($C33,Scores,12,FALSE))) ->  | M33: =IF($C33="","",IF(VLOOKUP($C33,Scores,13,FALSE)="","",VLOOKUP($C33,Scores,13,FALSE))) ->  | N33: =IF($C33="","",IF(VLOOKUP($C33,Scores,14,FALSE)="","",VLOOKUP($C33,Scores,14,FALSE))) ->  | O33: =IF($C33="","",IF(VLOOKUP($C33,Scores,15,FALSE)="","",VLOOKUP($C33,Scores,15,FALSE))) ->  | P33: =IF($O33="","",SUM($G33:$O33)) ->  | Q33: =IF($D33="-","-",IF($P33="","",$P33-($D33/2))) ->  | R33: =IF($C33="","",IF(VLOOKUP($C33,Scores,17,FALSE)="","",VLOOKUP($C33,Scores,17,FALSE))) ->  | S33: =IF($C33="","",IF(VLOOKUP($C33,Scores,18,FALSE)="","",VLOOKUP($C33,Scores,18,FALSE))) ->  | T33: =IF($C33="","",IF(VLOOKUP($C33,Scores,19,FALSE)="","",VLOOKUP($C33,Scores,19,FALSE))) ->  | U33: =IF($C33="","",IF(VLOOKUP($C33,Scores,20,FALSE)="","",VLOOKUP($C33,Scores,20,FALSE))) ->  | V33: =IF($C33="","",IF(VLOOKUP($C33,Scores,21,FALSE)="","",VLOOKUP($C33,Scores,21,FALSE))) ->  | W33: =IF($C33="","",IF(VLOOKUP($C33,Scores,22,FALSE)="","",VLOOKUP($C33,Scores,22,FALSE))) ->  | X33: =IF($C33="","",IF(VLOOKUP($C33,Scores,23,FALSE)="","",VLOOKUP($C33,Scores,23,FALSE))) ->  | Y33: =IF($C33="","",IF(VLOOKUP($C33,Scores,24,FALSE)="","",VLOOKUP($C33,Scores,24,FALSE))) ->  | Z33: =IF($C33="","",IF(VLOOKUP($C33,Scores,25,FALSE)="","",VLOOKUP($C33,Scores,25,FALSE))) ->  | AA33: =IF($Z33="","",SUM($R33:$Z33)) ->  | AB33: =IF($D33="-","-",IF($AA33="","",$AA33-($D33/2))) ->  | AC33: =IF(OR($P33="",$AA33=""),"",SUM($P33,$AA33)) ->  | AD33: =IF($D33="-","-",IF(OR($Q33="",$AB33=""),"",SUM($Q33,$AB33))) -> 
B34: 29 | D34: =IF($C34="","",VLOOKUP($C34,Scores,4,FALSE)) ->  | E34: =IF($C34="","",IF(VLOOKUP($C34,Scores,5,FALSE)="","-",VLOOKUP($C34,Matches,25,FALSE))) ->  | F34: =IF($C34="","",IF(VLOOKUP($C34,Scores,6,FALSE)="","",VLOOKUP($C34,Scores,6,FALSE))) ->  | G34: =IF($C34="","",IF(VLOOKUP($C34,Scores,7,FALSE)="","",VLOOKUP($C34,Scores,7,FALSE))) ->  | H34: =IF($C34="","",IF(VLOOKUP($C34,Scores,8,FALSE)="","",VLOOKUP($C34,Scores,8,FALSE))) ->  | I34: =IF($C34="","",IF(VLOOKUP($C34,Scores,9,FALSE)="","",VLOOKUP($C34,Scores,9,FALSE))) ->  | J34: =IF($C34="","",IF(VLOOKUP($C34,Scores,10,FALSE)="","",VLOOKUP($C34,Scores,10,FALSE))) ->  | K34: =IF($C34="","",IF(VLOOKUP($C34,Scores,11,FALSE)="","",VLOOKUP($C34,Scores,11,FALSE))) ->  | L34: =IF($C34="","",IF(VLOOKUP($C34,Scores,12,FALSE)="","",VLOOKUP($C34,Scores,12,FALSE))) ->  | M34: =IF($C34="","",IF(VLOOKUP($C34,Scores,13,FALSE)="","",VLOOKUP($C34,Scores,13,FALSE))) ->  | N34: =IF($C34="","",IF(VLOOKUP($C34,Scores,14,FALSE)="","",VLOOKUP($C34,Scores,14,FALSE))) ->  | O34: =IF($C34="","",IF(VLOOKUP($C34,Scores,15,FALSE)="","",VLOOKUP($C34,Scores,15,FALSE))) ->  | P34: =IF($O34="","",SUM($G34:$O34)) ->  | Q34: =IF($D34="-","-",IF($P34="","",$P34-($D34/2))) ->  | R34: =IF($C34="","",IF(VLOOKUP($C34,Scores,17,FALSE)="","",VLOOKUP($C34,Scores,17,FALSE))) ->  | S34: =IF($C34="","",IF(VLOOKUP($C34,Scores,18,FALSE)="","",VLOOKUP($C34,Scores,18,FALSE))) ->  | T34: =IF($C34="","",IF(VLOOKUP($C34,Scores,19,FALSE)="","",VLOOKUP($C34,Scores,19,FALSE))) ->  | U34: =IF($C34="","",IF(VLOOKUP($C34,Scores,20,FALSE)="","",VLOOKUP($C34,Scores,20,FALSE))) ->  | V34: =IF($C34="","",IF(VLOOKUP($C34,Scores,21,FALSE)="","",VLOOKUP($C34,Scores,21,FALSE))) ->  | W34: =IF($C34="","",IF(VLOOKUP($C34,Scores,22,FALSE)="","",VLOOKUP($C34,Scores,22,FALSE))) ->  | X34: =IF($C34="","",IF(VLOOKUP($C34,Scores,23,FALSE)="","",VLOOKUP($C34,Scores,23,FALSE))) ->  | Y34: =IF($C34="","",IF(VLOOKUP($C34,Scores,24,FALSE)="","",VLOOKUP($C34,Scores,24,FALSE))) ->  | Z34: =IF($C34="","",IF(VLOOKUP($C34,Scores,25,FALSE)="","",VLOOKUP($C34,Scores,25,FALSE))) ->  | AA34: =IF($Z34="","",SUM($R34:$Z34)) ->  | AB34: =IF($D34="-","-",IF($AA34="","",$AA34-($D34/2))) ->  | AC34: =IF(OR($P34="",$AA34=""),"",SUM($P34,$AA34)) ->  | AD34: =IF($D34="-","-",IF(OR($Q34="",$AB34=""),"",SUM($Q34,$AB34))) -> 
B35: 30 | D35: =IF($C35="","",VLOOKUP($C35,Scores,4,FALSE)) ->  | E35: =IF($C35="","",IF(VLOOKUP($C35,Scores,5,FALSE)="","-",VLOOKUP($C35,Matches,25,FALSE))) ->  | F35: =IF($C35="","",IF(VLOOKUP($C35,Scores,6,FALSE)="","",VLOOKUP($C35,Scores,6,FALSE))) ->  | G35: =IF($C35="","",IF(VLOOKUP($C35,Scores,7,FALSE)="","",VLOOKUP($C35,Scores,7,FALSE))) ->  | H35: =IF($C35="","",IF(VLOOKUP($C35,Scores,8,FALSE)="","",VLOOKUP($C35,Scores,8,FALSE))) ->  | I35: =IF($C35="","",IF(VLOOKUP($C35,Scores,9,FALSE)="","",VLOOKUP($C35,Scores,9,FALSE))) ->  | J35: =IF($C35="","",IF(VLOOKUP($C35,Scores,10,FALSE)="","",VLOOKUP($C35,Scores,10,FALSE))) ->  | K35: =IF($C35="","",IF(VLOOKUP($C35,Scores,11,FALSE)="","",VLOOKUP($C35,Scores,11,FALSE))) ->  | L35: =IF($C35="","",IF(VLOOKUP($C35,Scores,12,FALSE)="","",VLOOKUP($C35,Scores,12,FALSE))) ->  | M35: =IF($C35="","",IF(VLOOKUP($C35,Scores,13,FALSE)="","",VLOOKUP($C35,Scores,13,FALSE))) ->  | N35: =IF($C35="","",IF(VLOOKUP($C35,Scores,14,FALSE)="","",VLOOKUP($C35,Scores,14,FALSE))) ->  | O35: =IF($C35="","",IF(VLOOKUP($C35,Scores,15,FALSE)="","",VLOOKUP($C35,Scores,15,FALSE))) ->  | P35: =IF($O35="","",SUM($G35:$O35)) ->  | Q35: =IF($D35="-","-",IF($P35="","",$P35-($D35/2))) ->  | R35: =IF($C35="","",IF(VLOOKUP($C35,Scores,17,FALSE)="","",VLOOKUP($C35,Scores,17,FALSE))) ->  | S35: =IF($C35="","",IF(VLOOKUP($C35,Scores,18,FALSE)="","",VLOOKUP($C35,Scores,18,FALSE))) ->  | T35: =IF($C35="","",IF(VLOOKUP($C35,Scores,19,FALSE)="","",VLOOKUP($C35,Scores,19,FALSE))) ->  | U35: =IF($C35="","",IF(VLOOKUP($C35,Scores,20,FALSE)="","",VLOOKUP($C35,Scores,20,FALSE))) ->  | V35: =IF($C35="","",IF(VLOOKUP($C35,Scores,21,FALSE)="","",VLOOKUP($C35,Scores,21,FALSE))) ->  | W35: =IF($C35="","",IF(VLOOKUP($C35,Scores,22,FALSE)="","",VLOOKUP($C35,Scores,22,FALSE))) ->  | X35: =IF($C35="","",IF(VLOOKUP($C35,Scores,23,FALSE)="","",VLOOKUP($C35,Scores,23,FALSE))) ->  | Y35: =IF($C35="","",IF(VLOOKUP($C35,Scores,24,FALSE)="","",VLOOKUP($C35,Scores,24,FALSE))) ->  | Z35: =IF($C35="","",IF(VLOOKUP($C35,Scores,25,FALSE)="","",VLOOKUP($C35,Scores,25,FALSE))) ->  | AA35: =IF($Z35="","",SUM($R35:$Z35)) ->  | AB35: =IF($D35="-","-",IF($AA35="","",$AA35-($D35/2))) ->  | AC35: =IF(OR($P35="",$AA35=""),"",SUM($P35,$AA35)) ->  | AD35: =IF($D35="-","-",IF(OR($Q35="",$AB35=""),"",SUM($Q35,$AB35))) -> 
B36: 31 | D36: =IF($C36="","",VLOOKUP($C36,Scores,4,FALSE)) ->  | E36: =IF($C36="","",IF(VLOOKUP($C36,Scores,5,FALSE)="","-",VLOOKUP($C36,Matches,25,FALSE))) ->  | F36: =IF($C36="","",IF(VLOOKUP($C36,Scores,6,FALSE)="","",VLOOKUP($C36,Scores,6,FALSE))) ->  | G36: =IF($C36="","",IF(VLOOKUP($C36,Scores,7,FALSE)="","",VLOOKUP($C36,Scores,7,FALSE))) ->  | H36: =IF($C36="","",IF(VLOOKUP($C36,Scores,8,FALSE)="","",VLOOKUP($C36,Scores,8,FALSE))) ->  | I36: =IF($C36="","",IF(VLOOKUP($C36,Scores,9,FALSE)="","",VLOOKUP($C36,Scores,9,FALSE))) ->  | J36: =IF($C36="","",IF(VLOOKUP($C36,Scores,10,FALSE)="","",VLOOKUP($C36,Scores,10,FALSE))) ->  | K36: =IF($C36="","",IF(VLOOKUP($C36,Scores,11,FALSE)="","",VLOOKUP($C36,Scores,11,FALSE))) ->  | L36: =IF($C36="","",IF(VLOOKUP($C36,Scores,12,FALSE)="","",VLOOKUP($C36,Scores,12,FALSE))) ->  | M36: =IF($C36="","",IF(VLOOKUP($C36,Scores,13,FALSE)="","",VLOOKUP($C36,Scores,13,FALSE))) ->  | N36: =IF($C36="","",IF(VLOOKUP($C36,Scores,14,FALSE)="","",VLOOKUP($C36,Scores,14,FALSE))) ->  | O36: =IF($C36="","",IF(VLOOKUP($C36,Scores,15,FALSE)="","",VLOOKUP($C36,Scores,15,FALSE))) ->  | P36: =IF($O36="","",SUM($G36:$O36)) ->  | Q36: =IF($D36="-","-",IF($P36="","",$P36-($D36/2))) ->  | R36: =IF($C36="","",IF(VLOOKUP($C36,Scores,17,FALSE)="","",VLOOKUP($C36,Scores,17,FALSE))) ->  | S36: =IF($C36="","",IF(VLOOKUP($C36,Scores,18,FALSE)="","",VLOOKUP($C36,Scores,18,FALSE))) ->  | T36: =IF($C36="","",IF(VLOOKUP($C36,Scores,19,FALSE)="","",VLOOKUP($C36,Scores,19,FALSE))) ->  | U36: =IF($C36="","",IF(VLOOKUP($C36,Scores,20,FALSE)="","",VLOOKUP($C36,Scores,20,FALSE))) ->  | V36: =IF($C36="","",IF(VLOOKUP($C36,Scores,21,FALSE)="","",VLOOKUP($C36,Scores,21,FALSE))) ->  | W36: =IF($C36="","",IF(VLOOKUP($C36,Scores,22,FALSE)="","",VLOOKUP($C36,Scores,22,FALSE))) ->  | X36: =IF($C36="","",IF(VLOOKUP($C36,Scores,23,FALSE)="","",VLOOKUP($C36,Scores,23,FALSE))) ->  | Y36: =IF($C36="","",IF(VLOOKUP($C36,Scores,24,FALSE)="","",VLOOKUP($C36,Scores,24,FALSE))) ->  | Z36: =IF($C36="","",IF(VLOOKUP($C36,Scores,25,FALSE)="","",VLOOKUP($C36,Scores,25,FALSE))) ->  | AA36: =IF($Z36="","",SUM($R36:$Z36)) ->  | AB36: =IF($D36="-","-",IF($AA36="","",$AA36-($D36/2))) ->  | AC36: =IF(OR($P36="",$AA36=""),"",SUM($P36,$AA36)) ->  | AD36: =IF($D36="-","-",IF(OR($Q36="",$AB36=""),"",SUM($Q36,$AB36))) -> 
B37: 32 | D37: =IF($C37="","",VLOOKUP($C37,Scores,4,FALSE)) ->  | E37: =IF($C37="","",IF(VLOOKUP($C37,Scores,5,FALSE)="","-",VLOOKUP($C37,Matches,25,FALSE))) ->  | F37: =IF($C37="","",IF(VLOOKUP($C37,Scores,6,FALSE)="","",VLOOKUP($C37,Scores,6,FALSE))) ->  | G37: =IF($C37="","",IF(VLOOKUP($C37,Scores,7,FALSE)="","",VLOOKUP($C37,Scores,7,FALSE))) ->  | H37: =IF($C37="","",IF(VLOOKUP($C37,Scores,8,FALSE)="","",VLOOKUP($C37,Scores,8,FALSE))) ->  | I37: =IF($C37="","",IF(VLOOKUP($C37,Scores,9,FALSE)="","",VLOOKUP($C37,Scores,9,FALSE))) ->  | J37: =IF($C37="","",IF(VLOOKUP($C37,Scores,10,FALSE)="","",VLOOKUP($C37,Scores,10,FALSE))) ->  | K37: =IF($C37="","",IF(VLOOKUP($C37,Scores,11,FALSE)="","",VLOOKUP($C37,Scores,11,FALSE))) ->  | L37: =IF($C37="","",IF(VLOOKUP($C37,Scores,12,FALSE)="","",VLOOKUP($C37,Scores,12,FALSE))) ->  | M37: =IF($C37="","",IF(VLOOKUP($C37,Scores,13,FALSE)="","",VLOOKUP($C37,Scores,13,FALSE))) ->  | N37: =IF($C37="","",IF(VLOOKUP($C37,Scores,14,FALSE)="","",VLOOKUP($C37,Scores,14,FALSE))) ->  | O37: =IF($C37="","",IF(VLOOKUP($C37,Scores,15,FALSE)="","",VLOOKUP($C37,Scores,15,FALSE))) ->  | P37: =IF($O37="","",SUM($G37:$O37)) ->  | Q37: =IF($D37="-","-",IF($P37="","",$P37-($D37/2))) ->  | R37: =IF($C37="","",IF(VLOOKUP($C37,Scores,17,FALSE)="","",VLOOKUP($C37,Scores,17,FALSE))) ->  | S37: =IF($C37="","",IF(VLOOKUP($C37,Scores,18,FALSE)="","",VLOOKUP($C37,Scores,18,FALSE))) ->  | T37: =IF($C37="","",IF(VLOOKUP($C37,Scores,19,FALSE)="","",VLOOKUP($C37,Scores,19,FALSE))) ->  | U37: =IF($C37="","",IF(VLOOKUP($C37,Scores,20,FALSE)="","",VLOOKUP($C37,Scores,20,FALSE))) ->  | V37: =IF($C37="","",IF(VLOOKUP($C37,Scores,21,FALSE)="","",VLOOKUP($C37,Scores,21,FALSE))) ->  | W37: =IF($C37="","",IF(VLOOKUP($C37,Scores,22,FALSE)="","",VLOOKUP($C37,Scores,22,FALSE))) ->  | X37: =IF($C37="","",IF(VLOOKUP($C37,Scores,23,FALSE)="","",VLOOKUP($C37,Scores,23,FALSE))) ->  | Y37: =IF($C37="","",IF(VLOOKUP($C37,Scores,24,FALSE)="","",VLOOKUP($C37,Scores,24,FALSE))) ->  | Z37: =IF($C37="","",IF(VLOOKUP($C37,Scores,25,FALSE)="","",VLOOKUP($C37,Scores,25,FALSE))) ->  | AA37: =IF($Z37="","",SUM($R37:$Z37)) ->  | AB37: =IF($D37="-","-",IF($AA37="","",$AA37-($D37/2))) ->  | AC37: =IF(OR($P37="",$AA37=""),"",SUM($P37,$AA37)) ->  | AD37: =IF($D37="-","-",IF(OR($Q37="",$AB37=""),"",SUM($Q37,$AB37))) -> 
B38: 33 | D38: =IF($C38="","",VLOOKUP($C38,Scores,4,FALSE)) ->  | E38: =IF($C38="","",IF(VLOOKUP($C38,Scores,5,FALSE)="","-",VLOOKUP($C38,Matches,25,FALSE))) ->  | F38: =IF($C38="","",IF(VLOOKUP($C38,Scores,6,FALSE)="","",VLOOKUP($C38,Scores,6,FALSE))) ->  | G38: =IF($C38="","",IF(VLOOKUP($C38,Scores,7,FALSE)="","",VLOOKUP($C38,Scores,7,FALSE))) ->  | H38: =IF($C38="","",IF(VLOOKUP($C38,Scores,8,FALSE)="","",VLOOKUP($C38,Scores,8,FALSE))) ->  | I38: =IF($C38="","",IF(VLOOKUP($C38,Scores,9,FALSE)="","",VLOOKUP($C38,Scores,9,FALSE))) ->  | J38: =IF($C38="","",IF(VLOOKUP($C38,Scores,10,FALSE)="","",VLOOKUP($C38,Scores,10,FALSE))) ->  | K38: =IF($C38="","",IF(VLOOKUP($C38,Scores,11,FALSE)="","",VLOOKUP($C38,Scores,11,FALSE))) ->  | L38: =IF($C38="","",IF(VLOOKUP($C38,Scores,12,FALSE)="","",VLOOKUP($C38,Scores,12,FALSE))) ->  | M38: =IF($C38="","",IF(VLOOKUP($C38,Scores,13,FALSE)="","",VLOOKUP($C38,Scores,13,FALSE))) ->  | N38: =IF($C38="","",IF(VLOOKUP($C38,Scores,14,FALSE)="","",VLOOKUP($C38,Scores,14,FALSE))) ->  | O38: =IF($C38="","",IF(VLOOKUP($C38,Scores,15,FALSE)="","",VLOOKUP($C38,Scores,15,FALSE))) ->  | P38: =IF($O38="","",SUM($G38:$O38)) ->  | Q38: =IF($D38="-","-",IF($P38="","",$P38-($D38/2))) ->  | R38: =IF($C38="","",IF(VLOOKUP($C38,Scores,17,FALSE)="","",VLOOKUP($C38,Scores,17,FALSE))) ->  | S38: =IF($C38="","",IF(VLOOKUP($C38,Scores,18,FALSE)="","",VLOOKUP($C38,Scores,18,FALSE))) ->  | T38: =IF($C38="","",IF(VLOOKUP($C38,Scores,19,FALSE)="","",VLOOKUP($C38,Scores,19,FALSE))) ->  | U38: =IF($C38="","",IF(VLOOKUP($C38,Scores,20,FALSE)="","",VLOOKUP($C38,Scores,20,FALSE))) ->  | V38: =IF($C38="","",IF(VLOOKUP($C38,Scores,21,FALSE)="","",VLOOKUP($C38,Scores,21,FALSE))) ->  | W38: =IF($C38="","",IF(VLOOKUP($C38,Scores,22,FALSE)="","",VLOOKUP($C38,Scores,22,FALSE))) ->  | X38: =IF($C38="","",IF(VLOOKUP($C38,Scores,23,FALSE)="","",VLOOKUP($C38,Scores,23,FALSE))) ->  | Y38: =IF($C38="","",IF(VLOOKUP($C38,Scores,24,FALSE)="","",VLOOKUP($C38,Scores,24,FALSE))) ->  | Z38: =IF($C38="","",IF(VLOOKUP($C38,Scores,25,FALSE)="","",VLOOKUP($C38,Scores,25,FALSE))) ->  | AA38: =IF($Z38="","",SUM($R38:$Z38)) ->  | AB38: =IF($D38="-","-",IF($AA38="","",$AA38-($D38/2))) ->  | AC38: =IF(OR($P38="",$AA38=""),"",SUM($P38,$AA38)) ->  | AD38: =IF($D38="-","-",IF(OR($Q38="",$AB38=""),"",SUM($Q38,$AB38))) -> 
B39: 34 | D39: =IF($C39="","",VLOOKUP($C39,Scores,4,FALSE)) ->  | E39: =IF($C39="","",IF(VLOOKUP($C39,Scores,5,FALSE)="","-",VLOOKUP($C39,Matches,25,FALSE))) ->  | F39: =IF($C39="","",IF(VLOOKUP($C39,Scores,6,FALSE)="","",VLOOKUP($C39,Scores,6,FALSE))) ->  | G39: =IF($C39="","",IF(VLOOKUP($C39,Scores,7,FALSE)="","",VLOOKUP($C39,Scores,7,FALSE))) ->  | H39: =IF($C39="","",IF(VLOOKUP($C39,Scores,8,FALSE)="","",VLOOKUP($C39,Scores,8,FALSE))) ->  | I39: =IF($C39="","",IF(VLOOKUP($C39,Scores,9,FALSE)="","",VLOOKUP($C39,Scores,9,FALSE))) ->  | J39: =IF($C39="","",IF(VLOOKUP($C39,Scores,10,FALSE)="","",VLOOKUP($C39,Scores,10,FALSE))) ->  | K39: =IF($C39="","",IF(VLOOKUP($C39,Scores,11,FALSE)="","",VLOOKUP($C39,Scores,11,FALSE))) ->  | L39: =IF($C39="","",IF(VLOOKUP($C39,Scores,12,FALSE)="","",VLOOKUP($C39,Scores,12,FALSE))) ->  | M39: =IF($C39="","",IF(VLOOKUP($C39,Scores,13,FALSE)="","",VLOOKUP($C39,Scores,13,FALSE))) ->  | N39: =IF($C39="","",IF(VLOOKUP($C39,Scores,14,FALSE)="","",VLOOKUP($C39,Scores,14,FALSE))) ->  | O39: =IF($C39="","",IF(VLOOKUP($C39,Scores,15,FALSE)="","",VLOOKUP($C39,Scores,15,FALSE))) ->  | P39: =IF($O39="","",SUM($G39:$O39)) ->  | Q39: =IF($D39="-","-",IF($P39="","",$P39-($D39/2))) ->  | R39: =IF($C39="","",IF(VLOOKUP($C39,Scores,17,FALSE)="","",VLOOKUP($C39,Scores,17,FALSE))) ->  | S39: =IF($C39="","",IF(VLOOKUP($C39,Scores,18,FALSE)="","",VLOOKUP($C39,Scores,18,FALSE))) ->  | T39: =IF($C39="","",IF(VLOOKUP($C39,Scores,19,FALSE)="","",VLOOKUP($C39,Scores,19,FALSE))) ->  | U39: =IF($C39="","",IF(VLOOKUP($C39,Scores,20,FALSE)="","",VLOOKUP($C39,Scores,20,FALSE))) ->  | V39: =IF($C39="","",IF(VLOOKUP($C39,Scores,21,FALSE)="","",VLOOKUP($C39,Scores,21,FALSE))) ->  | W39: =IF($C39="","",IF(VLOOKUP($C39,Scores,22,FALSE)="","",VLOOKUP($C39,Scores,22,FALSE))) ->  | X39: =IF($C39="","",IF(VLOOKUP($C39,Scores,23,FALSE)="","",VLOOKUP($C39,Scores,23,FALSE))) ->  | Y39: =IF($C39="","",IF(VLOOKUP($C39,Scores,24,FALSE)="","",VLOOKUP($C39,Scores,24,FALSE))) ->  | Z39: =IF($C39="","",IF(VLOOKUP($C39,Scores,25,FALSE)="","",VLOOKUP($C39,Scores,25,FALSE))) ->  | AA39: =IF($Z39="","",SUM($R39:$Z39)) ->  | AB39: =IF($D39="-","-",IF($AA39="","",$AA39-($D39/2))) ->  | AC39: =IF(OR($P39="",$AA39=""),"",SUM($P39,$AA39)) ->  | AD39: =IF($D39="-","-",IF(OR($Q39="",$AB39=""),"",SUM($Q39,$AB39))) -> 
B40: 35 | D40: =IF($C40="","",VLOOKUP($C40,Scores,4,FALSE)) ->  | E40: =IF($C40="","",IF(VLOOKUP($C40,Scores,5,FALSE)="","-",VLOOKUP($C40,Matches,25,FALSE))) ->  | F40: =IF($C40="","",IF(VLOOKUP($C40,Scores,6,FALSE)="","",VLOOKUP($C40,Scores,6,FALSE))) ->  | G40: =IF($C40="","",IF(VLOOKUP($C40,Scores,7,FALSE)="","",VLOOKUP($C40,Scores,7,FALSE))) ->  | H40: =IF($C40="","",IF(VLOOKUP($C40,Scores,8,FALSE)="","",VLOOKUP($C40,Scores,8,FALSE))) ->  | I40: =IF($C40="","",IF(VLOOKUP($C40,Scores,9,FALSE)="","",VLOOKUP($C40,Scores,9,FALSE))) ->  | J40: =IF($C40="","",IF(VLOOKUP($C40,Scores,10,FALSE)="","",VLOOKUP($C40,Scores,10,FALSE))) ->  | K40: =IF($C40="","",IF(VLOOKUP($C40,Scores,11,FALSE)="","",VLOOKUP($C40,Scores,11,FALSE))) ->  | L40: =IF($C40="","",IF(VLOOKUP($C40,Scores,12,FALSE)="","",VLOOKUP($C40,Scores,12,FALSE))) ->  | M40: =IF($C40="","",IF(VLOOKUP($C40,Scores,13,FALSE)="","",VLOOKUP($C40,Scores,13,FALSE))) ->  | N40: =IF($C40="","",IF(VLOOKUP($C40,Scores,14,FALSE)="","",VLOOKUP($C40,Scores,14,FALSE))) ->  | O40: =IF($C40="","",IF(VLOOKUP($C40,Scores,15,FALSE)="","",VLOOKUP($C40,Scores,15,FALSE))) ->  | P40: =IF($O40="","",SUM($G40:$O40)) ->  | Q40: =IF($D40="-","-",IF($P40="","",$P40-($D40/2))) ->  | R40: =IF($C40="","",IF(VLOOKUP($C40,Scores,17,FALSE)="","",VLOOKUP($C40,Scores,17,FALSE))) ->  | S40: =IF($C40="","",IF(VLOOKUP($C40,Scores,18,FALSE)="","",VLOOKUP($C40,Scores,18,FALSE))) ->  | T40: =IF($C40="","",IF(VLOOKUP($C40,Scores,19,FALSE)="","",VLOOKUP($C40,Scores,19,FALSE))) ->  | U40: =IF($C40="","",IF(VLOOKUP($C40,Scores,20,FALSE)="","",VLOOKUP($C40,Scores,20,FALSE))) ->  | V40: =IF($C40="","",IF(VLOOKUP($C40,Scores,21,FALSE)="","",VLOOKUP($C40,Scores,21,FALSE))) ->  | W40: =IF($C40="","",IF(VLOOKUP($C40,Scores,22,FALSE)="","",VLOOKUP($C40,Scores,22,FALSE))) ->  | X40: =IF($C40="","",IF(VLOOKUP($C40,Scores,23,FALSE)="","",VLOOKUP($C40,Scores,23,FALSE))) ->  | Y40: =IF($C40="","",IF(VLOOKUP($C40,Scores,24,FALSE)="","",VLOOKUP($C40,Scores,24,FALSE))) ->  | Z40: =IF($C40="","",IF(VLOOKUP($C40,Scores,25,FALSE)="","",VLOOKUP($C40,Scores,25,FALSE))) ->  | AA40: =IF($Z40="","",SUM($R40:$Z40)) ->  | AB40: =IF($D40="-","-",IF($AA40="","",$AA40-($D40/2))) ->  | AC40: =IF(OR($P40="",$AA40=""),"",SUM($P40,$AA40)) ->  | AD40: =IF($D40="-","-",IF(OR($Q40="",$AB40=""),"",SUM($Q40,$AB40))) -> 
B41: 36 | D41: =IF($C41="","",VLOOKUP($C41,Scores,4,FALSE)) ->  | E41: =IF($C41="","",IF(VLOOKUP($C41,Scores,5,FALSE)="","-",VLOOKUP($C41,Matches,25,FALSE))) ->  | F41: =IF($C41="","",IF(VLOOKUP($C41,Scores,6,FALSE)="","",VLOOKUP($C41,Scores,6,FALSE))) ->  | G41: =IF($C41="","",IF(VLOOKUP($C41,Scores,7,FALSE)="","",VLOOKUP($C41,Scores,7,FALSE))) ->  | H41: =IF($C41="","",IF(VLOOKUP($C41,Scores,8,FALSE)="","",VLOOKUP($C41,Scores,8,FALSE))) ->  | I41: =IF($C41="","",IF(VLOOKUP($C41,Scores,9,FALSE)="","",VLOOKUP($C41,Scores,9,FALSE))) ->  | J41: =IF($C41="","",IF(VLOOKUP($C41,Scores,10,FALSE)="","",VLOOKUP($C41,Scores,10,FALSE))) ->  | K41: =IF($C41="","",IF(VLOOKUP($C41,Scores,11,FALSE)="","",VLOOKUP($C41,Scores,11,FALSE))) ->  | L41: =IF($C41="","",IF(VLOOKUP($C41,Scores,12,FALSE)="","",VLOOKUP($C41,Scores,12,FALSE))) ->  | M41: =IF($C41="","",IF(VLOOKUP($C41,Scores,13,FALSE)="","",VLOOKUP($C41,Scores,13,FALSE))) ->  | N41: =IF($C41="","",IF(VLOOKUP($C41,Scores,14,FALSE)="","",VLOOKUP($C41,Scores,14,FALSE))) ->  | O41: =IF($C41="","",IF(VLOOKUP($C41,Scores,15,FALSE)="","",VLOOKUP($C41,Scores,15,FALSE))) ->  | P41: =IF($O41="","",SUM($G41:$O41)) ->  | Q41: =IF($D41="-","-",IF($P41="","",$P41-($D41/2))) ->  | R41: =IF($C41="","",IF(VLOOKUP($C41,Scores,17,FALSE)="","",VLOOKUP($C41,Scores,17,FALSE))) ->  | S41: =IF($C41="","",IF(VLOOKUP($C41,Scores,18,FALSE)="","",VLOOKUP($C41,Scores,18,FALSE))) ->  | T41: =IF($C41="","",IF(VLOOKUP($C41,Scores,19,FALSE)="","",VLOOKUP($C41,Scores,19,FALSE))) ->  | U41: =IF($C41="","",IF(VLOOKUP($C41,Scores,20,FALSE)="","",VLOOKUP($C41,Scores,20,FALSE))) ->  | V41: =IF($C41="","",IF(VLOOKUP($C41,Scores,21,FALSE)="","",VLOOKUP($C41,Scores,21,FALSE))) ->  | W41: =IF($C41="","",IF(VLOOKUP($C41,Scores,22,FALSE)="","",VLOOKUP($C41,Scores,22,FALSE))) ->  | X41: =IF($C41="","",IF(VLOOKUP($C41,Scores,23,FALSE)="","",VLOOKUP($C41,Scores,23,FALSE))) ->  | Y41: =IF($C41="","",IF(VLOOKUP($C41,Scores,24,FALSE)="","",VLOOKUP($C41,Scores,24,FALSE))) ->  | Z41: =IF($C41="","",IF(VLOOKUP($C41,Scores,25,FALSE)="","",VLOOKUP($C41,Scores,25,FALSE))) ->  | AA41: =IF($Z41="","",SUM($R41:$Z41)) ->  | AB41: =IF($D41="-","-",IF($AA41="","",$AA41-($D41/2))) ->  | AC41: =IF(OR($P41="",$AA41=""),"",SUM($P41,$AA41)) ->  | AD41: =IF($D41="-","-",IF(OR($Q41="",$AB41=""),"",SUM($Q41,$AB41))) -> 
B42: 37 | D42: =IF($C42="","",VLOOKUP($C42,Scores,4,FALSE)) ->  | E42: =IF($C42="","",IF(VLOOKUP($C42,Scores,5,FALSE)="","-",VLOOKUP($C42,Matches,25,FALSE))) ->  | F42: =IF($C42="","",IF(VLOOKUP($C42,Scores,6,FALSE)="","",VLOOKUP($C42,Scores,6,FALSE))) ->  | G42: =IF($C42="","",IF(VLOOKUP($C42,Scores,7,FALSE)="","",VLOOKUP($C42,Scores,7,FALSE))) ->  | H42: =IF($C42="","",IF(VLOOKUP($C42,Scores,8,FALSE)="","",VLOOKUP($C42,Scores,8,FALSE))) ->  | I42: =IF($C42="","",IF(VLOOKUP($C42,Scores,9,FALSE)="","",VLOOKUP($C42,Scores,9,FALSE))) ->  | J42: =IF($C42="","",IF(VLOOKUP($C42,Scores,10,FALSE)="","",VLOOKUP($C42,Scores,10,FALSE))) ->  | K42: =IF($C42="","",IF(VLOOKUP($C42,Scores,11,FALSE)="","",VLOOKUP($C42,Scores,11,FALSE))) ->  | L42: =IF($C42="","",IF(VLOOKUP($C42,Scores,12,FALSE)="","",VLOOKUP($C42,Scores,12,FALSE))) ->  | M42: =IF($C42="","",IF(VLOOKUP($C42,Scores,13,FALSE)="","",VLOOKUP($C42,Scores,13,FALSE))) ->  | N42: =IF($C42="","",IF(VLOOKUP($C42,Scores,14,FALSE)="","",VLOOKUP($C42,Scores,14,FALSE))) ->  | O42: =IF($C42="","",IF(VLOOKUP($C42,Scores,15,FALSE)="","",VLOOKUP($C42,Scores,15,FALSE))) ->  | P42: =IF($O42="","",SUM($G42:$O42)) ->  | Q42: =IF($D42="-","-",IF($P42="","",$P42-($D42/2))) ->  | R42: =IF($C42="","",IF(VLOOKUP($C42,Scores,17,FALSE)="","",VLOOKUP($C42,Scores,17,FALSE))) ->  | S42: =IF($C42="","",IF(VLOOKUP($C42,Scores,18,FALSE)="","",VLOOKUP($C42,Scores,18,FALSE))) ->  | T42: =IF($C42="","",IF(VLOOKUP($C42,Scores,19,FALSE)="","",VLOOKUP($C42,Scores,19,FALSE))) ->  | U42: =IF($C42="","",IF(VLOOKUP($C42,Scores,20,FALSE)="","",VLOOKUP($C42,Scores,20,FALSE))) ->  | V42: =IF($C42="","",IF(VLOOKUP($C42,Scores,21,FALSE)="","",VLOOKUP($C42,Scores,21,FALSE))) ->  | W42: =IF($C42="","",IF(VLOOKUP($C42,Scores,22,FALSE)="","",VLOOKUP($C42,Scores,22,FALSE))) ->  | X42: =IF($C42="","",IF(VLOOKUP($C42,Scores,23,FALSE)="","",VLOOKUP($C42,Scores,23,FALSE))) ->  | Y42: =IF($C42="","",IF(VLOOKUP($C42,Scores,24,FALSE)="","",VLOOKUP($C42,Scores,24,FALSE))) ->  | Z42: =IF($C42="","",IF(VLOOKUP($C42,Scores,25,FALSE)="","",VLOOKUP($C42,Scores,25,FALSE))) ->  | AA42: =IF($Z42="","",SUM($R42:$Z42)) ->  | AB42: =IF($D42="-","-",IF($AA42="","",$AA42-($D42/2))) ->  | AC42: =IF(OR($P42="",$AA42=""),"",SUM($P42,$AA42)) ->  | AD42: =IF($D42="-","-",IF(OR($Q42="",$AB42=""),"",SUM($Q42,$AB42))) -> 
B43: 38 | D43: =IF($C43="","",VLOOKUP($C43,Scores,4,FALSE)) ->  | E43: =IF($C43="","",IF(VLOOKUP($C43,Scores,5,FALSE)="","-",VLOOKUP($C43,Matches,25,FALSE))) ->  | F43: =IF($C43="","",IF(VLOOKUP($C43,Scores,6,FALSE)="","",VLOOKUP($C43,Scores,6,FALSE))) ->  | G43: =IF($C43="","",IF(VLOOKUP($C43,Scores,7,FALSE)="","",VLOOKUP($C43,Scores,7,FALSE))) ->  | H43: =IF($C43="","",IF(VLOOKUP($C43,Scores,8,FALSE)="","",VLOOKUP($C43,Scores,8,FALSE))) ->  | I43: =IF($C43="","",IF(VLOOKUP($C43,Scores,9,FALSE)="","",VLOOKUP($C43,Scores,9,FALSE))) ->  | J43: =IF($C43="","",IF(VLOOKUP($C43,Scores,10,FALSE)="","",VLOOKUP($C43,Scores,10,FALSE))) ->  | K43: =IF($C43="","",IF(VLOOKUP($C43,Scores,11,FALSE)="","",VLOOKUP($C43,Scores,11,FALSE))) ->  | L43: =IF($C43="","",IF(VLOOKUP($C43,Scores,12,FALSE)="","",VLOOKUP($C43,Scores,12,FALSE))) ->  | M43: =IF($C43="","",IF(VLOOKUP($C43,Scores,13,FALSE)="","",VLOOKUP($C43,Scores,13,FALSE))) ->  | N43: =IF($C43="","",IF(VLOOKUP($C43,Scores,14,FALSE)="","",VLOOKUP($C43,Scores,14,FALSE))) ->  | O43: =IF($C43="","",IF(VLOOKUP($C43,Scores,15,FALSE)="","",VLOOKUP($C43,Scores,15,FALSE))) ->  | P43: =IF($O43="","",SUM($G43:$O43)) ->  | Q43: =IF($D43="-","-",IF($P43="","",$P43-($D43/2))) ->  | R43: =IF($C43="","",IF(VLOOKUP($C43,Scores,17,FALSE)="","",VLOOKUP($C43,Scores,17,FALSE))) ->  | S43: =IF($C43="","",IF(VLOOKUP($C43,Scores,18,FALSE)="","",VLOOKUP($C43,Scores,18,FALSE))) ->  | T43: =IF($C43="","",IF(VLOOKUP($C43,Scores,19,FALSE)="","",VLOOKUP($C43,Scores,19,FALSE))) ->  | U43: =IF($C43="","",IF(VLOOKUP($C43,Scores,20,FALSE)="","",VLOOKUP($C43,Scores,20,FALSE))) ->  | V43: =IF($C43="","",IF(VLOOKUP($C43,Scores,21,FALSE)="","",VLOOKUP($C43,Scores,21,FALSE))) ->  | W43: =IF($C43="","",IF(VLOOKUP($C43,Scores,22,FALSE)="","",VLOOKUP($C43,Scores,22,FALSE))) ->  | X43: =IF($C43="","",IF(VLOOKUP($C43,Scores,23,FALSE)="","",VLOOKUP($C43,Scores,23,FALSE))) ->  | Y43: =IF($C43="","",IF(VLOOKUP($C43,Scores,24,FALSE)="","",VLOOKUP($C43,Scores,24,FALSE))) ->  | Z43: =IF($C43="","",IF(VLOOKUP($C43,Scores,25,FALSE)="","",VLOOKUP($C43,Scores,25,FALSE))) ->  | AA43: =IF($Z43="","",SUM($R43:$Z43)) ->  | AB43: =IF($D43="-","-",IF($AA43="","",$AA43-($D43/2))) ->  | AC43: =IF(OR($P43="",$AA43=""),"",SUM($P43,$AA43)) ->  | AD43: =IF($D43="-","-",IF(OR($Q43="",$AB43=""),"",SUM($Q43,$AB43))) -> 
B44: 39 | D44: =IF($C44="","",VLOOKUP($C44,Scores,4,FALSE)) ->  | E44: =IF($C44="","",IF(VLOOKUP($C44,Scores,5,FALSE)="","-",VLOOKUP($C44,Matches,25,FALSE))) ->  | F44: =IF($C44="","",IF(VLOOKUP($C44,Scores,6,FALSE)="","",VLOOKUP($C44,Scores,6,FALSE))) ->  | G44: =IF($C44="","",IF(VLOOKUP($C44,Scores,7,FALSE)="","",VLOOKUP($C44,Scores,7,FALSE))) ->  | H44: =IF($C44="","",IF(VLOOKUP($C44,Scores,8,FALSE)="","",VLOOKUP($C44,Scores,8,FALSE))) ->  | I44: =IF($C44="","",IF(VLOOKUP($C44,Scores,9,FALSE)="","",VLOOKUP($C44,Scores,9,FALSE))) ->  | J44: =IF($C44="","",IF(VLOOKUP($C44,Scores,10,FALSE)="","",VLOOKUP($C44,Scores,10,FALSE))) ->  | K44: =IF($C44="","",IF(VLOOKUP($C44,Scores,11,FALSE)="","",VLOOKUP($C44,Scores,11,FALSE))) ->  | L44: =IF($C44="","",IF(VLOOKUP($C44,Scores,12,FALSE)="","",VLOOKUP($C44,Scores,12,FALSE))) ->  | M44: =IF($C44="","",IF(VLOOKUP($C44,Scores,13,FALSE)="","",VLOOKUP($C44,Scores,13,FALSE))) ->  | N44: =IF($C44="","",IF(VLOOKUP($C44,Scores,14,FALSE)="","",VLOOKUP($C44,Scores,14,FALSE))) ->  | O44: =IF($C44="","",IF(VLOOKUP($C44,Scores,15,FALSE)="","",VLOOKUP($C44,Scores,15,FALSE))) ->  | P44: =IF($O44="","",SUM($G44:$O44)) ->  | Q44: =IF($D44="-","-",IF($P44="","",$P44-($D44/2))) ->  | R44: =IF($C44="","",IF(VLOOKUP($C44,Scores,17,FALSE)="","",VLOOKUP($C44,Scores,17,FALSE))) ->  | S44: =IF($C44="","",IF(VLOOKUP($C44,Scores,18,FALSE)="","",VLOOKUP($C44,Scores,18,FALSE))) ->  | T44: =IF($C44="","",IF(VLOOKUP($C44,Scores,19,FALSE)="","",VLOOKUP($C44,Scores,19,FALSE))) ->  | U44: =IF($C44="","",IF(VLOOKUP($C44,Scores,20,FALSE)="","",VLOOKUP($C44,Scores,20,FALSE))) ->  | V44: =IF($C44="","",IF(VLOOKUP($C44,Scores,21,FALSE)="","",VLOOKUP($C44,Scores,21,FALSE))) ->  | W44: =IF($C44="","",IF(VLOOKUP($C44,Scores,22,FALSE)="","",VLOOKUP($C44,Scores,22,FALSE))) ->  | X44: =IF($C44="","",IF(VLOOKUP($C44,Scores,23,FALSE)="","",VLOOKUP($C44,Scores,23,FALSE))) ->  | Y44: =IF($C44="","",IF(VLOOKUP($C44,Scores,24,FALSE)="","",VLOOKUP($C44,Scores,24,FALSE))) ->  | Z44: =IF($C44="","",IF(VLOOKUP($C44,Scores,25,FALSE)="","",VLOOKUP($C44,Scores,25,FALSE))) ->  | AA44: =IF($Z44="","",SUM($R44:$Z44)) ->  | AB44: =IF($D44="-","-",IF($AA44="","",$AA44-($D44/2))) ->  | AC44: =IF(OR($P44="",$AA44=""),"",SUM($P44,$AA44)) ->  | AD44: =IF($D44="-","-",IF(OR($Q44="",$AB44=""),"",SUM($Q44,$AB44))) -> 
B45: 40 | D45: =IF($C45="","",VLOOKUP($C45,Scores,4,FALSE)) ->  | E45: =IF($C45="","",IF(VLOOKUP($C45,Scores,5,FALSE)="","-",VLOOKUP($C45,Matches,25,FALSE))) ->  | F45: =IF($C45="","",IF(VLOOKUP($C45,Scores,6,FALSE)="","",VLOOKUP($C45,Scores,6,FALSE))) ->  | G45: =IF($C45="","",IF(VLOOKUP($C45,Scores,7,FALSE)="","",VLOOKUP($C45,Scores,7,FALSE))) ->  | H45: =IF($C45="","",IF(VLOOKUP($C45,Scores,8,FALSE)="","",VLOOKUP($C45,Scores,8,FALSE))) ->  | I45: =IF($C45="","",IF(VLOOKUP($C45,Scores,9,FALSE)="","",VLOOKUP($C45,Scores,9,FALSE))) ->  | J45: =IF($C45="","",IF(VLOOKUP($C45,Scores,10,FALSE)="","",VLOOKUP($C45,Scores,10,FALSE))) ->  | K45: =IF($C45="","",IF(VLOOKUP($C45,Scores,11,FALSE)="","",VLOOKUP($C45,Scores,11,FALSE))) ->  | L45: =IF($C45="","",IF(VLOOKUP($C45,Scores,12,FALSE)="","",VLOOKUP($C45,Scores,12,FALSE))) ->  | M45: =IF($C45="","",IF(VLOOKUP($C45,Scores,13,FALSE)="","",VLOOKUP($C45,Scores,13,FALSE))) ->  | N45: =IF($C45="","",IF(VLOOKUP($C45,Scores,14,FALSE)="","",VLOOKUP($C45,Scores,14,FALSE))) ->  | O45: =IF($C45="","",IF(VLOOKUP($C45,Scores,15,FALSE)="","",VLOOKUP($C45,Scores,15,FALSE))) ->  | P45: =IF($O45="","",SUM($G45:$O45)) ->  | Q45: =IF($D45="-","-",IF($P45="","",$P45-($D45/2))) ->  | R45: =IF($C45="","",IF(VLOOKUP($C45,Scores,17,FALSE)="","",VLOOKUP($C45,Scores,17,FALSE))) ->  | S45: =IF($C45="","",IF(VLOOKUP($C45,Scores,18,FALSE)="","",VLOOKUP($C45,Scores,18,FALSE))) ->  | T45: =IF($C45="","",IF(VLOOKUP($C45,Scores,19,FALSE)="","",VLOOKUP($C45,Scores,19,FALSE))) ->  | U45: =IF($C45="","",IF(VLOOKUP($C45,Scores,20,FALSE)="","",VLOOKUP($C45,Scores,20,FALSE))) ->  | V45: =IF($C45="","",IF(VLOOKUP($C45,Scores,21,FALSE)="","",VLOOKUP($C45,Scores,21,FALSE))) ->  | W45: =IF($C45="","",IF(VLOOKUP($C45,Scores,22,FALSE)="","",VLOOKUP($C45,Scores,22,FALSE))) ->  | X45: =IF($C45="","",IF(VLOOKUP($C45,Scores,23,FALSE)="","",VLOOKUP($C45,Scores,23,FALSE))) ->  | Y45: =IF($C45="","",IF(VLOOKUP($C45,Scores,24,FALSE)="","",VLOOKUP($C45,Scores,24,FALSE))) ->  | Z45: =IF($C45="","",IF(VLOOKUP($C45,Scores,25,FALSE)="","",VLOOKUP($C45,Scores,25,FALSE))) ->  | AA45: =IF($Z45="","",SUM($R45:$Z45)) ->  | AB45: =IF($D45="-","-",IF($AA45="","",$AA45-($D45/2))) ->  | AC45: =IF(OR($P45="",$AA45=""),"",SUM($P45,$AA45)) ->  | AD45: =IF($D45="-","-",IF(OR($Q45="",$AB45=""),"",SUM($Q45,$AB45))) -> 
B46: 41 | D46: =IF($C46="","",VLOOKUP($C46,Scores,4,FALSE)) ->  | E46: =IF($C46="","",IF(VLOOKUP($C46,Scores,5,FALSE)="","-",VLOOKUP($C46,Matches,25,FALSE))) ->  | F46: =IF($C46="","",IF(VLOOKUP($C46,Scores,6,FALSE)="","",VLOOKUP($C46,Scores,6,FALSE))) ->  | G46: =IF($C46="","",IF(VLOOKUP($C46,Scores,7,FALSE)="","",VLOOKUP($C46,Scores,7,FALSE))) ->  | H46: =IF($C46="","",IF(VLOOKUP($C46,Scores,8,FALSE)="","",VLOOKUP($C46,Scores,8,FALSE))) ->  | I46: =IF($C46="","",IF(VLOOKUP($C46,Scores,9,FALSE)="","",VLOOKUP($C46,Scores,9,FALSE))) ->  | J46: =IF($C46="","",IF(VLOOKUP($C46,Scores,10,FALSE)="","",VLOOKUP($C46,Scores,10,FALSE))) ->  | K46: =IF($C46="","",IF(VLOOKUP($C46,Scores,11,FALSE)="","",VLOOKUP($C46,Scores,11,FALSE))) ->  | L46: =IF($C46="","",IF(VLOOKUP($C46,Scores,12,FALSE)="","",VLOOKUP($C46,Scores,12,FALSE))) ->  | M46: =IF($C46="","",IF(VLOOKUP($C46,Scores,13,FALSE)="","",VLOOKUP($C46,Scores,13,FALSE))) ->  | N46: =IF($C46="","",IF(VLOOKUP($C46,Scores,14,FALSE)="","",VLOOKUP($C46,Scores,14,FALSE))) ->  | O46: =IF($C46="","",IF(VLOOKUP($C46,Scores,15,FALSE)="","",VLOOKUP($C46,Scores,15,FALSE))) ->  | P46: =IF($O46="","",SUM($G46:$O46)) ->  | Q46: =IF($D46="-","-",IF($P46="","",$P46-($D46/2))) ->  | R46: =IF($C46="","",IF(VLOOKUP($C46,Scores,17,FALSE)="","",VLOOKUP($C46,Scores,17,FALSE))) ->  | S46: =IF($C46="","",IF(VLOOKUP($C46,Scores,18,FALSE)="","",VLOOKUP($C46,Scores,18,FALSE))) ->  | T46: =IF($C46="","",IF(VLOOKUP($C46,Scores,19,FALSE)="","",VLOOKUP($C46,Scores,19,FALSE))) ->  | U46: =IF($C46="","",IF(VLOOKUP($C46,Scores,20,FALSE)="","",VLOOKUP($C46,Scores,20,FALSE))) ->  | V46: =IF($C46="","",IF(VLOOKUP($C46,Scores,21,FALSE)="","",VLOOKUP($C46,Scores,21,FALSE))) ->  | W46: =IF($C46="","",IF(VLOOKUP($C46,Scores,22,FALSE)="","",VLOOKUP($C46,Scores,22,FALSE))) ->  | X46: =IF($C46="","",IF(VLOOKUP($C46,Scores,23,FALSE)="","",VLOOKUP($C46,Scores,23,FALSE))) ->  | Y46: =IF($C46="","",IF(VLOOKUP($C46,Scores,24,FALSE)="","",VLOOKUP($C46,Scores,24,FALSE))) ->  | Z46: =IF($C46="","",IF(VLOOKUP($C46,Scores,25,FALSE)="","",VLOOKUP($C46,Scores,25,FALSE))) ->  | AA46: =IF($Z46="","",SUM($R46:$Z46)) ->  | AB46: =IF($D46="-","-",IF($AA46="","",$AA46-($D46/2))) ->  | AC46: =IF(OR($P46="",$AA46=""),"",SUM($P46,$AA46)) ->  | AD46: =IF($D46="-","-",IF(OR($Q46="",$AB46=""),"",SUM($Q46,$AB46))) -> 
B47: 42 | D47: =IF($C47="","",VLOOKUP($C47,Scores,4,FALSE)) ->  | E47: =IF($C47="","",IF(VLOOKUP($C47,Scores,5,FALSE)="","-",VLOOKUP($C47,Matches,25,FALSE))) ->  | F47: =IF($C47="","",IF(VLOOKUP($C47,Scores,6,FALSE)="","",VLOOKUP($C47,Scores,6,FALSE))) ->  | G47: =IF($C47="","",IF(VLOOKUP($C47,Scores,7,FALSE)="","",VLOOKUP($C47,Scores,7,FALSE))) ->  | H47: =IF($C47="","",IF(VLOOKUP($C47,Scores,8,FALSE)="","",VLOOKUP($C47,Scores,8,FALSE))) ->  | I47: =IF($C47="","",IF(VLOOKUP($C47,Scores,9,FALSE)="","",VLOOKUP($C47,Scores,9,FALSE))) ->  | J47: =IF($C47="","",IF(VLOOKUP($C47,Scores,10,FALSE)="","",VLOOKUP($C47,Scores,10,FALSE))) ->  | K47: =IF($C47="","",IF(VLOOKUP($C47,Scores,11,FALSE)="","",VLOOKUP($C47,Scores,11,FALSE))) ->  | L47: =IF($C47="","",IF(VLOOKUP($C47,Scores,12,FALSE)="","",VLOOKUP($C47,Scores,12,FALSE))) ->  | M47: =IF($C47="","",IF(VLOOKUP($C47,Scores,13,FALSE)="","",VLOOKUP($C47,Scores,13,FALSE))) ->  | N47: =IF($C47="","",IF(VLOOKUP($C47,Scores,14,FALSE)="","",VLOOKUP($C47,Scores,14,FALSE))) ->  | O47: =IF($C47="","",IF(VLOOKUP($C47,Scores,15,FALSE)="","",VLOOKUP($C47,Scores,15,FALSE))) ->  | P47: =IF($O47="","",SUM($G47:$O47)) ->  | Q47: =IF($D47="-","-",IF($P47="","",$P47-($D47/2))) ->  | R47: =IF($C47="","",IF(VLOOKUP($C47,Scores,17,FALSE)="","",VLOOKUP($C47,Scores,17,FALSE))) ->  | S47: =IF($C47="","",IF(VLOOKUP($C47,Scores,18,FALSE)="","",VLOOKUP($C47,Scores,18,FALSE))) ->  | T47: =IF($C47="","",IF(VLOOKUP($C47,Scores,19,FALSE)="","",VLOOKUP($C47,Scores,19,FALSE))) ->  | U47: =IF($C47="","",IF(VLOOKUP($C47,Scores,20,FALSE)="","",VLOOKUP($C47,Scores,20,FALSE))) ->  | V47: =IF($C47="","",IF(VLOOKUP($C47,Scores,21,FALSE)="","",VLOOKUP($C47,Scores,21,FALSE))) ->  | W47: =IF($C47="","",IF(VLOOKUP($C47,Scores,22,FALSE)="","",VLOOKUP($C47,Scores,22,FALSE))) ->  | X47: =IF($C47="","",IF(VLOOKUP($C47,Scores,23,FALSE)="","",VLOOKUP($C47,Scores,23,FALSE))) ->  | Y47: =IF($C47="","",IF(VLOOKUP($C47,Scores,24,FALSE)="","",VLOOKUP($C47,Scores,24,FALSE))) ->  | Z47: =IF($C47="","",IF(VLOOKUP($C47,Scores,25,FALSE)="","",VLOOKUP($C47,Scores,25,FALSE))) ->  | AA47: =IF($Z47="","",SUM($R47:$Z47)) ->  | AB47: =IF($D47="-","-",IF($AA47="","",$AA47-($D47/2))) ->  | AC47: =IF(OR($P47="",$AA47=""),"",SUM($P47,$AA47)) ->  | AD47: =IF($D47="-","-",IF(OR($Q47="",$AB47=""),"",SUM($Q47,$AB47))) -> 
B48: 43 | D48: =IF($C48="","",VLOOKUP($C48,Scores,4,FALSE)) ->  | E48: =IF($C48="","",IF(VLOOKUP($C48,Scores,5,FALSE)="","-",VLOOKUP($C48,Matches,25,FALSE))) ->  | F48: =IF($C48="","",IF(VLOOKUP($C48,Scores,6,FALSE)="","",VLOOKUP($C48,Scores,6,FALSE))) ->  | G48: =IF($C48="","",IF(VLOOKUP($C48,Scores,7,FALSE)="","",VLOOKUP($C48,Scores,7,FALSE))) ->  | H48: =IF($C48="","",IF(VLOOKUP($C48,Scores,8,FALSE)="","",VLOOKUP($C48,Scores,8,FALSE))) ->  | I48: =IF($C48="","",IF(VLOOKUP($C48,Scores,9,FALSE)="","",VLOOKUP($C48,Scores,9,FALSE))) ->  | J48: =IF($C48="","",IF(VLOOKUP($C48,Scores,10,FALSE)="","",VLOOKUP($C48,Scores,10,FALSE))) ->  | K48: =IF($C48="","",IF(VLOOKUP($C48,Scores,11,FALSE)="","",VLOOKUP($C48,Scores,11,FALSE))) ->  | L48: =IF($C48="","",IF(VLOOKUP($C48,Scores,12,FALSE)="","",VLOOKUP($C48,Scores,12,FALSE))) ->  | M48: =IF($C48="","",IF(VLOOKUP($C48,Scores,13,FALSE)="","",VLOOKUP($C48,Scores,13,FALSE))) ->  | N48: =IF($C48="","",IF(VLOOKUP($C48,Scores,14,FALSE)="","",VLOOKUP($C48,Scores,14,FALSE))) ->  | O48: =IF($C48="","",IF(VLOOKUP($C48,Scores,15,FALSE)="","",VLOOKUP($C48,Scores,15,FALSE))) ->  | P48: =IF($O48="","",SUM($G48:$O48)) ->  | Q48: =IF($D48="-","-",IF($P48="","",$P48-($D48/2))) ->  | R48: =IF($C48="","",IF(VLOOKUP($C48,Scores,17,FALSE)="","",VLOOKUP($C48,Scores,17,FALSE))) ->  | S48: =IF($C48="","",IF(VLOOKUP($C48,Scores,18,FALSE)="","",VLOOKUP($C48,Scores,18,FALSE))) ->  | T48: =IF($C48="","",IF(VLOOKUP($C48,Scores,19,FALSE)="","",VLOOKUP($C48,Scores,19,FALSE))) ->  | U48: =IF($C48="","",IF(VLOOKUP($C48,Scores,20,FALSE)="","",VLOOKUP($C48,Scores,20,FALSE))) ->  | V48: =IF($C48="","",IF(VLOOKUP($C48,Scores,21,FALSE)="","",VLOOKUP($C48,Scores,21,FALSE))) ->  | W48: =IF($C48="","",IF(VLOOKUP($C48,Scores,22,FALSE)="","",VLOOKUP($C48,Scores,22,FALSE))) ->  | X48: =IF($C48="","",IF(VLOOKUP($C48,Scores,23,FALSE)="","",VLOOKUP($C48,Scores,23,FALSE))) ->  | Y48: =IF($C48="","",IF(VLOOKUP($C48,Scores,24,FALSE)="","",VLOOKUP($C48,Scores,24,FALSE))) ->  | Z48: =IF($C48="","",IF(VLOOKUP($C48,Scores,25,FALSE)="","",VLOOKUP($C48,Scores,25,FALSE))) ->  | AA48: =IF($Z48="","",SUM($R48:$Z48)) ->  | AB48: =IF($D48="-","-",IF($AA48="","",$AA48-($D48/2))) ->  | AC48: =IF(OR($P48="",$AA48=""),"",SUM($P48,$AA48)) ->  | AD48: =IF($D48="-","-",IF(OR($Q48="",$AB48=""),"",SUM($Q48,$AB48))) -> 
